Workbook

Sheet 2025 GOLF Only Fall Solutions
G1: Golf National 2025 Fall Solutions Calculator
K3: Additional Rebates & Bonus Unlocks:
F4: NAME YOUR DRAFT ORDER HERE: | J4: Spend Requirement: | K4: $5k+ | M4: $20k+ | N4: $50k+ | R4: $100k+ | S4: $150k+
F5: Description: | J5: Tier Rebate: | K5: 0.02 | M5: 0.03 | N5: 0.04 | R5: 0.05 | S5: 0.06 | AC5: Tier Rebate Less Ronstar & Specticle Flo
F6: Dist/DSR: | K6: =AND($N$62+$O$88>=5000,$N$62+$O$88<20000) -> FALSE | M6: =AND($N$62+$O$88>=20000,$N$62+$O$88<50000) -> FALSE | N6: =AND($N$62+$O$88>=50000,$N$62+$O$88<100000) -> FALSE | R6: =AND($N$62+$O$88>=100000,$N$62+$O$88<150000) -> FALSE | S6: =AND($N$62+$O$88>=150000) -> FALSE
F7: MER#: | J7: Product: | K7: Stressgard &Chipco Sig. (>$10k) | N7: Serata (8 unit min.) | R7: Durentis (4+ 64 oz units or 16+ 16oz units) | S7: Volume Buy (5 or more products)
F8: Last Updated:
F9: Created For: | K9: =IF(M11=0,"n/a",M11) -> n/a | N9: =IF(N11=0,"n/a",N11) -> n/a | R9: =IF(R11=0,"n/a",R11) -> n/a | S9: =IF(S11=0,"n/a",S11) -> n/a
K10: Spend < $50k = 1.0%; Spend > $50k = 2.0%
A11: ZM ADD | L11: HIDE | M11: =IF(AND((N62+N88)>=5000,(N62+N88)<50000,V11>=10000),0.01, IF(AND(N62+N88>=50000,V11>=10000),0.02,0)) -> 0 | N11: =IF(AND(J32>=8,N62+N88<50000),0.01,IF(AND(J32>=8,N62+N88>=50000),0.02,0)) -> 0 | O11: HIDE | P11: HIDE | Q11: HIDE | R11: =IF(AND(OR(J57>=16,J58>=4),N62+N88<50000),0.01, IF(AND(OR(J57>=16,J58>=4),N62+N88>=50000),0.02,0)) -> 0 | S11: =IF(AND($C$62>=5,N62+N88>=5000,N62+N88<50000),0.01, IF(AND($C$62>=5,N62+N88>=50000),0.02,0)) -> 0 | V11: =SUM(AC18,AC20,AC25,AC27,AC29,AC33:AC34) -> 0
A12: SKU Code | B12: VOLUME BUY THRESHOLD | C12: VOLUME BUY MET | D12: RELEVANT | F12: REBATE FINDER. (Minimum Program Purchase to receive rebates is $5,000) | G12: PRODUCT NAME | H12: UNIT SIZE | I12: CATEGORY | J12: # UNITS | K12: ORIGINAL PRICE | L12: INSEASON SUBTOTAL | M12: EOP PRICE/ UNIT* | N12: INVOICE SUBTOTAL must be a minimum of $5,000 across NOW/FALL program to receive rebates | O12: REBATE TIERS AVAILABLE | P12: REBATE TIERS QUALIFIED | Q12: QUALIFIED REBATE PER UNIT | R12: VOL BUY REBATES**† | S12: ENVU EXTRAS + TIER REBATES | T12: NET PRICE/UNIT (after all rebates & discounts) | U12: TOTAL AFTER REBATE | V12: USE RATE / 1,000 FT2 | W12: USE RATE / ACRE | X12: TOTAL ACRES TREATED | Y12: COST/ ACRE | Z12: COST/ 1,000 FT2
A15: D00000907 | B15: 2 | C15: =J15>=B15 -> FALSE | D15: =COUNTIF([1]Sheet1!$J:$J,A15) -> 2 | F15: $90 off 2+ units | G15: Banol® | H15: 2.5 gal | I15: Fungicide | K15: =INDEX(PRICING[2025 In-Season Price],MATCH(A15,PRICING[SKU],0)) -> 1267 | L15: =IF(J15*K15= 0,"",J15*K15) ->  | M15: =INDEX(PRICING[NOW Price],MATCH(A15,PRICING[SKU],0)) -> 1267 | N15: =IF(J15*M15= 0,"",J15*M15) ->  | O15: =INDEX(Rebate_Lookup[Instances],MATCH(A15,Rebate_Lookup[SKU CODE],0)) -> 2 | P15: =IF(J15="","",INDEX(Rebate_Lookup[Qualified Rebate Tier],MATCH(A15,Rebate_Lookup[SKU CODE],0))) ->  | Q15: =IF(J15="","",IF(P15=1,INDEX(Rebate_Lookup[REB_MOQ_1],MATCH(A15,Rebate_Lookup[SKU CODE],0)),IF(P15=2,INDEX(Rebate_Lookup[REB_MOQ_2],MATCH(A15,Rebate_Lookup[SKU CODE],0)),IF(P15=3,INDEX(Rebate_Lookup[REB_MOQ_3],MATCH(A15,Rebate_Lookup[SKU CODE],0)),"#err")))) ->  | R15: =IF(OR(Q15=0,Q15=""),"",J15*Q15) ->  | S15: =IFERROR(N15*SUM($I$99:$I$103),"") ->  | T15: =IFERROR((N15-SUM(R15:S15))/J15,"") ->  | U15: =IF(AND(J15<>"",J15>0), J15*T15,"") ->  | V15: 2 | W15: =V15*43.56 -> 87.12 | X15: =IF(AND(TRIM(W15)<>"",TRIM(J15)<>""),(J15*320)/W15,"") ->  | Y15: =IF(J15<>0,U15/X15,0) -> 0 | Z15: =Y15/43.56 -> 0
A16: D00000623 | B16: 5 | C16: FALSE | D16: =COUNTIF([1]Sheet1!$J:$J,A16) -> 3 | F16: $525 off 5+, $585 off 10+ units | G16: Castlon™ | H16: 1 gal | I16: Fungicide | K16: =INDEX(PRICING[2025 In-Season Price],MATCH(A16,PRICING[SKU],0)) -> 2748.2 | M16: =INDEX(PRICING[NOW Price],MATCH(A16,PRICING[SKU],0)) -> 2610.79 | O16: =INDEX(Rebate_Lookup[Instances],MATCH(A16,Rebate_Lookup[SKU CODE],0)) -> 3 | P16: =IF(J16="","",INDEX(Rebate_Lookup[Qualified Rebate Tier],MATCH(A16,Rebate_Lookup[SKU CODE],0))) ->  | Q16: =IF(J16="","",IF(P16=1,INDEX(Rebate_Lookup[REB_MOQ_1],MATCH(A16,Rebate_Lookup[SKU CODE],0)),IF(P16=2,INDEX(Rebate_Lookup[REB_MOQ_2],MATCH(A16,Rebate_Lookup[SKU CODE],0)),IF(P16=3,INDEX(Rebate_Lookup[REB_MOQ_3],MATCH(A16,Rebate_Lookup[SKU CODE],0)),"#err")))) ->  | T16: =IFERROR((N16-SUM(R16:S16))/J16,"") ->  | V16: =W16/43.56 -> 0.3673094582 | W16: 16 | X16: =IF(AND(TRIM(W16)<>"",TRIM(J16)<>""),(J16*127.999939675621)/W16,"") ->  | Y16: =IF(J16<>0,U16/X16,0) -> 0 | Z16: =Y16/43.56 -> 0
A17: D00000624 | B17: 4 | C17: FALSE | D17: =COUNTIF([1]Sheet1!$J:$J,A17) -> 3 | F17: $50 off 4+ units | G17: Castlon™ | H17: 16 oz | I17: Fungicide | K17: =INDEX(PRICING[2025 In-Season Price],MATCH(A17,PRICING[SKU],0)) -> 428 | M17: =INDEX(PRICING[NOW Price],MATCH(A17,PRICING[SKU],0)) -> 406.6 | O17: =INDEX(Rebate_Lookup[Instances],MATCH(A17,Rebate_Lookup[SKU CODE],0)) -> 2 | P17: =IF(J17="","",INDEX(Rebate_Lookup[Qualified Rebate Tier],MATCH(A17,Rebate_Lookup[SKU CODE],0))) ->  | Q17: =IF(J17="","",IF(P17=1,INDEX(Rebate_Lookup[REB_MOQ_1],MATCH(A17,Rebate_Lookup[SKU CODE],0)),IF(P17=2,INDEX(Rebate_Lookup[REB_MOQ_2],MATCH(A17,Rebate_Lookup[SKU CODE],0)),IF(P17=3,INDEX(Rebate_Lookup[REB_MOQ_3],MATCH(A17,Rebate_Lookup[SKU CODE],0)),"#err")))) ->  | V17: =W17/43.56 -> 0.3673094582 | W17: 16 | X17: =IF(AND(TRIM(W17)<>"",TRIM(J17)<>""),(J17*16)/W17,"") ->  | Y17: 0 | Z17: 0
A18: D00000914 | B18: 9 | C18: FALSE | D18: =COUNTIF([1]Sheet1!$J:$J,A18) -> 2 | F18: $5 off 9+ units | G18: Chipco® Signature™ | H18: 11 lb | I18: Fungicide | K18: =INDEX(PRICING[2025 In-Season Price],MATCH(A18,PRICING[SKU],0)) -> 404.8 | M18: =INDEX(PRICING[NOW Price],MATCH(A18,PRICING[SKU],0)) -> 384.56 | O18: =INDEX(Rebate_Lookup[Instances],MATCH(A18,Rebate_Lookup[SKU CODE],0)) -> 2 | P18: =IF(J18="","",INDEX(Rebate_Lookup[Qualified Rebate Tier],MATCH(A18,Rebate_Lookup[SKU CODE],0))) ->  | Q18: =IF(J18="","",IF(P18=1,INDEX(Rebate_Lookup[REB_MOQ_1],MATCH(A18,Rebate_Lookup[SKU CODE],0)),IF(P18=2,INDEX(Rebate_Lookup[REB_MOQ_2],MATCH(A18,Rebate_Lookup[SKU CODE],0)),IF(P18=3,INDEX(Rebate_Lookup[REB_MOQ_3],MATCH(A18,Rebate_Lookup[SKU CODE],0)),"#err")))) ->  | V18: 4 | W18: =V18*43.56 -> 174.24 | X18: =IF(AND(TRIM(W18)<>"",TRIM(J18)<>""),(J18*176)/W18,"") ->  | Y18: 0 | Z18: 0 | AC18: =N18 -> 
A19: D00001373 | B19: 3 | C19: FALSE | D19: =COUNTIF([1]Sheet1!$J:$J,A19) -> 2 | F19: $100 off 3+ units | G19: Densicor® | H19: 51 oz | I19: Fungicide | K19: =INDEX(PRICING[2025 In-Season Price],MATCH(A19,PRICING[SKU],0)) -> 702.8 | M19: =INDEX(PRICING[NOW Price],MATCH(A19,PRICING[SKU],0)) -> 667.66 | O19: =INDEX(Rebate_Lookup[Instances],MATCH(A19,Rebate_Lookup[SKU CODE],0)) -> 2 | P19: =IF(J19="","",INDEX(Rebate_Lookup[Qualified Rebate Tier],MATCH(A19,Rebate_Lookup[SKU CODE],0))) ->  | Q19: =IF(J19="","",IF(P19=1,INDEX(Rebate_Lookup[REB_MOQ_1],MATCH(A19,Rebate_Lookup[SKU CODE],0)),IF(P19=2,INDEX(Rebate_Lookup[REB_MOQ_2],MATCH(A19,Rebate_Lookup[SKU CODE],0)),IF(P19=3,INDEX(Rebate_Lookup[REB_MOQ_3],MATCH(A19,Rebate_Lookup[SKU CODE],0)),"#err")))) ->  | V19: =W19/43.56 -> 0.1951331497 | W19: 8.5 | X19: =IF(AND(TRIM(W19)<>"",TRIM(J19)<>""),(J19*51)/W19,"") ->  | Y19: 0 | Z19: 0
A20: D00000934 | B20: 6 | C20: FALSE | D20: =COUNTIF([1]Sheet1!$J:$J,A20) -> 2 | F20: $45 off 6+ units | G20: Exteris® Stressgard® | H20: 2.5 gal | I20: Fungicide | K20: =INDEX(PRICING[2025 In-Season Price],MATCH(A20,PRICING[SKU],0)) -> 370 | M20: =INDEX(PRICING[NOW Price],MATCH(A20,PRICING[SKU],0)) -> 370 | O20: =INDEX(Rebate_Lookup[Instances],MATCH(A20,Rebate_Lookup[SKU CODE],0)) -> 2 | P20: =IF(J20="","",INDEX(Rebate_Lookup[Qualified Rebate Tier],MATCH(A20,Rebate_Lookup[SKU CODE],0))) ->  | Q20: =IF(J20="","",IF(P20=1,INDEX(Rebate_Lookup[REB_MOQ_1],MATCH(A20,Rebate_Lookup[SKU CODE],0)),IF(P20=2,INDEX(Rebate_Lookup[REB_MOQ_2],MATCH(A20,Rebate_Lookup[SKU CODE],0)),IF(P20=3,INDEX(Rebate_Lookup[REB_MOQ_3],MATCH(A20,Rebate_Lookup[SKU CODE],0)),"#err")))) ->  | V20: 4 | W20: =V20*43.56 -> 174.24 | X20: =IF(AND(TRIM(W20)<>"",TRIM(J20)<>""),(J20*320)/W20,"") ->  | Y20: =IF(J20<>0,U20/X20,0) -> 0 | Z20: =Y20/43.56 -> 0 | AC20: =N20 -> 
A21: 11008377 | B21: n/a | C21: FALSE | D21: =COUNTIF([1]Sheet1!$J:$J,A21) -> 1 | F21: n/a | G21: Fame® +C | H21: 2.5 gal | I21: Fungicide | K21: =INDEX(PRICING[2025 In-Season Price],MATCH(A21,PRICING[SKU],0)) -> 575.4 | M21: =INDEX(PRICING[NOW Price],MATCH(A21,PRICING[SKU],0)) -> 575.4 | O21: =INDEX(Rebate_Lookup[Instances],MATCH(A21,Rebate_Lookup[SKU CODE],0)) -> 1 | P21: =IF(J21="","",INDEX(Rebate_Lookup[Qualified Rebate Tier],MATCH(A21,Rebate_Lookup[SKU CODE],0))) ->  | Q21: =IF(J21="","",IF(P21=1,INDEX(Rebate_Lookup[REB_MOQ_1],MATCH(A21,Rebate_Lookup[SKU CODE],0)),IF(P21=2,INDEX(Rebate_Lookup[REB_MOQ_2],MATCH(A21,Rebate_Lookup[SKU CODE],0)),IF(P21=3,INDEX(Rebate_Lookup[REB_MOQ_3],MATCH(A21,Rebate_Lookup[SKU CODE],0)),"#err")))) ->  | V21: 4 | W21: 174.24 | X21: =IF(AND(TRIM(W21)<>"",TRIM(J21)<>""),(J21*320)/W21,"") ->  | Y21: 0 | Z21: 0
A22: 11008393 | B22: 4 | C22: FALSE | D22: =COUNTIF([1]Sheet1!$J:$J,A22) -> 3 | F22: $50 off 4+ units | G22: Fame® SC | H22: 16 oz | I22: Fungicide | K22: =INDEX(PRICING[2025 In-Season Price],MATCH(A22,PRICING[SKU],0)) -> 428 | M22: =INDEX(PRICING[NOW Price],MATCH(A22,PRICING[SKU],0)) -> 406.6 | O22: =INDEX(Rebate_Lookup[Instances],MATCH(A22,Rebate_Lookup[SKU CODE],0)) -> 2 | P22: =IF(J22="","",INDEX(Rebate_Lookup[Qualified Rebate Tier],MATCH(A22,Rebate_Lookup[SKU CODE],0))) ->  | Q22: =IF(J22="","",IF(P22=1,INDEX(Rebate_Lookup[REB_MOQ_1],MATCH(A22,Rebate_Lookup[SKU CODE],0)),IF(P22=2,INDEX(Rebate_Lookup[REB_MOQ_2],MATCH(A22,Rebate_Lookup[SKU CODE],0)),IF(P22=3,INDEX(Rebate_Lookup[REB_MOQ_3],MATCH(A22,Rebate_Lookup[SKU CODE],0)),"#err")))) ->  | V22: =W22/43.56 -> 0.3673094582 | W22: 16 | X22: =IF(AND(TRIM(W22)<>"",TRIM(J22)<>""),(J22*16)/W22,"") ->  | Y22: =IF(J22<>0,U22/X22,0) -> 0 | Z22: =Y22/43.56 -> 0
A23: 11008557 | B23: 4 | C23: FALSE | D23: =COUNTIF([1]Sheet1!$J:$J,A23) -> 2 | F23: $410 off 4+ units | G23: Fame® SC | H23: 64 oz | I23: Fungicide | K23: =INDEX(PRICING[2025 In-Season Price],MATCH(A23,PRICING[SKU],0)) -> 1549.45 | M23: =INDEX(PRICING[NOW Price],MATCH(A23,PRICING[SKU],0)) -> 1471.98 | O23: =INDEX(Rebate_Lookup[Instances],MATCH(A23,Rebate_Lookup[SKU CODE],0)) -> 2 | P23: =IF(J23="","",INDEX(Rebate_Lookup[Qualified Rebate Tier],MATCH(A23,Rebate_Lookup[SKU CODE],0))) ->  | Q23: =IF(J23="","",IF(P23=1,INDEX(Rebate_Lookup[REB_MOQ_1],MATCH(A23,Rebate_Lookup[SKU CODE],0)),IF(P23=2,INDEX(Rebate_Lookup[REB_MOQ_2],MATCH(A23,Rebate_Lookup[SKU CODE],0)),IF(P23=3,INDEX(Rebate_Lookup[REB_MOQ_3],MATCH(A23,Rebate_Lookup[SKU CODE],0)),"#err")))) ->  | V23: 0.3673094582 | W23: 16 | X23: =IF(AND(TRIM(W23)<>"",TRIM(J23)<>""),(J23*64)/W23,"") ->  | Y23: 0 | Z23: 0
A24: 11009500 | B24: 2 | C24: FALSE | D24: =COUNTIF([1]Sheet1!$J:$J,A24) -> 3 | F24: $1,450 off 2+, $1,600 off 4+ units | G24: Fame® SC | H24: 2.5 gal | I24: Fungicide | K24: =INDEX(PRICING[2025 In-Season Price],MATCH(A24,PRICING[SKU],0)) -> 6863.6 | M24: =INDEX(PRICING[NOW Price],MATCH(A24,PRICING[SKU],0)) -> 6520.42 | O24: =INDEX(Rebate_Lookup[Instances],MATCH(A24,Rebate_Lookup[SKU CODE],0)) -> 3 | P24: =IF(J24="","",INDEX(Rebate_Lookup[Qualified Rebate Tier],MATCH(A24,Rebate_Lookup[SKU CODE],0))) ->  | Q24: =IF(J24="","",IF(P24=1,INDEX(Rebate_Lookup[REB_MOQ_1],MATCH(A24,Rebate_Lookup[SKU CODE],0)),IF(P24=2,INDEX(Rebate_Lookup[REB_MOQ_2],MATCH(A24,Rebate_Lookup[SKU CODE],0)),IF(P24=3,INDEX(Rebate_Lookup[REB_MOQ_3],MATCH(A24,Rebate_Lookup[SKU CODE],0)),"#err")))) ->  | V24: 0.3673094582 | W24: 16 | X24: =IF(AND(TRIM(W24)<>"",TRIM(J24)<>""),(J24*320)/W24,"") ->  | Y24: 0 | Z24: 0
A25: D00000935 | B25: 16 | C25: FALSE | D25: =COUNTIF([1]Sheet1!$J:$J,A25) -> 2 | F25: $10 off 16+ units | G25: Fiata® Stressgard® | H25: 2.5 gal | I25: Fungicide | K25: =INDEX(PRICING[2025 In-Season Price],MATCH(A25,PRICING[SKU],0)) -> 192 | M25: =INDEX(PRICING[NOW Price],MATCH(A25,PRICING[SKU],0)) -> 192 | O25: =INDEX(Rebate_Lookup[Instances],MATCH(A25,Rebate_Lookup[SKU CODE],0)) -> 2 | P25: =IF(J25="","",INDEX(Rebate_Lookup[Qualified Rebate Tier],MATCH(A25,Rebate_Lookup[SKU CODE],0))) ->  | Q25: =IF(J25="","",IF(P25=1,INDEX(Rebate_Lookup[REB_MOQ_1],MATCH(A25,Rebate_Lookup[SKU CODE],0)),IF(P25=2,INDEX(Rebate_Lookup[REB_MOQ_2],MATCH(A25,Rebate_Lookup[SKU CODE],0)),IF(P25=3,INDEX(Rebate_Lookup[REB_MOQ_3],MATCH(A25,Rebate_Lookup[SKU CODE],0)),"#err")))) ->  | V25: 3 | W25: =V25*43.56 -> 130.68 | X25: =IF(AND(TRIM(W25)<>"",TRIM(J25)<>""),(J25*320)/W25,"") ->  | Y25: =IF(J25<>0,U25/X25,0) -> 0 | Z25: =Y25/43.56 -> 0 | AC25: =N25 -> 
A26: D00001379 | B26: 3 | C26: FALSE | D26: =COUNTIF([1]Sheet1!$J:$J,A26) -> 3 | F26: $185 off 3+, $410 off 6+ units | G26: Indemnify® | H26: 17.1 fl oz | I26: Fungicide | K26: =INDEX(PRICING[2025 In-Season Price],MATCH(A26,PRICING[SKU],0)) -> 1963.6 | M26: =INDEX(PRICING[NOW Price],MATCH(A26,PRICING[SKU],0)) -> 1865.42 | O26: =INDEX(Rebate_Lookup[Instances],MATCH(A26,Rebate_Lookup[SKU CODE],0)) -> 3 | P26: =IF(J26="","",INDEX(Rebate_Lookup[Qualified Rebate Tier],MATCH(A26,Rebate_Lookup[SKU CODE],0))) ->  | Q26: =IF(J26="","",IF(P26=1,INDEX(Rebate_Lookup[REB_MOQ_1],MATCH(A26,Rebate_Lookup[SKU CODE],0)),IF(P26=2,INDEX(Rebate_Lookup[REB_MOQ_2],MATCH(A26,Rebate_Lookup[SKU CODE],0)),IF(P26=3,INDEX(Rebate_Lookup[REB_MOQ_3],MATCH(A26,Rebate_Lookup[SKU CODE],0)),"#err")))) ->  | V26: 0.39 | W26: 16.9884 | X26: =IF(AND(TRIM(W26)<>"",TRIM(J26)<>""),(J26*17.1)/W26,"") ->  | Y26: 0 | Z26: 0
A27: 81701245 | B27: 6 | C27: FALSE | D27: =COUNTIF([1]Sheet1!$J:$J,A27) -> 2 | F27: $90 off 6+ units | G27: Interface® Stressgard® | H27: 2.5 gal | I27: Fungicide | K27: =INDEX(PRICING[2025 In-Season Price],MATCH(A27,PRICING[SKU],0)) -> 573 | M27: =INDEX(PRICING[NOW Price],MATCH(A27,PRICING[SKU],0)) -> 544.35 | N27: =IF(J27*M27= 0,"",J27*M27) ->  | O27: =INDEX(Rebate_Lookup[Instances],MATCH(A27,Rebate_Lookup[SKU CODE],0)) -> 2 | P27: =IF(J27="","",INDEX(Rebate_Lookup[Qualified Rebate Tier],MATCH(A27,Rebate_Lookup[SKU CODE],0))) ->  | Q27: =IF(J27="","",IF(P27=1,INDEX(Rebate_Lookup[REB_MOQ_1],MATCH(A27,Rebate_Lookup[SKU CODE],0)),IF(P27=2,INDEX(Rebate_Lookup[REB_MOQ_2],MATCH(A27,Rebate_Lookup[SKU CODE],0)),IF(P27=3,INDEX(Rebate_Lookup[REB_MOQ_3],MATCH(A27,Rebate_Lookup[SKU CODE],0)),"#err")))) ->  | V27: 4 | W27: 174.24 | X27: =IF(AND(TRIM(W27)<>"",TRIM(J27)<>""),(J27*320)/W27,"") ->  | Y27: 0 | Z27: 0 | AC27: =N27 -> 
A28: 11013671 | B28: 4 | C28: FALSE | D28: =COUNTIF([1]Sheet1!$J:$J,A28) -> 2 | F28: $295 off 4+ units | G28: Kalida® | H28: 64 oz | I28: Fungicide | K28: =INDEX(PRICING[2025 In-Season Price],MATCH(A28,PRICING[SKU],0)) -> 866.4 | M28: =INDEX(PRICING[NOW Price],MATCH(A28,PRICING[SKU],0)) -> 866.4 | O28: =INDEX(Rebate_Lookup[Instances],MATCH(A28,Rebate_Lookup[SKU CODE],0)) -> 2 | P28: =IF(J28="","",INDEX(Rebate_Lookup[Qualified Rebate Tier],MATCH(A28,Rebate_Lookup[SKU CODE],0))) ->  | Q28: =IF(J28="","",IF(P28=1,INDEX(Rebate_Lookup[REB_MOQ_1],MATCH(A28,Rebate_Lookup[SKU CODE],0)),IF(P28=2,INDEX(Rebate_Lookup[REB_MOQ_2],MATCH(A28,Rebate_Lookup[SKU CODE],0)),IF(P28=3,INDEX(Rebate_Lookup[REB_MOQ_3],MATCH(A28,Rebate_Lookup[SKU CODE],0)),"#err")))) ->  | V28: 0.4 | W28: 17.424 | X28: =IF(AND(TRIM(W28)<>"",TRIM(J28)<>""),(J28*64)/W28,"") ->  | Y28: 0 | Z28: 0
A29: D00000965 | B29: 4 | C29: FALSE | D29: =COUNTIF([1]Sheet1!$J:$J,A29) -> 2 | F29: $90 off 4+ units | G29: Mirage® Stressgard® | H29: 2.5 gal | I29: Fungicide | K29: =INDEX(PRICING[2025 In-Season Price],MATCH(A29,PRICING[SKU],0)) -> 493 | M29: =INDEX(PRICING[NOW Price],MATCH(A29,PRICING[SKU],0)) -> 493 | O29: =INDEX(Rebate_Lookup[Instances],MATCH(A29,Rebate_Lookup[SKU CODE],0)) -> 2 | P29: =IF(J29="","",INDEX(Rebate_Lookup[Qualified Rebate Tier],MATCH(A29,Rebate_Lookup[SKU CODE],0))) ->  | Q29: =IF(J29="","",IF(P29=1,INDEX(Rebate_Lookup[REB_MOQ_1],MATCH(A29,Rebate_Lookup[SKU CODE],0)),IF(P29=2,INDEX(Rebate_Lookup[REB_MOQ_2],MATCH(A29,Rebate_Lookup[SKU CODE],0)),IF(P29=3,INDEX(Rebate_Lookup[REB_MOQ_3],MATCH(A29,Rebate_Lookup[SKU CODE],0)),"#err")))) ->  | V29: 1 | W29: 43.56 | X29: =IF(AND(TRIM(W29)<>"",TRIM(J29)<>""),(J29*320)/W29,"") ->  | Y29: 0 | Z29: 0 | AC29: =N29 -> 
A30: 11003880 | B30: 6 | C30: FALSE | D30: =COUNTIF([1]Sheet1!$J:$J,A30) -> 2 | F30: $160 off 6+ units | G30: Rayora® | H30: 2.5 gal | I30: Fungicide | K30: =INDEX(PRICING[2025 In-Season Price],MATCH(A30,PRICING[SKU],0)) -> 631.4 | M30: =INDEX(PRICING[NOW Price],MATCH(A30,PRICING[SKU],0)) -> 631.4 | O30: =INDEX(Rebate_Lookup[Instances],MATCH(A30,Rebate_Lookup[SKU CODE],0)) -> 2 | P30: =IF(J30="","",INDEX(Rebate_Lookup[Qualified Rebate Tier],MATCH(A30,Rebate_Lookup[SKU CODE],0))) ->  | Q30: =IF(J30="","",IF(P30=1,INDEX(Rebate_Lookup[REB_MOQ_1],MATCH(A30,Rebate_Lookup[SKU CODE],0)),IF(P30=2,INDEX(Rebate_Lookup[REB_MOQ_2],MATCH(A30,Rebate_Lookup[SKU CODE],0)),IF(P30=3,INDEX(Rebate_Lookup[REB_MOQ_3],MATCH(A30,Rebate_Lookup[SKU CODE],0)),"#err")))) ->  | V30: 1.4 | W30: 60.984 | X30: =IF(AND(TRIM(W30)<>"",TRIM(J30)<>""),(J30*320)/W30,"") ->  | Y30: 0 | Z30: 0
A31: D00000125 | B31: 4 | C31: FALSE | D31: =COUNTIF([1]Sheet1!$J:$J,A31) -> 3 | F31: $65 off 4+, $180 off 15+ units | G31: Resilia™ | H31: 2.72 gal | I31: Fungicide | K31: =INDEX(PRICING[2025 In-Season Price],MATCH(A31,PRICING[SKU],0)) -> 946.56 | M31: =INDEX(PRICING[NOW Price],MATCH(A31,PRICING[SKU],0)) -> 946.56 | O31: =INDEX(Rebate_Lookup[Instances],MATCH(A31,Rebate_Lookup[SKU CODE],0)) -> 3 | P31: =IF(J31="","",INDEX(Rebate_Lookup[Qualified Rebate Tier],MATCH(A31,Rebate_Lookup[SKU CODE],0))) ->  | Q31: =IF(J31="","",IF(P31=1,INDEX(Rebate_Lookup[REB_MOQ_1],MATCH(A31,Rebate_Lookup[SKU CODE],0)),IF(P31=2,INDEX(Rebate_Lookup[REB_MOQ_2],MATCH(A31,Rebate_Lookup[SKU CODE],0)),IF(P31=3,INDEX(Rebate_Lookup[REB_MOQ_3],MATCH(A31,Rebate_Lookup[SKU CODE],0)),"#err")))) ->  | V31: =W31/43.56 -> 4 | W31: 174.24 | X31: =IF(AND(TRIM(W31)<>"",TRIM(J31)<>""),(J31*348.16)/W31,"") ->  | Y31: 0 | Z31: 0
A32: 11014245 | B32: 8 | C32: FALSE | D32: =COUNTIF([1]Sheet1!$J:$J,A32) -> 2 | F32: $15 off 8+ units | G32: Serata® | H32: 35 oz | I32: Fungicide | K32: =INDEX(PRICING[2025 In-Season Price],MATCH(A32,PRICING[SKU],0)) -> 499.8 | M32: =INDEX(PRICING[NOW Price],MATCH(A32,PRICING[SKU],0)) -> 474.81 | O32: =INDEX(Rebate_Lookup[Instances],MATCH(A32,Rebate_Lookup[SKU CODE],0)) -> 2 | P32: =IF(J32="","",INDEX(Rebate_Lookup[Qualified Rebate Tier],MATCH(A32,Rebate_Lookup[SKU CODE],0))) ->  | Q32: =IF(J32="","",IF(P32=1,INDEX(Rebate_Lookup[REB_MOQ_1],MATCH(A32,Rebate_Lookup[SKU CODE],0)),IF(P32=2,INDEX(Rebate_Lookup[REB_MOQ_2],MATCH(A32,Rebate_Lookup[SKU CODE],0)),IF(P32=3,INDEX(Rebate_Lookup[REB_MOQ_3],MATCH(A32,Rebate_Lookup[SKU CODE],0)),"#err")))) ->  | V32: 0.6 | W32: 26.136 | X32: =IF(AND(TRIM(W32)<>"",TRIM(J32)<>""),(J32*35)/W32,"") ->  | Y32: 0 | Z32: 0
A33: D00000989 | B33: 24 | C33: FALSE | D33: =COUNTIF([1]Sheet1!$J:$J,A33) -> 2 | F33: $15 off 24+ units | G33: Signature™ XTRA Stressgard® | H33: 5.5 lb | I33: Fungicide | K33: =INDEX(PRICING[2025 In-Season Price],MATCH(A33,PRICING[SKU],0)) -> 210.4 | M33: =INDEX(PRICING[NOW Price],MATCH(A33,PRICING[SKU],0)) -> 199.88 | O33: =INDEX(Rebate_Lookup[Instances],MATCH(A33,Rebate_Lookup[SKU CODE],0)) -> 2 | P33: =IF(J33="","",INDEX(Rebate_Lookup[Qualified Rebate Tier],MATCH(A33,Rebate_Lookup[SKU CODE],0))) ->  | Q33: =IF(J33="","",IF(P33=1,INDEX(Rebate_Lookup[REB_MOQ_1],MATCH(A33,Rebate_Lookup[SKU CODE],0)),IF(P33=2,INDEX(Rebate_Lookup[REB_MOQ_2],MATCH(A33,Rebate_Lookup[SKU CODE],0)),IF(P33=3,INDEX(Rebate_Lookup[REB_MOQ_3],MATCH(A33,Rebate_Lookup[SKU CODE],0)),"#err")))) ->  | V33: 4 | W33: 174.24 | X33: =IF(AND(TRIM(W33)<>"",TRIM(J33)<>""),(J33*88)/W33,"") ->  | Y33: 0 | Z33: 0 | AC33: =N33 -> 
A34: D00000998 | B34: 6 | C34: FALSE | D34: =COUNTIF([1]Sheet1!$J:$J,A34) -> 2 | F34: $93 off 6+ units | G34: Tartan® Stressgard® | H34: 2.5 gal | I34: Fungicide | K34: =INDEX(PRICING[2025 In-Season Price],MATCH(A34,PRICING[SKU],0)) -> 1033 | M34: =INDEX(PRICING[NOW Price],MATCH(A34,PRICING[SKU],0)) -> 981.35 | O34: =INDEX(Rebate_Lookup[Instances],MATCH(A34,Rebate_Lookup[SKU CODE],0)) -> 2 | P34: =IF(J34="","",INDEX(Rebate_Lookup[Qualified Rebate Tier],MATCH(A34,Rebate_Lookup[SKU CODE],0))) ->  | Q34: =IF(J34="","",IF(P34=1,INDEX(Rebate_Lookup[REB_MOQ_1],MATCH(A34,Rebate_Lookup[SKU CODE],0)),IF(P34=2,INDEX(Rebate_Lookup[REB_MOQ_2],MATCH(A34,Rebate_Lookup[SKU CODE],0)),IF(P34=3,INDEX(Rebate_Lookup[REB_MOQ_3],MATCH(A34,Rebate_Lookup[SKU CODE],0)),"#err")))) ->  | V34: 1.5 | W34: 65.34 | X34: =IF(AND(TRIM(W34)<>"",TRIM(J34)<>""),(J34*320)/W34,"") ->  | Y34: 0 | Z34: 0
A35: 11015981 | B35: 3 | C35: FALSE | D35: =COUNTIF([1]Sheet1!$J:$J,A35) -> 2 | F35: $400 off 3+ units | G35: Tarvecta™ | H35: 2.5 gal | I35: Fungicide | K35: =INDEX(PRICING[2025 In-Season Price],MATCH(A35,PRICING[SKU],0)) -> 3360 | M35: =INDEX(PRICING[NOW Price],MATCH(A35,PRICING[SKU],0)) -> 3360 | O35: =INDEX(Rebate_Lookup[Instances],MATCH(A35,Rebate_Lookup[SKU CODE],0)) -> 2 | P35: =IF(J35="","",INDEX(Rebate_Lookup[Qualified Rebate Tier],MATCH(A35,Rebate_Lookup[SKU CODE],0))) ->  | Q35: =IF(J35="","",IF(P35=1,INDEX(Rebate_Lookup[REB_MOQ_1],MATCH(A35,Rebate_Lookup[SKU CODE],0)),IF(P35=2,INDEX(Rebate_Lookup[REB_MOQ_2],MATCH(A35,Rebate_Lookup[SKU CODE],0)),IF(P35=3,INDEX(Rebate_Lookup[REB_MOQ_3],MATCH(A35,Rebate_Lookup[SKU CODE],0)),"#err")))) ->  | V35: 0.7 | W35: 30.492 | X35: =IF(AND(TRIM(W35)<>"",TRIM(J35)<>""),(J35*320)/W35,"") ->  | Y35: 0 | Z35: 0
A36: 11015990 | B36: 4 | C36: FALSE | D36: =COUNTIF([1]Sheet1!$J:$J,A36) -> 2 | F36: $145 off 4+ units | G36: Tarvecta™ | H36: 64 oz | I36: Fungicide | K36: =INDEX(PRICING[2025 In-Season Price],MATCH(A36,PRICING[SKU],0)) -> 772.8 | M36: =INDEX(PRICING[NOW Price],MATCH(A36,PRICING[SKU],0)) -> 772.8 | O36: =INDEX(Rebate_Lookup[Instances],MATCH(A36,Rebate_Lookup[SKU CODE],0)) -> 2 | P36: =IF(J36="","",INDEX(Rebate_Lookup[Qualified Rebate Tier],MATCH(A36,Rebate_Lookup[SKU CODE],0))) ->  | Q36: =IF(J36="","",IF(P36=1,INDEX(Rebate_Lookup[REB_MOQ_1],MATCH(A36,Rebate_Lookup[SKU CODE],0)),IF(P36=2,INDEX(Rebate_Lookup[REB_MOQ_2],MATCH(A36,Rebate_Lookup[SKU CODE],0)),IF(P36=3,INDEX(Rebate_Lookup[REB_MOQ_3],MATCH(A36,Rebate_Lookup[SKU CODE],0)),"#err")))) ->  | V36: 0.7 | W36: 30.492 | X36: =IF(AND(TRIM(W36)<>"",TRIM(J36)<>""),(J36*64)/W36,"") ->  | Y36: 0 | Z36: 0
A37: 79714858 | B37: 48 | C37: FALSE | D37: =COUNTIF([1]Sheet1!$J:$J,A37) -> 2 | F37: $12 off 48+ units | G37: Celsius® WG | H37: 10 oz | I37: Herbicide | K37: =INDEX(PRICING[2025 In-Season Price],MATCH(A37,PRICING[SKU],0)) -> 131.2 | L37: =IF(J37*K37= 0,"",J37*K37) ->  | M37: =INDEX(PRICING[NOW Price],MATCH(A37,PRICING[SKU],0)) -> 124.64 | N37: =IF(J37*M37= 0,"",J37*M37) ->  | O37: =INDEX(Rebate_Lookup[Instances],MATCH(A37,Rebate_Lookup[SKU CODE],0)) -> 2 | P37: =IF(J37="","",INDEX(Rebate_Lookup[Qualified Rebate Tier],MATCH(A37,Rebate_Lookup[SKU CODE],0))) ->  | Q37: =IF(J37="","",IF(P37=1,INDEX(Rebate_Lookup[REB_MOQ_1],MATCH(A37,Rebate_Lookup[SKU CODE],0)),IF(P37=2,INDEX(Rebate_Lookup[REB_MOQ_2],MATCH(A37,Rebate_Lookup[SKU CODE],0)),IF(P37=3,INDEX(Rebate_Lookup[REB_MOQ_3],MATCH(A37,Rebate_Lookup[SKU CODE],0)),"#err")))) ->  | R37: =IF(OR(Q37=0,Q37=""),"",J37*Q37) ->  | T37: =IFERROR((N37-SUM(R37:S37))/J37,"") ->  | U37: =IF(AND(J37<>"",J37>0), J37*T37,"") ->  | V37: =W37/43.56 -> 0.08494031221 | W37: 3.7 | X37: =IF(AND(TRIM(W37)<>"",TRIM(J37)<>""),(J37*10)/W37,"") ->  | Y37: 0 | Z37: 0
A38: D00000911 | B38: 16 | C38: FALSE | D38: =COUNTIF([1]Sheet1!$J:$J,A38) -> 2 | F38: $12 off 16+ units | G38: Celsius® XTRA | H38: 10 oz | I38: Herbicide | K38: =INDEX(PRICING[2025 In-Season Price],MATCH(A38,PRICING[SKU],0)) -> 166.4 | M38: =INDEX(PRICING[NOW Price],MATCH(A38,PRICING[SKU],0)) -> 158.08 | O38: =INDEX(Rebate_Lookup[Instances],MATCH(A38,Rebate_Lookup[SKU CODE],0)) -> 2 | P38: =IF(J38="","",INDEX(Rebate_Lookup[Qualified Rebate Tier],MATCH(A38,Rebate_Lookup[SKU CODE],0))) ->  | Q38: =IF(J38="","",IF(P38=1,INDEX(Rebate_Lookup[REB_MOQ_1],MATCH(A38,Rebate_Lookup[SKU CODE],0)),IF(P38=2,INDEX(Rebate_Lookup[REB_MOQ_2],MATCH(A38,Rebate_Lookup[SKU CODE],0)),IF(P38=3,INDEX(Rebate_Lookup[REB_MOQ_3],MATCH(A38,Rebate_Lookup[SKU CODE],0)),"#err")))) ->  | V38: =W38/43.56 -> 0.1721763085 | W38: 7.5 | X38: =IF(AND(TRIM(W38)<>"",TRIM(J38)<>""),(J38*10)/W38,"") ->  | Y38: 0 | Z38: 0
A39: 11008409 | B39: n/a | D39: =COUNTIF([1]Sheet1!$J:$J,A39) -> 1 | F39: $11 off 1+ units | G39: Dismiss® NXT | H39: 10 oz | I39: Herbicide | K39: =INDEX(PRICING[2025 In-Season Price],MATCH(A39,PRICING[SKU],0)) -> 94.8 | L39: =IF(J39*K39= 0,"",J39*K39) ->  | M39: =INDEX(PRICING[NOW Price],MATCH(A39,PRICING[SKU],0)) -> 94.8 | N39: =IF(J39*M39= 0,"",J39*M39) ->  | O39: =INDEX(Rebate_Lookup[Instances],MATCH(A39,Rebate_Lookup[SKU CODE],0)) -> 1 | P39: =IF(J39="","",INDEX(Rebate_Lookup[Qualified Rebate Tier],MATCH(A39,Rebate_Lookup[SKU CODE],0))) ->  | Q39: =IF(J39="","",IF(P39=1,INDEX(Rebate_Lookup[REB_MOQ_1],MATCH(A39,Rebate_Lookup[SKU CODE],0)),IF(P39=2,INDEX(Rebate_Lookup[REB_MOQ_2],MATCH(A39,Rebate_Lookup[SKU CODE],0)),IF(P39=3,INDEX(Rebate_Lookup[REB_MOQ_3],MATCH(A39,Rebate_Lookup[SKU CODE],0)),"#err")))) ->  | R39: =IF(OR(Q39=0,Q39=""),"",J39*Q39) ->  | T39: =IFERROR((N39-SUM(R39:S39))/J39,"") ->  | U39: =IF(AND(J39<>"",J39>0), J39*T39,"") ->  | V39: 0.2341597796 | W39: =V39*43.56 -> 10.2 | X39: =IF(AND(TRIM(W39)<>"",TRIM(J39)<>""),(J39*10)/W39,"") ->  | Y39: =IF(J39<>0,U39/X39,0) -> 0 | Z39: =Y39/43.56 -> 0
A40: 11008589 | B40: 16 | C40: =J40>=B40 -> FALSE | D40: =COUNTIF([1]Sheet1!$J:$J,A40) -> 2 | F40: $60 off 16+ units | G40: Dismiss® NXT | H40: 60 oz | I40: Herbicide | K40: =INDEX(PRICING[2025 In-Season Price],MATCH(A40,PRICING[SKU],0)) -> 504.8 | M40: =INDEX(PRICING[NOW Price],MATCH(A40,PRICING[SKU],0)) -> 479.56 | O40: =INDEX(Rebate_Lookup[Instances],MATCH(A40,Rebate_Lookup[SKU CODE],0)) -> 2 | P40: =IF(J40="","",INDEX(Rebate_Lookup[Qualified Rebate Tier],MATCH(A40,Rebate_Lookup[SKU CODE],0))) ->  | Q40: =IF(J40="","",IF(P40=1,INDEX(Rebate_Lookup[REB_MOQ_1],MATCH(A40,Rebate_Lookup[SKU CODE],0)),IF(P40=2,INDEX(Rebate_Lookup[REB_MOQ_2],MATCH(A40,Rebate_Lookup[SKU CODE],0)),IF(P40=3,INDEX(Rebate_Lookup[REB_MOQ_3],MATCH(A40,Rebate_Lookup[SKU CODE],0)),"#err")))) ->  | V40: 0.2341597796 | W40: 10.2 | X40: =IF(AND(TRIM(W40)<>"",TRIM(J40)<>""),(J40*60)/W40,"") ->  | Y40: 0 | Z40: 0
A41: 11008464 | B41: 16 | C41: =J41>=B41 -> FALSE | D41: =COUNTIF([1]Sheet1!$J:$J,A41) -> 2 | F41: $145 off 16+ units | G41: Echelon® 4SC | H41: 1 gal | I41: Herbicide | K41: =INDEX(PRICING[2025 In-Season Price],MATCH(A41,PRICING[SKU],0)) -> 454 | M41: =INDEX(PRICING[NOW Price],MATCH(A41,PRICING[SKU],0)) -> 431.3 | O41: =INDEX(Rebate_Lookup[Instances],MATCH(A41,Rebate_Lookup[SKU CODE],0)) -> 2 | P41: =IF(J41="","",INDEX(Rebate_Lookup[Qualified Rebate Tier],MATCH(A41,Rebate_Lookup[SKU CODE],0))) ->  | Q41: =IF(J41="","",IF(P41=1,INDEX(Rebate_Lookup[REB_MOQ_1],MATCH(A41,Rebate_Lookup[SKU CODE],0)),IF(P41=2,INDEX(Rebate_Lookup[REB_MOQ_2],MATCH(A41,Rebate_Lookup[SKU CODE],0)),IF(P41=3,INDEX(Rebate_Lookup[REB_MOQ_3],MATCH(A41,Rebate_Lookup[SKU CODE],0)),"#err")))) ->  | V41: 0.55096 | W41: =V41*43.56 -> 23.9998176 | X41: =IF(AND(TRIM(W41)<>"",TRIM(J41)<>""),(J41*128)/W41,"") ->  | Y41: 0 | Z41: 0
A42: 79545312 | B42: 16 | C42: =J42>=B42 -> FALSE | D42: =COUNTIF([1]Sheet1!$J:$J,A42) -> 2 | F42: $50 off 16+ units | G42: Revolver® | H42: 87 fl oz | I42: Herbicide | K42: =INDEX(PRICING[2025 In-Season Price],MATCH(A42,PRICING[SKU],0)) -> 765.6 | M42: =INDEX(PRICING[NOW Price],MATCH(A42,PRICING[SKU],0)) -> 727.32 | O42: =INDEX(Rebate_Lookup[Instances],MATCH(A42,Rebate_Lookup[SKU CODE],0)) -> 2 | P42: =IF(J42="","",INDEX(Rebate_Lookup[Qualified Rebate Tier],MATCH(A42,Rebate_Lookup[SKU CODE],0))) ->  | Q42: =IF(J42="","",IF(P42=1,INDEX(Rebate_Lookup[REB_MOQ_1],MATCH(A42,Rebate_Lookup[SKU CODE],0)),IF(P42=2,INDEX(Rebate_Lookup[REB_MOQ_2],MATCH(A42,Rebate_Lookup[SKU CODE],0)),IF(P42=3,INDEX(Rebate_Lookup[REB_MOQ_3],MATCH(A42,Rebate_Lookup[SKU CODE],0)),"#err")))) ->  | V42: =W42/43.56 -> 0.3999081726 | W42: 17.42 | X42: =IF(AND(TRIM(W42)<>"",TRIM(J42)<>""),(J42*87)/W42,"") ->  | Y42: 0 | Z42: 0
A43: D00000986 | B43: n/a | C43: =OR(J44>=12) -> FALSE | D43: =COUNTIF([1]Sheet1!$J:$J,A43) -> 3 | F43: n/a | G43: Ronstar® FLO (1-11 units) | H43: 2.5 gal | I43: Herbicide | K43: 552 | M43: 552 | O43: =INDEX(Rebate_Lookup[Instances],MATCH(A43,Rebate_Lookup[SKU CODE],0)) -> 2 | P43: x | Q43: 0 | R43: =IF(OR(Q43=0,Q43=""),"",J43*Q43) ->  | S43: =IF(OR(J43=0,J43=""),"","n/a") ->  | T43: =IFERROR((N43-SUM(R43:S43))/J43,"") ->  | U43: =IF(AND(J43<>"",J43>0), J43*T43,"") ->  | V43: 1.997245179 | W43: =V43*43.56 -> 87 | X43: =IF(AND(TRIM(W43)<>"",TRIM(J43)<>""),(J43*320)/W43,"") ->  | Y43: 0 | Z43: 0
A44: D00000986 | B44: n/a | D44: =COUNTIF([1]Sheet1!$J:$J,A44) -> 3 | F44: n/a | G44: Ronstar® FLO (12+ units) | H44: 2.5 gal | I44: Herbicide | K44: 453 | M44: 423 | O44: =INDEX(Rebate_Lookup[Instances],MATCH(A44,Rebate_Lookup[SKU CODE],0)) -> 2 | P44: x | Q44: 0 | R44: =IF(OR(Q44=0,Q44=""),"",J44*Q44) ->  | S44: =IF(OR(J44=0,J44=""),"","n/a") ->  | V44: 1.997245179 | W44: 87 | X44: =IF(AND(TRIM(W44)<>"",TRIM(J44)<>""),(J44*320)/W44,"") ->  | Y44: 0 | Z44: 0
A45: 11008522 | B45: 16 | C45: =J45>=B45 -> FALSE | D45: =COUNTIF([1]Sheet1!$J:$J,A45) -> 2 | F45: $40 off 16+ units | G45: Solitare® | H45: 4 lb | I45: Herbicide | K45: =INDEX(PRICING[2025 In-Season Price],MATCH(A45,PRICING[SKU],0)) -> 596.4 | M45: =INDEX(PRICING[NOW Price],MATCH(A45,PRICING[SKU],0)) -> 566.58 | O45: =INDEX(Rebate_Lookup[Instances],MATCH(A45,Rebate_Lookup[SKU CODE],0)) -> 2 | P45: =IF(J45="","",INDEX(Rebate_Lookup[Qualified Rebate Tier],MATCH(A45,Rebate_Lookup[SKU CODE],0))) ->  | Q45: =IF(J45="","",IF(P45=1,INDEX(Rebate_Lookup[REB_MOQ_1],MATCH(A45,Rebate_Lookup[SKU CODE],0)),IF(P45=2,INDEX(Rebate_Lookup[REB_MOQ_2],MATCH(A45,Rebate_Lookup[SKU CODE],0)),IF(P45=3,INDEX(Rebate_Lookup[REB_MOQ_3],MATCH(A45,Rebate_Lookup[SKU CODE],0)),"#err")))) ->  | S45: =IFERROR(N45*SUM($I$99:$I$103),"") ->  | V45: 0.367309458 | W45: 15.99999999 | X45: =IF(AND(TRIM(W45)<>"",TRIM(J45)<>""),(J45*64)/W45,"") ->  | Y45: 0 | Z45: 0
A46: 11013862 | B46: 24 | C46: =J46>=B46 -> FALSE | D46: =COUNTIF([1]Sheet1!$J:$J,A46) -> 2 | F46: $40 off 24+ units | G46: Solitare® WSL | H46: 2.5 gal | I46: Herbicide | K46: =INDEX(PRICING[2025 In-Season Price],MATCH(A46,PRICING[SKU],0)) -> 262.4 | M46: =INDEX(PRICING[NOW Price],MATCH(A46,PRICING[SKU],0)) -> 249.28 | O46: =INDEX(Rebate_Lookup[Instances],MATCH(A46,Rebate_Lookup[SKU CODE],0)) -> 2 | P46: =IF(J46="","",INDEX(Rebate_Lookup[Qualified Rebate Tier],MATCH(A46,Rebate_Lookup[SKU CODE],0))) ->  | Q46: =IF(J46="","",IF(P46=1,INDEX(Rebate_Lookup[REB_MOQ_1],MATCH(A46,Rebate_Lookup[SKU CODE],0)),IF(P46=2,INDEX(Rebate_Lookup[REB_MOQ_2],MATCH(A46,Rebate_Lookup[SKU CODE],0)),IF(P46=3,INDEX(Rebate_Lookup[REB_MOQ_3],MATCH(A46,Rebate_Lookup[SKU CODE],0)),"#err")))) ->  | S46: =IFERROR(N46*SUM($I$99:$I$103),"") ->  | V46: 3.9 | W46: 169.884 | X46: =IF(AND(TRIM(W46)<>"",TRIM(J46)<>""),(J46*320)/W46,"") ->  | Y46: 0 | Z46: 0
A47: D00000990 | B47: n/a | C47: =OR(J48>=7,J49>=14,J50>=26) -> FALSE | D47: =COUNTIF([1]Sheet1!$J:$J,A47) -> 4 | F47: n/a | G47: Specticle® FLO (1-6 units) | H47: 1 gal | I47: Herbicide | K47: 2092.8 | M47: 1946.3 | O47: =INDEX(Rebate_Lookup[Instances],MATCH(A47,Rebate_Lookup[SKU CODE],0)) -> 3 | P47: x | Q47: 0 | R47: =IF(OR(Q47=0,Q47=""),"",J47*Q47) ->  | S47: =IF(OR(J47=0,J47=""),"","n/a") ->  | T47: =IFERROR((N47-SUM(R47:S47))/J47,"") ->  | U47: =IF(AND(J47<>"",J47>0), J47*T47,"") ->  | V47: =W47/43.56 -> 0.1377410468 | W47: 6 | X47: =IF(AND(TRIM(W47)<>"",TRIM(J47)<>""),(J47*127.999939675621)/W47,"") ->  | Y47: 0 | Z47: 0
A48: D00000990 | B48: n/a | D48: =COUNTIF([1]Sheet1!$J:$J,A48) -> 4 | F48: $38 off 7-13 units | G48: Specticle® FLO (7-13 units) | H48: 1 gal | I48: Herbicide | K48: 2092.8 | M48: 1862.59 | O48: =INDEX(Rebate_Lookup[Instances],MATCH(A48,Rebate_Lookup[SKU CODE],0)) -> 3 | P48: x | Q48: 38 | R48: =IF(OR(Q48=0,Q48=""),"",J48*Q48) -> 0 | T48: =IFERROR((N48-SUM(R48:S48))/J48,"") ->  | V48: 0.1377410468 | W48: 6 | X48: =IF(AND(TRIM(W48)<>"",TRIM(J48)<>""),(J48*127.999939675621)/W48,"") ->  | Y48: 0 | Z48: 0
A49: D00000990 | B49: n/a | D49: =COUNTIF([1]Sheet1!$J:$J,A49) -> 4 | F49: $32 off 14-25 units | G49: Specticle® FLO (14-25 units) | H49: 1 gal | I49: Herbicide | K49: 1796.4 | M49: 1625.74 | O49: =INDEX(Rebate_Lookup[Instances],MATCH(A49,Rebate_Lookup[SKU CODE],0)) -> 3 | P49: x | Q49: 32 | R49: =IF(OR(Q49=0,Q49=""),"",J49*Q49) -> 0 | V49: 0.1377410468 | W49: 6 | X49: =IF(AND(TRIM(W49)<>"",TRIM(J49)<>""),(J49*127.999939675621)/W49,"") ->  | Y49: 0 | Z49: 0
A50: D00000990 | B50: n/a | D50: =COUNTIF([1]Sheet1!$J:$J,A50) -> 4 | F50: $131 off 26+ units | G50: Specticle® FLO (26+ units) | H50: 1 gal | I50: Herbicide | K50: 1796.4 | M50: 1455.08 | O50: =INDEX(Rebate_Lookup[Instances],MATCH(A50,Rebate_Lookup[SKU CODE],0)) -> 3 | P50: x | Q50: 131 | R50: 0 | S50: =IF(OR(J50=0,J50=""),"","n/a") ->  | V50: 0.1377410468 | W50: 6 | X50: =IF(AND(TRIM(W50)<>"",TRIM(J50)<>""),(J50*127.999939675621)/W50,"") ->  | Y50: 0 | Z50: 0
A51: D00000992 | B51: 20 | C51: =J51>=B51 -> FALSE | D51: =COUNTIF([1]Sheet1!$J:$J,A51) -> 2 | F51: $8 off 20+ units | G51: Specticle® G | H51: 50 lb | I51: Herbicide | K51: =INDEX(PRICING[2025 In-Season Price],MATCH(A51,PRICING[SKU],0)) -> 130.5 | M51: =INDEX(PRICING[NOW Price],MATCH(A51,PRICING[SKU],0)) -> 123.98 | O51: =INDEX(Rebate_Lookup[Instances],MATCH(A51,Rebate_Lookup[SKU CODE],0)) -> 2 | P51: =IF(J51="","",INDEX(Rebate_Lookup[Qualified Rebate Tier],MATCH(A51,Rebate_Lookup[SKU CODE],0))) ->  | Q51: =IF(J51="","",IF(P51=1,INDEX(Rebate_Lookup[REB_MOQ_1],MATCH(A51,Rebate_Lookup[SKU CODE],0)),IF(P51=2,INDEX(Rebate_Lookup[REB_MOQ_2],MATCH(A51,Rebate_Lookup[SKU CODE],0)),IF(P51=3,INDEX(Rebate_Lookup[REB_MOQ_3],MATCH(A51,Rebate_Lookup[SKU CODE],0)),"#err")))) ->  | S51: =IFERROR(N51*SUM($I$99:$I$103),"") ->  | V51: 3.443526171 | W51: 150 | X51: =IF(AND(TRIM(W51)<>"",TRIM(J51)<>""),(J51*50)/W51,"") ->  | Y51: 0 | Z51: 0
A52: 81746257 | B52: 24 | C52: =J52>=B52 -> FALSE | D52: =COUNTIF([1]Sheet1!$J:$J,A52) -> 2 | F52: $30 off 24+ units | G52: Tribute® Total | H52: 6 oz | I52: Herbicide | K52: =INDEX(PRICING[2025 In-Season Price],MATCH(A52,PRICING[SKU],0)) -> 426.4 | M52: =INDEX(PRICING[NOW Price],MATCH(A52,PRICING[SKU],0)) -> 405.08 | O52: =INDEX(Rebate_Lookup[Instances],MATCH(A52,Rebate_Lookup[SKU CODE],0)) -> 2 | P52: =IF(J52="","",INDEX(Rebate_Lookup[Qualified Rebate Tier],MATCH(A52,Rebate_Lookup[SKU CODE],0))) ->  | Q52: =IF(J52="","",IF(P52=1,INDEX(Rebate_Lookup[REB_MOQ_1],MATCH(A52,Rebate_Lookup[SKU CODE],0)),IF(P52=2,INDEX(Rebate_Lookup[REB_MOQ_2],MATCH(A52,Rebate_Lookup[SKU CODE],0)),IF(P52=3,INDEX(Rebate_Lookup[REB_MOQ_3],MATCH(A52,Rebate_Lookup[SKU CODE],0)),"#err")))) ->  | S52: =IFERROR(N52*SUM($I$99:$I$103),"") ->  | V52: =W52/43.56 -> 0.02295684114 | W52: 1 | X52: =IF(AND(TRIM(W52)<>"",TRIM(J52)<>""),(J52*6)/W52,"") ->  | Y52: 0 | Z52: 0
A53: 11008590 | B53: 24 | C53: =J53>=B53 -> FALSE | D53: =COUNTIF([1]Sheet1!$J:$J,A53) -> 2 | F53: $50 off 24+ units | G53: Xonerate® 2SC | H53: 12 oz | I53: Herbicide | K53: =INDEX(PRICING[2025 In-Season Price],MATCH(A53,PRICING[SKU],0)) -> 489.4 | M53: =INDEX(PRICING[NOW Price],MATCH(A53,PRICING[SKU],0)) -> 464.93 | O53: =INDEX(Rebate_Lookup[Instances],MATCH(A53,Rebate_Lookup[SKU CODE],0)) -> 2 | P53: =IF(J53="","",INDEX(Rebate_Lookup[Qualified Rebate Tier],MATCH(A53,Rebate_Lookup[SKU CODE],0))) ->  | Q53: =IF(J53="","",IF(P53=1,INDEX(Rebate_Lookup[REB_MOQ_1],MATCH(A53,Rebate_Lookup[SKU CODE],0)),IF(P53=2,INDEX(Rebate_Lookup[REB_MOQ_2],MATCH(A53,Rebate_Lookup[SKU CODE],0)),IF(P53=3,INDEX(Rebate_Lookup[REB_MOQ_3],MATCH(A53,Rebate_Lookup[SKU CODE],0)),"#err")))) ->  | S53: =IFERROR(N53*SUM($I$99:$I$103),"") ->  | V53: 0.321395776 | W53: =V53*43.56 -> 14 | X53: =IF(AND(TRIM(W53)<>"",TRIM(J53)<>""),(J53*12)/W53,"") ->  | Y53: 0 | Z53: 0
A54: D00000903 | B54: n/a | C54: =OR(J54>=16,J55>=16,J56>=16) -> FALSE | D54: =COUNTIF([1]Sheet1!$J:$J,A54) -> 3 | F54: n/a | G54: Altus® (1-15 units) | H54: 64 oz | I54: Insecticide | K54: 437.2 | M54: 437.2 | N54: =IF(J54*M54= 0,"",J54*M54) ->  | O54: =INDEX(Rebate_Lookup[Instances],MATCH(A54,Rebate_Lookup[SKU CODE],0)) -> 3 | P54: =IF(J54="","",INDEX(Rebate_Lookup[Qualified Rebate Tier],MATCH(A54,Rebate_Lookup[SKU CODE],0))) ->  | Q54: 0 | S54: =IF(OR(J54=0,J54=""),"","n/a") ->  | T54: =IFERROR((N54-SUM(R54:S54))/J54,"") ->  | U54: =IF(AND(J54<>"",J54>0), J54*T54,"") ->  | V54: 0.32 | W54: 13.9392 | X54: =IF(AND(TRIM(W54)<>"",TRIM(J54)<>""),(J54*64)/W54,"") ->  | Y54: =IF(J54<>0,U54/X54,0) -> 0 | Z54: =Y54/43.56 -> 0
A55: D00000903 | B55: n/a | D55: =COUNTIF([1]Sheet1!$J:$J,A55) -> 3 | F55: n/a | G55: Altus® (16-31 units) | H55: 64 oz | I55: Insecticide | K55: 437.2 | M55: 415.36 | O55: =INDEX(Rebate_Lookup[Instances],MATCH(A55,Rebate_Lookup[SKU CODE],0)) -> 3 | P55: =IF(J55="","",INDEX(Rebate_Lookup[Qualified Rebate Tier],MATCH(A55,Rebate_Lookup[SKU CODE],0))) ->  | Q55: 0 | V55: 0.32 | W55: 13.9392 | X55: =IF(AND(TRIM(W55)<>"",TRIM(J55)<>""),(J55*64)/W55,"") ->  | Y55: 0 | Z55: 0
A56: D00000903 | B56: n/a | D56: =COUNTIF([1]Sheet1!$J:$J,A56) -> 3 | F56: n/a | G56: Altus® (32+ units) | H56: 64 oz | I56: Insecticide | K56: 437.2 | M56: 393.6 | O56: =INDEX(Rebate_Lookup[Instances],MATCH(A56,Rebate_Lookup[SKU CODE],0)) -> 3 | P56: =IF(J56="","",INDEX(Rebate_Lookup[Qualified Rebate Tier],MATCH(A56,Rebate_Lookup[SKU CODE],0))) ->  | Q56: 0 | V56: 0.32 | W56: 13.9392 | Y56: 0 | Z56: 0
A57: 11015390 | B57: 4 | C57: =J57>=B57 -> FALSE | D57: =COUNTIF([1]Sheet1!$J:$J,A57) -> 4 | F57: $90 off 4+ units | G57: Durentis™ | H57: 16 oz | I57: Insecticide | K57: =INDEX(PRICING[2025 In-Season Price],MATCH(A57,PRICING[SKU],0)) -> 630 | M57: =INDEX(PRICING[NOW Price],MATCH(A57,PRICING[SKU],0)) -> 567 | O57: =INDEX(Rebate_Lookup[Instances],MATCH(A57,Rebate_Lookup[SKU CODE],0)) -> 2 | P57: =IF(J57="","",INDEX(Rebate_Lookup[Qualified Rebate Tier],MATCH(A57,Rebate_Lookup[SKU CODE],0))) ->  | Q57: =IF(J57="","",IF(P57=1,INDEX(Rebate_Lookup[REB_MOQ_1],MATCH(A57,Rebate_Lookup[SKU CODE],0)),IF(P57=2,INDEX(Rebate_Lookup[REB_MOQ_2],MATCH(A57,Rebate_Lookup[SKU CODE],0)),IF(P57=3,INDEX(Rebate_Lookup[REB_MOQ_3],MATCH(A57,Rebate_Lookup[SKU CODE],0)),"#err")))) ->  | S57: =IFERROR(N57*SUM($I$99:$I$103),"") ->  | V57: =W57/43.56 -> 0.06198347107 | W57: 2.7 | X57: =IF(AND(TRIM(W57)<>"",TRIM(J57)<>""),(J57*16)/W57,"") ->  | Y57: 0 | Z57: 0
A58: 11015391 | B58: 2 | C58: =J58>=B58 -> FALSE | D58: =COUNTIF([1]Sheet1!$J:$J,A58) -> 3 | F58: $550 off 2+, $650 off 4+ units | G58: Durentis™ | H58: 64 oz | I58: Insecticide | K58: =INDEX(PRICING[2025 In-Season Price],MATCH(A58,PRICING[SKU],0)) -> 2362.6 | M58: =INDEX(PRICING[NOW Price],MATCH(A58,PRICING[SKU],0)) -> 2126.34 | O58: =INDEX(Rebate_Lookup[Instances],MATCH(A58,Rebate_Lookup[SKU CODE],0)) -> 3 | P58: =IF(J58="","",INDEX(Rebate_Lookup[Qualified Rebate Tier],MATCH(A58,Rebate_Lookup[SKU CODE],0))) ->  | Q58: =IF(J58="","",IF(P58=1,INDEX(Rebate_Lookup[REB_MOQ_1],MATCH(A58,Rebate_Lookup[SKU CODE],0)),IF(P58=2,INDEX(Rebate_Lookup[REB_MOQ_2],MATCH(A58,Rebate_Lookup[SKU CODE],0)),IF(P58=3,INDEX(Rebate_Lookup[REB_MOQ_3],MATCH(A58,Rebate_Lookup[SKU CODE],0)),"#err")))) ->  | S58: =IFERROR(N58*SUM($I$99:$I$103),"") ->  | V58: =W58/43.56 -> 0.06198347107 | W58: 2.7 | X58: =IF(AND(TRIM(W58)<>"",TRIM(J58)<>""),(J58*64)/W58,"") ->  | Y58: 0 | Z58: 0
A59: 86797658 | B59: 4 | C59: =J59>=B59 -> FALSE | D59: =COUNTIF([1]Sheet1!$J:$J,A59) -> 2 | F59: $40 off 4+ units | G59: Tetrino® | H59: 1 gal | I59: Insecticide | K59: =INDEX(PRICING[2025 In-Season Price],MATCH(A59,PRICING[SKU],0)) -> 528 | M59: =INDEX(PRICING[NOW Price],MATCH(A59,PRICING[SKU],0)) -> 528 | O59: =INDEX(Rebate_Lookup[Instances],MATCH(A59,Rebate_Lookup[SKU CODE],0)) -> 2 | P59: =IF(J59="","",INDEX(Rebate_Lookup[Qualified Rebate Tier],MATCH(A59,Rebate_Lookup[SKU CODE],0))) ->  | Q59: =IF(J59="","",IF(P59=1,INDEX(Rebate_Lookup[REB_MOQ_1],MATCH(A59,Rebate_Lookup[SKU CODE],0)),IF(P59=2,INDEX(Rebate_Lookup[REB_MOQ_2],MATCH(A59,Rebate_Lookup[SKU CODE],0)),IF(P59=3,INDEX(Rebate_Lookup[REB_MOQ_3],MATCH(A59,Rebate_Lookup[SKU CODE],0)),"#err")))) ->  | S59: =IFERROR(N59*SUM($I$99:$I$103),"") ->  | V59: 0.73 | W59: 31.7988 | X59: =IF(AND(TRIM(W59)<>"",TRIM(J59)<>""),(J59*128)/W59,"") ->  | Y59: 0 | Z59: 0
A60: 11008521 | B60: 20 | C60: =J60>=B60 -> FALSE | D60: =COUNTIF([1]Sheet1!$J:$J,A60) -> 3 | F60: $12 off 20+, $25 off 40+ units | G60: Triple Crown® Golf (RUP) | H60: 1 gal | I60: Insecticide | K60: =INDEX(PRICING[2025 In-Season Price],MATCH(A60,PRICING[SKU],0)) -> 348.2 | L60: =IF(J60*K60= 0,"",J60*K60) ->  | M60: =INDEX(PRICING[NOW Price],MATCH(A60,PRICING[SKU],0)) -> 330.79 | O60: =INDEX(Rebate_Lookup[Instances],MATCH(A60,Rebate_Lookup[SKU CODE],0)) -> 3 | P60: =IF(J60="","",INDEX(Rebate_Lookup[Qualified Rebate Tier],MATCH(A60,Rebate_Lookup[SKU CODE],0))) ->  | Q60: =IF(J60="","",IF(P60=1,INDEX(Rebate_Lookup[REB_MOQ_1],MATCH(A60,Rebate_Lookup[SKU CODE],0)),IF(P60=2,INDEX(Rebate_Lookup[REB_MOQ_2],MATCH(A60,Rebate_Lookup[SKU CODE],0)),IF(P60=3,INDEX(Rebate_Lookup[REB_MOQ_3],MATCH(A60,Rebate_Lookup[SKU CODE],0)),"#err")))) ->  | S60: =IFERROR(N60*SUM($I$99:$I$103),"") ->  | V60: 0.46 | W60: 20.0376 | X60: =IF(AND(TRIM(W60)<>"",TRIM(J60)<>""),(J60*128)/W60,"") ->  | Y60: 0 | Z60: 0
G61: Durentis FAW Program:
C62: =COUNTIF(C15:C60,TRUE) -> 0 | L62: =SUM(L15:L60,N61) -> 0 | N62: =SUM(N15:N61) -> 0 | R62: =SUM(R15:R60) -> 0 | S62: =SUM(S15:S60) -> 0 | U62: =SUM(U15:U60) -> 0
F64: NON-AGENCY PRODUCTS | L64: HIDE | O64: HIDE | P64: HIDE | Q64: HIDE
F65: MINIMUM QUANTITY REQUIREMENT FOR REBATE | G65: PRODUCT NAME | H65: UNIT SIZE | I65: CATEGORY | J65: # UNITS | K65: PRICE / UNIT | L65: REDEMPTION VALUE | M65: REBATE PER UNIT | N65: SUBTOTAL BEFORE REBATE | O65: IN SEASON SUBTOTAL | P65: IN SEASON SUBTOTAL AFTER REBATE | R65: SUBTOTAL AFTER REBATE | S65: REBATE PER UNIT | V65: USE RATE / 1,000 FT2 | W65: USE RATE / ACRE | X65: TOTAL ACRES TREATED | Y65: COST/ ACRE | Z65: COST/ 1,000 FT2
A66: 4250930 | D66: =COUNTIF([1]Sheet1!$J:$J,A66) -> 1 | F66: n/a | G66: 26GT™ | H66: 2.5 gal | I66: Fungicide | L66: =INDEX(PRICING[NOW Price],MATCH(A66,PRICING[SKU],0)) -> 509 | M66: n/a | N66: =IF(OR(ISBLANK(J66),ISBLANK(K66)),"",J66*K66) ->  | O66: =IF(OR(J66=0,J66=""),"",J66*L66) ->  | P66: =IF(OR(J66=0,J66=""),"",O66) ->  | R66: =IF(OR(J66=0,J66=""),"",N66) ->  | S66: =IF(OR(ISBLANK(J66),ISBLANK(K66)),"",R66/J66) ->  | V66: =W66/43.56 -> 4 | W66: 174.24 | X66: =IF(AND(TRIM(W66)<>"",TRIM(J66)<>""),(J66*320)/W66,"") ->  | Y66: =IF(J66<>0,R66/X66,0) -> 0 | Z66: =Y66/43.56 -> 0 | AE66: =OR(R66<0,AND(ISBLANK(K66),NOT(ISBLANK(J66)))) -> FALSE
A67: 87300722 | D67: =COUNTIF([1]Sheet1!$J:$J,A67) -> 1 | F67: n/a | G67: Acclaim Extra | H67: 1 gal | I67: Herbicide | L67: =INDEX(PRICING[NOW Price],MATCH(A67,PRICING[SKU],0)) -> 665.2 | M67: 90 | N67: =IF(OR(ISBLANK(J67),ISBLANK(K67)),"",J67*K67) ->  | P67: =IF(OR(J67=0,J67=""),"",(L67-M67)*J67) ->  | R67: =IF(OR(J67=0,J67=""),"",(K67-M67)*J67) ->  | S67: =IF(OR(ISBLANK(J67),ISBLANK(K67)),"",R67/J67) ->  | V67: =W67/43.56 -> 0.5 | W67: 21.78 | X67: =IF(AND(TRIM(W67)<>"",TRIM(J67)<>""),(J67*128)/W67,"") ->  | Y67: =IF(J67<>0,R67/X67,0) -> 0 | Z67: =Y67/43.56 -> 0 | AE67: =OR(R67<0,AND(ISBLANK(K67),NOT(ISBLANK(J67)))) -> FALSE
A68: 11008351 | D68: =COUNTIF([1]Sheet1!$J:$J,A68) -> 1 | F68: n/a | G68: Blindside® | H68: 0.5 lb | I68: Herbicide | L68: =INDEX(PRICING[NOW Price],MATCH(A68,PRICING[SKU],0)) -> 139.05 | M68: 22 | V68: 0.1492194674 | W68: =V68*43.56 -> 6.5 | X68: =IF(AND(TRIM(W68)<>"",TRIM(J68)<>""),(J68*8)/W68,"") ->  | Y68: 0 | Z68: 0 | AE68: FALSE
A69: 11008357 | D69: =COUNTIF([1]Sheet1!$J:$J,A69) -> 1 | F69: n/a | G69: Dismiss® CA | H69: 6 oz | I69: Herbicide | L69: =INDEX(PRICING[NOW Price],MATCH(A69,PRICING[SKU],0)) -> 68.15 | M69: 14 | V69: 0.1836547291 | W69: 8 | X69: =IF(AND(TRIM(W69)<>"",TRIM(J69)<>""),(J69*6)/W69,"") ->  | Y69: 0 | Z69: 0 | AE69: FALSE
A70: 11008474 | D70: =COUNTIF([1]Sheet1!$J:$J,A70) -> 1 | F70: n/a | G70: Dismiss® South | H70: 1 pint | I70: Herbicide | L70: =INDEX(PRICING[NOW Price],MATCH(A70,PRICING[SKU],0)) -> 155.55 | M70: 24 | V70: 0.1836547291 | W70: 8 | X70: =IF(AND(TRIM(W70)<>"",TRIM(J70)<>""),(J70*16)/W70,"") ->  | Y70: 0 | Z70: 0 | AE70: FALSE
A71: 11008475 | D71: =COUNTIF([1]Sheet1!$J:$J,A71) -> 1 | F71: n/a | G71: Dismiss® Turf | H71: 6 oz | I71: Herbicide | L71: =INDEX(PRICING[NOW Price],MATCH(A71,PRICING[SKU],0)) -> 81.78 | M71: 14 | V71: 0.1836547291 | W71: =V71*43.56 -> 8 | X71: =IF(AND(TRIM(W71)<>"",TRIM(J71)<>""),(J71*6)/W71,"") ->  | Y71: 0 | Z71: 0 | AE71: FALSE
A72: 11008336 | D72: =COUNTIF([1]Sheet1!$J:$J,A72) -> 1 | F72: n/a | G72: Dismiss® Turf | H72: 64 oz | I72: Herbicide | L72: =INDEX(PRICING[NOW Price],MATCH(A72,PRICING[SKU],0)) -> 303 | M72: 40 | V72: 0.1836547291 | W72: 8 | X72: =IF(AND(TRIM(W72)<>"",TRIM(J72)<>""),(J72*64)/W72,"") ->  | Y72: 0 | Z72: 0 | AE72: FALSE
A73: 86215578 | D73: =COUNTIF([1]Sheet1!$J:$J,A73) -> 1 | F73: n/a | G73: Prograss EC | H73: 2.5 gal | I73: Herbicide | L73: =INDEX(PRICING[NOW Price],MATCH(A73,PRICING[SKU],0)) -> 368.25 | M73: 22 | V73: 1.951331497 | W73: 85 | X73: =IF(AND(TRIM(W73)<>"",TRIM(J73)<>""),(J73*320)/W73,"") ->  | Y73: 0 | Z73: 0 | AE73: FALSE
A74: D00000913 | D74: =COUNTIF([1]Sheet1!$J:$J,A74) -> 1 | F74: n/a | G74: Proxy | H74: 2.5 gal | I74: Herbicide | L74: =INDEX(PRICING[NOW Price],MATCH(A74,PRICING[SKU],0)) -> 102.25 | M74: n/a | P74: =IF(OR(J74=0,J74=""),"",O74) ->  | R74: =IF(OR(J74=0,J74=""),"",N74) ->  | V74: 5 | W74: 217.8 | Y74: 0 | Z74: 0 | AE74: FALSE
A75: 11008447 | D75: =COUNTIF([1]Sheet1!$J:$J,A75) -> 1 | F75: n/a | G75: QuickSilver® | H75: 8 oz | I75: Herbicide | L75: =INDEX(PRICING[NOW Price],MATCH(A75,PRICING[SKU],0)) -> 166.6 | M75: 20 | P75: =IF(OR(J75=0,J75=""),"",(L75-M75)*J75) ->  | V75: 0.02754820937 | W75: 1.2 | X75: =IF(AND(TRIM(W75)<>"",TRIM(J75)<>""),(J75*8)/W75,"") ->  | Y75: 0 | Z75: 0 | AE75: FALSE
A76: 79850980 | D76: =COUNTIF([1]Sheet1!$J:$J,A76) -> 1 | F76: n/a | G76: Revolver® | H76: 32 fl oz | I76: Herbicide | L76: =INDEX(PRICING[NOW Price],MATCH(A76,PRICING[SKU],0)) -> 291.45 | M76: 21 | P76: =IF(OR(J76=0,J76=""),"",(L76-M76)*J76) ->  | V76: 0.3994490358 | W76: 17.4 | X76: =IF(AND(TRIM(W76)<>"",TRIM(J76)<>""),(J76*32)/W76,"") ->  | Y76: 0 | Z76: 0 | AE76: FALSE
A77: 427709 | D77: =COUNTIF([1]Sheet1!$J:$J,A77) -> 1 | F77: n/a | G77: Sencor 75 | H77: 5 lb | I77: Herbicide | L77: =INDEX(PRICING[NOW Price],MATCH(A77,PRICING[SKU],0)) -> 591.75 | M77: n/a | N77: =IF(OR(ISBLANK(J77),ISBLANK(K77)),"",J77*K77) ->  | P77: =IF(OR(J77=0,J77=""),"",O77) ->  | R77: =IF(OR(J77=0,J77=""),"",N77) ->  | S77: =IF(OR(ISBLANK(J77),ISBLANK(K77)),"",R77/J77) ->  | V77: 0.2433425161 | W77: 10.6 | X77: =IF(AND(TRIM(W77)<>"",TRIM(J77)<>""),(J77*10.6)/W77,"") ->  | Y77: 0 | Z77: 0 | AE77: =OR(R77<0,AND(ISBLANK(K77),NOT(ISBLANK(J77)))) -> FALSE
A78: 11008482 | D78: =COUNTIF([1]Sheet1!$J:$J,A78) -> 1 | F78: n/a | G78: Solitare® | H78: 1 lb | I78: Herbicide | L78: =INDEX(PRICING[NOW Price],MATCH(A78,PRICING[SKU],0)) -> 164.8 | M78: 15 | N78: =IF(OR(ISBLANK(J78),ISBLANK(K78)),"",J78*K78) ->  | P78: =IF(OR(J78=0,J78=""),"",(L78-M78)*J78) ->  | R78: =IF(OR(J78=0,J78=""),"",(K78-M78)*J78) ->  | S78: =IF(OR(ISBLANK(J78),ISBLANK(K78)),"",R78/J78) ->  | V78: 0.3673094582 | W78: 16 | X78: =IF(AND(TRIM(W78)<>"",TRIM(J78)<>""),(J78*16)/W78,"") ->  | Y78: 0 | Z78: 0 | AE78: =OR(R78<0,AND(ISBLANK(K78),NOT(ISBLANK(J78)))) -> FALSE
A79: 11008369 | D79: =COUNTIF([1]Sheet1!$J:$J,A79) -> 1 | F79: n/a | G79: Solitare® WSL | H79: 0.75 gal | I79: Herbicide | L79: =INDEX(PRICING[NOW Price],MATCH(A79,PRICING[SKU],0)) -> 98 | M79: 12 | P79: =IF(OR(J79=0,J79=""),"",(L79-M79)*J79) ->  | V79: 3.9 | W79: 169.884 | X79: =IF(AND(TRIM(W79)<>"",TRIM(J79)<>""),(J79*96)/W79,"") ->  | Y79: 0 | Z79: 0 | AC79: GALLONS PER | AD79: ORDERED | AE79: FALSE
A80: NoSKU1 | D80: =COUNTIF([1]Sheet1!$J:$J,A80) -> 1 | F80: n/a | G80: Chipco Choice | H80: 50 lb | I80: Insecticide | L80: 221 | M80: n/a | P80: =IF(OR(J80=0,J80=""),"",O80) ->  | R80: =IF(OR(J80=0,J80=""),"",N80) ->  | V80: =W80/43.56 -> 0.5739210285 | W80: 25 | X80: =IF(AND(TRIM(W80)<>"",TRIM(J80)<>""),(J80*800)/W80,"") ->  | Y80: 0 | Z80: 0 | AE80: FALSE
A81: NoSKU2 | D81: =COUNTIF([1]Sheet1!$J:$J,A81) -> 1 | F81: n/a | G81: Durentis 0.058% On-Fertilizer | H81: 50 lb | I81: Insecticide | L81: 20 | M81: 2 | P81: =IF(OR(J81=0,J81=""),"",IF(J81<4,L81*J81,(L81-M81)*J81)) ->  | R81: =IF(OR(J81=0,J81=""),"",(K81-M81)*J81) ->  | V81: n/a | W81: n/a | Y81: 0 | Z81: 0 | AE81: FALSE
A82: NoSKU3 | D82: =COUNTIF([1]Sheet1!$J:$J,A82) -> 1 | F82: n/a | G82: Durentis 0.067% On-Fertilizer | H82: 50 lb | I82: Insecticide | L82: 25 | M82: 5 | P82: =IF(OR(J82=0,J82=""),"",IF(J82<4,L82*J82,(L82-M82)*J82)) ->  | V82: n/a | W82: n/a | Y82: 0 | Z82: 0 | AE82: FALSE
A83: D00001040 | D83: =COUNTIF([1]Sheet1!$J:$J,A83) -> 1 | F83: n/a | G83: Dylox SL420 | H83: 2.5 gal | I83: Insecticide | L83: =INDEX(PRICING[NOW Price],MATCH(A83,PRICING[SKU],0)) -> 225.38 | M83: n/a | P83: =IF(OR(J83=0,J83=""),"",O83) ->  | R83: =IF(OR(J83=0,J83=""),"",N83) ->  | V83: 6.9 | W83: =V83*43.56 -> 300.564 | Y83: 0 | Z83: 0 | AE83: FALSE
A84: 3944704 | D84: =COUNTIF([1]Sheet1!$J:$J,A84) -> 1 | F84: n/a | G84: Forbid | H84: 8 oz | I84: Insecticide | L84: =INDEX(PRICING[NOW Price],MATCH(A84,PRICING[SKU],0)) -> 253.95 | M84: 22 | P84: =IF(OR(J84=0,J84=""),"",(L84-M84)*J84) ->  | V84: 1 | W84: 43.56 | X84: =IF(AND(TRIM(W84)<>"",TRIM(J84)<>""),(J84*8)/W84,"") ->  | Y84: 0 | Z84: 0 | AE84: FALSE
A85: D00000961 | D85: =COUNTIF([1]Sheet1!$J:$J,A85) -> 1 | F85: n/a | G85: Merit 2F | H85: 1 gal | I85: Insecticide | L85: =INDEX(PRICING[NOW Price],MATCH(A85,PRICING[SKU],0)) -> 52.5 | M85: n/a | P85: =IF(OR(J85=0,J85=""),"",O85) ->  | R85: =IF(OR(J85=0,J85=""),"",N85) ->  | V85: 0.6 | W85: 26.136 | X85: =IF(AND(TRIM(W85)<>"",TRIM(J85)<>""),(J85*128)/W85,"") ->  | Y85: 0 | Z85: 0 | AE85: FALSE
A86: 11008457 | D86: =COUNTIF([1]Sheet1!$J:$J,A86) -> 1 | F86: $6 off 4+ units | G86: Talstar® Select | H86: 1 gal | I86: Insecticide | L86: 60.72 | M86: 6 | P86: =IF(OR(J86=0,J86=""),"",IF(J86<4,L86*J86,(L86-M86)*J86)) ->  | V86: 1.836547291 | W86: 80 | X86: =IF(AND(TRIM(W86)<>"",TRIM(J86)<>""),(J86*128)/W86,"") ->  | Y86: 0 | Z86: 0 | AE86: FALSE
A87: D00001012 | D87: =COUNTIF([1]Sheet1!$J:$J,A87) -> 1 | F87: n/a | G87: TopChoice | H87: 50 lb | I87: Insecticide | L87: =INDEX(PRICING[NOW Price],MATCH(A87,PRICING[SKU],0)) -> 63.5 | M87: 2 | P87: =IF(OR(J87=0,J87=""),"",(L87-M87)*J87) ->  | V87: =W87/43.56 -> 1.997245179 | W87: 87 | X87: =IF(AND(TRIM(W87)<>"",TRIM(J87)<>""),(J87*800)/W87,"") ->  | Y87: 0 | Z87: 0 | AD87: =SUM(#REF!,#REF!) ->  | AE87: FALSE
C88: =COUNTIF(C45:C79,TRUE) -> 0 | N88: =SUM(N66:N87) -> 0 | O88: =SUM(O66:O87) -> 0 | P88: =SUM(P66:P87) -> 0 | R88: =SUM(R66:R87) -> 0 | AE88: =COUNTIF($AE$66:$AE$87,TRUE) -> 0
J90: **ERROR**: MISSING PRICE INPUT VALUE
F91: Summary
F92: Summary is provided as an estimate only. See program rules and conditions.
F94: Estimated Total Before Off Invoice Discounts: | I94: =L62+N61+N88 -> 0 | M94: CHIPCO CHOICE, RONSTAR FLO, TALSTAR SELECT, TOPCHOICE AND TRIPLE CROWN GOLF ARE RESTRICTED USE PESTICIDES. For retail sale to and use only by Certified Applicators or persons under their direct supervision and only for those uses covered by the Certified Applicator's certification. *Pricing for all states except CA or WA. Must be purchased on a single invoice to receive volume discount price. †Specticle FLO and Ronstar FLO are not eligible for Envu Extras and tier rebates. **Must be registered in My Envu Rewards and accept current Terms and Conditions to participate. ***Customer Fall Solutions and NOW Solutions promotional cumulative purchases (Aug. 1 - Dec. 5, 2025) must be $5,000 or more to qualify for program rebates. New members signed up before Dec. 31, 2025, will receive 2025 NOW/Fall Solutions rebates. All rebates for 2025 NOW/Fall Solutions will be paid in points, which can be redeemed for thousands of catalog items, distributor credits and/or company checks (no checks can be issued to a third party). All products must be invoiced between Oct. 1 and Dec. 5, 2025, to qualify for Fall Solutions. Rebate calculations will be based on the date of actual product invoice and calculator tools are provided for estimation purposes only. Rebates will only be paid or delivered to the company or name listed on the invoice. Please allow for rebates to be fulfilled by July 31, 2026. End users are only eligible for one Envu incentive program on these invoiced products. Must be an end user with MER membership and accept current Terms and Conditions. Resale of product(s) purchased within this program will not qualify for rebates. If questions arise, please contact MER at 1-888-456-6464 or email info@myenvurewards.com. Envu reserves the right to modify any portion thereof, or discontinue this program without prior notice.
F95: Estimated Invoice Total: | I95: =N62+N88 -> 0
F96: Estimated Off-Invoice Discount: | I96: =IFERROR(J96/I94,"n/a") -> n/a | J96: =I94-I95 -> 0
F97: Volume Buy Rebate, Envu Extras & Tier Rebates:
F98: Estimated Total Volume Buy Rebate: | I98: =IFERROR(J98/I95,"n/a") -> n/a | J98: =R62+(N88-R88) -> 0
F99: Estimated Tier Rebate Amount: | I99: =IF(K6=TRUE,K5,IF(M6=TRUE,M5,IF(N6=TRUE,N5,IF(R6=TRUE,R5,IF(S6=TRUE,S5,"n/a"))))) -> n/a | J99: =IFERROR(($N$62-SUM($N$47:$N$50,$N$43:$N$44,$N$61,$N$54:$N$56,#REF!))*$I$99,"n/a") -> n/a
F100: Estimated Chipco Signature & Stressgard® Rebate ($10k+): | I100: =K9 -> n/a | J100: =IFERROR((N62-N61-SUM($N$43:$N$44,$N$47:$N$50,$N$54:$N$56,#REF!))*I100,"n/a") -> n/a
F101: Estimated Serata Rebate (8+ units): | I101: =N9 -> n/a | J101: =IFERROR((N62-N61-SUM($N$43:N44,$N$47:$N$50,$N$54:$N$56,#REF!))*I101,"n/a") -> n/a | M101: ALWAYS READ AND FOLLOW LABEL INSTRUCTIONS. Environmental Science U.S. LLC, 5000 CentreGreen Way, Suite 400, Cary, NC 27513. For additional product information, call toll-free 1-800-331-2867. www.envu.com. Please verify state registration of these products in your state before selling, using or distributing. Not all products are registered in all states. Envu, the Envu logo and product logos are trademarks owned by Environmental Science U.S. LLC or one of its affiliates. Other trademarks are the property of their respective owners. ©2025 Environmental Science U.S. LLC. ES-0725-GLF-358-R-R
F102: Estimated Durentis Rebate (4+ 64oz units OR 16+ 16oz units): | I102: =R9 -> n/a | J102: =IFERROR((N62-N61-SUM($N$43:N44,$N$47:$N$50,$N$54:$N$56,#REF!))*I102,"n/a") -> n/a
F103: Estimated Volume Buy Rebate (5 or more products): | I103: =S9 -> n/a | J103: =IFERROR((N62-N61-SUM($N$43:$N$44,$N$47:$N$50,$N$54:$N$56,#REF!))*I103,"n/a") -> n/a
F104: Estimated Total Rebate: | I104: =SUM(I98:I103) -> 0 | J104: =SUM(J98:J103) -> 0
F105: Estimated Total Savings (Rebates + Off Invoice Discounts): | I105: =IFERROR(J105/I95,"n/a") -> n/a | J105: =J104+J96 -> 0
F106: Estimated Net Total after Rebates & Discounts: | I106: =I95-J104 -> 0
F108: =CONCATENATE("Estimated MER points to be earned: ",TEXT(IF(AND(J104 <>"", J104 > 0),J104*100, 0),"#,##0")) -> Estimated MER points to be earned: 0

Sheet SUMMARY - UNITS
D2: ='2025 GOLF Only Fall Solutions'!F4 -> NAME YOUR DRAFT ORDER HERE:
D3: Description: | E3: =IF('2025 GOLF Only Fall Solutions'!G5="","",'2025 GOLF Only Fall Solutions'!G5) -> 
D4: Distributor/DSR: | E4: =IF('2025 GOLF Only Fall Solutions'!G6="","",'2025 GOLF Only Fall Solutions'!G6) -> 
D5: MER#: | E5: =IF('2025 GOLF Only Fall Solutions'!G7="","",'2025 GOLF Only Fall Solutions'!G7) -> 
D6: Last Updated: | E6: =IF('2025 GOLF Only Fall Solutions'!G8="","",'2025 GOLF Only Fall Solutions'!G8) -> 
D7: Created For: | E7: =IF('2025 GOLF Only Fall Solutions'!G9="","",'2025 GOLF Only Fall Solutions'!G9) -> 
D8: Page 1 of 1
D9: PRODUCT NAME | E9: UNIT SIZE | F9: Category | G9: # UNITS | H9: IN-SEASON PRICE/UNIT | I9: EOP PRICE/UNIT | J9: SUBTOTAL (before rebates & discounts) | K9: SUBTOTAL (after rebates & discounts) | L9: NET PRICE/UNIT (after rebate)
A10: sku | B10: filter
A12: ='2025 GOLF Only Fall Solutions'!A15 -> D00000907 | B12: =G12>0 -> FALSE | D12: ='2025 GOLF Only Fall Solutions'!G15 -> Banol® | E12: ='2025 GOLF Only Fall Solutions'!H15 -> 2.5 gal | F12: ='2025 GOLF Only Fall Solutions'!I15 -> Fungicide | G12: ='2025 GOLF Only Fall Solutions'!J15 -> 0 | H12: ='2025 GOLF Only Fall Solutions'!K15 -> 1267 | I12: ='2025 GOLF Only Fall Solutions'!M15 -> 1267 | J12: ='2025 GOLF Only Fall Solutions'!N15 ->  | K12: ='2025 GOLF Only Fall Solutions'!U15 ->  | L12: =K12/G12 -> 
A13: ='2025 GOLF Only Fall Solutions'!A16 -> D00000623 | B13: =G13>0 -> FALSE | D13: ='2025 GOLF Only Fall Solutions'!G16 -> Castlon™ | E13: ='2025 GOLF Only Fall Solutions'!H16 -> 1 gal | F13: ='2025 GOLF Only Fall Solutions'!I16 -> Fungicide | G13: ='2025 GOLF Only Fall Solutions'!J16 -> 0 | H13: ='2025 GOLF Only Fall Solutions'!K16 -> 2748.2 | I13: ='2025 GOLF Only Fall Solutions'!M16 -> 2610.79 | J13: ='2025 GOLF Only Fall Solutions'!N16 ->  | K13: ='2025 GOLF Only Fall Solutions'!U16 ->  | L13: =K13/G13 -> 
A14: ='2025 GOLF Only Fall Solutions'!A17 -> D00000624 | B14: FALSE | D14: ='2025 GOLF Only Fall Solutions'!G17 -> Castlon™ | E14: ='2025 GOLF Only Fall Solutions'!H17 -> 16 oz | F14: ='2025 GOLF Only Fall Solutions'!I17 -> Fungicide | G14: ='2025 GOLF Only Fall Solutions'!J17 -> 0 | H14: ='2025 GOLF Only Fall Solutions'!K17 -> 428 | I14: ='2025 GOLF Only Fall Solutions'!M17 -> 406.6 | J14: ='2025 GOLF Only Fall Solutions'!N17 ->  | K14: ='2025 GOLF Only Fall Solutions'!U17 -> 
A15: ='2025 GOLF Only Fall Solutions'!A18 -> D00000914 | B15: FALSE | D15: ='2025 GOLF Only Fall Solutions'!G18 -> Chipco® Signature™ | E15: ='2025 GOLF Only Fall Solutions'!H18 -> 11 lb | F15: ='2025 GOLF Only Fall Solutions'!I18 -> Fungicide | G15: ='2025 GOLF Only Fall Solutions'!J18 -> 0 | H15: ='2025 GOLF Only Fall Solutions'!K18 -> 404.8 | I15: ='2025 GOLF Only Fall Solutions'!M18 -> 384.56 | J15: ='2025 GOLF Only Fall Solutions'!N18 ->  | K15: ='2025 GOLF Only Fall Solutions'!U18 -> 
A16: ='2025 GOLF Only Fall Solutions'!A19 -> D00001373 | B16: FALSE | D16: ='2025 GOLF Only Fall Solutions'!G19 -> Densicor® | E16: ='2025 GOLF Only Fall Solutions'!H19 -> 51 oz | F16: ='2025 GOLF Only Fall Solutions'!I19 -> Fungicide | G16: ='2025 GOLF Only Fall Solutions'!J19 -> 0 | H16: ='2025 GOLF Only Fall Solutions'!K19 -> 702.8 | I16: ='2025 GOLF Only Fall Solutions'!M19 -> 667.66 | J16: ='2025 GOLF Only Fall Solutions'!N19 ->  | K16: ='2025 GOLF Only Fall Solutions'!U19 -> 
A17: ='2025 GOLF Only Fall Solutions'!A20 -> D00000934 | B17: FALSE | D17: ='2025 GOLF Only Fall Solutions'!G20 -> Exteris® Stressgard® | E17: ='2025 GOLF Only Fall Solutions'!H20 -> 2.5 gal | F17: ='2025 GOLF Only Fall Solutions'!I20 -> Fungicide | G17: ='2025 GOLF Only Fall Solutions'!J20 -> 0 | H17: ='2025 GOLF Only Fall Solutions'!K20 -> 370 | I17: ='2025 GOLF Only Fall Solutions'!M20 -> 370 | J17: ='2025 GOLF Only Fall Solutions'!N20 ->  | K17: ='2025 GOLF Only Fall Solutions'!U20 ->  | L17: =K17/G17 -> 
A18: ='2025 GOLF Only Fall Solutions'!A21 -> 11008377 | B18: FALSE | D18: ='2025 GOLF Only Fall Solutions'!G21 -> Fame® +C | E18: ='2025 GOLF Only Fall Solutions'!H21 -> 2.5 gal | F18: ='2025 GOLF Only Fall Solutions'!I21 -> Fungicide | G18: ='2025 GOLF Only Fall Solutions'!J21 -> 0 | H18: ='2025 GOLF Only Fall Solutions'!K21 -> 575.4 | I18: ='2025 GOLF Only Fall Solutions'!M21 -> 575.4 | J18: ='2025 GOLF Only Fall Solutions'!N21 ->  | K18: ='2025 GOLF Only Fall Solutions'!U21 -> 
A19: ='2025 GOLF Only Fall Solutions'!A22 -> 11008393 | B19: FALSE | D19: ='2025 GOLF Only Fall Solutions'!G22 -> Fame® SC | E19: ='2025 GOLF Only Fall Solutions'!H22 -> 16 oz | F19: ='2025 GOLF Only Fall Solutions'!I22 -> Fungicide | G19: ='2025 GOLF Only Fall Solutions'!J22 -> 0 | H19: ='2025 GOLF Only Fall Solutions'!K22 -> 428 | I19: ='2025 GOLF Only Fall Solutions'!M22 -> 406.6 | J19: ='2025 GOLF Only Fall Solutions'!N22 ->  | K19: ='2025 GOLF Only Fall Solutions'!U22 -> 
A20: ='2025 GOLF Only Fall Solutions'!A23 -> 11008557 | B20: FALSE | D20: ='2025 GOLF Only Fall Solutions'!G23 -> Fame® SC | E20: ='2025 GOLF Only Fall Solutions'!H23 -> 64 oz | F20: ='2025 GOLF Only Fall Solutions'!I23 -> Fungicide | G20: ='2025 GOLF Only Fall Solutions'!J23 -> 0 | H20: ='2025 GOLF Only Fall Solutions'!K23 -> 1549.45 | I20: ='2025 GOLF Only Fall Solutions'!M23 -> 1471.98 | J20: ='2025 GOLF Only Fall Solutions'!N23 ->  | K20: ='2025 GOLF Only Fall Solutions'!U23 -> 
A21: ='2025 GOLF Only Fall Solutions'!A24 -> 11009500 | B21: FALSE | D21: ='2025 GOLF Only Fall Solutions'!G24 -> Fame® SC | E21: ='2025 GOLF Only Fall Solutions'!H24 -> 2.5 gal | F21: ='2025 GOLF Only Fall Solutions'!I24 -> Fungicide | G21: ='2025 GOLF Only Fall Solutions'!J24 -> 0 | H21: ='2025 GOLF Only Fall Solutions'!K24 -> 6863.6 | I21: ='2025 GOLF Only Fall Solutions'!M24 -> 6520.42 | J21: ='2025 GOLF Only Fall Solutions'!N24 ->  | K21: ='2025 GOLF Only Fall Solutions'!U24 -> 
A22: ='2025 GOLF Only Fall Solutions'!A25 -> D00000935 | B22: FALSE | D22: ='2025 GOLF Only Fall Solutions'!G25 -> Fiata® Stressgard® | E22: ='2025 GOLF Only Fall Solutions'!H25 -> 2.5 gal | F22: ='2025 GOLF Only Fall Solutions'!I25 -> Fungicide | G22: ='2025 GOLF Only Fall Solutions'!J25 -> 0 | H22: ='2025 GOLF Only Fall Solutions'!K25 -> 192 | I22: ='2025 GOLF Only Fall Solutions'!M25 -> 192 | J22: ='2025 GOLF Only Fall Solutions'!N25 ->  | K22: ='2025 GOLF Only Fall Solutions'!U25 -> 
A23: ='2025 GOLF Only Fall Solutions'!A26 -> D00001379 | B23: FALSE | D23: ='2025 GOLF Only Fall Solutions'!G26 -> Indemnify® | E23: ='2025 GOLF Only Fall Solutions'!H26 -> 17.1 fl oz | F23: ='2025 GOLF Only Fall Solutions'!I26 -> Fungicide | G23: ='2025 GOLF Only Fall Solutions'!J26 -> 0 | H23: ='2025 GOLF Only Fall Solutions'!K26 -> 1963.6 | I23: ='2025 GOLF Only Fall Solutions'!M26 -> 1865.42 | J23: ='2025 GOLF Only Fall Solutions'!N26 ->  | K23: ='2025 GOLF Only Fall Solutions'!U26 -> 
A24: ='2025 GOLF Only Fall Solutions'!A27 -> 81701245 | B24: FALSE | D24: ='2025 GOLF Only Fall Solutions'!G27 -> Interface® Stressgard® | E24: ='2025 GOLF Only Fall Solutions'!H27 -> 2.5 gal | F24: ='2025 GOLF Only Fall Solutions'!I27 -> Fungicide | G24: ='2025 GOLF Only Fall Solutions'!J27 -> 0 | H24: ='2025 GOLF Only Fall Solutions'!K27 -> 573 | I24: ='2025 GOLF Only Fall Solutions'!M27 -> 544.35 | J24: ='2025 GOLF Only Fall Solutions'!N27 ->  | K24: ='2025 GOLF Only Fall Solutions'!U27 -> 
A25: ='2025 GOLF Only Fall Solutions'!A28 -> 11013671 | B25: FALSE | D25: ='2025 GOLF Only Fall Solutions'!G28 -> Kalida® | E25: ='2025 GOLF Only Fall Solutions'!H28 -> 64 oz | F25: ='2025 GOLF Only Fall Solutions'!I28 -> Fungicide | G25: ='2025 GOLF Only Fall Solutions'!J28 -> 0 | H25: ='2025 GOLF Only Fall Solutions'!K28 -> 866.4 | I25: ='2025 GOLF Only Fall Solutions'!M28 -> 866.4 | J25: ='2025 GOLF Only Fall Solutions'!N28 ->  | K25: ='2025 GOLF Only Fall Solutions'!U28 -> 
A26: ='2025 GOLF Only Fall Solutions'!A29 -> D00000965 | B26: FALSE | D26: ='2025 GOLF Only Fall Solutions'!G29 -> Mirage® Stressgard® | E26: ='2025 GOLF Only Fall Solutions'!H29 -> 2.5 gal | F26: ='2025 GOLF Only Fall Solutions'!I29 -> Fungicide | G26: ='2025 GOLF Only Fall Solutions'!J29 -> 0 | H26: ='2025 GOLF Only Fall Solutions'!K29 -> 493 | I26: ='2025 GOLF Only Fall Solutions'!M29 -> 493 | J26: ='2025 GOLF Only Fall Solutions'!N29 ->  | K26: ='2025 GOLF Only Fall Solutions'!U29 -> 
A27: ='2025 GOLF Only Fall Solutions'!A30 -> 11003880 | B27: FALSE | D27: ='2025 GOLF Only Fall Solutions'!G30 -> Rayora® | E27: ='2025 GOLF Only Fall Solutions'!H30 -> 2.5 gal | F27: ='2025 GOLF Only Fall Solutions'!I30 -> Fungicide | G27: ='2025 GOLF Only Fall Solutions'!J30 -> 0 | H27: ='2025 GOLF Only Fall Solutions'!K30 -> 631.4 | I27: ='2025 GOLF Only Fall Solutions'!M30 -> 631.4 | J27: ='2025 GOLF Only Fall Solutions'!N30 ->  | K27: ='2025 GOLF Only Fall Solutions'!U30 -> 
A28: ='2025 GOLF Only Fall Solutions'!A31 -> D00000125 | B28: FALSE | D28: ='2025 GOLF Only Fall Solutions'!G31 -> Resilia™ | E28: ='2025 GOLF Only Fall Solutions'!H31 -> 2.72 gal | F28: ='2025 GOLF Only Fall Solutions'!I31 -> Fungicide | G28: ='2025 GOLF Only Fall Solutions'!J31 -> 0 | H28: ='2025 GOLF Only Fall Solutions'!K31 -> 946.56 | I28: ='2025 GOLF Only Fall Solutions'!M31 -> 946.56 | J28: ='2025 GOLF Only Fall Solutions'!N31 ->  | K28: ='2025 GOLF Only Fall Solutions'!U31 -> 
A29: ='2025 GOLF Only Fall Solutions'!A32 -> 11014245 | B29: FALSE | D29: ='2025 GOLF Only Fall Solutions'!G32 -> Serata® | E29: ='2025 GOLF Only Fall Solutions'!H32 -> 35 oz | F29: ='2025 GOLF Only Fall Solutions'!I32 -> Fungicide | G29: ='2025 GOLF Only Fall Solutions'!J32 -> 0 | H29: ='2025 GOLF Only Fall Solutions'!K32 -> 499.8 | I29: ='2025 GOLF Only Fall Solutions'!M32 -> 474.81 | J29: ='2025 GOLF Only Fall Solutions'!N32 ->  | K29: ='2025 GOLF Only Fall Solutions'!U32 -> 
A30: ='2025 GOLF Only Fall Solutions'!A33 -> D00000989 | B30: FALSE | D30: ='2025 GOLF Only Fall Solutions'!G33 -> Signature™ XTRA Stressgard® | E30: ='2025 GOLF Only Fall Solutions'!H33 -> 5.5 lb | F30: ='2025 GOLF Only Fall Solutions'!I33 -> Fungicide | G30: ='2025 GOLF Only Fall Solutions'!J33 -> 0 | H30: ='2025 GOLF Only Fall Solutions'!K33 -> 210.4 | I30: ='2025 GOLF Only Fall Solutions'!M33 -> 199.88 | J30: ='2025 GOLF Only Fall Solutions'!N33 ->  | K30: ='2025 GOLF Only Fall Solutions'!U33 -> 
A31: ='2025 GOLF Only Fall Solutions'!A34 -> D00000998 | B31: FALSE | D31: ='2025 GOLF Only Fall Solutions'!G34 -> Tartan® Stressgard® | E31: ='2025 GOLF Only Fall Solutions'!H34 -> 2.5 gal | F31: ='2025 GOLF Only Fall Solutions'!I34 -> Fungicide | G31: ='2025 GOLF Only Fall Solutions'!J34 -> 0 | H31: ='2025 GOLF Only Fall Solutions'!K34 -> 1033 | I31: ='2025 GOLF Only Fall Solutions'!M34 -> 981.35 | J31: ='2025 GOLF Only Fall Solutions'!N34 ->  | K31: ='2025 GOLF Only Fall Solutions'!U34 -> 
A32: ='2025 GOLF Only Fall Solutions'!A35 -> 11015981 | B32: FALSE | D32: ='2025 GOLF Only Fall Solutions'!G35 -> Tarvecta™ | E32: ='2025 GOLF Only Fall Solutions'!H35 -> 2.5 gal | F32: ='2025 GOLF Only Fall Solutions'!I35 -> Fungicide | G32: ='2025 GOLF Only Fall Solutions'!J35 -> 0 | H32: ='2025 GOLF Only Fall Solutions'!K35 -> 3360 | I32: ='2025 GOLF Only Fall Solutions'!M35 -> 3360 | J32: ='2025 GOLF Only Fall Solutions'!N35 ->  | K32: ='2025 GOLF Only Fall Solutions'!U35 -> 
A33: ='2025 GOLF Only Fall Solutions'!A36 -> 11015990 | B33: FALSE | D33: ='2025 GOLF Only Fall Solutions'!G36 -> Tarvecta™ | E33: ='2025 GOLF Only Fall Solutions'!H36 -> 64 oz | F33: ='2025 GOLF Only Fall Solutions'!I36 -> Fungicide | G33: ='2025 GOLF Only Fall Solutions'!J36 -> 0 | H33: ='2025 GOLF Only Fall Solutions'!K36 -> 772.8 | I33: ='2025 GOLF Only Fall Solutions'!M36 -> 772.8 | J33: ='2025 GOLF Only Fall Solutions'!N36 ->  | K33: ='2025 GOLF Only Fall Solutions'!U36 -> 
A34: ='2025 GOLF Only Fall Solutions'!A37 -> 79714858 | B34: FALSE | D34: ='2025 GOLF Only Fall Solutions'!G37 -> Celsius® WG | E34: ='2025 GOLF Only Fall Solutions'!H37 -> 10 oz | F34: ='2025 GOLF Only Fall Solutions'!I37 -> Herbicide | G34: ='2025 GOLF Only Fall Solutions'!J37 -> 0 | H34: ='2025 GOLF Only Fall Solutions'!K37 -> 131.2 | I34: ='2025 GOLF Only Fall Solutions'!M37 -> 124.64 | J34: ='2025 GOLF Only Fall Solutions'!N37 ->  | K34: ='2025 GOLF Only Fall Solutions'!U37 -> 
A35: ='2025 GOLF Only Fall Solutions'!A38 -> D00000911 | B35: FALSE | D35: ='2025 GOLF Only Fall Solutions'!G38 -> Celsius® XTRA | E35: ='2025 GOLF Only Fall Solutions'!H38 -> 10 oz | F35: ='2025 GOLF Only Fall Solutions'!I38 -> Herbicide | G35: ='2025 GOLF Only Fall Solutions'!J38 -> 0 | H35: ='2025 GOLF Only Fall Solutions'!K38 -> 166.4 | I35: ='2025 GOLF Only Fall Solutions'!M38 -> 158.08 | J35: ='2025 GOLF Only Fall Solutions'!N38 ->  | K35: ='2025 GOLF Only Fall Solutions'!U38 -> 
A36: ='2025 GOLF Only Fall Solutions'!A39 -> 11008409 | B36: =G36>0 -> FALSE | D36: ='2025 GOLF Only Fall Solutions'!G39 -> Dismiss® NXT | E36: ='2025 GOLF Only Fall Solutions'!H39 -> 10 oz | F36: ='2025 GOLF Only Fall Solutions'!I39 -> Herbicide | G36: ='2025 GOLF Only Fall Solutions'!J39 -> 0 | H36: ='2025 GOLF Only Fall Solutions'!K39 -> 94.8 | I36: ='2025 GOLF Only Fall Solutions'!M39 -> 94.8 | J36: ='2025 GOLF Only Fall Solutions'!N39 ->  | K36: ='2025 GOLF Only Fall Solutions'!U39 ->  | L36: =K36/G36 -> 
A37: ='2025 GOLF Only Fall Solutions'!A40 -> 11008589 | B37: FALSE | D37: ='2025 GOLF Only Fall Solutions'!G40 -> Dismiss® NXT | E37: ='2025 GOLF Only Fall Solutions'!H40 -> 60 oz | F37: ='2025 GOLF Only Fall Solutions'!I40 -> Herbicide | G37: ='2025 GOLF Only Fall Solutions'!J40 -> 0 | H37: ='2025 GOLF Only Fall Solutions'!K40 -> 504.8 | I37: ='2025 GOLF Only Fall Solutions'!M40 -> 479.56 | J37: ='2025 GOLF Only Fall Solutions'!N40 ->  | K37: ='2025 GOLF Only Fall Solutions'!U40 -> 
A38: ='2025 GOLF Only Fall Solutions'!A41 -> 11008464 | B38: FALSE | D38: ='2025 GOLF Only Fall Solutions'!G41 -> Echelon® 4SC | E38: ='2025 GOLF Only Fall Solutions'!H41 -> 1 gal | F38: ='2025 GOLF Only Fall Solutions'!I41 -> Herbicide | G38: ='2025 GOLF Only Fall Solutions'!J41 -> 0 | H38: ='2025 GOLF Only Fall Solutions'!K41 -> 454 | I38: ='2025 GOLF Only Fall Solutions'!M41 -> 431.3 | J38: ='2025 GOLF Only Fall Solutions'!N41 ->  | K38: ='2025 GOLF Only Fall Solutions'!U41 -> 
A39: ='2025 GOLF Only Fall Solutions'!A42 -> 79545312 | B39: FALSE | D39: ='2025 GOLF Only Fall Solutions'!G42 -> Revolver® | E39: ='2025 GOLF Only Fall Solutions'!H42 -> 87 fl oz | F39: ='2025 GOLF Only Fall Solutions'!I42 -> Herbicide | G39: ='2025 GOLF Only Fall Solutions'!J42 -> 0 | H39: ='2025 GOLF Only Fall Solutions'!K42 -> 765.6 | I39: ='2025 GOLF Only Fall Solutions'!M42 -> 727.32 | J39: ='2025 GOLF Only Fall Solutions'!N42 ->  | K39: ='2025 GOLF Only Fall Solutions'!U42 -> 
A40: ='2025 GOLF Only Fall Solutions'!A43 -> D00000986 | B40: FALSE | D40: ='2025 GOLF Only Fall Solutions'!G43 -> Ronstar® FLO (1-11 units) | E40: ='2025 GOLF Only Fall Solutions'!H43 -> 2.5 gal | F40: ='2025 GOLF Only Fall Solutions'!I43 -> Herbicide | G40: ='2025 GOLF Only Fall Solutions'!J43 -> 0 | H40: ='2025 GOLF Only Fall Solutions'!K43 -> 552 | I40: ='2025 GOLF Only Fall Solutions'!M43 -> 552 | J40: ='2025 GOLF Only Fall Solutions'!N43 ->  | K40: ='2025 GOLF Only Fall Solutions'!U43 -> 
A41: ='2025 GOLF Only Fall Solutions'!A44 -> D00000986 | B41: FALSE | D41: ='2025 GOLF Only Fall Solutions'!G44 -> Ronstar® FLO (12+ units) | E41: ='2025 GOLF Only Fall Solutions'!H44 -> 2.5 gal | F41: ='2025 GOLF Only Fall Solutions'!I44 -> Herbicide | G41: ='2025 GOLF Only Fall Solutions'!J44 -> 0 | H41: ='2025 GOLF Only Fall Solutions'!K44 -> 453 | I41: ='2025 GOLF Only Fall Solutions'!M44 -> 423 | J41: ='2025 GOLF Only Fall Solutions'!N44 ->  | K41: ='2025 GOLF Only Fall Solutions'!U44 -> 
A42: ='2025 GOLF Only Fall Solutions'!A45 -> 11008522 | B42: FALSE | D42: ='2025 GOLF Only Fall Solutions'!G45 -> Solitare® | E42: ='2025 GOLF Only Fall Solutions'!H45 -> 4 lb | F42: ='2025 GOLF Only Fall Solutions'!I45 -> Herbicide | G42: ='2025 GOLF Only Fall Solutions'!J45 -> 0 | H42: ='2025 GOLF Only Fall Solutions'!K45 -> 596.4 | I42: ='2025 GOLF Only Fall Solutions'!M45 -> 566.58 | J42: ='2025 GOLF Only Fall Solutions'!N45 ->  | K42: ='2025 GOLF Only Fall Solutions'!U45 -> 
A43: ='2025 GOLF Only Fall Solutions'!A46 -> 11013862 | B43: FALSE | D43: ='2025 GOLF Only Fall Solutions'!G46 -> Solitare® WSL | E43: ='2025 GOLF Only Fall Solutions'!H46 -> 2.5 gal | F43: ='2025 GOLF Only Fall Solutions'!I46 -> Herbicide | G43: ='2025 GOLF Only Fall Solutions'!J46 -> 0 | H43: ='2025 GOLF Only Fall Solutions'!K46 -> 262.4 | I43: ='2025 GOLF Only Fall Solutions'!M46 -> 249.28 | J43: ='2025 GOLF Only Fall Solutions'!N46 ->  | K43: ='2025 GOLF Only Fall Solutions'!U46 -> 
A44: ='2025 GOLF Only Fall Solutions'!A47 -> D00000990 | B44: FALSE | D44: ='2025 GOLF Only Fall Solutions'!G47 -> Specticle® FLO (1-6 units) | E44: ='2025 GOLF Only Fall Solutions'!H47 -> 1 gal | F44: ='2025 GOLF Only Fall Solutions'!I47 -> Herbicide | G44: ='2025 GOLF Only Fall Solutions'!J47 -> 0 | H44: ='2025 GOLF Only Fall Solutions'!K47 -> 2092.8 | I44: ='2025 GOLF Only Fall Solutions'!M47 -> 1946.3 | J44: ='2025 GOLF Only Fall Solutions'!N47 ->  | K44: ='2025 GOLF Only Fall Solutions'!U47 -> 
A45: ='2025 GOLF Only Fall Solutions'!A48 -> D00000990 | B45: FALSE | D45: ='2025 GOLF Only Fall Solutions'!G48 -> Specticle® FLO (7-13 units) | E45: ='2025 GOLF Only Fall Solutions'!H48 -> 1 gal | F45: ='2025 GOLF Only Fall Solutions'!I48 -> Herbicide | G45: ='2025 GOLF Only Fall Solutions'!J48 -> 0 | H45: ='2025 GOLF Only Fall Solutions'!K48 -> 2092.8 | I45: ='2025 GOLF Only Fall Solutions'!M48 -> 1862.59 | J45: ='2025 GOLF Only Fall Solutions'!N48 ->  | K45: ='2025 GOLF Only Fall Solutions'!U48 -> 
A46: ='2025 GOLF Only Fall Solutions'!A49 -> D00000990 | B46: FALSE | D46: ='2025 GOLF Only Fall Solutions'!G49 -> Specticle® FLO (14-25 units) | E46: ='2025 GOLF Only Fall Solutions'!H49 -> 1 gal | F46: ='2025 GOLF Only Fall Solutions'!I49 -> Herbicide | G46: ='2025 GOLF Only Fall Solutions'!J49 -> 0 | H46: ='2025 GOLF Only Fall Solutions'!K49 -> 1796.4 | I46: ='2025 GOLF Only Fall Solutions'!M49 -> 1625.74 | J46: ='2025 GOLF Only Fall Solutions'!N49 ->  | K46: ='2025 GOLF Only Fall Solutions'!U49 -> 
A47: ='2025 GOLF Only Fall Solutions'!A50 -> D00000990 | B47: FALSE | D47: ='2025 GOLF Only Fall Solutions'!G50 -> Specticle® FLO (26+ units) | E47: ='2025 GOLF Only Fall Solutions'!H50 -> 1 gal | F47: ='2025 GOLF Only Fall Solutions'!I50 -> Herbicide | G47: ='2025 GOLF Only Fall Solutions'!J50 -> 0 | H47: ='2025 GOLF Only Fall Solutions'!K50 -> 1796.4 | I47: ='2025 GOLF Only Fall Solutions'!M50 -> 1455.08 | J47: ='2025 GOLF Only Fall Solutions'!N50 ->  | K47: ='2025 GOLF Only Fall Solutions'!U50 -> 
A48: ='2025 GOLF Only Fall Solutions'!A51 -> D00000992 | B48: FALSE | D48: ='2025 GOLF Only Fall Solutions'!G51 -> Specticle® G | E48: ='2025 GOLF Only Fall Solutions'!H51 -> 50 lb | F48: ='2025 GOLF Only Fall Solutions'!I51 -> Herbicide | G48: ='2025 GOLF Only Fall Solutions'!J51 -> 0 | H48: ='2025 GOLF Only Fall Solutions'!K51 -> 130.5 | I48: ='2025 GOLF Only Fall Solutions'!M51 -> 123.98 | J48: ='2025 GOLF Only Fall Solutions'!N51 ->  | K48: ='2025 GOLF Only Fall Solutions'!U51 -> 
A49: ='2025 GOLF Only Fall Solutions'!A52 -> 81746257 | B49: FALSE | D49: ='2025 GOLF Only Fall Solutions'!G52 -> Tribute® Total | E49: ='2025 GOLF Only Fall Solutions'!H52 -> 6 oz | F49: ='2025 GOLF Only Fall Solutions'!I52 -> Herbicide | G49: ='2025 GOLF Only Fall Solutions'!J52 -> 0 | H49: ='2025 GOLF Only Fall Solutions'!K52 -> 426.4 | I49: ='2025 GOLF Only Fall Solutions'!M52 -> 405.08 | J49: ='2025 GOLF Only Fall Solutions'!N52 ->  | K49: ='2025 GOLF Only Fall Solutions'!U52 -> 
A50: ='2025 GOLF Only Fall Solutions'!A53 -> 11008590 | B50: FALSE | D50: ='2025 GOLF Only Fall Solutions'!G53 -> Xonerate® 2SC | E50: ='2025 GOLF Only Fall Solutions'!H53 -> 12 oz | F50: ='2025 GOLF Only Fall Solutions'!I53 -> Herbicide | G50: ='2025 GOLF Only Fall Solutions'!J53 -> 0 | H50: ='2025 GOLF Only Fall Solutions'!K53 -> 489.4 | I50: ='2025 GOLF Only Fall Solutions'!M53 -> 464.93 | J50: ='2025 GOLF Only Fall Solutions'!N53 ->  | K50: ='2025 GOLF Only Fall Solutions'!U53 -> 
A51: ='2025 GOLF Only Fall Solutions'!A54 -> D00000903 | B51: FALSE | D51: ='2025 GOLF Only Fall Solutions'!G54 -> Altus® (1-15 units) | E51: ='2025 GOLF Only Fall Solutions'!H54 -> 64 oz | F51: ='2025 GOLF Only Fall Solutions'!I54 -> Insecticide | G51: ='2025 GOLF Only Fall Solutions'!J54 -> 0 | H51: ='2025 GOLF Only Fall Solutions'!K54 -> 437.2 | I51: ='2025 GOLF Only Fall Solutions'!M54 -> 437.2 | J51: ='2025 GOLF Only Fall Solutions'!N54 ->  | K51: ='2025 GOLF Only Fall Solutions'!U54 -> 
A52: ='2025 GOLF Only Fall Solutions'!A55 -> D00000903 | B52: FALSE | D52: ='2025 GOLF Only Fall Solutions'!G55 -> Altus® (16-31 units) | E52: ='2025 GOLF Only Fall Solutions'!H55 -> 64 oz | F52: ='2025 GOLF Only Fall Solutions'!I55 -> Insecticide | G52: ='2025 GOLF Only Fall Solutions'!J55 -> 0 | H52: ='2025 GOLF Only Fall Solutions'!K55 -> 437.2 | I52: ='2025 GOLF Only Fall Solutions'!M55 -> 415.36 | J52: ='2025 GOLF Only Fall Solutions'!N55 ->  | K52: ='2025 GOLF Only Fall Solutions'!U55 -> 
A53: ='2025 GOLF Only Fall Solutions'!A56 -> D00000903 | B53: FALSE | D53: ='2025 GOLF Only Fall Solutions'!G56 -> Altus® (32+ units) | E53: ='2025 GOLF Only Fall Solutions'!H56 -> 64 oz | F53: ='2025 GOLF Only Fall Solutions'!I56 -> Insecticide | G53: ='2025 GOLF Only Fall Solutions'!J56 -> 0 | H53: ='2025 GOLF Only Fall Solutions'!K56 -> 437.2 | I53: ='2025 GOLF Only Fall Solutions'!M56 -> 393.6 | J53: ='2025 GOLF Only Fall Solutions'!N56 ->  | K53: ='2025 GOLF Only Fall Solutions'!U56 -> 
A54: ='2025 GOLF Only Fall Solutions'!A57 -> 11015390 | B54: FALSE | D54: ='2025 GOLF Only Fall Solutions'!G57 -> Durentis™ | E54: ='2025 GOLF Only Fall Solutions'!H57 -> 16 oz | F54: ='2025 GOLF Only Fall Solutions'!I57 -> Insecticide | G54: ='2025 GOLF Only Fall Solutions'!J57 -> 0 | H54: ='2025 GOLF Only Fall Solutions'!K57 -> 630 | I54: ='2025 GOLF Only Fall Solutions'!M57 -> 567 | J54: ='2025 GOLF Only Fall Solutions'!N57 ->  | K54: ='2025 GOLF Only Fall Solutions'!U57 -> 
A55: ='2025 GOLF Only Fall Solutions'!A58 -> 11015391 | B55: FALSE | D55: ='2025 GOLF Only Fall Solutions'!G58 -> Durentis™ | E55: ='2025 GOLF Only Fall Solutions'!H58 -> 64 oz | F55: ='2025 GOLF Only Fall Solutions'!I58 -> Insecticide | G55: ='2025 GOLF Only Fall Solutions'!J58 -> 0 | H55: ='2025 GOLF Only Fall Solutions'!K58 -> 2362.6 | I55: ='2025 GOLF Only Fall Solutions'!M58 -> 2126.34 | J55: ='2025 GOLF Only Fall Solutions'!N58 ->  | K55: ='2025 GOLF Only Fall Solutions'!U58 -> 
A56: ='2025 GOLF Only Fall Solutions'!A59 -> 86797658 | B56: =G56>0 -> FALSE | D56: ='2025 GOLF Only Fall Solutions'!G59 -> Tetrino® | E56: ='2025 GOLF Only Fall Solutions'!H59 -> 1 gal | F56: ='2025 GOLF Only Fall Solutions'!I59 -> Insecticide | G56: ='2025 GOLF Only Fall Solutions'!J59 -> 0 | H56: ='2025 GOLF Only Fall Solutions'!K59 -> 528 | I56: ='2025 GOLF Only Fall Solutions'!M59 -> 528 | J56: ='2025 GOLF Only Fall Solutions'!N59 ->  | K56: ='2025 GOLF Only Fall Solutions'!U59 -> 
A57: ='2025 GOLF Only Fall Solutions'!A60 -> 11008521 | B57: FALSE | D57: ='2025 GOLF Only Fall Solutions'!G60 -> Triple Crown® Golf (RUP) | E57: ='2025 GOLF Only Fall Solutions'!H60 -> 1 gal | F57: ='2025 GOLF Only Fall Solutions'!I60 -> Insecticide | G57: ='2025 GOLF Only Fall Solutions'!J60 -> 0 | H57: ='2025 GOLF Only Fall Solutions'!K60 -> 348.2 | I57: ='2025 GOLF Only Fall Solutions'!M60 -> 330.79 | J57: ='2025 GOLF Only Fall Solutions'!N60 ->  | K57: ='2025 GOLF Only Fall Solutions'!U60 -> 
B58: =G58>0 -> FALSE | D58: Durentis FAW Program: | J58: ='2025 GOLF Only Fall Solutions'!N61 -> 0
D60: NON-AGENCY PRODUCTS
A62: ='2025 GOLF Only Fall Solutions'!A66 -> 4250930 | B62: FALSE | D62: ='2025 GOLF Only Fall Solutions'!G66 -> 26GT™ | E62: ='2025 GOLF Only Fall Solutions'!H66 -> 2.5 gal | F62: ='2025 GOLF Only Fall Solutions'!I66 -> Fungicide | G62: ='2025 GOLF Only Fall Solutions'!J66 -> 0 | I62: =IF(OR(G62=0,G62=""),"",'2025 GOLF Only Fall Solutions'!K66) ->  | J62: ='2025 GOLF Only Fall Solutions'!N66 ->  | K62: ='2025 GOLF Only Fall Solutions'!R66 ->  | L62: ='2025 GOLF Only Fall Solutions'!S66 -> 
A63: ='2025 GOLF Only Fall Solutions'!A67 -> 87300722 | B63: =G63>0 -> FALSE | D63: ='2025 GOLF Only Fall Solutions'!G67 -> Acclaim Extra | E63: ='2025 GOLF Only Fall Solutions'!H67 -> 1 gal | F63: ='2025 GOLF Only Fall Solutions'!I67 -> Herbicide | G63: ='2025 GOLF Only Fall Solutions'!J67 -> 0 | I63: =IF(OR(G63=0,G63=""),"",'2025 GOLF Only Fall Solutions'!K67) ->  | J63: ='2025 GOLF Only Fall Solutions'!N67 ->  | K63: ='2025 GOLF Only Fall Solutions'!R67 ->  | L63: ='2025 GOLF Only Fall Solutions'!S67 -> 
A64: ='2025 GOLF Only Fall Solutions'!A68 -> 11008351 | B64: FALSE | D64: ='2025 GOLF Only Fall Solutions'!G68 -> Blindside® | E64: ='2025 GOLF Only Fall Solutions'!H68 -> 0.5 lb | F64: ='2025 GOLF Only Fall Solutions'!I68 -> Herbicide | G64: ='2025 GOLF Only Fall Solutions'!J68 -> 0 | I64: =IF(OR(G64=0,G64=""),"",'2025 GOLF Only Fall Solutions'!K68) ->  | J64: ='2025 GOLF Only Fall Solutions'!N68 ->  | K64: ='2025 GOLF Only Fall Solutions'!R68 ->  | L64: ='2025 GOLF Only Fall Solutions'!S68 -> 
A65: ='2025 GOLF Only Fall Solutions'!A69 -> 11008357 | B65: FALSE | D65: ='2025 GOLF Only Fall Solutions'!G69 -> Dismiss® CA | E65: ='2025 GOLF Only Fall Solutions'!H69 -> 6 oz | F65: ='2025 GOLF Only Fall Solutions'!I69 -> Herbicide | G65: ='2025 GOLF Only Fall Solutions'!J69 -> 0 | I65: =IF(OR(G65=0,G65=""),"",'2025 GOLF Only Fall Solutions'!K69) ->  | J65: ='2025 GOLF Only Fall Solutions'!N69 ->  | K65: ='2025 GOLF Only Fall Solutions'!R69 ->  | L65: ='2025 GOLF Only Fall Solutions'!S69 -> 
A66: ='2025 GOLF Only Fall Solutions'!A70 -> 11008474 | B66: FALSE | D66: ='2025 GOLF Only Fall Solutions'!G70 -> Dismiss® South | E66: ='2025 GOLF Only Fall Solutions'!H70 -> 1 pint | F66: ='2025 GOLF Only Fall Solutions'!I70 -> Herbicide | G66: ='2025 GOLF Only Fall Solutions'!J70 -> 0 | I66: =IF(OR(G66=0,G66=""),"",'2025 GOLF Only Fall Solutions'!K70) ->  | J66: ='2025 GOLF Only Fall Solutions'!N70 ->  | K66: ='2025 GOLF Only Fall Solutions'!R70 ->  | L66: ='2025 GOLF Only Fall Solutions'!S70 -> 
A67: ='2025 GOLF Only Fall Solutions'!A71 -> 11008475 | B67: FALSE | D67: ='2025 GOLF Only Fall Solutions'!G71 -> Dismiss® Turf | E67: ='2025 GOLF Only Fall Solutions'!H71 -> 6 oz | F67: ='2025 GOLF Only Fall Solutions'!I71 -> Herbicide | G67: ='2025 GOLF Only Fall Solutions'!J71 -> 0 | I67: =IF(OR(G67=0,G67=""),"",'2025 GOLF Only Fall Solutions'!K71) ->  | J67: ='2025 GOLF Only Fall Solutions'!N71 ->  | K67: ='2025 GOLF Only Fall Solutions'!R71 ->  | L67: ='2025 GOLF Only Fall Solutions'!S71 -> 
A68: ='2025 GOLF Only Fall Solutions'!A72 -> 11008336 | B68: FALSE | D68: ='2025 GOLF Only Fall Solutions'!G72 -> Dismiss® Turf | E68: ='2025 GOLF Only Fall Solutions'!H72 -> 64 oz | F68: ='2025 GOLF Only Fall Solutions'!I72 -> Herbicide | G68: ='2025 GOLF Only Fall Solutions'!J72 -> 0 | I68: =IF(OR(G68=0,G68=""),"",'2025 GOLF Only Fall Solutions'!K72) ->  | J68: ='2025 GOLF Only Fall Solutions'!N72 ->  | K68: ='2025 GOLF Only Fall Solutions'!R72 ->  | L68: ='2025 GOLF Only Fall Solutions'!S72 -> 
A69: ='2025 GOLF Only Fall Solutions'!A73 -> 86215578 | B69: FALSE | D69: ='2025 GOLF Only Fall Solutions'!G73 -> Prograss EC | E69: ='2025 GOLF Only Fall Solutions'!H73 -> 2.5 gal | F69: ='2025 GOLF Only Fall Solutions'!I73 -> Herbicide | G69: ='2025 GOLF Only Fall Solutions'!J73 -> 0 | I69: =IF(OR(G69=0,G69=""),"",'2025 GOLF Only Fall Solutions'!K73) ->  | J69: ='2025 GOLF Only Fall Solutions'!N73 ->  | K69: ='2025 GOLF Only Fall Solutions'!R73 ->  | L69: ='2025 GOLF Only Fall Solutions'!S73 -> 
A70: ='2025 GOLF Only Fall Solutions'!A74 -> D00000913 | B70: FALSE | D70: ='2025 GOLF Only Fall Solutions'!G74 -> Proxy | E70: ='2025 GOLF Only Fall Solutions'!H74 -> 2.5 gal | F70: ='2025 GOLF Only Fall Solutions'!I74 -> Herbicide | G70: ='2025 GOLF Only Fall Solutions'!J74 -> 0 | I70: =IF(OR(G70=0,G70=""),"",'2025 GOLF Only Fall Solutions'!K74) ->  | J70: ='2025 GOLF Only Fall Solutions'!N74 ->  | K70: ='2025 GOLF Only Fall Solutions'!R74 ->  | L70: ='2025 GOLF Only Fall Solutions'!S74 -> 
A71: ='2025 GOLF Only Fall Solutions'!A75 -> 11008447 | B71: FALSE | D71: ='2025 GOLF Only Fall Solutions'!G75 -> QuickSilver® | E71: ='2025 GOLF Only Fall Solutions'!H75 -> 8 oz | F71: ='2025 GOLF Only Fall Solutions'!I75 -> Herbicide | G71: ='2025 GOLF Only Fall Solutions'!J75 -> 0 | I71: =IF(OR(G71=0,G71=""),"",'2025 GOLF Only Fall Solutions'!K75) ->  | J71: ='2025 GOLF Only Fall Solutions'!N75 ->  | K71: ='2025 GOLF Only Fall Solutions'!R75 ->  | L71: ='2025 GOLF Only Fall Solutions'!S75 -> 
A72: ='2025 GOLF Only Fall Solutions'!A76 -> 79850980 | B72: FALSE | D72: ='2025 GOLF Only Fall Solutions'!G76 -> Revolver® | E72: ='2025 GOLF Only Fall Solutions'!H76 -> 32 fl oz | F72: ='2025 GOLF Only Fall Solutions'!I76 -> Herbicide | G72: ='2025 GOLF Only Fall Solutions'!J76 -> 0 | I72: =IF(OR(G72=0,G72=""),"",'2025 GOLF Only Fall Solutions'!K76) ->  | J72: ='2025 GOLF Only Fall Solutions'!N76 ->  | K72: ='2025 GOLF Only Fall Solutions'!R76 ->  | L72: ='2025 GOLF Only Fall Solutions'!S76 -> 
A73: ='2025 GOLF Only Fall Solutions'!A77 -> 427709 | B73: FALSE | D73: ='2025 GOLF Only Fall Solutions'!G77 -> Sencor 75 | E73: ='2025 GOLF Only Fall Solutions'!H77 -> 5 lb | F73: ='2025 GOLF Only Fall Solutions'!I77 -> Herbicide | G73: ='2025 GOLF Only Fall Solutions'!J77 -> 0 | I73: =IF(OR(G73=0,G73=""),"",'2025 GOLF Only Fall Solutions'!K77) ->  | J73: ='2025 GOLF Only Fall Solutions'!N77 ->  | K73: ='2025 GOLF Only Fall Solutions'!R77 ->  | L73: ='2025 GOLF Only Fall Solutions'!S77 -> 
A74: ='2025 GOLF Only Fall Solutions'!A78 -> 11008482 | B74: FALSE | D74: ='2025 GOLF Only Fall Solutions'!G78 -> Solitare® | E74: ='2025 GOLF Only Fall Solutions'!H78 -> 1 lb | F74: ='2025 GOLF Only Fall Solutions'!I78 -> Herbicide | G74: ='2025 GOLF Only Fall Solutions'!J78 -> 0 | I74: =IF(OR(G74=0,G74=""),"",'2025 GOLF Only Fall Solutions'!K78) ->  | J74: ='2025 GOLF Only Fall Solutions'!N78 ->  | K74: ='2025 GOLF Only Fall Solutions'!R78 ->  | L74: ='2025 GOLF Only Fall Solutions'!S78 -> 
A75: ='2025 GOLF Only Fall Solutions'!A79 -> 11008369 | B75: FALSE | D75: ='2025 GOLF Only Fall Solutions'!G79 -> Solitare® WSL | E75: ='2025 GOLF Only Fall Solutions'!H79 -> 0.75 gal | F75: ='2025 GOLF Only Fall Solutions'!I79 -> Herbicide | G75: ='2025 GOLF Only Fall Solutions'!J79 -> 0 | I75: =IF(OR(G75=0,G75=""),"",'2025 GOLF Only Fall Solutions'!K79) ->  | J75: ='2025 GOLF Only Fall Solutions'!N79 ->  | K75: ='2025 GOLF Only Fall Solutions'!R79 ->  | L75: ='2025 GOLF Only Fall Solutions'!S79 -> 
A76: ='2025 GOLF Only Fall Solutions'!A80 -> NoSKU1 | B76: FALSE | D76: ='2025 GOLF Only Fall Solutions'!G80 -> Chipco Choice | E76: ='2025 GOLF Only Fall Solutions'!H80 -> 50 lb | F76: ='2025 GOLF Only Fall Solutions'!I80 -> Insecticide | G76: ='2025 GOLF Only Fall Solutions'!J80 -> 0 | I76: =IF(OR(G76=0,G76=""),"",'2025 GOLF Only Fall Solutions'!K80) ->  | J76: ='2025 GOLF Only Fall Solutions'!N80 ->  | K76: ='2025 GOLF Only Fall Solutions'!R80 ->  | L76: ='2025 GOLF Only Fall Solutions'!S80 -> 
A77: ='2025 GOLF Only Fall Solutions'!A81 -> NoSKU2 | B77: FALSE | D77: ='2025 GOLF Only Fall Solutions'!G81 -> Durentis 0.058% On-Fertilizer | E77: ='2025 GOLF Only Fall Solutions'!H81 -> 50 lb | F77: ='2025 GOLF Only Fall Solutions'!I81 -> Insecticide | G77: ='2025 GOLF Only Fall Solutions'!J81 -> 0 | I77: =IF(OR(G77=0,G77=""),"",'2025 GOLF Only Fall Solutions'!K81) ->  | J77: ='2025 GOLF Only Fall Solutions'!N81 ->  | K77: ='2025 GOLF Only Fall Solutions'!R81 ->  | L77: ='2025 GOLF Only Fall Solutions'!S81 -> 
A78: ='2025 GOLF Only Fall Solutions'!A82 -> NoSKU3 | B78: FALSE | D78: ='2025 GOLF Only Fall Solutions'!G82 -> Durentis 0.067% On-Fertilizer | E78: ='2025 GOLF Only Fall Solutions'!H82 -> 50 lb | F78: ='2025 GOLF Only Fall Solutions'!I82 -> Insecticide | G78: ='2025 GOLF Only Fall Solutions'!J82 -> 0 | I78: =IF(OR(G78=0,G78=""),"",'2025 GOLF Only Fall Solutions'!K82) ->  | J78: ='2025 GOLF Only Fall Solutions'!N82 ->  | K78: ='2025 GOLF Only Fall Solutions'!R82 ->  | L78: ='2025 GOLF Only Fall Solutions'!S82 -> 
A79: ='2025 GOLF Only Fall Solutions'!A83 -> D00001040 | B79: FALSE | D79: ='2025 GOLF Only Fall Solutions'!G83 -> Dylox SL420 | E79: ='2025 GOLF Only Fall Solutions'!H83 -> 2.5 gal | F79: ='2025 GOLF Only Fall Solutions'!I83 -> Insecticide | G79: ='2025 GOLF Only Fall Solutions'!J83 -> 0 | I79: =IF(OR(G79=0,G79=""),"",'2025 GOLF Only Fall Solutions'!K83) ->  | J79: ='2025 GOLF Only Fall Solutions'!N83 ->  | K79: ='2025 GOLF Only Fall Solutions'!R83 ->  | L79: ='2025 GOLF Only Fall Solutions'!S83 -> 
A80: ='2025 GOLF Only Fall Solutions'!A84 -> 3944704 | B80: FALSE | D80: ='2025 GOLF Only Fall Solutions'!G84 -> Forbid | E80: ='2025 GOLF Only Fall Solutions'!H84 -> 8 oz | F80: ='2025 GOLF Only Fall Solutions'!I84 -> Insecticide | G80: ='2025 GOLF Only Fall Solutions'!J84 -> 0 | I80: =IF(OR(G80=0,G80=""),"",'2025 GOLF Only Fall Solutions'!K84) ->  | J80: ='2025 GOLF Only Fall Solutions'!N84 ->  | K80: ='2025 GOLF Only Fall Solutions'!R84 ->  | L80: ='2025 GOLF Only Fall Solutions'!S84 -> 
A81: ='2025 GOLF Only Fall Solutions'!A85 -> D00000961 | B81: =G81>0 -> FALSE | D81: ='2025 GOLF Only Fall Solutions'!G85 -> Merit 2F | E81: ='2025 GOLF Only Fall Solutions'!H85 -> 1 gal | F81: ='2025 GOLF Only Fall Solutions'!I85 -> Insecticide | G81: ='2025 GOLF Only Fall Solutions'!J85 -> 0 | I81: =IF(OR(G81=0,G81=""),"",'2025 GOLF Only Fall Solutions'!K85) ->  | J81: ='2025 GOLF Only Fall Solutions'!N85 ->  | K81: ='2025 GOLF Only Fall Solutions'!R85 ->  | L81: ='2025 GOLF Only Fall Solutions'!S85 -> 
A82: ='2025 GOLF Only Fall Solutions'!A86 -> 11008457 | B82: FALSE | D82: ='2025 GOLF Only Fall Solutions'!G86 -> Talstar® Select | E82: ='2025 GOLF Only Fall Solutions'!H86 -> 1 gal | F82: ='2025 GOLF Only Fall Solutions'!I86 -> Insecticide | G82: ='2025 GOLF Only Fall Solutions'!J86 -> 0 | I82: =IF(OR(G82=0,G82=""),"",'2025 GOLF Only Fall Solutions'!K86) ->  | J82: ='2025 GOLF Only Fall Solutions'!N86 ->  | K82: ='2025 GOLF Only Fall Solutions'!R86 ->  | L82: ='2025 GOLF Only Fall Solutions'!S86 -> 
A83: ='2025 GOLF Only Fall Solutions'!A87 -> D00001012 | B83: FALSE | D83: ='2025 GOLF Only Fall Solutions'!G87 -> TopChoice | E83: ='2025 GOLF Only Fall Solutions'!H87 -> 50 lb | F83: ='2025 GOLF Only Fall Solutions'!I87 -> Insecticide | G83: ='2025 GOLF Only Fall Solutions'!J87 -> 0 | I83: =IF(OR(G83=0,G83=""),"",'2025 GOLF Only Fall Solutions'!K87) ->  | J83: ='2025 GOLF Only Fall Solutions'!N87 ->  | K83: ='2025 GOLF Only Fall Solutions'!R87 ->  | L83: ='2025 GOLF Only Fall Solutions'!S87 -> 
H84: **ERROR**: MISSING PRICE INPUT VALUE
D85: Summary
D86: Summary is provided as an estimate only. See program rules and conditions.
D88: ='2025 GOLF Only Fall Solutions'!F94 -> Estimated Total Before Off Invoice Discounts: | I88: ='2025 GOLF Only Fall Solutions'!I94 -> 0
D89: ='2025 GOLF Only Fall Solutions'!F95 -> Estimated Invoice Total: | I89: ='2025 GOLF Only Fall Solutions'!I95 -> 0
D90: ='2025 GOLF Only Fall Solutions'!F96 -> Estimated Off-Invoice Discount: | I90: ='2025 GOLF Only Fall Solutions'!I96 -> n/a | J90: ='2025 GOLF Only Fall Solutions'!J96 -> 0
D91: ='2025 GOLF Only Fall Solutions'!F97 -> Volume Buy Rebate, Envu Extras & Tier Rebates:
D92: ='2025 GOLF Only Fall Solutions'!F98 -> Estimated Total Volume Buy Rebate: | I92: ='2025 GOLF Only Fall Solutions'!I98 -> n/a | J92: ='2025 GOLF Only Fall Solutions'!J98 -> 0
D93: ='2025 GOLF Only Fall Solutions'!F99 -> Estimated Tier Rebate Amount: | I93: ='2025 GOLF Only Fall Solutions'!I99 -> n/a | J93: ='2025 GOLF Only Fall Solutions'!J99 -> n/a
D94: ='2025 GOLF Only Fall Solutions'!F100 -> Estimated Chipco Signature & Stressgard® Rebate ($10k+): | I94: ='2025 GOLF Only Fall Solutions'!I100 -> n/a | J94: ='2025 GOLF Only Fall Solutions'!J100 -> n/a
D95: ='2025 GOLF Only Fall Solutions'!F101 -> Estimated Serata Rebate (8+ units): | I95: ='2025 GOLF Only Fall Solutions'!I101 -> n/a | J95: ='2025 GOLF Only Fall Solutions'!J101 -> n/a
D96: ='2025 GOLF Only Fall Solutions'!F102 -> Estimated Durentis Rebate (4+ 64oz units OR 16+ 16oz units): | I96: ='2025 GOLF Only Fall Solutions'!I102 -> n/a | J96: ='2025 GOLF Only Fall Solutions'!J102 -> n/a
D97: ='2025 GOLF Only Fall Solutions'!F103 -> Estimated Volume Buy Rebate (5 or more products): | I97: ='2025 GOLF Only Fall Solutions'!I103 -> n/a | J97: ='2025 GOLF Only Fall Solutions'!J103 -> n/a
D98: ='2025 GOLF Only Fall Solutions'!F104 -> Estimated Total Rebate: | I98: ='2025 GOLF Only Fall Solutions'!I104 -> 0 | J98: ='2025 GOLF Only Fall Solutions'!J104 -> 0
D99: ='2025 GOLF Only Fall Solutions'!F105 -> Estimated Total Savings (Rebates + Off Invoice Discounts): | I99: ='2025 GOLF Only Fall Solutions'!I105 -> n/a | J99: ='2025 GOLF Only Fall Solutions'!J105 -> 0
D100: ='2025 GOLF Only Fall Solutions'!F106 -> Estimated Net Total after Rebates & Discounts: | I100: ='2025 GOLF Only Fall Solutions'!I106 -> 0
D102: ='2025 GOLF Only Fall Solutions'!F108 -> Estimated MER points to be earned: 0
D104: CHIPCO CHOICE, RONSTAR FLO, TALSTAR SELECT, TOPCHOICE AND TRIPLE CROWN GOLF ARE RESTRICTED USE PESTICIDES. For retail sale to and use only by Certified Applicators or persons under their direct supervision and only for those uses covered by the Certified Applicator's certification. *Pricing for all states except CA or WA. Must be purchased on a single invoice to receive volume discount price. †Specticle FLO and Ronstar FLO are not eligible for Envu Extras and tier rebates. **Must be registered in My Envu Rewards and accept current Terms and Conditions to participate. ***Customer Fall Solutions and NOW Solutions promotional cumulative purchases (Aug. 1 - Dec. 5, 2025) must be $5,000 or more to qualify for program rebates. New members signed up before Dec. 31, 2025, will receive 2025 NOW/Fall Solutions rebates. All rebates for 2025 NOW/Fall Solutions will be paid in points, which can be redeemed for thousands of catalog items, distributor credits and/or company checks (no checks can be issued to a third party). All products must be invoiced between Oct. 1 and Dec. 5, 2025, to qualify for Fall Solutions. Rebate calculations will be based on the date of actual product invoice and calculator tools are provided for estimation purposes only. Rebates will only be paid or delivered to the company or name listed on the invoice. Please allow for rebates to be fulfilled by July 31, 2026. End users are only eligible for one Envu incentive program on these invoiced products. Must be an end user with MER membership and accept current Terms and Conditions. Resale of product(s) purchased within this program will not qualify for rebates. If questions arise, please contact MER at 1-888-456-6464 or email info@myenvurewards.com. Envu reserves the right to modify any portion thereof, or discontinue this program without prior notice.
D112: ALWAYS READ AND FOLLOW LABEL INSTRUCTIONS. Environmental Science U.S. LLC, 5000 CentreGreen Way, Suite 400, Cary, NC 27513. For additional product information, call toll-free 1-800-331-2867. www.envu.com. Please verify state registration of these products in your state before selling, using or distributing. Not all products are registered in all states. Envu, the Envu logo and product logos are trademarks owned by Environmental Science U.S. LLC or one of its affiliates. Other trademarks are the property of their respective owners. ©2025 Environmental Science U.S. LLC. ES-0725-GLF-358-R-R

Sheet REBATE MATRIX (NOW) (hidden)
Q1: =COUNTIF(Rebate_Lookup[Volume Buy Counter],TRUE) -> 19
B2: SKU CODE | C2: Agency/TT | D2: Description | E2: Size | F2: Type | G2: Instances | H2: MOQ_1 | I2: MOQ_2 | J2: MOQ_3 | K2: REB_MOQ_1 | L2: REB_MOQ_2 | M2: REB_MOQ_3 | N2: Order Form Quantity | O2: Qualified Rebate Tier | P2: Column1 | Q2: Volume Buy Counter
B3: D00000903 | C3: =INDEX(PRICING[Agency/TT],MATCH(Rebate_Lookup[[#This Row],[SKU CODE]],PRICING[SKU],0)) -> A | D3: =INDEX(PRICING[Product],MATCH(B3,PRICING[SKU],0)) -> Altus® | E3: =INDEX(PRICING[Size],MATCH(Rebate_Lookup[[#This Row],[SKU CODE]],PRICING[SKU],0)) -> 64 oz | F3: =INDEX(PRICING[Indication],MATCH(Rebate_Lookup[[#This Row],[SKU CODE]],PRICING[SKU],0)) -> I | G3: =COUNTIFS(PRICING[SKU],B3) -> 3 | L3: =SUMIFS(PRICING[Rebate $],PRICING[Program],"NOW",PRICING[SKU],Rebate_Lookup[[#This Row],[SKU CODE]],PRICING[Set],2) -> 0 | M3: =SUMIFS(PRICING[Rebate $],PRICING[Program],"NOW",PRICING[SKU],Rebate_Lookup[[#This Row],[SKU CODE]],PRICING[Set],3) -> 0 | N3: =INDEX('2025 GOLF Only Fall Solutions'!J:J,MATCH(Rebate_Lookup[[#This Row],[SKU CODE]],'2025 GOLF Only Fall Solutions'!A:A,0)) -> 0 | O3: =IF(Rebate_Lookup[[#This Row],[Instances]]=1,1, IF(AND(Rebate_Lookup[[#This Row],[Instances]]=2,Rebate_Lookup[[#This Row],[Order Form Quantity]]<Rebate_Lookup[[#This Row],[MOQ_2]]),1,IF(AND(Rebate_Lookup[[#This Row],[Instances]]=2,Rebate_Lookup[[#This Row],[Order Form Quantity]]>=Rebate_Lookup[[#This Row],[MOQ_2]]),2, IF(AND(Rebate_Lookup[[#This Row],[Instances]]=3,Rebate_Lookup[[#This Row],[Order Form Quantity]]<Rebate_Lookup[[#This Row],[MOQ_2]]),1,IF(AND(Rebate_Lookup[[#This Row],[Instances]]=3,Rebate_Lookup[[#This Row],[MOQ_2]]<=Rebate_Lookup[[#This Row],[Order Form Quantity]],Rebate_Lookup[[#This Row],[Order Form Quantity]]<Rebate_Lookup[[#This Row],[MOQ_3]]),2,IF(AND(Rebate_Lookup[[#This Row],[Instances]]=3,Rebate_Lookup[[#This Row],[Order Form Quantity]]>=Rebate_Lookup[[#This Row],[MOQ_3]]),3)))))) -> 3 | P3: =COUNTIF('2025 GOLF Only Fall Solutions'!A:A,Rebate_Lookup[[#This Row],[SKU CODE]]) -> 3 | Q3: =IFERROR(Rebate_Lookup[[#This Row],[Order Form Quantity]]>=Rebate_Lookup[[#This Row],[MOQ_2]],0) -> TRUE
B4: D00000907 | C4: =INDEX(PRICING[Agency/TT],MATCH(Rebate_Lookup[[#This Row],[SKU CODE]],PRICING[SKU],0)) -> A | D4: =INDEX(PRICING[Product],MATCH(B4,PRICING[SKU],0)) -> Banol® | E4: =INDEX(PRICING[Size],MATCH(Rebate_Lookup[[#This Row],[SKU CODE]],PRICING[SKU],0)) -> 2.5 gal | F4: =INDEX(PRICING[Indication],MATCH(Rebate_Lookup[[#This Row],[SKU CODE]],PRICING[SKU],0)) -> F | G4: =COUNTIFS(PRICING[SKU],B4) -> 2 | H4: 0 | I4: 2 | K4: =SUMIFS(PRICING[Rebate $],PRICING[SKU],Rebate_Lookup[[#This Row],[SKU CODE]],PRICING[Set],1) -> 0 | L4: =SUMIFS(PRICING[Rebate $],PRICING[SKU],Rebate_Lookup[[#This Row],[SKU CODE]],PRICING[Set],2) -> 90 | M4: =SUMIFS(PRICING[Rebate $],PRICING[SKU],Rebate_Lookup[[#This Row],[SKU CODE]],PRICING[Set],3) -> 0 | N4: =INDEX('2025 GOLF Only Fall Solutions'!J:J,MATCH(Rebate_Lookup[[#This Row],[SKU CODE]],'2025 GOLF Only Fall Solutions'!A:A,0)) -> 0 | O4: =IF(Rebate_Lookup[[#This Row],[Instances]]=1,1, IF(AND(Rebate_Lookup[[#This Row],[Instances]]=2,Rebate_Lookup[[#This Row],[Order Form Quantity]]<Rebate_Lookup[[#This Row],[MOQ_2]]),1,IF(AND(Rebate_Lookup[[#This Row],[Instances]]=2,Rebate_Lookup[[#This Row],[Order Form Quantity]]>=Rebate_Lookup[[#This Row],[MOQ_2]]),2, IF(AND(Rebate_Lookup[[#This Row],[Instances]]=3,Rebate_Lookup[[#This Row],[Order Form Quantity]]<Rebate_Lookup[[#This Row],[MOQ_2]]),1,IF(AND(Rebate_Lookup[[#This Row],[Instances]]=3,Rebate_Lookup[[#This Row],[MOQ_2]]<=Rebate_Lookup[[#This Row],[Order Form Quantity]],Rebate_Lookup[[#This Row],[Order Form Quantity]]<Rebate_Lookup[[#This Row],[MOQ_3]]),2,IF(AND(Rebate_Lookup[[#This Row],[Instances]]=3,Rebate_Lookup[[#This Row],[Order Form Quantity]]>=Rebate_Lookup[[#This Row],[MOQ_3]]),3)))))) -> 1 | P4: =COUNTIF('2025 GOLF Only Fall Solutions'!A:A,Rebate_Lookup[[#This Row],[SKU CODE]]) -> 1 | Q4: =IFERROR(Rebate_Lookup[[#This Row],[Order Form Quantity]]>=Rebate_Lookup[[#This Row],[MOQ_2]],0) -> FALSE | S4: =COUNTIF('2025 GOLF Only Fall Solutions'!A:A,Rebate_Lookup[[#This Row],[SKU CODE]]) -> 1
B5: D00000623 | C5: =INDEX(PRICING[Agency/TT],MATCH(Rebate_Lookup[[#This Row],[SKU CODE]],PRICING[SKU],0)) -> A | D5: =INDEX(PRICING[Product],MATCH(B5,PRICING[SKU],0)) -> Castlon™ | E5: =INDEX(PRICING[Size],MATCH(Rebate_Lookup[[#This Row],[SKU CODE]],PRICING[SKU],0)) -> 1 gal | F5: =INDEX(PRICING[Indication],MATCH(Rebate_Lookup[[#This Row],[SKU CODE]],PRICING[SKU],0)) -> F | G5: =COUNTIFS(PRICING[SKU],B5) -> 3 | H5: 0 | I5: 5 | J5: 10 | K5: =SUMIFS(PRICING[Rebate $],PRICING[SKU],Rebate_Lookup[[#This Row],[SKU CODE]],PRICING[Set],1) -> 0 | L5: =SUMIFS(PRICING[Rebate $],PRICING[SKU],Rebate_Lookup[[#This Row],[SKU CODE]],PRICING[Set],2) -> 525 | M5: =SUMIFS(PRICING[Rebate $],PRICING[SKU],Rebate_Lookup[[#This Row],[SKU CODE]],PRICING[Set],3) -> 585 | N5: =INDEX('2025 GOLF Only Fall Solutions'!J:J,MATCH(Rebate_Lookup[[#This Row],[SKU CODE]],'2025 GOLF Only Fall Solutions'!A:A,0)) -> 0 | O5: =IF(Rebate_Lookup[[#This Row],[Instances]]=1,1, IF(AND(Rebate_Lookup[[#This Row],[Instances]]=2,Rebate_Lookup[[#This Row],[Order Form Quantity]]<Rebate_Lookup[[#This Row],[MOQ_2]]),1,IF(AND(Rebate_Lookup[[#This Row],[Instances]]=2,Rebate_Lookup[[#This Row],[Order Form Quantity]]>=Rebate_Lookup[[#This Row],[MOQ_2]]),2, IF(AND(Rebate_Lookup[[#This Row],[Instances]]=3,Rebate_Lookup[[#This Row],[Order Form Quantity]]<Rebate_Lookup[[#This Row],[MOQ_2]]),1,IF(AND(Rebate_Lookup[[#This Row],[Instances]]=3,Rebate_Lookup[[#This Row],[MOQ_2]]<=Rebate_Lookup[[#This Row],[Order Form Quantity]],Rebate_Lookup[[#This Row],[Order Form Quantity]]<Rebate_Lookup[[#This Row],[MOQ_3]]),2,IF(AND(Rebate_Lookup[[#This Row],[Instances]]=3,Rebate_Lookup[[#This Row],[Order Form Quantity]]>=Rebate_Lookup[[#This Row],[MOQ_3]]),3)))))) -> 1 | P5: =COUNTIF('2025 GOLF Only Fall Solutions'!A:A,Rebate_Lookup[[#This Row],[SKU CODE]]) -> 1 | Q5: =IFERROR(Rebate_Lookup[[#This Row],[Order Form Quantity]]>=Rebate_Lookup[[#This Row],[MOQ_2]],0) -> FALSE | S5: =COUNTIF('2025 GOLF Only Fall Solutions'!A:A,Rebate_Lookup[[#This Row],[SKU CODE]]) -> 1
B6: D00000624 | C6: =INDEX(PRICING[Agency/TT],MATCH(Rebate_Lookup[[#This Row],[SKU CODE]],PRICING[SKU],0)) -> A | D6: =INDEX(PRICING[Product],MATCH(B6,PRICING[SKU],0)) -> Castlon™ | E6: =INDEX(PRICING[Size],MATCH(Rebate_Lookup[[#This Row],[SKU CODE]],PRICING[SKU],0)) -> 16 oz | F6: =INDEX(PRICING[Indication],MATCH(Rebate_Lookup[[#This Row],[SKU CODE]],PRICING[SKU],0)) -> F | G6: =COUNTIFS(PRICING[SKU],B6) -> 2 | H6: 0 | I6: 4 | K6: =SUMIFS(PRICING[Rebate $],PRICING[SKU],Rebate_Lookup[[#This Row],[SKU CODE]],PRICING[Set],1) -> 0 | L6: =SUMIFS(PRICING[Rebate $],PRICING[SKU],Rebate_Lookup[[#This Row],[SKU CODE]],PRICING[Set],2) -> 50 | M6: =SUMIFS(PRICING[Rebate $],PRICING[SKU],Rebate_Lookup[[#This Row],[SKU CODE]],PRICING[Set],3) -> 0 | N6: =INDEX('2025 GOLF Only Fall Solutions'!J:J,MATCH(Rebate_Lookup[[#This Row],[SKU CODE]],'2025 GOLF Only Fall Solutions'!A:A,0)) -> 0 | O6: =IF(Rebate_Lookup[[#This Row],[Instances]]=1,1, IF(AND(Rebate_Lookup[[#This Row],[Instances]]=2,Rebate_Lookup[[#This Row],[Order Form Quantity]]<Rebate_Lookup[[#This Row],[MOQ_2]]),1,IF(AND(Rebate_Lookup[[#This Row],[Instances]]=2,Rebate_Lookup[[#This Row],[Order Form Quantity]]>=Rebate_Lookup[[#This Row],[MOQ_2]]),2, IF(AND(Rebate_Lookup[[#This Row],[Instances]]=3,Rebate_Lookup[[#This Row],[Order Form Quantity]]<Rebate_Lookup[[#This Row],[MOQ_2]]),1,IF(AND(Rebate_Lookup[[#This Row],[Instances]]=3,Rebate_Lookup[[#This Row],[MOQ_2]]<=Rebate_Lookup[[#This Row],[Order Form Quantity]],Rebate_Lookup[[#This Row],[Order Form Quantity]]<Rebate_Lookup[[#This Row],[MOQ_3]]),2,IF(AND(Rebate_Lookup[[#This Row],[Instances]]=3,Rebate_Lookup[[#This Row],[Order Form Quantity]]>=Rebate_Lookup[[#This Row],[MOQ_3]]),3)))))) -> 1 | P6: =COUNTIF('2025 GOLF Only Fall Solutions'!A:A,Rebate_Lookup[[#This Row],[SKU CODE]]) -> 1 | Q6: =IFERROR(Rebate_Lookup[[#This Row],[Order Form Quantity]]>=Rebate_Lookup[[#This Row],[MOQ_2]],0) -> FALSE | S6: =COUNTIF('2025 GOLF Only Fall Solutions'!A:A,Rebate_Lookup[[#This Row],[SKU CODE]]) -> 1
B7: 79714858 | C7: =INDEX(PRICING[Agency/TT],MATCH(Rebate_Lookup[[#This Row],[SKU CODE]],PRICING[SKU],0)) -> A | D7: =INDEX(PRICING[Product],MATCH(B7,PRICING[SKU],0)) -> Celsius® WG | E7: =INDEX(PRICING[Size],MATCH(Rebate_Lookup[[#This Row],[SKU CODE]],PRICING[SKU],0)) -> 10 oz | F7: =INDEX(PRICING[Indication],MATCH(Rebate_Lookup[[#This Row],[SKU CODE]],PRICING[SKU],0)) -> H | G7: =COUNTIFS(PRICING[SKU],B7) -> 2 | H7: 0 | I7: 48 | K7: =SUMIFS(PRICING[Rebate $],PRICING[SKU],Rebate_Lookup[[#This Row],[SKU CODE]],PRICING[Set],1) -> 0 | L7: 12 | M7: =SUMIFS(PRICING[Rebate $],PRICING[SKU],Rebate_Lookup[[#This Row],[SKU CODE]],PRICING[Set],3) -> 0 | N7: =INDEX('2025 GOLF Only Fall Solutions'!J:J,MATCH(Rebate_Lookup[[#This Row],[SKU CODE]],'2025 GOLF Only Fall Solutions'!A:A,0)) -> 0 | O7: =IF(Rebate_Lookup[[#This Row],[Instances]]=1,1, IF(AND(Rebate_Lookup[[#This Row],[Instances]]=2,Rebate_Lookup[[#This Row],[Order Form Quantity]]<Rebate_Lookup[[#This Row],[MOQ_2]]),1,IF(AND(Rebate_Lookup[[#This Row],[Instances]]=2,Rebate_Lookup[[#This Row],[Order Form Quantity]]>=Rebate_Lookup[[#This Row],[MOQ_2]]),2, IF(AND(Rebate_Lookup[[#This Row],[Instances]]=3,Rebate_Lookup[[#This Row],[Order Form Quantity]]<Rebate_Lookup[[#This Row],[MOQ_2]]),1,IF(AND(Rebate_Lookup[[#This Row],[Instances]]=3,Rebate_Lookup[[#This Row],[MOQ_2]]<=Rebate_Lookup[[#This Row],[Order Form Quantity]],Rebate_Lookup[[#This Row],[Order Form Quantity]]<Rebate_Lookup[[#This Row],[MOQ_3]]),2,IF(AND(Rebate_Lookup[[#This Row],[Instances]]=3,Rebate_Lookup[[#This Row],[Order Form Quantity]]>=Rebate_Lookup[[#This Row],[MOQ_3]]),3)))))) -> 1 | P7: =COUNTIF('2025 GOLF Only Fall Solutions'!A:A,Rebate_Lookup[[#This Row],[SKU CODE]]) -> 1 | Q7: =IFERROR(Rebate_Lookup[[#This Row],[Order Form Quantity]]>=Rebate_Lookup[[#This Row],[MOQ_2]],0) -> FALSE | S7: =COUNTIF('2025 GOLF Only Fall Solutions'!A:A,Rebate_Lookup[[#This Row],[SKU CODE]]) -> 1
B8: D00000911 | C8: =INDEX(PRICING[Agency/TT],MATCH(Rebate_Lookup[[#This Row],[SKU CODE]],PRICING[SKU],0)) -> A | D8: =INDEX(PRICING[Product],MATCH(B8,PRICING[SKU],0)) -> Celsius® XTRA | E8: =INDEX(PRICING[Size],MATCH(Rebate_Lookup[[#This Row],[SKU CODE]],PRICING[SKU],0)) -> 10 oz | F8: =INDEX(PRICING[Indication],MATCH(Rebate_Lookup[[#This Row],[SKU CODE]],PRICING[SKU],0)) -> H | G8: =COUNTIFS(PRICING[SKU],B8) -> 2 | H8: 0 | I8: 16 | K8: =SUMIFS(PRICING[Rebate $],PRICING[SKU],Rebate_Lookup[[#This Row],[SKU CODE]],PRICING[Set],1) -> 0 | L8: =SUMIFS(PRICING[Rebate $],PRICING[SKU],Rebate_Lookup[[#This Row],[SKU CODE]],PRICING[Set],2) -> 12 | M8: =SUMIFS(PRICING[Rebate $],PRICING[SKU],Rebate_Lookup[[#This Row],[SKU CODE]],PRICING[Set],3) -> 0 | N8: =INDEX('2025 GOLF Only Fall Solutions'!J:J,MATCH(Rebate_Lookup[[#This Row],[SKU CODE]],'2025 GOLF Only Fall Solutions'!A:A,0)) -> 0 | O8: =IF(Rebate_Lookup[[#This Row],[Instances]]=1,1, IF(AND(Rebate_Lookup[[#This Row],[Instances]]=2,Rebate_Lookup[[#This Row],[Order Form Quantity]]<Rebate_Lookup[[#This Row],[MOQ_2]]),1,IF(AND(Rebate_Lookup[[#This Row],[Instances]]=2,Rebate_Lookup[[#This Row],[Order Form Quantity]]>=Rebate_Lookup[[#This Row],[MOQ_2]]),2, IF(AND(Rebate_Lookup[[#This Row],[Instances]]=3,Rebate_Lookup[[#This Row],[Order Form Quantity]]<Rebate_Lookup[[#This Row],[MOQ_2]]),1,IF(AND(Rebate_Lookup[[#This Row],[Instances]]=3,Rebate_Lookup[[#This Row],[MOQ_2]]<=Rebate_Lookup[[#This Row],[Order Form Quantity]],Rebate_Lookup[[#This Row],[Order Form Quantity]]<Rebate_Lookup[[#This Row],[MOQ_3]]),2,IF(AND(Rebate_Lookup[[#This Row],[Instances]]=3,Rebate_Lookup[[#This Row],[Order Form Quantity]]>=Rebate_Lookup[[#This Row],[MOQ_3]]),3)))))) -> 1 | P8: =COUNTIF('2025 GOLF Only Fall Solutions'!A:A,Rebate_Lookup[[#This Row],[SKU CODE]]) -> 1 | Q8: =IFERROR(Rebate_Lookup[[#This Row],[Order Form Quantity]]>=Rebate_Lookup[[#This Row],[MOQ_2]],0) -> FALSE | S8: =COUNTIF('2025 GOLF Only Fall Solutions'!A:A,Rebate_Lookup[[#This Row],[SKU CODE]]) -> 1
B9: D00000914 | C9: =INDEX(PRICING[Agency/TT],MATCH(Rebate_Lookup[[#This Row],[SKU CODE]],PRICING[SKU],0)) -> A | D9: =INDEX(PRICING[Product],MATCH(B9,PRICING[SKU],0)) -> Chipco® Signature™ | E9: =INDEX(PRICING[Size],MATCH(Rebate_Lookup[[#This Row],[SKU CODE]],PRICING[SKU],0)) -> 11 lb | F9: =INDEX(PRICING[Indication],MATCH(Rebate_Lookup[[#This Row],[SKU CODE]],PRICING[SKU],0)) -> F | G9: =COUNTIFS(PRICING[SKU],B9) -> 2 | H9: 0 | I9: 9 | K9: =SUMIFS(PRICING[Rebate $],PRICING[SKU],Rebate_Lookup[[#This Row],[SKU CODE]],PRICING[Set],1) -> 0 | L9: =SUMIFS(PRICING[Rebate $],PRICING[SKU],Rebate_Lookup[[#This Row],[SKU CODE]],PRICING[Set],2) -> 5 | M9: =SUMIFS(PRICING[Rebate $],PRICING[SKU],Rebate_Lookup[[#This Row],[SKU CODE]],PRICING[Set],3) -> 0 | N9: =INDEX('2025 GOLF Only Fall Solutions'!J:J,MATCH(Rebate_Lookup[[#This Row],[SKU CODE]],'2025 GOLF Only Fall Solutions'!A:A,0)) -> 0 | O9: =IF(Rebate_Lookup[[#This Row],[Instances]]=1,1, IF(AND(Rebate_Lookup[[#This Row],[Instances]]=2,Rebate_Lookup[[#This Row],[Order Form Quantity]]<Rebate_Lookup[[#This Row],[MOQ_2]]),1,IF(AND(Rebate_Lookup[[#This Row],[Instances]]=2,Rebate_Lookup[[#This Row],[Order Form Quantity]]>=Rebate_Lookup[[#This Row],[MOQ_2]]),2, IF(AND(Rebate_Lookup[[#This Row],[Instances]]=3,Rebate_Lookup[[#This Row],[Order Form Quantity]]<Rebate_Lookup[[#This Row],[MOQ_2]]),1,IF(AND(Rebate_Lookup[[#This Row],[Instances]]=3,Rebate_Lookup[[#This Row],[MOQ_2]]<=Rebate_Lookup[[#This Row],[Order Form Quantity]],Rebate_Lookup[[#This Row],[Order Form Quantity]]<Rebate_Lookup[[#This Row],[MOQ_3]]),2,IF(AND(Rebate_Lookup[[#This Row],[Instances]]=3,Rebate_Lookup[[#This Row],[Order Form Quantity]]>=Rebate_Lookup[[#This Row],[MOQ_3]]),3)))))) -> 1 | P9: =COUNTIF('2025 GOLF Only Fall Solutions'!A:A,Rebate_Lookup[[#This Row],[SKU CODE]]) -> 1 | Q9: =IFERROR(Rebate_Lookup[[#This Row],[Order Form Quantity]]>=Rebate_Lookup[[#This Row],[MOQ_2]],0) -> FALSE | S9: =COUNTIF('2025 GOLF Only Fall Solutions'!A:A,Rebate_Lookup[[#This Row],[SKU CODE]]) -> 1
B10: D00001373 | C10: =INDEX(PRICING[Agency/TT],MATCH(Rebate_Lookup[[#This Row],[SKU CODE]],PRICING[SKU],0)) -> A | D10: =INDEX(PRICING[Product],MATCH(B10,PRICING[SKU],0)) -> Densicor® | E10: =INDEX(PRICING[Size],MATCH(Rebate_Lookup[[#This Row],[SKU CODE]],PRICING[SKU],0)) -> 51 oz | F10: =INDEX(PRICING[Indication],MATCH(Rebate_Lookup[[#This Row],[SKU CODE]],PRICING[SKU],0)) -> F | G10: =COUNTIFS(PRICING[SKU],B10) -> 2 | H10: 0 | I10: 3 | K10: =SUMIFS(PRICING[Rebate $],PRICING[SKU],Rebate_Lookup[[#This Row],[SKU CODE]],PRICING[Set],1) -> 0 | L10: =SUMIFS(PRICING[Rebate $],PRICING[SKU],Rebate_Lookup[[#This Row],[SKU CODE]],PRICING[Set],2) -> 100 | M10: =SUMIFS(PRICING[Rebate $],PRICING[SKU],Rebate_Lookup[[#This Row],[SKU CODE]],PRICING[Set],3) -> 0 | N10: =INDEX('2025 GOLF Only Fall Solutions'!J:J,MATCH(Rebate_Lookup[[#This Row],[SKU CODE]],'2025 GOLF Only Fall Solutions'!A:A,0)) -> 0 | O10: =IF(Rebate_Lookup[[#This Row],[Instances]]=1,1, IF(AND(Rebate_Lookup[[#This Row],[Instances]]=2,Rebate_Lookup[[#This Row],[Order Form Quantity]]<Rebate_Lookup[[#This Row],[MOQ_2]]),1,IF(AND(Rebate_Lookup[[#This Row],[Instances]]=2,Rebate_Lookup[[#This Row],[Order Form Quantity]]>=Rebate_Lookup[[#This Row],[MOQ_2]]),2, IF(AND(Rebate_Lookup[[#This Row],[Instances]]=3,Rebate_Lookup[[#This Row],[Order Form Quantity]]<Rebate_Lookup[[#This Row],[MOQ_2]]),1,IF(AND(Rebate_Lookup[[#This Row],[Instances]]=3,Rebate_Lookup[[#This Row],[MOQ_2]]<=Rebate_Lookup[[#This Row],[Order Form Quantity]],Rebate_Lookup[[#This Row],[Order Form Quantity]]<Rebate_Lookup[[#This Row],[MOQ_3]]),2,IF(AND(Rebate_Lookup[[#This Row],[Instances]]=3,Rebate_Lookup[[#This Row],[Order Form Quantity]]>=Rebate_Lookup[[#This Row],[MOQ_3]]),3)))))) -> 1 | P10: =COUNTIF('2025 GOLF Only Fall Solutions'!A:A,Rebate_Lookup[[#This Row],[SKU CODE]]) -> 1 | Q10: =IFERROR(Rebate_Lookup[[#This Row],[Order Form Quantity]]>=Rebate_Lookup[[#This Row],[MOQ_2]],0) -> FALSE | S10: =COUNTIF('2025 GOLF Only Fall Solutions'!A:A,Rebate_Lookup[[#This Row],[SKU CODE]]) -> 1
B11: 11008409 | C11: =INDEX(PRICING[Agency/TT],MATCH(Rebate_Lookup[[#This Row],[SKU CODE]],PRICING[SKU],0)) -> A | D11: =INDEX(PRICING[Product],MATCH(B11,PRICING[SKU],0)) -> Dismiss® NXT Herbicide | E11: =INDEX(PRICING[Size],MATCH(Rebate_Lookup[[#This Row],[SKU CODE]],PRICING[SKU],0)) -> 10 oz | F11: =INDEX(PRICING[Indication],MATCH(Rebate_Lookup[[#This Row],[SKU CODE]],PRICING[SKU],0)) -> H | G11: =COUNTIFS(PRICING[SKU],B11) -> 1 | H11: 1 | K11: =SUMIFS(PRICING[Rebate $],PRICING[SKU],Rebate_Lookup[[#This Row],[SKU CODE]],PRICING[Set],1) -> 11 | L11: =SUMIFS(PRICING[Rebate $],PRICING[SKU],Rebate_Lookup[[#This Row],[SKU CODE]],PRICING[Set],2) -> 0 | M11: =SUMIFS(PRICING[Rebate $],PRICING[SKU],Rebate_Lookup[[#This Row],[SKU CODE]],PRICING[Set],3) -> 0 | N11: =INDEX('2025 GOLF Only Fall Solutions'!J:J,MATCH(Rebate_Lookup[[#This Row],[SKU CODE]],'2025 GOLF Only Fall Solutions'!A:A,0)) -> 0 | O11: =IF(Rebate_Lookup[[#This Row],[Instances]]=1,1, IF(AND(Rebate_Lookup[[#This Row],[Instances]]=2,Rebate_Lookup[[#This Row],[Order Form Quantity]]<Rebate_Lookup[[#This Row],[MOQ_2]]),1,IF(AND(Rebate_Lookup[[#This Row],[Instances]]=2,Rebate_Lookup[[#This Row],[Order Form Quantity]]>=Rebate_Lookup[[#This Row],[MOQ_2]]),2, IF(AND(Rebate_Lookup[[#This Row],[Instances]]=3,Rebate_Lookup[[#This Row],[Order Form Quantity]]<Rebate_Lookup[[#This Row],[MOQ_2]]),1,IF(AND(Rebate_Lookup[[#This Row],[Instances]]=3,Rebate_Lookup[[#This Row],[MOQ_2]]<=Rebate_Lookup[[#This Row],[Order Form Quantity]],Rebate_Lookup[[#This Row],[Order Form Quantity]]<Rebate_Lookup[[#This Row],[MOQ_3]]),2,IF(AND(Rebate_Lookup[[#This Row],[Instances]]=3,Rebate_Lookup[[#This Row],[Order Form Quantity]]>=Rebate_Lookup[[#This Row],[MOQ_3]]),3)))))) -> 1 | P11: =COUNTIF('2025 GOLF Only Fall Solutions'!A:A,Rebate_Lookup[[#This Row],[SKU CODE]]) -> 1 | Q11: =IFERROR(Rebate_Lookup[[#This Row],[Order Form Quantity]]>=Rebate_Lookup[[#This Row],[MOQ_2]],0) -> TRUE
B12: 11008589 | C12: =INDEX(PRICING[Agency/TT],MATCH(Rebate_Lookup[[#This Row],[SKU CODE]],PRICING[SKU],0)) -> A | D12: =INDEX(PRICING[Product],MATCH(B12,PRICING[SKU],0)) -> Dismiss® NXT Herbicide | E12: =INDEX(PRICING[Size],MATCH(Rebate_Lookup[[#This Row],[SKU CODE]],PRICING[SKU],0)) -> 60 oz | F12: =INDEX(PRICING[Indication],MATCH(Rebate_Lookup[[#This Row],[SKU CODE]],PRICING[SKU],0)) -> H | G12: =COUNTIFS(PRICING[SKU],B12) -> 2 | H12: 1 | I12: 16 | K12: =SUMIFS(PRICING[Rebate $],PRICING[SKU],Rebate_Lookup[[#This Row],[SKU CODE]],PRICING[Set],1) -> 0 | L12: =SUMIFS(PRICING[Rebate $],PRICING[SKU],Rebate_Lookup[[#This Row],[SKU CODE]],PRICING[Set],2) -> 60 | M12: =SUMIFS(PRICING[Rebate $],PRICING[SKU],Rebate_Lookup[[#This Row],[SKU CODE]],PRICING[Set],3) -> 0 | N12: =INDEX('2025 GOLF Only Fall Solutions'!J:J,MATCH(Rebate_Lookup[[#This Row],[SKU CODE]],'2025 GOLF Only Fall Solutions'!A:A,0)) -> 0 | O12: =IF(Rebate_Lookup[[#This Row],[Instances]]=1,1, IF(AND(Rebate_Lookup[[#This Row],[Instances]]=2,Rebate_Lookup[[#This Row],[Order Form Quantity]]<Rebate_Lookup[[#This Row],[MOQ_2]]),1,IF(AND(Rebate_Lookup[[#This Row],[Instances]]=2,Rebate_Lookup[[#This Row],[Order Form Quantity]]>=Rebate_Lookup[[#This Row],[MOQ_2]]),2, IF(AND(Rebate_Lookup[[#This Row],[Instances]]=3,Rebate_Lookup[[#This Row],[Order Form Quantity]]<Rebate_Lookup[[#This Row],[MOQ_2]]),1,IF(AND(Rebate_Lookup[[#This Row],[Instances]]=3,Rebate_Lookup[[#This Row],[MOQ_2]]<=Rebate_Lookup[[#This Row],[Order Form Quantity]],Rebate_Lookup[[#This Row],[Order Form Quantity]]<Rebate_Lookup[[#This Row],[MOQ_3]]),2,IF(AND(Rebate_Lookup[[#This Row],[Instances]]=3,Rebate_Lookup[[#This Row],[Order Form Quantity]]>=Rebate_Lookup[[#This Row],[MOQ_3]]),3)))))) -> 1 | P12: =COUNTIF('2025 GOLF Only Fall Solutions'!A:A,Rebate_Lookup[[#This Row],[SKU CODE]]) -> 1 | Q12: =IFERROR(Rebate_Lookup[[#This Row],[Order Form Quantity]]>=Rebate_Lookup[[#This Row],[MOQ_2]],0) -> FALSE
B13: 11015390 | C13: =INDEX(PRICING[Agency/TT],MATCH(Rebate_Lookup[[#This Row],[SKU CODE]],PRICING[SKU],0)) -> A | D13: =INDEX(PRICING[Product],MATCH(B13,PRICING[SKU],0)) -> Durentis™ Insecticide | E13: =INDEX(PRICING[Size],MATCH(Rebate_Lookup[[#This Row],[SKU CODE]],PRICING[SKU],0)) -> 16 oz | F13: =INDEX(PRICING[Indication],MATCH(Rebate_Lookup[[#This Row],[SKU CODE]],PRICING[SKU],0)) -> I | G13: 2 | H13: 0 | I13: 4 | K13: =SUMIFS(PRICING[Rebate $],PRICING[SKU],Rebate_Lookup[[#This Row],[SKU CODE]],PRICING[Set],1) -> 0 | L13: =SUMIFS(PRICING[Rebate $],PRICING[SKU],Rebate_Lookup[[#This Row],[SKU CODE]],PRICING[Set],2) -> 90 | M13: =SUMIFS(PRICING[Rebate $],PRICING[SKU],Rebate_Lookup[[#This Row],[SKU CODE]],PRICING[Set],3) -> 0 | N13: =INDEX('2025 GOLF Only Fall Solutions'!J:J,MATCH(Rebate_Lookup[[#This Row],[SKU CODE]],'2025 GOLF Only Fall Solutions'!A:A,0)) -> 0 | O13: =IF(Rebate_Lookup[[#This Row],[Instances]]=1,1, IF(AND(Rebate_Lookup[[#This Row],[Instances]]=2,Rebate_Lookup[[#This Row],[Order Form Quantity]]<Rebate_Lookup[[#This Row],[MOQ_2]]),1,IF(AND(Rebate_Lookup[[#This Row],[Instances]]=2,Rebate_Lookup[[#This Row],[Order Form Quantity]]>=Rebate_Lookup[[#This Row],[MOQ_2]]),2, IF(AND(Rebate_Lookup[[#This Row],[Instances]]=3,Rebate_Lookup[[#This Row],[Order Form Quantity]]<Rebate_Lookup[[#This Row],[MOQ_2]]),1,IF(AND(Rebate_Lookup[[#This Row],[Instances]]=3,Rebate_Lookup[[#This Row],[MOQ_2]]<=Rebate_Lookup[[#This Row],[Order Form Quantity]],Rebate_Lookup[[#This Row],[Order Form Quantity]]<Rebate_Lookup[[#This Row],[MOQ_3]]),2,IF(AND(Rebate_Lookup[[#This Row],[Instances]]=3,Rebate_Lookup[[#This Row],[Order Form Quantity]]>=Rebate_Lookup[[#This Row],[MOQ_3]]),3)))))) -> 1 | P13: =COUNTIF('2025 GOLF Only Fall Solutions'!A:A,Rebate_Lookup[[#This Row],[SKU CODE]]) -> 1 | Q13: =IFERROR(Rebate_Lookup[[#This Row],[Order Form Quantity]]>=Rebate_Lookup[[#This Row],[MOQ_2]],0) -> FALSE | S13: =COUNTIF('2025 GOLF Only Fall Solutions'!A:A,Rebate_Lookup[[#This Row],[SKU CODE]]) -> 1
B14: 11015391 | C14: =INDEX(PRICING[Agency/TT],MATCH(Rebate_Lookup[[#This Row],[SKU CODE]],PRICING[SKU],0)) -> A | D14: =INDEX(PRICING[Product],MATCH(B14,PRICING[SKU],0)) -> Durentis™ Insecticide | E14: =INDEX(PRICING[Size],MATCH(Rebate_Lookup[[#This Row],[SKU CODE]],PRICING[SKU],0)) -> 64 oz | F14: =INDEX(PRICING[Indication],MATCH(Rebate_Lookup[[#This Row],[SKU CODE]],PRICING[SKU],0)) -> I | G14: =COUNTIFS(PRICING[SKU],B14) -> 3 | H14: 0 | I14: 2 | J14: 4 | K14: =SUMIFS(PRICING[Rebate $],PRICING[SKU],Rebate_Lookup[[#This Row],[SKU CODE]],PRICING[Set],1) -> 0 | L14: =SUMIFS(PRICING[Rebate $],PRICING[SKU],Rebate_Lookup[[#This Row],[SKU CODE]],PRICING[Set],2) -> 550 | M14: =SUMIFS(PRICING[Rebate $],PRICING[SKU],Rebate_Lookup[[#This Row],[SKU CODE]],PRICING[Set],3) -> 650 | N14: =INDEX('2025 GOLF Only Fall Solutions'!J:J,MATCH(Rebate_Lookup[[#This Row],[SKU CODE]],'2025 GOLF Only Fall Solutions'!A:A,0)) -> 0 | O14: =IF(Rebate_Lookup[[#This Row],[Instances]]=1,1, IF(AND(Rebate_Lookup[[#This Row],[Instances]]=2,Rebate_Lookup[[#This Row],[Order Form Quantity]]<Rebate_Lookup[[#This Row],[MOQ_2]]),1,IF(AND(Rebate_Lookup[[#This Row],[Instances]]=2,Rebate_Lookup[[#This Row],[Order Form Quantity]]>=Rebate_Lookup[[#This Row],[MOQ_2]]),2, IF(AND(Rebate_Lookup[[#This Row],[Instances]]=3,Rebate_Lookup[[#This Row],[Order Form Quantity]]<Rebate_Lookup[[#This Row],[MOQ_2]]),1,IF(AND(Rebate_Lookup[[#This Row],[Instances]]=3,Rebate_Lookup[[#This Row],[MOQ_2]]<=Rebate_Lookup[[#This Row],[Order Form Quantity]],Rebate_Lookup[[#This Row],[Order Form Quantity]]<Rebate_Lookup[[#This Row],[MOQ_3]]),2,IF(AND(Rebate_Lookup[[#This Row],[Instances]]=3,Rebate_Lookup[[#This Row],[Order Form Quantity]]>=Rebate_Lookup[[#This Row],[MOQ_3]]),3)))))) -> 1 | P14: =COUNTIF('2025 GOLF Only Fall Solutions'!A:A,Rebate_Lookup[[#This Row],[SKU CODE]]) -> 1 | Q14: =IFERROR(Rebate_Lookup[[#This Row],[Order Form Quantity]]>=Rebate_Lookup[[#This Row],[MOQ_2]],0) -> FALSE | S14: =COUNTIF('2025 GOLF Only Fall Solutions'!A:A,Rebate_Lookup[[#This Row],[SKU CODE]]) -> 1
B15: 11008464 | C15: =INDEX(PRICING[Agency/TT],MATCH(Rebate_Lookup[[#This Row],[SKU CODE]],PRICING[SKU],0)) -> A | D15: =INDEX(PRICING[Product],MATCH(B15,PRICING[SKU],0)) -> Echelon® 4SC Herbicide | E15: =INDEX(PRICING[Size],MATCH(Rebate_Lookup[[#This Row],[SKU CODE]],PRICING[SKU],0)) -> 1 gal | F15: =INDEX(PRICING[Indication],MATCH(Rebate_Lookup[[#This Row],[SKU CODE]],PRICING[SKU],0)) -> H | G15: =COUNTIFS(PRICING[SKU],B15) -> 2 | H15: 0 | I15: 16 | K15: =SUMIFS(PRICING[Rebate $],PRICING[SKU],Rebate_Lookup[[#This Row],[SKU CODE]],PRICING[Set],1) -> 0 | L15: =SUMIFS(PRICING[Rebate $],PRICING[SKU],Rebate_Lookup[[#This Row],[SKU CODE]],PRICING[Set],2) -> 145 | M15: =SUMIFS(PRICING[Rebate $],PRICING[SKU],Rebate_Lookup[[#This Row],[SKU CODE]],PRICING[Set],3) -> 0 | N15: =INDEX('2025 GOLF Only Fall Solutions'!J:J,MATCH(Rebate_Lookup[[#This Row],[SKU CODE]],'2025 GOLF Only Fall Solutions'!A:A,0)) -> 0 | O15: =IF(Rebate_Lookup[[#This Row],[Instances]]=1,1, IF(AND(Rebate_Lookup[[#This Row],[Instances]]=2,Rebate_Lookup[[#This Row],[Order Form Quantity]]<Rebate_Lookup[[#This Row],[MOQ_2]]),1,IF(AND(Rebate_Lookup[[#This Row],[Instances]]=2,Rebate_Lookup[[#This Row],[Order Form Quantity]]>=Rebate_Lookup[[#This Row],[MOQ_2]]),2, IF(AND(Rebate_Lookup[[#This Row],[Instances]]=3,Rebate_Lookup[[#This Row],[Order Form Quantity]]<Rebate_Lookup[[#This Row],[MOQ_2]]),1,IF(AND(Rebate_Lookup[[#This Row],[Instances]]=3,Rebate_Lookup[[#This Row],[MOQ_2]]<=Rebate_Lookup[[#This Row],[Order Form Quantity]],Rebate_Lookup[[#This Row],[Order Form Quantity]]<Rebate_Lookup[[#This Row],[MOQ_3]]),2,IF(AND(Rebate_Lookup[[#This Row],[Instances]]=3,Rebate_Lookup[[#This Row],[Order Form Quantity]]>=Rebate_Lookup[[#This Row],[MOQ_3]]),3)))))) -> 1 | P15: =COUNTIF('2025 GOLF Only Fall Solutions'!A:A,Rebate_Lookup[[#This Row],[SKU CODE]]) -> 1 | Q15: =IFERROR(Rebate_Lookup[[#This Row],[Order Form Quantity]]>=Rebate_Lookup[[#This Row],[MOQ_2]],0) -> FALSE | S15: =COUNTIF('2025 GOLF Only Fall Solutions'!A:A,Rebate_Lookup[[#This Row],[SKU CODE]]) -> 1
B16: D00000934 | C16: =INDEX(PRICING[Agency/TT],MATCH(Rebate_Lookup[[#This Row],[SKU CODE]],PRICING[SKU],0)) -> A | D16: =INDEX(PRICING[Product],MATCH(B16,PRICING[SKU],0)) -> Exteris® Stressgard® | E16: =INDEX(PRICING[Size],MATCH(Rebate_Lookup[[#This Row],[SKU CODE]],PRICING[SKU],0)) -> 2.5 gal | F16: =INDEX(PRICING[Indication],MATCH(Rebate_Lookup[[#This Row],[SKU CODE]],PRICING[SKU],0)) -> F | G16: =COUNTIFS(PRICING[SKU],B16) -> 2 | H16: 0 | I16: 6 | K16: =SUMIFS(PRICING[Rebate $],PRICING[SKU],Rebate_Lookup[[#This Row],[SKU CODE]],PRICING[Set],1) -> 0 | L16: =SUMIFS(PRICING[Rebate $],PRICING[SKU],Rebate_Lookup[[#This Row],[SKU CODE]],PRICING[Set],2) -> 45 | M16: =SUMIFS(PRICING[Rebate $],PRICING[SKU],Rebate_Lookup[[#This Row],[SKU CODE]],PRICING[Set],3) -> 0 | N16: =INDEX('2025 GOLF Only Fall Solutions'!J:J,MATCH(Rebate_Lookup[[#This Row],[SKU CODE]],'2025 GOLF Only Fall Solutions'!A:A,0)) -> 0 | O16: =IF(Rebate_Lookup[[#This Row],[Instances]]=1,1, IF(AND(Rebate_Lookup[[#This Row],[Instances]]=2,Rebate_Lookup[[#This Row],[Order Form Quantity]]<Rebate_Lookup[[#This Row],[MOQ_2]]),1,IF(AND(Rebate_Lookup[[#This Row],[Instances]]=2,Rebate_Lookup[[#This Row],[Order Form Quantity]]>=Rebate_Lookup[[#This Row],[MOQ_2]]),2, IF(AND(Rebate_Lookup[[#This Row],[Instances]]=3,Rebate_Lookup[[#This Row],[Order Form Quantity]]<Rebate_Lookup[[#This Row],[MOQ_2]]),1,IF(AND(Rebate_Lookup[[#This Row],[Instances]]=3,Rebate_Lookup[[#This Row],[MOQ_2]]<=Rebate_Lookup[[#This Row],[Order Form Quantity]],Rebate_Lookup[[#This Row],[Order Form Quantity]]<Rebate_Lookup[[#This Row],[MOQ_3]]),2,IF(AND(Rebate_Lookup[[#This Row],[Instances]]=3,Rebate_Lookup[[#This Row],[Order Form Quantity]]>=Rebate_Lookup[[#This Row],[MOQ_3]]),3)))))) -> 1 | P16: =COUNTIF('2025 GOLF Only Fall Solutions'!A:A,Rebate_Lookup[[#This Row],[SKU CODE]]) -> 1 | Q16: =IFERROR(Rebate_Lookup[[#This Row],[Order Form Quantity]]>=Rebate_Lookup[[#This Row],[MOQ_2]],0) -> FALSE | S16: =COUNTIF('2025 GOLF Only Fall Solutions'!A:A,Rebate_Lookup[[#This Row],[SKU CODE]]) -> 1
B17: 11008377 | C17: =INDEX(PRICING[Agency/TT],MATCH(Rebate_Lookup[[#This Row],[SKU CODE]],PRICING[SKU],0)) -> A | D17: =INDEX(PRICING[Product],MATCH(B17,PRICING[SKU],0)) -> Fame® +C Fungicide | E17: =INDEX(PRICING[Size],MATCH(Rebate_Lookup[[#This Row],[SKU CODE]],PRICING[SKU],0)) -> 2.5 gal | F17: =INDEX(PRICING[Indication],MATCH(Rebate_Lookup[[#This Row],[SKU CODE]],PRICING[SKU],0)) -> F | G17: =COUNTIFS(PRICING[SKU],B17) -> 1 | H17: 0 | K17: =SUMIFS(PRICING[Rebate $],PRICING[SKU],Rebate_Lookup[[#This Row],[SKU CODE]],PRICING[Set],1) -> 0 | L17: =SUMIFS(PRICING[Rebate $],PRICING[SKU],Rebate_Lookup[[#This Row],[SKU CODE]],PRICING[Set],2) -> 0 | M17: =SUMIFS(PRICING[Rebate $],PRICING[SKU],Rebate_Lookup[[#This Row],[SKU CODE]],PRICING[Set],3) -> 0 | N17: =INDEX('2025 GOLF Only Fall Solutions'!J:J,MATCH(Rebate_Lookup[[#This Row],[SKU CODE]],'2025 GOLF Only Fall Solutions'!A:A,0)) -> 0 | O17: =IF(Rebate_Lookup[[#This Row],[Instances]]=1,1, IF(AND(Rebate_Lookup[[#This Row],[Instances]]=2,Rebate_Lookup[[#This Row],[Order Form Quantity]]<Rebate_Lookup[[#This Row],[MOQ_2]]),1,IF(AND(Rebate_Lookup[[#This Row],[Instances]]=2,Rebate_Lookup[[#This Row],[Order Form Quantity]]>=Rebate_Lookup[[#This Row],[MOQ_2]]),2, IF(AND(Rebate_Lookup[[#This Row],[Instances]]=3,Rebate_Lookup[[#This Row],[Order Form Quantity]]<Rebate_Lookup[[#This Row],[MOQ_2]]),1,IF(AND(Rebate_Lookup[[#This Row],[Instances]]=3,Rebate_Lookup[[#This Row],[MOQ_2]]<=Rebate_Lookup[[#This Row],[Order Form Quantity]],Rebate_Lookup[[#This Row],[Order Form Quantity]]<Rebate_Lookup[[#This Row],[MOQ_3]]),2,IF(AND(Rebate_Lookup[[#This Row],[Instances]]=3,Rebate_Lookup[[#This Row],[Order Form Quantity]]>=Rebate_Lookup[[#This Row],[MOQ_3]]),3)))))) -> 1 | P17: =COUNTIF('2025 GOLF Only Fall Solutions'!A:A,Rebate_Lookup[[#This Row],[SKU CODE]]) -> 1 | Q17: =IFERROR(Rebate_Lookup[[#This Row],[Order Form Quantity]]>=Rebate_Lookup[[#This Row],[MOQ_2]],0) -> TRUE | S17: =COUNTIF('2025 GOLF Only Fall Solutions'!A:A,Rebate_Lookup[[#This Row],[SKU CODE]]) -> 1
B18: 11008393 | C18: =INDEX(PRICING[Agency/TT],MATCH(Rebate_Lookup[[#This Row],[SKU CODE]],PRICING[SKU],0)) -> A | D18: =INDEX(PRICING[Product],MATCH(B18,PRICING[SKU],0)) -> Fame® SC Fungicide | E18: =INDEX(PRICING[Size],MATCH(Rebate_Lookup[[#This Row],[SKU CODE]],PRICING[SKU],0)) -> 16 oz | F18: =INDEX(PRICING[Indication],MATCH(Rebate_Lookup[[#This Row],[SKU CODE]],PRICING[SKU],0)) -> F | G18: =COUNTIFS(PRICING[SKU],B18) -> 2 | H18: 0 | I18: 4 | K18: =SUMIFS(PRICING[Rebate $],PRICING[SKU],Rebate_Lookup[[#This Row],[SKU CODE]],PRICING[Set],1) -> 0 | L18: =SUMIFS(PRICING[Rebate $],PRICING[SKU],Rebate_Lookup[[#This Row],[SKU CODE]],PRICING[Set],2) -> 50 | M18: =SUMIFS(PRICING[Rebate $],PRICING[SKU],Rebate_Lookup[[#This Row],[SKU CODE]],PRICING[Set],3) -> 0 | N18: =INDEX('2025 GOLF Only Fall Solutions'!J:J,MATCH(Rebate_Lookup[[#This Row],[SKU CODE]],'2025 GOLF Only Fall Solutions'!A:A,0)) -> 0 | O18: =IF(Rebate_Lookup[[#This Row],[Instances]]=1,1, IF(AND(Rebate_Lookup[[#This Row],[Instances]]=2,Rebate_Lookup[[#This Row],[Order Form Quantity]]<Rebate_Lookup[[#This Row],[MOQ_2]]),1,IF(AND(Rebate_Lookup[[#This Row],[Instances]]=2,Rebate_Lookup[[#This Row],[Order Form Quantity]]>=Rebate_Lookup[[#This Row],[MOQ_2]]),2, IF(AND(Rebate_Lookup[[#This Row],[Instances]]=3,Rebate_Lookup[[#This Row],[Order Form Quantity]]<Rebate_Lookup[[#This Row],[MOQ_2]]),1,IF(AND(Rebate_Lookup[[#This Row],[Instances]]=3,Rebate_Lookup[[#This Row],[MOQ_2]]<=Rebate_Lookup[[#This Row],[Order Form Quantity]],Rebate_Lookup[[#This Row],[Order Form Quantity]]<Rebate_Lookup[[#This Row],[MOQ_3]]),2,IF(AND(Rebate_Lookup[[#This Row],[Instances]]=3,Rebate_Lookup[[#This Row],[Order Form Quantity]]>=Rebate_Lookup[[#This Row],[MOQ_3]]),3)))))) -> 1 | P18: =COUNTIF('2025 GOLF Only Fall Solutions'!A:A,Rebate_Lookup[[#This Row],[SKU CODE]]) -> 1 | Q18: =IFERROR(Rebate_Lookup[[#This Row],[Order Form Quantity]]>=Rebate_Lookup[[#This Row],[MOQ_2]],0) -> FALSE | S18: =COUNTIF('2025 GOLF Only Fall Solutions'!A:A,Rebate_Lookup[[#This Row],[SKU CODE]]) -> 1
B19: 11008557 | C19: =INDEX(PRICING[Agency/TT],MATCH(Rebate_Lookup[[#This Row],[SKU CODE]],PRICING[SKU],0)) -> A | D19: =INDEX(PRICING[Product],MATCH(B19,PRICING[SKU],0)) -> Fame® SC Fungicide | E19: =INDEX(PRICING[Size],MATCH(Rebate_Lookup[[#This Row],[SKU CODE]],PRICING[SKU],0)) -> 64 oz | F19: =INDEX(PRICING[Indication],MATCH(Rebate_Lookup[[#This Row],[SKU CODE]],PRICING[SKU],0)) -> F | G19: =COUNTIFS(PRICING[SKU],B19) -> 2 | H19: 0 | I19: 4 | K19: =SUMIFS(PRICING[Rebate $],PRICING[SKU],Rebate_Lookup[[#This Row],[SKU CODE]],PRICING[Set],1) -> 0 | L19: 410 | M19: =SUMIFS(PRICING[Rebate $],PRICING[SKU],Rebate_Lookup[[#This Row],[SKU CODE]],PRICING[Set],3) -> 0 | N19: =INDEX('2025 GOLF Only Fall Solutions'!J:J,MATCH(Rebate_Lookup[[#This Row],[SKU CODE]],'2025 GOLF Only Fall Solutions'!A:A,0)) -> 0 | O19: =IF(Rebate_Lookup[[#This Row],[Instances]]=1,1, IF(AND(Rebate_Lookup[[#This Row],[Instances]]=2,Rebate_Lookup[[#This Row],[Order Form Quantity]]<Rebate_Lookup[[#This Row],[MOQ_2]]),1,IF(AND(Rebate_Lookup[[#This Row],[Instances]]=2,Rebate_Lookup[[#This Row],[Order Form Quantity]]>=Rebate_Lookup[[#This Row],[MOQ_2]]),2, IF(AND(Rebate_Lookup[[#This Row],[Instances]]=3,Rebate_Lookup[[#This Row],[Order Form Quantity]]<Rebate_Lookup[[#This Row],[MOQ_2]]),1,IF(AND(Rebate_Lookup[[#This Row],[Instances]]=3,Rebate_Lookup[[#This Row],[MOQ_2]]<=Rebate_Lookup[[#This Row],[Order Form Quantity]],Rebate_Lookup[[#This Row],[Order Form Quantity]]<Rebate_Lookup[[#This Row],[MOQ_3]]),2,IF(AND(Rebate_Lookup[[#This Row],[Instances]]=3,Rebate_Lookup[[#This Row],[Order Form Quantity]]>=Rebate_Lookup[[#This Row],[MOQ_3]]),3)))))) -> 1 | P19: =COUNTIF('2025 GOLF Only Fall Solutions'!A:A,Rebate_Lookup[[#This Row],[SKU CODE]]) -> 1 | Q19: =IFERROR(Rebate_Lookup[[#This Row],[Order Form Quantity]]>=Rebate_Lookup[[#This Row],[MOQ_2]],0) -> FALSE | S19: =COUNTIF('2025 GOLF Only Fall Solutions'!A:A,Rebate_Lookup[[#This Row],[SKU CODE]]) -> 1
B20: 11009500 | C20: =INDEX(PRICING[Agency/TT],MATCH(Rebate_Lookup[[#This Row],[SKU CODE]],PRICING[SKU],0)) -> A | D20: =INDEX(PRICING[Product],MATCH(B20,PRICING[SKU],0)) -> Fame® SC Fungicide | E20: =INDEX(PRICING[Size],MATCH(Rebate_Lookup[[#This Row],[SKU CODE]],PRICING[SKU],0)) -> 2.5 gal | F20: =INDEX(PRICING[Indication],MATCH(Rebate_Lookup[[#This Row],[SKU CODE]],PRICING[SKU],0)) -> F | G20: =COUNTIFS(PRICING[SKU],B20) -> 3 | H20: 0 | I20: 2 | J20: 4 | K20: =SUMIFS(PRICING[Rebate $],PRICING[SKU],Rebate_Lookup[[#This Row],[SKU CODE]],PRICING[Set],1) -> 0 | L20: =SUMIFS(PRICING[Rebate $],PRICING[SKU],Rebate_Lookup[[#This Row],[SKU CODE]],PRICING[Set],2) -> 1450 | M20: =SUMIFS(PRICING[Rebate $],PRICING[SKU],Rebate_Lookup[[#This Row],[SKU CODE]],PRICING[Set],3) -> 1600 | N20: =INDEX('2025 GOLF Only Fall Solutions'!J:J,MATCH(Rebate_Lookup[[#This Row],[SKU CODE]],'2025 GOLF Only Fall Solutions'!A:A,0)) -> 0 | O20: =IF(Rebate_Lookup[[#This Row],[Instances]]=1,1, IF(AND(Rebate_Lookup[[#This Row],[Instances]]=2,Rebate_Lookup[[#This Row],[Order Form Quantity]]<Rebate_Lookup[[#This Row],[MOQ_2]]),1,IF(AND(Rebate_Lookup[[#This Row],[Instances]]=2,Rebate_Lookup[[#This Row],[Order Form Quantity]]>=Rebate_Lookup[[#This Row],[MOQ_2]]),2, IF(AND(Rebate_Lookup[[#This Row],[Instances]]=3,Rebate_Lookup[[#This Row],[Order Form Quantity]]<Rebate_Lookup[[#This Row],[MOQ_2]]),1,IF(AND(Rebate_Lookup[[#This Row],[Instances]]=3,Rebate_Lookup[[#This Row],[MOQ_2]]<=Rebate_Lookup[[#This Row],[Order Form Quantity]],Rebate_Lookup[[#This Row],[Order Form Quantity]]<Rebate_Lookup[[#This Row],[MOQ_3]]),2,IF(AND(Rebate_Lookup[[#This Row],[Instances]]=3,Rebate_Lookup[[#This Row],[Order Form Quantity]]>=Rebate_Lookup[[#This Row],[MOQ_3]]),3)))))) -> 1 | P20: =COUNTIF('2025 GOLF Only Fall Solutions'!A:A,Rebate_Lookup[[#This Row],[SKU CODE]]) -> 1 | Q20: =IFERROR(Rebate_Lookup[[#This Row],[Order Form Quantity]]>=Rebate_Lookup[[#This Row],[MOQ_2]],0) -> FALSE | S20: =COUNTIF('2025 GOLF Only Fall Solutions'!A:A,Rebate_Lookup[[#This Row],[SKU CODE]]) -> 1
B21: D00000935 | C21: =INDEX(PRICING[Agency/TT],MATCH(Rebate_Lookup[[#This Row],[SKU CODE]],PRICING[SKU],0)) -> A | D21: =INDEX(PRICING[Product],MATCH(B21,PRICING[SKU],0)) -> Fiata® Stressgard® | E21: =INDEX(PRICING[Size],MATCH(Rebate_Lookup[[#This Row],[SKU CODE]],PRICING[SKU],0)) -> 2.5 gal | F21: =INDEX(PRICING[Indication],MATCH(Rebate_Lookup[[#This Row],[SKU CODE]],PRICING[SKU],0)) -> F | G21: =COUNTIFS(PRICING[SKU],B21) -> 2 | H21: 0 | I21: 16 | K21: =SUMIFS(PRICING[Rebate $],PRICING[SKU],Rebate_Lookup[[#This Row],[SKU CODE]],PRICING[Set],1) -> 0 | L21: =SUMIFS(PRICING[Rebate $],PRICING[SKU],Rebate_Lookup[[#This Row],[SKU CODE]],PRICING[Set],2) -> 10 | M21: =SUMIFS(PRICING[Rebate $],PRICING[SKU],Rebate_Lookup[[#This Row],[SKU CODE]],PRICING[Set],3) -> 0 | N21: =INDEX('2025 GOLF Only Fall Solutions'!J:J,MATCH(Rebate_Lookup[[#This Row],[SKU CODE]],'2025 GOLF Only Fall Solutions'!A:A,0)) -> 0 | O21: =IF(Rebate_Lookup[[#This Row],[Instances]]=1,1, IF(AND(Rebate_Lookup[[#This Row],[Instances]]=2,Rebate_Lookup[[#This Row],[Order Form Quantity]]<Rebate_Lookup[[#This Row],[MOQ_2]]),1,IF(AND(Rebate_Lookup[[#This Row],[Instances]]=2,Rebate_Lookup[[#This Row],[Order Form Quantity]]>=Rebate_Lookup[[#This Row],[MOQ_2]]),2, IF(AND(Rebate_Lookup[[#This Row],[Instances]]=3,Rebate_Lookup[[#This Row],[Order Form Quantity]]<Rebate_Lookup[[#This Row],[MOQ_2]]),1,IF(AND(Rebate_Lookup[[#This Row],[Instances]]=3,Rebate_Lookup[[#This Row],[MOQ_2]]<=Rebate_Lookup[[#This Row],[Order Form Quantity]],Rebate_Lookup[[#This Row],[Order Form Quantity]]<Rebate_Lookup[[#This Row],[MOQ_3]]),2,IF(AND(Rebate_Lookup[[#This Row],[Instances]]=3,Rebate_Lookup[[#This Row],[Order Form Quantity]]>=Rebate_Lookup[[#This Row],[MOQ_3]]),3)))))) -> 1 | P21: =COUNTIF('2025 GOLF Only Fall Solutions'!A:A,Rebate_Lookup[[#This Row],[SKU CODE]]) -> 1 | Q21: =IFERROR(Rebate_Lookup[[#This Row],[Order Form Quantity]]>=Rebate_Lookup[[#This Row],[MOQ_2]],0) -> FALSE | S21: =COUNTIF('2025 GOLF Only Fall Solutions'!A:A,Rebate_Lookup[[#This Row],[SKU CODE]]) -> 1
B22: 3944704 | C22: =INDEX(PRICING[Agency/TT],MATCH(Rebate_Lookup[[#This Row],[SKU CODE]],PRICING[SKU],0)) -> TT | D22: =INDEX(PRICING[Product],MATCH(B22,PRICING[SKU],0)) -> Forbid | E22: =INDEX(PRICING[Size],MATCH(Rebate_Lookup[[#This Row],[SKU CODE]],PRICING[SKU],0)) -> 8 oz | F22: =INDEX(PRICING[Indication],MATCH(Rebate_Lookup[[#This Row],[SKU CODE]],PRICING[SKU],0)) -> I | G22: =COUNTIFS(PRICING[SKU],B22) -> 1 | H22: 0 | L22: =SUMIFS(PRICING[Rebate $],PRICING[Program],"NOW",PRICING[SKU],Rebate_Lookup[[#This Row],[SKU CODE]],PRICING[Set],2) -> 0 | M22: =SUMIFS(PRICING[Rebate $],PRICING[Program],"NOW",PRICING[SKU],Rebate_Lookup[[#This Row],[SKU CODE]],PRICING[Set],3) -> 0 | N22: =INDEX('2025 GOLF Only Fall Solutions'!J:J,MATCH(Rebate_Lookup[[#This Row],[SKU CODE]],'2025 GOLF Only Fall Solutions'!A:A,0)) -> 0 | O22: =IF(Rebate_Lookup[[#This Row],[Instances]]=1,1, IF(AND(Rebate_Lookup[[#This Row],[Instances]]=2,Rebate_Lookup[[#This Row],[Order Form Quantity]]<Rebate_Lookup[[#This Row],[MOQ_2]]),1,IF(AND(Rebate_Lookup[[#This Row],[Instances]]=2,Rebate_Lookup[[#This Row],[Order Form Quantity]]>=Rebate_Lookup[[#This Row],[MOQ_2]]),2, IF(AND(Rebate_Lookup[[#This Row],[Instances]]=3,Rebate_Lookup[[#This Row],[Order Form Quantity]]<Rebate_Lookup[[#This Row],[MOQ_2]]),1,IF(AND(Rebate_Lookup[[#This Row],[Instances]]=3,Rebate_Lookup[[#This Row],[MOQ_2]]<=Rebate_Lookup[[#This Row],[Order Form Quantity]],Rebate_Lookup[[#This Row],[Order Form Quantity]]<Rebate_Lookup[[#This Row],[MOQ_3]]),2,IF(AND(Rebate_Lookup[[#This Row],[Instances]]=3,Rebate_Lookup[[#This Row],[Order Form Quantity]]>=Rebate_Lookup[[#This Row],[MOQ_3]]),3)))))) -> 1 | P22: =COUNTIF('2025 GOLF Only Fall Solutions'!A:A,Rebate_Lookup[[#This Row],[SKU CODE]]) -> 1 | Q22: =IFERROR(Rebate_Lookup[[#This Row],[Order Form Quantity]]>=Rebate_Lookup[[#This Row],[MOQ_2]],0) -> TRUE
B23: D00001379 | C23: =INDEX(PRICING[Agency/TT],MATCH(Rebate_Lookup[[#This Row],[SKU CODE]],PRICING[SKU],0)) -> A | D23: =INDEX(PRICING[Product],MATCH(B23,PRICING[SKU],0)) -> Indemnify® | E23: =INDEX(PRICING[Size],MATCH(Rebate_Lookup[[#This Row],[SKU CODE]],PRICING[SKU],0)) -> 17.1 fl oz | F23: =INDEX(PRICING[Indication],MATCH(Rebate_Lookup[[#This Row],[SKU CODE]],PRICING[SKU],0)) -> F | G23: =COUNTIFS(PRICING[SKU],B23) -> 3 | H23: 0 | I23: 3 | J23: 6 | K23: =SUMIFS(PRICING[Rebate $],PRICING[SKU],Rebate_Lookup[[#This Row],[SKU CODE]],PRICING[Set],1) -> 0 | L23: =SUMIFS(PRICING[Rebate $],PRICING[SKU],Rebate_Lookup[[#This Row],[SKU CODE]],PRICING[Set],2) -> 185 | M23: =SUMIFS(PRICING[Rebate $],PRICING[SKU],Rebate_Lookup[[#This Row],[SKU CODE]],PRICING[Set],3) -> 410 | N23: =INDEX('2025 GOLF Only Fall Solutions'!J:J,MATCH(Rebate_Lookup[[#This Row],[SKU CODE]],'2025 GOLF Only Fall Solutions'!A:A,0)) -> 0 | O23: =IF(Rebate_Lookup[[#This Row],[Instances]]=1,1, IF(AND(Rebate_Lookup[[#This Row],[Instances]]=2,Rebate_Lookup[[#This Row],[Order Form Quantity]]<Rebate_Lookup[[#This Row],[MOQ_2]]),1,IF(AND(Rebate_Lookup[[#This Row],[Instances]]=2,Rebate_Lookup[[#This Row],[Order Form Quantity]]>=Rebate_Lookup[[#This Row],[MOQ_2]]),2, IF(AND(Rebate_Lookup[[#This Row],[Instances]]=3,Rebate_Lookup[[#This Row],[Order Form Quantity]]<Rebate_Lookup[[#This Row],[MOQ_2]]),1,IF(AND(Rebate_Lookup[[#This Row],[Instances]]=3,Rebate_Lookup[[#This Row],[MOQ_2]]<=Rebate_Lookup[[#This Row],[Order Form Quantity]],Rebate_Lookup[[#This Row],[Order Form Quantity]]<Rebate_Lookup[[#This Row],[MOQ_3]]),2,IF(AND(Rebate_Lookup[[#This Row],[Instances]]=3,Rebate_Lookup[[#This Row],[Order Form Quantity]]>=Rebate_Lookup[[#This Row],[MOQ_3]]),3)))))) -> 1 | P23: =COUNTIF('2025 GOLF Only Fall Solutions'!A:A,Rebate_Lookup[[#This Row],[SKU CODE]]) -> 1 | Q23: =IFERROR(Rebate_Lookup[[#This Row],[Order Form Quantity]]>=Rebate_Lookup[[#This Row],[MOQ_2]],0) -> FALSE | S23: =COUNTIF('2025 GOLF Only Fall Solutions'!A:A,Rebate_Lookup[[#This Row],[SKU CODE]]) -> 1
B24: 81701245 | C24: =INDEX(PRICING[Agency/TT],MATCH(Rebate_Lookup[[#This Row],[SKU CODE]],PRICING[SKU],0)) -> A | D24: =INDEX(PRICING[Product],MATCH(B24,PRICING[SKU],0)) -> Interface® Stressgard® | E24: =INDEX(PRICING[Size],MATCH(Rebate_Lookup[[#This Row],[SKU CODE]],PRICING[SKU],0)) -> 2.5 gal | F24: =INDEX(PRICING[Indication],MATCH(Rebate_Lookup[[#This Row],[SKU CODE]],PRICING[SKU],0)) -> F | G24: =COUNTIFS(PRICING[SKU],B24) -> 2 | H24: 0 | I24: 6 | K24: =SUMIFS(PRICING[Rebate $],PRICING[SKU],Rebate_Lookup[[#This Row],[SKU CODE]],PRICING[Set],1) -> 0 | L24: =SUMIFS(PRICING[Rebate $],PRICING[SKU],Rebate_Lookup[[#This Row],[SKU CODE]],PRICING[Set],2) -> 90 | M24: =SUMIFS(PRICING[Rebate $],PRICING[SKU],Rebate_Lookup[[#This Row],[SKU CODE]],PRICING[Set],3) -> 0 | N24: =INDEX('2025 GOLF Only Fall Solutions'!J:J,MATCH(Rebate_Lookup[[#This Row],[SKU CODE]],'2025 GOLF Only Fall Solutions'!A:A,0)) -> 0 | O24: =IF(Rebate_Lookup[[#This Row],[Instances]]=1,1, IF(AND(Rebate_Lookup[[#This Row],[Instances]]=2,Rebate_Lookup[[#This Row],[Order Form Quantity]]<Rebate_Lookup[[#This Row],[MOQ_2]]),1,IF(AND(Rebate_Lookup[[#This Row],[Instances]]=2,Rebate_Lookup[[#This Row],[Order Form Quantity]]>=Rebate_Lookup[[#This Row],[MOQ_2]]),2, IF(AND(Rebate_Lookup[[#This Row],[Instances]]=3,Rebate_Lookup[[#This Row],[Order Form Quantity]]<Rebate_Lookup[[#This Row],[MOQ_2]]),1,IF(AND(Rebate_Lookup[[#This Row],[Instances]]=3,Rebate_Lookup[[#This Row],[MOQ_2]]<=Rebate_Lookup[[#This Row],[Order Form Quantity]],Rebate_Lookup[[#This Row],[Order Form Quantity]]<Rebate_Lookup[[#This Row],[MOQ_3]]),2,IF(AND(Rebate_Lookup[[#This Row],[Instances]]=3,Rebate_Lookup[[#This Row],[Order Form Quantity]]>=Rebate_Lookup[[#This Row],[MOQ_3]]),3)))))) -> 1 | P24: =COUNTIF('2025 GOLF Only Fall Solutions'!A:A,Rebate_Lookup[[#This Row],[SKU CODE]]) -> 1 | Q24: =IFERROR(Rebate_Lookup[[#This Row],[Order Form Quantity]]>=Rebate_Lookup[[#This Row],[MOQ_2]],0) -> FALSE | S24: =COUNTIF('2025 GOLF Only Fall Solutions'!A:A,Rebate_Lookup[[#This Row],[SKU CODE]]) -> 1
B25: 11013671 | C25: =INDEX(PRICING[Agency/TT],MATCH(Rebate_Lookup[[#This Row],[SKU CODE]],PRICING[SKU],0)) -> A | D25: =INDEX(PRICING[Product],MATCH(B25,PRICING[SKU],0)) -> Kalida® Fungicide | E25: =INDEX(PRICING[Size],MATCH(Rebate_Lookup[[#This Row],[SKU CODE]],PRICING[SKU],0)) -> 64 oz | F25: =INDEX(PRICING[Indication],MATCH(Rebate_Lookup[[#This Row],[SKU CODE]],PRICING[SKU],0)) -> F | G25: =COUNTIFS(PRICING[SKU],B25) -> 2 | H25: 0 | I25: 4 | K25: =SUMIFS(PRICING[Rebate $],PRICING[SKU],Rebate_Lookup[[#This Row],[SKU CODE]],PRICING[Set],1) -> 0 | L25: =SUMIFS(PRICING[Rebate $],PRICING[SKU],Rebate_Lookup[[#This Row],[SKU CODE]],PRICING[Set],2) -> 295 | M25: =SUMIFS(PRICING[Rebate $],PRICING[SKU],Rebate_Lookup[[#This Row],[SKU CODE]],PRICING[Set],3) -> 0 | N25: =INDEX('2025 GOLF Only Fall Solutions'!J:J,MATCH(Rebate_Lookup[[#This Row],[SKU CODE]],'2025 GOLF Only Fall Solutions'!A:A,0)) -> 0 | O25: =IF(Rebate_Lookup[[#This Row],[Instances]]=1,1, IF(AND(Rebate_Lookup[[#This Row],[Instances]]=2,Rebate_Lookup[[#This Row],[Order Form Quantity]]<Rebate_Lookup[[#This Row],[MOQ_2]]),1,IF(AND(Rebate_Lookup[[#This Row],[Instances]]=2,Rebate_Lookup[[#This Row],[Order Form Quantity]]>=Rebate_Lookup[[#This Row],[MOQ_2]]),2, IF(AND(Rebate_Lookup[[#This Row],[Instances]]=3,Rebate_Lookup[[#This Row],[Order Form Quantity]]<Rebate_Lookup[[#This Row],[MOQ_2]]),1,IF(AND(Rebate_Lookup[[#This Row],[Instances]]=3,Rebate_Lookup[[#This Row],[MOQ_2]]<=Rebate_Lookup[[#This Row],[Order Form Quantity]],Rebate_Lookup[[#This Row],[Order Form Quantity]]<Rebate_Lookup[[#This Row],[MOQ_3]]),2,IF(AND(Rebate_Lookup[[#This Row],[Instances]]=3,Rebate_Lookup[[#This Row],[Order Form Quantity]]>=Rebate_Lookup[[#This Row],[MOQ_3]]),3)))))) -> 1 | P25: =COUNTIF('2025 GOLF Only Fall Solutions'!A:A,Rebate_Lookup[[#This Row],[SKU CODE]]) -> 1 | Q25: =IFERROR(Rebate_Lookup[[#This Row],[Order Form Quantity]]>=Rebate_Lookup[[#This Row],[MOQ_2]],0) -> FALSE | S25: =COUNTIF('2025 GOLF Only Fall Solutions'!A:A,Rebate_Lookup[[#This Row],[SKU CODE]]) -> 1
B26: D00000965 | C26: =INDEX(PRICING[Agency/TT],MATCH(Rebate_Lookup[[#This Row],[SKU CODE]],PRICING[SKU],0)) -> A | D26: =INDEX(PRICING[Product],MATCH(B26,PRICING[SKU],0)) -> Mirage® Stressgard® | E26: =INDEX(PRICING[Size],MATCH(Rebate_Lookup[[#This Row],[SKU CODE]],PRICING[SKU],0)) -> 2.5 gal | F26: =INDEX(PRICING[Indication],MATCH(Rebate_Lookup[[#This Row],[SKU CODE]],PRICING[SKU],0)) -> F | G26: =COUNTIFS(PRICING[SKU],B26) -> 2 | H26: 0 | I26: 4 | K26: =SUMIFS(PRICING[Rebate $],PRICING[SKU],Rebate_Lookup[[#This Row],[SKU CODE]],PRICING[Set],1) -> 0 | L26: =SUMIFS(PRICING[Rebate $],PRICING[SKU],Rebate_Lookup[[#This Row],[SKU CODE]],PRICING[Set],2) -> 90 | M26: =SUMIFS(PRICING[Rebate $],PRICING[SKU],Rebate_Lookup[[#This Row],[SKU CODE]],PRICING[Set],3) -> 0 | N26: =INDEX('2025 GOLF Only Fall Solutions'!J:J,MATCH(Rebate_Lookup[[#This Row],[SKU CODE]],'2025 GOLF Only Fall Solutions'!A:A,0)) -> 0 | O26: =IF(Rebate_Lookup[[#This Row],[Instances]]=1,1, IF(AND(Rebate_Lookup[[#This Row],[Instances]]=2,Rebate_Lookup[[#This Row],[Order Form Quantity]]<Rebate_Lookup[[#This Row],[MOQ_2]]),1,IF(AND(Rebate_Lookup[[#This Row],[Instances]]=2,Rebate_Lookup[[#This Row],[Order Form Quantity]]>=Rebate_Lookup[[#This Row],[MOQ_2]]),2, IF(AND(Rebate_Lookup[[#This Row],[Instances]]=3,Rebate_Lookup[[#This Row],[Order Form Quantity]]<Rebate_Lookup[[#This Row],[MOQ_2]]),1,IF(AND(Rebate_Lookup[[#This Row],[Instances]]=3,Rebate_Lookup[[#This Row],[MOQ_2]]<=Rebate_Lookup[[#This Row],[Order Form Quantity]],Rebate_Lookup[[#This Row],[Order Form Quantity]]<Rebate_Lookup[[#This Row],[MOQ_3]]),2,IF(AND(Rebate_Lookup[[#This Row],[Instances]]=3,Rebate_Lookup[[#This Row],[Order Form Quantity]]>=Rebate_Lookup[[#This Row],[MOQ_3]]),3)))))) -> 1 | P26: =COUNTIF('2025 GOLF Only Fall Solutions'!A:A,Rebate_Lookup[[#This Row],[SKU CODE]]) -> 1 | Q26: =IFERROR(Rebate_Lookup[[#This Row],[Order Form Quantity]]>=Rebate_Lookup[[#This Row],[MOQ_2]],0) -> FALSE | S26: =COUNTIF('2025 GOLF Only Fall Solutions'!A:A,Rebate_Lookup[[#This Row],[SKU CODE]]) -> 1
B27: 11003880 | C27: =INDEX(PRICING[Agency/TT],MATCH(Rebate_Lookup[[#This Row],[SKU CODE]],PRICING[SKU],0)) -> A | D27: =INDEX(PRICING[Product],MATCH(B27,PRICING[SKU],0)) -> Rayora® Fungicide | E27: =INDEX(PRICING[Size],MATCH(Rebate_Lookup[[#This Row],[SKU CODE]],PRICING[SKU],0)) -> 2.5 gal | F27: =INDEX(PRICING[Indication],MATCH(Rebate_Lookup[[#This Row],[SKU CODE]],PRICING[SKU],0)) -> F | G27: =COUNTIFS(PRICING[SKU],B27) -> 2 | H27: 0 | I27: 6 | K27: =SUMIFS(PRICING[Rebate $],PRICING[SKU],Rebate_Lookup[[#This Row],[SKU CODE]],PRICING[Set],1) -> 0 | L27: =SUMIFS(PRICING[Rebate $],PRICING[SKU],Rebate_Lookup[[#This Row],[SKU CODE]],PRICING[Set],2) -> 160 | M27: =SUMIFS(PRICING[Rebate $],PRICING[SKU],Rebate_Lookup[[#This Row],[SKU CODE]],PRICING[Set],3) -> 0 | N27: =INDEX('2025 GOLF Only Fall Solutions'!J:J,MATCH(Rebate_Lookup[[#This Row],[SKU CODE]],'2025 GOLF Only Fall Solutions'!A:A,0)) -> 0 | O27: =IF(Rebate_Lookup[[#This Row],[Instances]]=1,1, IF(AND(Rebate_Lookup[[#This Row],[Instances]]=2,Rebate_Lookup[[#This Row],[Order Form Quantity]]<Rebate_Lookup[[#This Row],[MOQ_2]]),1,IF(AND(Rebate_Lookup[[#This Row],[Instances]]=2,Rebate_Lookup[[#This Row],[Order Form Quantity]]>=Rebate_Lookup[[#This Row],[MOQ_2]]),2, IF(AND(Rebate_Lookup[[#This Row],[Instances]]=3,Rebate_Lookup[[#This Row],[Order Form Quantity]]<Rebate_Lookup[[#This Row],[MOQ_2]]),1,IF(AND(Rebate_Lookup[[#This Row],[Instances]]=3,Rebate_Lookup[[#This Row],[MOQ_2]]<=Rebate_Lookup[[#This Row],[Order Form Quantity]],Rebate_Lookup[[#This Row],[Order Form Quantity]]<Rebate_Lookup[[#This Row],[MOQ_3]]),2,IF(AND(Rebate_Lookup[[#This Row],[Instances]]=3,Rebate_Lookup[[#This Row],[Order Form Quantity]]>=Rebate_Lookup[[#This Row],[MOQ_3]]),3)))))) -> 1 | P27: =COUNTIF('2025 GOLF Only Fall Solutions'!A:A,Rebate_Lookup[[#This Row],[SKU CODE]]) -> 1 | Q27: =IFERROR(Rebate_Lookup[[#This Row],[Order Form Quantity]]>=Rebate_Lookup[[#This Row],[MOQ_2]],0) -> FALSE | S27: =COUNTIF('2025 GOLF Only Fall Solutions'!A:A,Rebate_Lookup[[#This Row],[SKU CODE]]) -> 1
B28: D00000125 | C28: =INDEX(PRICING[Agency/TT],MATCH(Rebate_Lookup[[#This Row],[SKU CODE]],PRICING[SKU],0)) -> A | D28: =INDEX(PRICING[Product],MATCH(B28,PRICING[SKU],0)) -> Resilia™ | E28: =INDEX(PRICING[Size],MATCH(Rebate_Lookup[[#This Row],[SKU CODE]],PRICING[SKU],0)) -> 2.72 gal | F28: =INDEX(PRICING[Indication],MATCH(Rebate_Lookup[[#This Row],[SKU CODE]],PRICING[SKU],0)) -> F | G28: =COUNTIFS(PRICING[SKU],B28) -> 3 | H28: 0 | I28: 4 | J28: 15 | K28: =SUMIFS(PRICING[Rebate $],PRICING[SKU],Rebate_Lookup[[#This Row],[SKU CODE]],PRICING[Set],1) -> 0 | L28: =SUMIFS(PRICING[Rebate $],PRICING[SKU],Rebate_Lookup[[#This Row],[SKU CODE]],PRICING[Set],2) -> 65 | M28: =SUMIFS(PRICING[Rebate $],PRICING[SKU],Rebate_Lookup[[#This Row],[SKU CODE]],PRICING[Set],3) -> 180 | N28: =INDEX('2025 GOLF Only Fall Solutions'!J:J,MATCH(Rebate_Lookup[[#This Row],[SKU CODE]],'2025 GOLF Only Fall Solutions'!A:A,0)) -> 0 | O28: =IF(Rebate_Lookup[[#This Row],[Instances]]=1,1, IF(AND(Rebate_Lookup[[#This Row],[Instances]]=2,Rebate_Lookup[[#This Row],[Order Form Quantity]]<Rebate_Lookup[[#This Row],[MOQ_2]]),1,IF(AND(Rebate_Lookup[[#This Row],[Instances]]=2,Rebate_Lookup[[#This Row],[Order Form Quantity]]>=Rebate_Lookup[[#This Row],[MOQ_2]]),2, IF(AND(Rebate_Lookup[[#This Row],[Instances]]=3,Rebate_Lookup[[#This Row],[Order Form Quantity]]<Rebate_Lookup[[#This Row],[MOQ_2]]),1,IF(AND(Rebate_Lookup[[#This Row],[Instances]]=3,Rebate_Lookup[[#This Row],[MOQ_2]]<=Rebate_Lookup[[#This Row],[Order Form Quantity]],Rebate_Lookup[[#This Row],[Order Form Quantity]]<Rebate_Lookup[[#This Row],[MOQ_3]]),2,IF(AND(Rebate_Lookup[[#This Row],[Instances]]=3,Rebate_Lookup[[#This Row],[Order Form Quantity]]>=Rebate_Lookup[[#This Row],[MOQ_3]]),3)))))) -> 1 | P28: =COUNTIF('2025 GOLF Only Fall Solutions'!A:A,Rebate_Lookup[[#This Row],[SKU CODE]]) -> 1 | Q28: =IFERROR(Rebate_Lookup[[#This Row],[Order Form Quantity]]>=Rebate_Lookup[[#This Row],[MOQ_2]],0) -> FALSE | S28: =COUNTIF('2025 GOLF Only Fall Solutions'!A:A,Rebate_Lookup[[#This Row],[SKU CODE]]) -> 1
B29: 79545312 | C29: =INDEX(PRICING[Agency/TT],MATCH(Rebate_Lookup[[#This Row],[SKU CODE]],PRICING[SKU],0)) -> A | D29: =INDEX(PRICING[Product],MATCH(B29,PRICING[SKU],0)) -> Revolver® | E29: =INDEX(PRICING[Size],MATCH(Rebate_Lookup[[#This Row],[SKU CODE]],PRICING[SKU],0)) -> 87 fl oz | F29: =INDEX(PRICING[Indication],MATCH(Rebate_Lookup[[#This Row],[SKU CODE]],PRICING[SKU],0)) -> H | G29: =COUNTIFS(PRICING[SKU],B29) -> 2 | H29: 0 | I29: 16 | K29: =SUMIFS(PRICING[Rebate $],PRICING[SKU],Rebate_Lookup[[#This Row],[SKU CODE]],PRICING[Set],1) -> 0 | L29: =SUMIFS(PRICING[Rebate $],PRICING[SKU],Rebate_Lookup[[#This Row],[SKU CODE]],PRICING[Set],2) -> 50 | M29: =SUMIFS(PRICING[Rebate $],PRICING[SKU],Rebate_Lookup[[#This Row],[SKU CODE]],PRICING[Set],3) -> 0 | N29: =INDEX('2025 GOLF Only Fall Solutions'!J:J,MATCH(Rebate_Lookup[[#This Row],[SKU CODE]],'2025 GOLF Only Fall Solutions'!A:A,0)) -> 0 | O29: =IF(Rebate_Lookup[[#This Row],[Instances]]=1,1, IF(AND(Rebate_Lookup[[#This Row],[Instances]]=2,Rebate_Lookup[[#This Row],[Order Form Quantity]]<Rebate_Lookup[[#This Row],[MOQ_2]]),1,IF(AND(Rebate_Lookup[[#This Row],[Instances]]=2,Rebate_Lookup[[#This Row],[Order Form Quantity]]>=Rebate_Lookup[[#This Row],[MOQ_2]]),2, IF(AND(Rebate_Lookup[[#This Row],[Instances]]=3,Rebate_Lookup[[#This Row],[Order Form Quantity]]<Rebate_Lookup[[#This Row],[MOQ_2]]),1,IF(AND(Rebate_Lookup[[#This Row],[Instances]]=3,Rebate_Lookup[[#This Row],[MOQ_2]]<=Rebate_Lookup[[#This Row],[Order Form Quantity]],Rebate_Lookup[[#This Row],[Order Form Quantity]]<Rebate_Lookup[[#This Row],[MOQ_3]]),2,IF(AND(Rebate_Lookup[[#This Row],[Instances]]=3,Rebate_Lookup[[#This Row],[Order Form Quantity]]>=Rebate_Lookup[[#This Row],[MOQ_3]]),3)))))) -> 1 | P29: =COUNTIF('2025 GOLF Only Fall Solutions'!A:A,Rebate_Lookup[[#This Row],[SKU CODE]]) -> 1 | Q29: =IFERROR(Rebate_Lookup[[#This Row],[Order Form Quantity]]>=Rebate_Lookup[[#This Row],[MOQ_2]],0) -> FALSE | S29: =COUNTIF('2025 GOLF Only Fall Solutions'!A:A,Rebate_Lookup[[#This Row],[SKU CODE]]) -> 1
B30: D00000986 | C30: =INDEX(PRICING[Agency/TT],MATCH(Rebate_Lookup[[#This Row],[SKU CODE]],PRICING[SKU],0)) -> A | D30: =INDEX(PRICING[Product],MATCH(B30,PRICING[SKU],0)) -> Ronstar® FLO | E30: =INDEX(PRICING[Size],MATCH(Rebate_Lookup[[#This Row],[SKU CODE]],PRICING[SKU],0)) -> 2.5 gal | F30: =INDEX(PRICING[Indication],MATCH(Rebate_Lookup[[#This Row],[SKU CODE]],PRICING[SKU],0)) -> H | G30: =COUNTIFS(PRICING[SKU],B30) -> 2 | H30: 1 | I30: 12 | J30: 40 | K30: =SUMIFS(PRICING[Rebate $],PRICING[SKU],Rebate_Lookup[[#This Row],[SKU CODE]],PRICING[Set],1) -> 0 | L30: =SUMIFS(PRICING[Rebate $],PRICING[SKU],Rebate_Lookup[[#This Row],[SKU CODE]],PRICING[Set],2) -> 0 | M30: =SUMIFS(PRICING[Rebate $],PRICING[SKU],Rebate_Lookup[[#This Row],[SKU CODE]],PRICING[Set],3) -> 0 | N30: =INDEX('2025 GOLF Only Fall Solutions'!J:J,MATCH(Rebate_Lookup[[#This Row],[SKU CODE]],'2025 GOLF Only Fall Solutions'!A:A,0)) -> 0 | O30: =IF(Rebate_Lookup[[#This Row],[Instances]]=1,1, IF(AND(Rebate_Lookup[[#This Row],[Instances]]=2,Rebate_Lookup[[#This Row],[Order Form Quantity]]<Rebate_Lookup[[#This Row],[MOQ_2]]),1,IF(AND(Rebate_Lookup[[#This Row],[Instances]]=2,Rebate_Lookup[[#This Row],[Order Form Quantity]]>=Rebate_Lookup[[#This Row],[MOQ_2]]),2, IF(AND(Rebate_Lookup[[#This Row],[Instances]]=3,Rebate_Lookup[[#This Row],[Order Form Quantity]]<Rebate_Lookup[[#This Row],[MOQ_2]]),1,IF(AND(Rebate_Lookup[[#This Row],[Instances]]=3,Rebate_Lookup[[#This Row],[MOQ_2]]<=Rebate_Lookup[[#This Row],[Order Form Quantity]],Rebate_Lookup[[#This Row],[Order Form Quantity]]<Rebate_Lookup[[#This Row],[MOQ_3]]),2,IF(AND(Rebate_Lookup[[#This Row],[Instances]]=3,Rebate_Lookup[[#This Row],[Order Form Quantity]]>=Rebate_Lookup[[#This Row],[MOQ_3]]),3)))))) -> 1 | P30: =COUNTIF('2025 GOLF Only Fall Solutions'!A:A,Rebate_Lookup[[#This Row],[SKU CODE]]) -> 2 | Q30: =IFERROR(Rebate_Lookup[[#This Row],[Order Form Quantity]]>=Rebate_Lookup[[#This Row],[MOQ_2]],0) -> FALSE | S30: =COUNTIF('2025 GOLF Only Fall Solutions'!A:A,Rebate_Lookup[[#This Row],[SKU CODE]]) -> 2
B31: 11009495 | C31: =INDEX(PRICING[Agency/TT],MATCH(Rebate_Lookup[[#This Row],[SKU CODE]],PRICING[SKU],0)) -> A | D31: =INDEX(PRICING[Product],MATCH(B31,PRICING[SKU],0)) -> Scion | E31: =INDEX(PRICING[Size],MATCH(Rebate_Lookup[[#This Row],[SKU CODE]],PRICING[SKU],0)) -> 32 oz | F31: =INDEX(PRICING[Indication],MATCH(Rebate_Lookup[[#This Row],[SKU CODE]],PRICING[SKU],0)) -> I | G31: =COUNTIFS(PRICING[SKU],B31) -> 1 | H31: 1 | K31: 38 | L31: =SUMIFS(PRICING[Rebate $],PRICING[SKU],Rebate_Lookup[[#This Row],[SKU CODE]],PRICING[Set],2) -> 0 | M31: =SUMIFS(PRICING[Rebate $],PRICING[SKU],Rebate_Lookup[[#This Row],[SKU CODE]],PRICING[Set],3) -> 0 | N31: =INDEX('2025 GOLF Only Fall Solutions'!J:J,MATCH(Rebate_Lookup[[#This Row],[SKU CODE]],'2025 GOLF Only Fall Solutions'!A:A,0)) ->  | O31: =IF(Rebate_Lookup[[#This Row],[Instances]]=1,1, IF(AND(Rebate_Lookup[[#This Row],[Instances]]=2,Rebate_Lookup[[#This Row],[Order Form Quantity]]<Rebate_Lookup[[#This Row],[MOQ_2]]),1,IF(AND(Rebate_Lookup[[#This Row],[Instances]]=2,Rebate_Lookup[[#This Row],[Order Form Quantity]]>=Rebate_Lookup[[#This Row],[MOQ_2]]),2, IF(AND(Rebate_Lookup[[#This Row],[Instances]]=3,Rebate_Lookup[[#This Row],[Order Form Quantity]]<Rebate_Lookup[[#This Row],[MOQ_2]]),1,IF(AND(Rebate_Lookup[[#This Row],[Instances]]=3,Rebate_Lookup[[#This Row],[MOQ_2]]<=Rebate_Lookup[[#This Row],[Order Form Quantity]],Rebate_Lookup[[#This Row],[Order Form Quantity]]<Rebate_Lookup[[#This Row],[MOQ_3]]),2,IF(AND(Rebate_Lookup[[#This Row],[Instances]]=3,Rebate_Lookup[[#This Row],[Order Form Quantity]]>=Rebate_Lookup[[#This Row],[MOQ_3]]),3)))))) -> 1 | P31: =COUNTIF('2025 GOLF Only Fall Solutions'!A:A,Rebate_Lookup[[#This Row],[SKU CODE]]) -> 0 | Q31: =IFERROR(Rebate_Lookup[[#This Row],[Order Form Quantity]]>=Rebate_Lookup[[#This Row],[MOQ_2]],0) -> 0 | S31: =COUNTIF('2025 GOLF Only Fall Solutions'!A:A,Rebate_Lookup[[#This Row],[SKU CODE]]) -> 0
B32: 11014245 | C32: =INDEX(PRICING[Agency/TT],MATCH(Rebate_Lookup[[#This Row],[SKU CODE]],PRICING[SKU],0)) -> A | D32: =INDEX(PRICING[Product],MATCH(B32,PRICING[SKU],0)) -> Serata® Fungicide | E32: =INDEX(PRICING[Size],MATCH(Rebate_Lookup[[#This Row],[SKU CODE]],PRICING[SKU],0)) -> 35 oz | F32: =INDEX(PRICING[Indication],MATCH(Rebate_Lookup[[#This Row],[SKU CODE]],PRICING[SKU],0)) -> F | G32: =COUNTIFS(PRICING[SKU],B32) -> 2 | H32: 0 | I32: 8 | K32: =SUMIFS(PRICING[Rebate $],PRICING[SKU],Rebate_Lookup[[#This Row],[SKU CODE]],PRICING[Set],1) -> 0 | L32: =SUMIFS(PRICING[Rebate $],PRICING[SKU],Rebate_Lookup[[#This Row],[SKU CODE]],PRICING[Set],2) -> 15 | M32: =SUMIFS(PRICING[Rebate $],PRICING[SKU],Rebate_Lookup[[#This Row],[SKU CODE]],PRICING[Set],3) -> 0 | N32: =INDEX('2025 GOLF Only Fall Solutions'!J:J,MATCH(Rebate_Lookup[[#This Row],[SKU CODE]],'2025 GOLF Only Fall Solutions'!A:A,0)) -> 0 | O32: =IF(Rebate_Lookup[[#This Row],[Instances]]=1,1, IF(AND(Rebate_Lookup[[#This Row],[Instances]]=2,Rebate_Lookup[[#This Row],[Order Form Quantity]]<Rebate_Lookup[[#This Row],[MOQ_2]]),1,IF(AND(Rebate_Lookup[[#This Row],[Instances]]=2,Rebate_Lookup[[#This Row],[Order Form Quantity]]>=Rebate_Lookup[[#This Row],[MOQ_2]]),2, IF(AND(Rebate_Lookup[[#This Row],[Instances]]=3,Rebate_Lookup[[#This Row],[Order Form Quantity]]<Rebate_Lookup[[#This Row],[MOQ_2]]),1,IF(AND(Rebate_Lookup[[#This Row],[Instances]]=3,Rebate_Lookup[[#This Row],[MOQ_2]]<=Rebate_Lookup[[#This Row],[Order Form Quantity]],Rebate_Lookup[[#This Row],[Order Form Quantity]]<Rebate_Lookup[[#This Row],[MOQ_3]]),2,IF(AND(Rebate_Lookup[[#This Row],[Instances]]=3,Rebate_Lookup[[#This Row],[Order Form Quantity]]>=Rebate_Lookup[[#This Row],[MOQ_3]]),3)))))) -> 1 | P32: =COUNTIF('2025 GOLF Only Fall Solutions'!A:A,Rebate_Lookup[[#This Row],[SKU CODE]]) -> 1 | Q32: =IFERROR(Rebate_Lookup[[#This Row],[Order Form Quantity]]>=Rebate_Lookup[[#This Row],[MOQ_2]],0) -> FALSE | S32: =COUNTIF('2025 GOLF Only Fall Solutions'!A:A,Rebate_Lookup[[#This Row],[SKU CODE]]) -> 1
B33: D00000989 | C33: =INDEX(PRICING[Agency/TT],MATCH(Rebate_Lookup[[#This Row],[SKU CODE]],PRICING[SKU],0)) -> A | D33: =INDEX(PRICING[Product],MATCH(B33,PRICING[SKU],0)) -> Signature™ XTRA Stressgard® | E33: =INDEX(PRICING[Size],MATCH(Rebate_Lookup[[#This Row],[SKU CODE]],PRICING[SKU],0)) -> 5.5 lb | F33: =INDEX(PRICING[Indication],MATCH(Rebate_Lookup[[#This Row],[SKU CODE]],PRICING[SKU],0)) -> F | G33: =COUNTIFS(PRICING[SKU],B33) -> 2 | H33: 0 | I33: 24 | K33: =SUMIFS(PRICING[Rebate $],PRICING[SKU],Rebate_Lookup[[#This Row],[SKU CODE]],PRICING[Set],1) -> 0 | L33: =SUMIFS(PRICING[Rebate $],PRICING[SKU],Rebate_Lookup[[#This Row],[SKU CODE]],PRICING[Set],2) -> 15 | M33: =SUMIFS(PRICING[Rebate $],PRICING[SKU],Rebate_Lookup[[#This Row],[SKU CODE]],PRICING[Set],3) -> 0 | N33: =INDEX('2025 GOLF Only Fall Solutions'!J:J,MATCH(Rebate_Lookup[[#This Row],[SKU CODE]],'2025 GOLF Only Fall Solutions'!A:A,0)) -> 0 | O33: =IF(Rebate_Lookup[[#This Row],[Instances]]=1,1, IF(AND(Rebate_Lookup[[#This Row],[Instances]]=2,Rebate_Lookup[[#This Row],[Order Form Quantity]]<Rebate_Lookup[[#This Row],[MOQ_2]]),1,IF(AND(Rebate_Lookup[[#This Row],[Instances]]=2,Rebate_Lookup[[#This Row],[Order Form Quantity]]>=Rebate_Lookup[[#This Row],[MOQ_2]]),2, IF(AND(Rebate_Lookup[[#This Row],[Instances]]=3,Rebate_Lookup[[#This Row],[Order Form Quantity]]<Rebate_Lookup[[#This Row],[MOQ_2]]),1,IF(AND(Rebate_Lookup[[#This Row],[Instances]]=3,Rebate_Lookup[[#This Row],[MOQ_2]]<=Rebate_Lookup[[#This Row],[Order Form Quantity]],Rebate_Lookup[[#This Row],[Order Form Quantity]]<Rebate_Lookup[[#This Row],[MOQ_3]]),2,IF(AND(Rebate_Lookup[[#This Row],[Instances]]=3,Rebate_Lookup[[#This Row],[Order Form Quantity]]>=Rebate_Lookup[[#This Row],[MOQ_3]]),3)))))) -> 1 | P33: =COUNTIF('2025 GOLF Only Fall Solutions'!A:A,Rebate_Lookup[[#This Row],[SKU CODE]]) -> 1 | Q33: =IFERROR(Rebate_Lookup[[#This Row],[Order Form Quantity]]>=Rebate_Lookup[[#This Row],[MOQ_2]],0) -> FALSE | S33: =COUNTIF('2025 GOLF Only Fall Solutions'!A:A,Rebate_Lookup[[#This Row],[SKU CODE]]) -> 1
B34: 11008522 | C34: =INDEX(PRICING[Agency/TT],MATCH(Rebate_Lookup[[#This Row],[SKU CODE]],PRICING[SKU],0)) -> A | D34: =INDEX(PRICING[Product],MATCH(B34,PRICING[SKU],0)) -> Solitare® Herbicide | E34: =INDEX(PRICING[Size],MATCH(Rebate_Lookup[[#This Row],[SKU CODE]],PRICING[SKU],0)) -> 4 lb | F34: =INDEX(PRICING[Indication],MATCH(Rebate_Lookup[[#This Row],[SKU CODE]],PRICING[SKU],0)) -> H | G34: =COUNTIFS(PRICING[SKU],B34) -> 2 | H34: 0 | I34: 16 | K34: =SUMIFS(PRICING[Rebate $],PRICING[SKU],Rebate_Lookup[[#This Row],[SKU CODE]],PRICING[Set],1) -> 0 | L34: =SUMIFS(PRICING[Rebate $],PRICING[SKU],Rebate_Lookup[[#This Row],[SKU CODE]],PRICING[Set],2) -> 40 | M34: =SUMIFS(PRICING[Rebate $],PRICING[SKU],Rebate_Lookup[[#This Row],[SKU CODE]],PRICING[Set],3) -> 0 | N34: =INDEX('2025 GOLF Only Fall Solutions'!J:J,MATCH(Rebate_Lookup[[#This Row],[SKU CODE]],'2025 GOLF Only Fall Solutions'!A:A,0)) -> 0 | O34: =IF(Rebate_Lookup[[#This Row],[Instances]]=1,1, IF(AND(Rebate_Lookup[[#This Row],[Instances]]=2,Rebate_Lookup[[#This Row],[Order Form Quantity]]<Rebate_Lookup[[#This Row],[MOQ_2]]),1,IF(AND(Rebate_Lookup[[#This Row],[Instances]]=2,Rebate_Lookup[[#This Row],[Order Form Quantity]]>=Rebate_Lookup[[#This Row],[MOQ_2]]),2, IF(AND(Rebate_Lookup[[#This Row],[Instances]]=3,Rebate_Lookup[[#This Row],[Order Form Quantity]]<Rebate_Lookup[[#This Row],[MOQ_2]]),1,IF(AND(Rebate_Lookup[[#This Row],[Instances]]=3,Rebate_Lookup[[#This Row],[MOQ_2]]<=Rebate_Lookup[[#This Row],[Order Form Quantity]],Rebate_Lookup[[#This Row],[Order Form Quantity]]<Rebate_Lookup[[#This Row],[MOQ_3]]),2,IF(AND(Rebate_Lookup[[#This Row],[Instances]]=3,Rebate_Lookup[[#This Row],[Order Form Quantity]]>=Rebate_Lookup[[#This Row],[MOQ_3]]),3)))))) -> 1 | P34: =COUNTIF('2025 GOLF Only Fall Solutions'!A:A,Rebate_Lookup[[#This Row],[SKU CODE]]) -> 1 | Q34: =IF(OR('2025 GOLF Only Fall Solutions'!J31>6,'2025 GOLF Only Fall Solutions'!J32>6,'2025 GOLF Only Fall Solutions'!J33>6,'2025 GOLF Only Fall Solutions'!J34>6),TRUE,0) -> 0 | S34: =COUNTIF('2025 GOLF Only Fall Solutions'!A:A,Rebate_Lookup[[#This Row],[SKU CODE]]) -> 1
B35: 11013862 | C35: =INDEX(PRICING[Agency/TT],MATCH(Rebate_Lookup[[#This Row],[SKU CODE]],PRICING[SKU],0)) -> A | D35: =INDEX(PRICING[Product],MATCH(B35,PRICING[SKU],0)) -> Solitare® WSL Herbicide | E35: =INDEX(PRICING[Size],MATCH(Rebate_Lookup[[#This Row],[SKU CODE]],PRICING[SKU],0)) -> 2.5 gal | F35: =INDEX(PRICING[Indication],MATCH(Rebate_Lookup[[#This Row],[SKU CODE]],PRICING[SKU],0)) -> H | G35: =COUNTIFS(PRICING[SKU],B35) -> 2 | H35: 0 | I35: 24 | K35: =SUMIFS(PRICING[Rebate $],PRICING[SKU],Rebate_Lookup[[#This Row],[SKU CODE]],PRICING[Set],1) -> 0 | L35: =SUMIFS(PRICING[Rebate $],PRICING[SKU],Rebate_Lookup[[#This Row],[SKU CODE]],PRICING[Set],2) -> 40 | M35: =SUMIFS(PRICING[Rebate $],PRICING[SKU],Rebate_Lookup[[#This Row],[SKU CODE]],PRICING[Set],3) -> 0 | N35: =INDEX('2025 GOLF Only Fall Solutions'!J:J,MATCH(Rebate_Lookup[[#This Row],[SKU CODE]],'2025 GOLF Only Fall Solutions'!A:A,0)) -> 0 | O35: =IF(Rebate_Lookup[[#This Row],[Instances]]=1,1, IF(AND(Rebate_Lookup[[#This Row],[Instances]]=2,Rebate_Lookup[[#This Row],[Order Form Quantity]]<Rebate_Lookup[[#This Row],[MOQ_2]]),1,IF(AND(Rebate_Lookup[[#This Row],[Instances]]=2,Rebate_Lookup[[#This Row],[Order Form Quantity]]>=Rebate_Lookup[[#This Row],[MOQ_2]]),2, IF(AND(Rebate_Lookup[[#This Row],[Instances]]=3,Rebate_Lookup[[#This Row],[Order Form Quantity]]<Rebate_Lookup[[#This Row],[MOQ_2]]),1,IF(AND(Rebate_Lookup[[#This Row],[Instances]]=3,Rebate_Lookup[[#This Row],[MOQ_2]]<=Rebate_Lookup[[#This Row],[Order Form Quantity]],Rebate_Lookup[[#This Row],[Order Form Quantity]]<Rebate_Lookup[[#This Row],[MOQ_3]]),2,IF(AND(Rebate_Lookup[[#This Row],[Instances]]=3,Rebate_Lookup[[#This Row],[Order Form Quantity]]>=Rebate_Lookup[[#This Row],[MOQ_3]]),3)))))) -> 1 | P35: =COUNTIF('2025 GOLF Only Fall Solutions'!A:A,Rebate_Lookup[[#This Row],[SKU CODE]]) -> 1 | Q35: =IFERROR(Rebate_Lookup[[#This Row],[Order Form Quantity]]>=Rebate_Lookup[[#This Row],[MOQ_2]],0) -> FALSE | S35: =COUNTIF('2025 GOLF Only Fall Solutions'!A:A,Rebate_Lookup[[#This Row],[SKU CODE]]) -> 1
B36: D00000990 | C36: =INDEX(PRICING[Agency/TT],MATCH(Rebate_Lookup[[#This Row],[SKU CODE]],PRICING[SKU],0)) -> A | D36: =INDEX(PRICING[Product],MATCH(B36,PRICING[SKU],0)) -> Specticle® FLO | E36: =INDEX(PRICING[Size],MATCH(Rebate_Lookup[[#This Row],[SKU CODE]],PRICING[SKU],0)) -> 1 gal | F36: =INDEX(PRICING[Indication],MATCH(Rebate_Lookup[[#This Row],[SKU CODE]],PRICING[SKU],0)) -> H | G36: =COUNTIFS(PRICING[SKU],B36)-1 -> 3 | H36: 7 | I36: 14 | J36: 26 | K36: =SUMIFS(PRICING[Rebate $],PRICING[SKU],Rebate_Lookup[[#This Row],[SKU CODE]],PRICING[Set],1) -> 0 | L36: =SUMIFS(PRICING[Rebate $],PRICING[SKU],Rebate_Lookup[[#This Row],[SKU CODE]],PRICING[Set],2) -> 38 | M36: =SUMIFS(PRICING[Rebate $],PRICING[SKU],Rebate_Lookup[[#This Row],[SKU CODE]],PRICING[Set],3) -> 32 | N36: =INDEX('2025 GOLF Only Fall Solutions'!J:J,MATCH(Rebate_Lookup[[#This Row],[SKU CODE]],'2025 GOLF Only Fall Solutions'!A:A,0)) -> 0 | O36: =IF(Rebate_Lookup[[#This Row],[Instances]]=1,1, IF(AND(Rebate_Lookup[[#This Row],[Instances]]=2,Rebate_Lookup[[#This Row],[Order Form Quantity]]<Rebate_Lookup[[#This Row],[MOQ_2]]),1,IF(AND(Rebate_Lookup[[#This Row],[Instances]]=2,Rebate_Lookup[[#This Row],[Order Form Quantity]]>=Rebate_Lookup[[#This Row],[MOQ_2]]),2, IF(AND(Rebate_Lookup[[#This Row],[Instances]]=3,Rebate_Lookup[[#This Row],[Order Form Quantity]]<Rebate_Lookup[[#This Row],[MOQ_2]]),1,IF(AND(Rebate_Lookup[[#This Row],[Instances]]=3,Rebate_Lookup[[#This Row],[MOQ_2]]<=Rebate_Lookup[[#This Row],[Order Form Quantity]],Rebate_Lookup[[#This Row],[Order Form Quantity]]<Rebate_Lookup[[#This Row],[MOQ_3]]),2,IF(AND(Rebate_Lookup[[#This Row],[Instances]]=3,Rebate_Lookup[[#This Row],[Order Form Quantity]]>=Rebate_Lookup[[#This Row],[MOQ_3]]),3)))))) -> 1 | P36: =COUNTIF('2025 GOLF Only Fall Solutions'!A:A,Rebate_Lookup[[#This Row],[SKU CODE]]) -> 4 | Q36: =IFERROR(Rebate_Lookup[[#This Row],[Order Form Quantity]]>=Rebate_Lookup[[#This Row],[MOQ_2]],0) -> FALSE | S36: =COUNTIF('2025 GOLF Only Fall Solutions'!A:A,Rebate_Lookup[[#This Row],[SKU CODE]]) -> 4
B37: D00000992 | C37: =INDEX(PRICING[Agency/TT],MATCH(Rebate_Lookup[[#This Row],[SKU CODE]],PRICING[SKU],0)) -> A | D37: =INDEX(PRICING[Product],MATCH(B37,PRICING[SKU],0)) -> Specticle® G | E37: =INDEX(PRICING[Size],MATCH(Rebate_Lookup[[#This Row],[SKU CODE]],PRICING[SKU],0)) -> 50 lb | F37: =INDEX(PRICING[Indication],MATCH(Rebate_Lookup[[#This Row],[SKU CODE]],PRICING[SKU],0)) -> H | G37: =COUNTIFS(PRICING[SKU],B37) -> 2 | H37: 0 | I37: 20 | K37: =SUMIFS(PRICING[Rebate $],PRICING[SKU],Rebate_Lookup[[#This Row],[SKU CODE]],PRICING[Set],1) -> 0 | L37: =SUMIFS(PRICING[Rebate $],PRICING[SKU],Rebate_Lookup[[#This Row],[SKU CODE]],PRICING[Set],2) -> 8 | M37: =SUMIFS(PRICING[Rebate $],PRICING[SKU],Rebate_Lookup[[#This Row],[SKU CODE]],PRICING[Set],3) -> 0 | N37: =INDEX('2025 GOLF Only Fall Solutions'!J:J,MATCH(Rebate_Lookup[[#This Row],[SKU CODE]],'2025 GOLF Only Fall Solutions'!A:A,0)) -> 0 | O37: =IF(Rebate_Lookup[[#This Row],[Instances]]=1,1, IF(AND(Rebate_Lookup[[#This Row],[Instances]]=2,Rebate_Lookup[[#This Row],[Order Form Quantity]]<Rebate_Lookup[[#This Row],[MOQ_2]]),1,IF(AND(Rebate_Lookup[[#This Row],[Instances]]=2,Rebate_Lookup[[#This Row],[Order Form Quantity]]>=Rebate_Lookup[[#This Row],[MOQ_2]]),2, IF(AND(Rebate_Lookup[[#This Row],[Instances]]=3,Rebate_Lookup[[#This Row],[Order Form Quantity]]<Rebate_Lookup[[#This Row],[MOQ_2]]),1,IF(AND(Rebate_Lookup[[#This Row],[Instances]]=3,Rebate_Lookup[[#This Row],[MOQ_2]]<=Rebate_Lookup[[#This Row],[Order Form Quantity]],Rebate_Lookup[[#This Row],[Order Form Quantity]]<Rebate_Lookup[[#This Row],[MOQ_3]]),2,IF(AND(Rebate_Lookup[[#This Row],[Instances]]=3,Rebate_Lookup[[#This Row],[Order Form Quantity]]>=Rebate_Lookup[[#This Row],[MOQ_3]]),3)))))) -> 1 | P37: =COUNTIF('2025 GOLF Only Fall Solutions'!A:A,Rebate_Lookup[[#This Row],[SKU CODE]]) -> 1 | Q37: =IFERROR(Rebate_Lookup[[#This Row],[Order Form Quantity]]>=Rebate_Lookup[[#This Row],[MOQ_2]],0) -> FALSE | S37: =COUNTIF('2025 GOLF Only Fall Solutions'!A:A,Rebate_Lookup[[#This Row],[SKU CODE]]) -> 1
B38: D00000998 | C38: =INDEX(PRICING[Agency/TT],MATCH(Rebate_Lookup[[#This Row],[SKU CODE]],PRICING[SKU],0)) -> A | D38: =INDEX(PRICING[Product],MATCH(B38,PRICING[SKU],0)) -> Tartan® Stressgard® | E38: =INDEX(PRICING[Size],MATCH(Rebate_Lookup[[#This Row],[SKU CODE]],PRICING[SKU],0)) -> 2.5 gal | F38: =INDEX(PRICING[Indication],MATCH(Rebate_Lookup[[#This Row],[SKU CODE]],PRICING[SKU],0)) -> F | G38: =COUNTIFS(PRICING[SKU],B38) -> 2 | H38: 0 | I38: 6 | K38: =SUMIFS(PRICING[Rebate $],PRICING[SKU],Rebate_Lookup[[#This Row],[SKU CODE]],PRICING[Set],1) -> 0 | L38: =SUMIFS(PRICING[Rebate $],PRICING[SKU],Rebate_Lookup[[#This Row],[SKU CODE]],PRICING[Set],2) -> 93 | M38: =SUMIFS(PRICING[Rebate $],PRICING[SKU],Rebate_Lookup[[#This Row],[SKU CODE]],PRICING[Set],3) -> 0 | N38: =INDEX('2025 GOLF Only Fall Solutions'!J:J,MATCH(Rebate_Lookup[[#This Row],[SKU CODE]],'2025 GOLF Only Fall Solutions'!A:A,0)) -> 0 | O38: =IF(Rebate_Lookup[[#This Row],[Instances]]=1,1, IF(AND(Rebate_Lookup[[#This Row],[Instances]]=2,Rebate_Lookup[[#This Row],[Order Form Quantity]]<Rebate_Lookup[[#This Row],[MOQ_2]]),1,IF(AND(Rebate_Lookup[[#This Row],[Instances]]=2,Rebate_Lookup[[#This Row],[Order Form Quantity]]>=Rebate_Lookup[[#This Row],[MOQ_2]]),2, IF(AND(Rebate_Lookup[[#This Row],[Instances]]=3,Rebate_Lookup[[#This Row],[Order Form Quantity]]<Rebate_Lookup[[#This Row],[MOQ_2]]),1,IF(AND(Rebate_Lookup[[#This Row],[Instances]]=3,Rebate_Lookup[[#This Row],[MOQ_2]]<=Rebate_Lookup[[#This Row],[Order Form Quantity]],Rebate_Lookup[[#This Row],[Order Form Quantity]]<Rebate_Lookup[[#This Row],[MOQ_3]]),2,IF(AND(Rebate_Lookup[[#This Row],[Instances]]=3,Rebate_Lookup[[#This Row],[Order Form Quantity]]>=Rebate_Lookup[[#This Row],[MOQ_3]]),3)))))) -> 1 | P38: =COUNTIF('2025 GOLF Only Fall Solutions'!A:A,Rebate_Lookup[[#This Row],[SKU CODE]]) -> 1 | Q38: =IFERROR(Rebate_Lookup[[#This Row],[Order Form Quantity]]>=Rebate_Lookup[[#This Row],[MOQ_2]],0) -> FALSE | S38: =COUNTIF('2025 GOLF Only Fall Solutions'!A:A,Rebate_Lookup[[#This Row],[SKU CODE]]) -> 1
B39: 11015981 | C39: =INDEX(PRICING[Agency/TT],MATCH(Rebate_Lookup[[#This Row],[SKU CODE]],PRICING[SKU],0)) -> A | D39: =INDEX(PRICING[Product],MATCH(B39,PRICING[SKU],0)) -> Tarvecta™ | E39: =INDEX(PRICING[Size],MATCH(Rebate_Lookup[[#This Row],[SKU CODE]],PRICING[SKU],0)) -> 2.5 gal | F39: =INDEX(PRICING[Indication],MATCH(Rebate_Lookup[[#This Row],[SKU CODE]],PRICING[SKU],0)) -> F | G39: =COUNTIFS(PRICING[SKU],B39) -> 2 | H39: 0 | I39: 3 | K39: =SUMIFS(PRICING[Rebate $],PRICING[SKU],Rebate_Lookup[[#This Row],[SKU CODE]],PRICING[Set],1) -> 0 | L39: =SUMIFS(PRICING[Rebate $],PRICING[SKU],Rebate_Lookup[[#This Row],[SKU CODE]],PRICING[Set],2) -> 400 | M39: =SUMIFS(PRICING[Rebate $],PRICING[SKU],Rebate_Lookup[[#This Row],[SKU CODE]],PRICING[Set],3) -> 0 | N39: =INDEX('2025 GOLF Only Fall Solutions'!J:J,MATCH(Rebate_Lookup[[#This Row],[SKU CODE]],'2025 GOLF Only Fall Solutions'!A:A,0)) -> 0 | O39: =IF(Rebate_Lookup[[#This Row],[Instances]]=1,1, IF(AND(Rebate_Lookup[[#This Row],[Instances]]=2,Rebate_Lookup[[#This Row],[Order Form Quantity]]<Rebate_Lookup[[#This Row],[MOQ_2]]),1,IF(AND(Rebate_Lookup[[#This Row],[Instances]]=2,Rebate_Lookup[[#This Row],[Order Form Quantity]]>=Rebate_Lookup[[#This Row],[MOQ_2]]),2, IF(AND(Rebate_Lookup[[#This Row],[Instances]]=3,Rebate_Lookup[[#This Row],[Order Form Quantity]]<Rebate_Lookup[[#This Row],[MOQ_2]]),1,IF(AND(Rebate_Lookup[[#This Row],[Instances]]=3,Rebate_Lookup[[#This Row],[MOQ_2]]<=Rebate_Lookup[[#This Row],[Order Form Quantity]],Rebate_Lookup[[#This Row],[Order Form Quantity]]<Rebate_Lookup[[#This Row],[MOQ_3]]),2,IF(AND(Rebate_Lookup[[#This Row],[Instances]]=3,Rebate_Lookup[[#This Row],[Order Form Quantity]]>=Rebate_Lookup[[#This Row],[MOQ_3]]),3)))))) -> 1 | P39: =COUNTIF('2025 GOLF Only Fall Solutions'!A:A,Rebate_Lookup[[#This Row],[SKU CODE]]) -> 1 | Q39: =IFERROR(Rebate_Lookup[[#This Row],[Order Form Quantity]]>=Rebate_Lookup[[#This Row],[MOQ_2]],0) -> FALSE | S39: =COUNTIF('2025 GOLF Only Fall Solutions'!A:A,Rebate_Lookup[[#This Row],[SKU CODE]]) -> 1
B40: 11015990 | C40: =INDEX(PRICING[Agency/TT],MATCH(Rebate_Lookup[[#This Row],[SKU CODE]],PRICING[SKU],0)) -> A | D40: =INDEX(PRICING[Product],MATCH(B40,PRICING[SKU],0)) -> Tarvecta™ | E40: =INDEX(PRICING[Size],MATCH(Rebate_Lookup[[#This Row],[SKU CODE]],PRICING[SKU],0)) -> 64 oz | F40: =INDEX(PRICING[Indication],MATCH(Rebate_Lookup[[#This Row],[SKU CODE]],PRICING[SKU],0)) -> F | G40: =COUNTIFS(PRICING[SKU],B40) -> 2 | H40: 0 | I40: 4 | K40: =SUMIFS(PRICING[Rebate $],PRICING[SKU],Rebate_Lookup[[#This Row],[SKU CODE]],PRICING[Set],1) -> 0 | L40: =SUMIFS(PRICING[Rebate $],PRICING[SKU],Rebate_Lookup[[#This Row],[SKU CODE]],PRICING[Set],2) -> 145 | M40: =SUMIFS(PRICING[Rebate $],PRICING[SKU],Rebate_Lookup[[#This Row],[SKU CODE]],PRICING[Set],3) -> 0 | N40: =INDEX('2025 GOLF Only Fall Solutions'!J:J,MATCH(Rebate_Lookup[[#This Row],[SKU CODE]],'2025 GOLF Only Fall Solutions'!A:A,0)) -> 0 | O40: =IF(Rebate_Lookup[[#This Row],[Instances]]=1,1, IF(AND(Rebate_Lookup[[#This Row],[Instances]]=2,Rebate_Lookup[[#This Row],[Order Form Quantity]]<Rebate_Lookup[[#This Row],[MOQ_2]]),1,IF(AND(Rebate_Lookup[[#This Row],[Instances]]=2,Rebate_Lookup[[#This Row],[Order Form Quantity]]>=Rebate_Lookup[[#This Row],[MOQ_2]]),2, IF(AND(Rebate_Lookup[[#This Row],[Instances]]=3,Rebate_Lookup[[#This Row],[Order Form Quantity]]<Rebate_Lookup[[#This Row],[MOQ_2]]),1,IF(AND(Rebate_Lookup[[#This Row],[Instances]]=3,Rebate_Lookup[[#This Row],[MOQ_2]]<=Rebate_Lookup[[#This Row],[Order Form Quantity]],Rebate_Lookup[[#This Row],[Order Form Quantity]]<Rebate_Lookup[[#This Row],[MOQ_3]]),2,IF(AND(Rebate_Lookup[[#This Row],[Instances]]=3,Rebate_Lookup[[#This Row],[Order Form Quantity]]>=Rebate_Lookup[[#This Row],[MOQ_3]]),3)))))) -> 1 | P40: =COUNTIF('2025 GOLF Only Fall Solutions'!A:A,Rebate_Lookup[[#This Row],[SKU CODE]]) -> 1 | Q40: =IFERROR(Rebate_Lookup[[#This Row],[Order Form Quantity]]>=Rebate_Lookup[[#This Row],[MOQ_2]],0) -> FALSE | S40: =COUNTIF('2025 GOLF Only Fall Solutions'!A:A,Rebate_Lookup[[#This Row],[SKU CODE]]) -> 1
B41: 86797658 | C41: =INDEX(PRICING[Agency/TT],MATCH(Rebate_Lookup[[#This Row],[SKU CODE]],PRICING[SKU],0)) -> A | D41: =INDEX(PRICING[Product],MATCH(B41,PRICING[SKU],0)) -> Tetrino® | E41: =INDEX(PRICING[Size],MATCH(Rebate_Lookup[[#This Row],[SKU CODE]],PRICING[SKU],0)) -> 1 gal | F41: =INDEX(PRICING[Indication],MATCH(Rebate_Lookup[[#This Row],[SKU CODE]],PRICING[SKU],0)) -> I | G41: =COUNTIFS(PRICING[SKU],B41) -> 2 | H41: 0 | I41: 4 | K41: =SUMIFS(PRICING[Rebate $],PRICING[SKU],Rebate_Lookup[[#This Row],[SKU CODE]],PRICING[Set],1) -> 0 | L41: =SUMIFS(PRICING[Rebate $],PRICING[SKU],Rebate_Lookup[[#This Row],[SKU CODE]],PRICING[Set],2) -> 40 | M41: =SUMIFS(PRICING[Rebate $],PRICING[SKU],Rebate_Lookup[[#This Row],[SKU CODE]],PRICING[Set],3) -> 0 | N41: =INDEX('2025 GOLF Only Fall Solutions'!J:J,MATCH(Rebate_Lookup[[#This Row],[SKU CODE]],'2025 GOLF Only Fall Solutions'!A:A,0)) -> 0 | O41: =IF(Rebate_Lookup[[#This Row],[Instances]]=1,1, IF(AND(Rebate_Lookup[[#This Row],[Instances]]=2,Rebate_Lookup[[#This Row],[Order Form Quantity]]<Rebate_Lookup[[#This Row],[MOQ_2]]),1,IF(AND(Rebate_Lookup[[#This Row],[Instances]]=2,Rebate_Lookup[[#This Row],[Order Form Quantity]]>=Rebate_Lookup[[#This Row],[MOQ_2]]),2, IF(AND(Rebate_Lookup[[#This Row],[Instances]]=3,Rebate_Lookup[[#This Row],[Order Form Quantity]]<Rebate_Lookup[[#This Row],[MOQ_2]]),1,IF(AND(Rebate_Lookup[[#This Row],[Instances]]=3,Rebate_Lookup[[#This Row],[MOQ_2]]<=Rebate_Lookup[[#This Row],[Order Form Quantity]],Rebate_Lookup[[#This Row],[Order Form Quantity]]<Rebate_Lookup[[#This Row],[MOQ_3]]),2,IF(AND(Rebate_Lookup[[#This Row],[Instances]]=3,Rebate_Lookup[[#This Row],[Order Form Quantity]]>=Rebate_Lookup[[#This Row],[MOQ_3]]),3)))))) -> 1 | P41: =COUNTIF('2025 GOLF Only Fall Solutions'!A:A,Rebate_Lookup[[#This Row],[SKU CODE]]) -> 1 | Q41: =IFERROR(Rebate_Lookup[[#This Row],[Order Form Quantity]]>=Rebate_Lookup[[#This Row],[MOQ_2]],0) -> FALSE | S41: =COUNTIF('2025 GOLF Only Fall Solutions'!A:A,Rebate_Lookup[[#This Row],[SKU CODE]]) -> 1
B42: 81746257 | C42: =INDEX(PRICING[Agency/TT],MATCH(Rebate_Lookup[[#This Row],[SKU CODE]],PRICING[SKU],0)) -> A | D42: =INDEX(PRICING[Product],MATCH(B42,PRICING[SKU],0)) -> Tribute® Total | E42: =INDEX(PRICING[Size],MATCH(Rebate_Lookup[[#This Row],[SKU CODE]],PRICING[SKU],0)) -> 6 oz | F42: =INDEX(PRICING[Indication],MATCH(Rebate_Lookup[[#This Row],[SKU CODE]],PRICING[SKU],0)) -> H | G42: =COUNTIFS(PRICING[SKU],B42) -> 2 | H42: 0 | I42: 24 | K42: =SUMIFS(PRICING[Rebate $],PRICING[SKU],Rebate_Lookup[[#This Row],[SKU CODE]],PRICING[Set],1) -> 0 | L42: =SUMIFS(PRICING[Rebate $],PRICING[SKU],Rebate_Lookup[[#This Row],[SKU CODE]],PRICING[Set],2) -> 30 | M42: =SUMIFS(PRICING[Rebate $],PRICING[SKU],Rebate_Lookup[[#This Row],[SKU CODE]],PRICING[Set],3) -> 0 | N42: =INDEX('2025 GOLF Only Fall Solutions'!J:J,MATCH(Rebate_Lookup[[#This Row],[SKU CODE]],'2025 GOLF Only Fall Solutions'!A:A,0)) -> 0 | O42: =IF(Rebate_Lookup[[#This Row],[Instances]]=1,1, IF(AND(Rebate_Lookup[[#This Row],[Instances]]=2,Rebate_Lookup[[#This Row],[Order Form Quantity]]<Rebate_Lookup[[#This Row],[MOQ_2]]),1,IF(AND(Rebate_Lookup[[#This Row],[Instances]]=2,Rebate_Lookup[[#This Row],[Order Form Quantity]]>=Rebate_Lookup[[#This Row],[MOQ_2]]),2, IF(AND(Rebate_Lookup[[#This Row],[Instances]]=3,Rebate_Lookup[[#This Row],[Order Form Quantity]]<Rebate_Lookup[[#This Row],[MOQ_2]]),1,IF(AND(Rebate_Lookup[[#This Row],[Instances]]=3,Rebate_Lookup[[#This Row],[MOQ_2]]<=Rebate_Lookup[[#This Row],[Order Form Quantity]],Rebate_Lookup[[#This Row],[Order Form Quantity]]<Rebate_Lookup[[#This Row],[MOQ_3]]),2,IF(AND(Rebate_Lookup[[#This Row],[Instances]]=3,Rebate_Lookup[[#This Row],[Order Form Quantity]]>=Rebate_Lookup[[#This Row],[MOQ_3]]),3)))))) -> 1 | P42: =COUNTIF('2025 GOLF Only Fall Solutions'!A:A,Rebate_Lookup[[#This Row],[SKU CODE]]) -> 1 | Q42: =IFERROR(Rebate_Lookup[[#This Row],[Order Form Quantity]]>=Rebate_Lookup[[#This Row],[MOQ_2]],0) -> FALSE | S42: =COUNTIF('2025 GOLF Only Fall Solutions'!A:A,Rebate_Lookup[[#This Row],[SKU CODE]]) -> 1
B43: 11008521 | C43: =INDEX(PRICING[Agency/TT],MATCH(Rebate_Lookup[[#This Row],[SKU CODE]],PRICING[SKU],0)) -> A | D43: =INDEX(PRICING[Product],MATCH(B43,PRICING[SKU],0)) -> Triple Crown® Golf Insecticide (RUP) | E43: =INDEX(PRICING[Size],MATCH(Rebate_Lookup[[#This Row],[SKU CODE]],PRICING[SKU],0)) -> 1 gal | F43: =INDEX(PRICING[Indication],MATCH(Rebate_Lookup[[#This Row],[SKU CODE]],PRICING[SKU],0)) -> I | G43: =COUNTIFS(PRICING[SKU],B43) -> 3 | H43: 0 | I43: 20 | J43: 40 | K43: =SUMIFS(PRICING[Rebate $],PRICING[SKU],Rebate_Lookup[[#This Row],[SKU CODE]],PRICING[Set],1) -> 0 | L43: =SUMIFS(PRICING[Rebate $],PRICING[SKU],Rebate_Lookup[[#This Row],[SKU CODE]],PRICING[Set],2) -> 12 | M43: =SUMIFS(PRICING[Rebate $],PRICING[SKU],Rebate_Lookup[[#This Row],[SKU CODE]],PRICING[Set],3) -> 25 | N43: =INDEX('2025 GOLF Only Fall Solutions'!J:J,MATCH(Rebate_Lookup[[#This Row],[SKU CODE]],'2025 GOLF Only Fall Solutions'!A:A,0)) -> 0 | O43: =IF(Rebate_Lookup[[#This Row],[Instances]]=1,1, IF(AND(Rebate_Lookup[[#This Row],[Instances]]=2,Rebate_Lookup[[#This Row],[Order Form Quantity]]<Rebate_Lookup[[#This Row],[MOQ_2]]),1,IF(AND(Rebate_Lookup[[#This Row],[Instances]]=2,Rebate_Lookup[[#This Row],[Order Form Quantity]]>=Rebate_Lookup[[#This Row],[MOQ_2]]),2, IF(AND(Rebate_Lookup[[#This Row],[Instances]]=3,Rebate_Lookup[[#This Row],[Order Form Quantity]]<Rebate_Lookup[[#This Row],[MOQ_2]]),1,IF(AND(Rebate_Lookup[[#This Row],[Instances]]=3,Rebate_Lookup[[#This Row],[MOQ_2]]<=Rebate_Lookup[[#This Row],[Order Form Quantity]],Rebate_Lookup[[#This Row],[Order Form Quantity]]<Rebate_Lookup[[#This Row],[MOQ_3]]),2,IF(AND(Rebate_Lookup[[#This Row],[Instances]]=3,Rebate_Lookup[[#This Row],[Order Form Quantity]]>=Rebate_Lookup[[#This Row],[MOQ_3]]),3)))))) -> 1 | P43: =COUNTIF('2025 GOLF Only Fall Solutions'!A:A,Rebate_Lookup[[#This Row],[SKU CODE]]) -> 1 | Q43: =IFERROR(Rebate_Lookup[[#This Row],[Order Form Quantity]]>=Rebate_Lookup[[#This Row],[MOQ_2]],0) -> FALSE | S43: =COUNTIF('2025 GOLF Only Fall Solutions'!A:A,Rebate_Lookup[[#This Row],[SKU CODE]]) -> 1
B44: 11008520 | C44: =INDEX(PRICING[Agency/TT],MATCH(Rebate_Lookup[[#This Row],[SKU CODE]],PRICING[SKU],0)) -> A | D44: =INDEX(PRICING[Product],MATCH(B44,PRICING[SKU],0)) -> Triple Crown® T&O Insecticide | E44: =INDEX(PRICING[Size],MATCH(Rebate_Lookup[[#This Row],[SKU CODE]],PRICING[SKU],0)) -> 1 gal | F44: =INDEX(PRICING[Indication],MATCH(Rebate_Lookup[[#This Row],[SKU CODE]],PRICING[SKU],0)) -> I | G44: =COUNTIFS(PRICING[SKU],B44) -> 3 | H44: 0 | I44: 20 | J44: 40 | K44: =SUMIFS(PRICING[Rebate $],PRICING[SKU],Rebate_Lookup[[#This Row],[SKU CODE]],PRICING[Set],1) -> 0 | L44: =SUMIFS(PRICING[Rebate $],PRICING[SKU],Rebate_Lookup[[#This Row],[SKU CODE]],PRICING[Set],2) -> 12 | M44: =SUMIFS(PRICING[Rebate $],PRICING[SKU],Rebate_Lookup[[#This Row],[SKU CODE]],PRICING[Set],3) -> 25 | N44: =INDEX('2025 GOLF Only Fall Solutions'!J:J,MATCH(Rebate_Lookup[[#This Row],[SKU CODE]],'2025 GOLF Only Fall Solutions'!A:A,0)) ->  | O44: =IF(Rebate_Lookup[[#This Row],[Instances]]=1,1, IF(AND(Rebate_Lookup[[#This Row],[Instances]]=2,Rebate_Lookup[[#This Row],[Order Form Quantity]]<Rebate_Lookup[[#This Row],[MOQ_2]]),1,IF(AND(Rebate_Lookup[[#This Row],[Instances]]=2,Rebate_Lookup[[#This Row],[Order Form Quantity]]>=Rebate_Lookup[[#This Row],[MOQ_2]]),2, IF(AND(Rebate_Lookup[[#This Row],[Instances]]=3,Rebate_Lookup[[#This Row],[Order Form Quantity]]<Rebate_Lookup[[#This Row],[MOQ_2]]),1,IF(AND(Rebate_Lookup[[#This Row],[Instances]]=3,Rebate_Lookup[[#This Row],[MOQ_2]]<=Rebate_Lookup[[#This Row],[Order Form Quantity]],Rebate_Lookup[[#This Row],[Order Form Quantity]]<Rebate_Lookup[[#This Row],[MOQ_3]]),2,IF(AND(Rebate_Lookup[[#This Row],[Instances]]=3,Rebate_Lookup[[#This Row],[Order Form Quantity]]>=Rebate_Lookup[[#This Row],[MOQ_3]]),3)))))) ->  | P44: =COUNTIF('2025 GOLF Only Fall Solutions'!A:A,Rebate_Lookup[[#This Row],[SKU CODE]]) -> 0 | Q44: =IFERROR(Rebate_Lookup[[#This Row],[Order Form Quantity]]>=Rebate_Lookup[[#This Row],[MOQ_2]],0) -> 0 | S44: =COUNTIF('2025 GOLF Only Fall Solutions'!A:A,Rebate_Lookup[[#This Row],[SKU CODE]]) -> 0
B45: 11008590 | C45: =INDEX(PRICING[Agency/TT],MATCH(Rebate_Lookup[[#This Row],[SKU CODE]],PRICING[SKU],0)) -> A | D45: =INDEX(PRICING[Product],MATCH(B45,PRICING[SKU],0)) -> Xonerate® 2SC Herbicide | E45: =INDEX(PRICING[Size],MATCH(Rebate_Lookup[[#This Row],[SKU CODE]],PRICING[SKU],0)) -> 12 oz | F45: =INDEX(PRICING[Indication],MATCH(Rebate_Lookup[[#This Row],[SKU CODE]],PRICING[SKU],0)) -> H | G45: =COUNTIFS(PRICING[SKU],B45) -> 2 | H45: 0 | I45: 24 | K45: =SUMIFS(PRICING[Rebate $],PRICING[SKU],Rebate_Lookup[[#This Row],[SKU CODE]],PRICING[Set],1) -> 0 | L45: =SUMIFS(PRICING[Rebate $],PRICING[SKU],Rebate_Lookup[[#This Row],[SKU CODE]],PRICING[Set],2) -> 50 | M45: =SUMIFS(PRICING[Rebate $],PRICING[SKU],Rebate_Lookup[[#This Row],[SKU CODE]],PRICING[Set],3) -> 0 | N45: =INDEX('2025 GOLF Only Fall Solutions'!J:J,MATCH(Rebate_Lookup[[#This Row],[SKU CODE]],'2025 GOLF Only Fall Solutions'!A:A,0)) -> 0 | O45: =IF(Rebate_Lookup[[#This Row],[Instances]]=1,1, IF(AND(Rebate_Lookup[[#This Row],[Instances]]=2,Rebate_Lookup[[#This Row],[Order Form Quantity]]<Rebate_Lookup[[#This Row],[MOQ_2]]),1,IF(AND(Rebate_Lookup[[#This Row],[Instances]]=2,Rebate_Lookup[[#This Row],[Order Form Quantity]]>=Rebate_Lookup[[#This Row],[MOQ_2]]),2, IF(AND(Rebate_Lookup[[#This Row],[Instances]]=3,Rebate_Lookup[[#This Row],[Order Form Quantity]]<Rebate_Lookup[[#This Row],[MOQ_2]]),1,IF(AND(Rebate_Lookup[[#This Row],[Instances]]=3,Rebate_Lookup[[#This Row],[MOQ_2]]<=Rebate_Lookup[[#This Row],[Order Form Quantity]],Rebate_Lookup[[#This Row],[Order Form Quantity]]<Rebate_Lookup[[#This Row],[MOQ_3]]),2,IF(AND(Rebate_Lookup[[#This Row],[Instances]]=3,Rebate_Lookup[[#This Row],[Order Form Quantity]]>=Rebate_Lookup[[#This Row],[MOQ_3]]),3)))))) -> 1 | P45: =COUNTIF('2025 GOLF Only Fall Solutions'!A:A,Rebate_Lookup[[#This Row],[SKU CODE]]) -> 1 | Q45: =IFERROR(Rebate_Lookup[[#This Row],[Order Form Quantity]]>=Rebate_Lookup[[#This Row],[MOQ_2]],0) -> FALSE
B46: 4250930 | C46: =INDEX(PRICING[Agency/TT],MATCH(Rebate_Lookup[[#This Row],[SKU CODE]],PRICING[SKU],0)) -> TT | D46: =INDEX(PRICING[Product],MATCH(B46,PRICING[SKU],0)) -> 26GT™ | E46: =INDEX(PRICING[Size],MATCH(Rebate_Lookup[[#This Row],[SKU CODE]],PRICING[SKU],0)) -> 2.5 gal | F46: =INDEX(PRICING[Indication],MATCH(Rebate_Lookup[[#This Row],[SKU CODE]],PRICING[SKU],0)) -> F | G46: =COUNTIFS(PRICING[SKU],B46) -> 1 | K46: =SUMIFS(PRICING[Rebate $],PRICING[SKU],Rebate_Lookup[[#This Row],[SKU CODE]],PRICING[Set],1) -> 0 | L46: =SUMIFS(PRICING[Rebate $],PRICING[SKU],Rebate_Lookup[[#This Row],[SKU CODE]],PRICING[Set],2) -> 0 | M46: =SUMIFS(PRICING[Rebate $],PRICING[SKU],Rebate_Lookup[[#This Row],[SKU CODE]],PRICING[Set],3) -> 0 | N46: =INDEX('2025 GOLF Only Fall Solutions'!J:J,MATCH(Rebate_Lookup[[#This Row],[SKU CODE]],'2025 GOLF Only Fall Solutions'!A:A,0)) -> 0 | O46: =IF(Rebate_Lookup[[#This Row],[Instances]]=1,1, IF(AND(Rebate_Lookup[[#This Row],[Instances]]=2,Rebate_Lookup[[#This Row],[Order Form Quantity]]<Rebate_Lookup[[#This Row],[MOQ_2]]),1,IF(AND(Rebate_Lookup[[#This Row],[Instances]]=2,Rebate_Lookup[[#This Row],[Order Form Quantity]]>=Rebate_Lookup[[#This Row],[MOQ_2]]),2, IF(AND(Rebate_Lookup[[#This Row],[Instances]]=3,Rebate_Lookup[[#This Row],[Order Form Quantity]]<Rebate_Lookup[[#This Row],[MOQ_2]]),1,IF(AND(Rebate_Lookup[[#This Row],[Instances]]=3,Rebate_Lookup[[#This Row],[MOQ_2]]<=Rebate_Lookup[[#This Row],[Order Form Quantity]],Rebate_Lookup[[#This Row],[Order Form Quantity]]<Rebate_Lookup[[#This Row],[MOQ_3]]),2,IF(AND(Rebate_Lookup[[#This Row],[Instances]]=3,Rebate_Lookup[[#This Row],[Order Form Quantity]]>=Rebate_Lookup[[#This Row],[MOQ_3]]),3)))))) -> 1 | P46: =COUNTIF('2025 GOLF Only Fall Solutions'!A:A,Rebate_Lookup[[#This Row],[SKU CODE]]) -> 1 | Q46: =IFERROR(Rebate_Lookup[[#This Row],[Order Form Quantity]]>=Rebate_Lookup[[#This Row],[MOQ_2]],0) -> TRUE | S46: =COUNTIF('2025 GOLF Only Fall Solutions'!A:A,Rebate_Lookup[[#This Row],[SKU CODE]]) -> 1
B47: D00000665 | C47: =INDEX(PRICING[Agency/TT],MATCH(Rebate_Lookup[[#This Row],[SKU CODE]],PRICING[SKU],0)) -> TT | D47: =INDEX(PRICING[Product],MATCH(B47,PRICING[SKU],0)) -> Acclaim Accelerate | E47: =INDEX(PRICING[Size],MATCH(Rebate_Lookup[[#This Row],[SKU CODE]],PRICING[SKU],0)) -> 0.5 gal | F47: =INDEX(PRICING[Indication],MATCH(Rebate_Lookup[[#This Row],[SKU CODE]],PRICING[SKU],0)) -> H | G47: =COUNTIFS(PRICING[SKU],B47) -> 1 | K47: =SUMIFS(PRICING[Rebate $],PRICING[SKU],Rebate_Lookup[[#This Row],[SKU CODE]],PRICING[Set],1) -> 7.5 | L47: =SUMIFS(PRICING[Rebate $],PRICING[SKU],Rebate_Lookup[[#This Row],[SKU CODE]],PRICING[Set],2) -> 0 | M47: =SUMIFS(PRICING[Rebate $],PRICING[SKU],Rebate_Lookup[[#This Row],[SKU CODE]],PRICING[Set],3) -> 0 | N47: =INDEX('2025 GOLF Only Fall Solutions'!J:J,MATCH(Rebate_Lookup[[#This Row],[SKU CODE]],'2025 GOLF Only Fall Solutions'!A:A,0)) ->  | O47: =IF(Rebate_Lookup[[#This Row],[Instances]]=1,1, IF(AND(Rebate_Lookup[[#This Row],[Instances]]=2,Rebate_Lookup[[#This Row],[Order Form Quantity]]<Rebate_Lookup[[#This Row],[MOQ_2]]),1,IF(AND(Rebate_Lookup[[#This Row],[Instances]]=2,Rebate_Lookup[[#This Row],[Order Form Quantity]]>=Rebate_Lookup[[#This Row],[MOQ_2]]),2, IF(AND(Rebate_Lookup[[#This Row],[Instances]]=3,Rebate_Lookup[[#This Row],[Order Form Quantity]]<Rebate_Lookup[[#This Row],[MOQ_2]]),1,IF(AND(Rebate_Lookup[[#This Row],[Instances]]=3,Rebate_Lookup[[#This Row],[MOQ_2]]<=Rebate_Lookup[[#This Row],[Order Form Quantity]],Rebate_Lookup[[#This Row],[Order Form Quantity]]<Rebate_Lookup[[#This Row],[MOQ_3]]),2,IF(AND(Rebate_Lookup[[#This Row],[Instances]]=3,Rebate_Lookup[[#This Row],[Order Form Quantity]]>=Rebate_Lookup[[#This Row],[MOQ_3]]),3)))))) -> 1 | P47: =COUNTIF('2025 GOLF Only Fall Solutions'!A:A,Rebate_Lookup[[#This Row],[SKU CODE]]) -> 0 | Q47: =IFERROR(Rebate_Lookup[[#This Row],[Order Form Quantity]]>=Rebate_Lookup[[#This Row],[MOQ_2]],0) -> 0 | S47: =COUNTIF('2025 GOLF Only Fall Solutions'!A:A,Rebate_Lookup[[#This Row],[SKU CODE]]) -> 0
B48: D00000666 | C48: =INDEX(PRICING[Agency/TT],MATCH(Rebate_Lookup[[#This Row],[SKU CODE]],PRICING[SKU],0)) -> TT | D48: =INDEX(PRICING[Product],MATCH(B48,PRICING[SKU],0)) -> Acclaim Accelerate | E48: =INDEX(PRICING[Size],MATCH(Rebate_Lookup[[#This Row],[SKU CODE]],PRICING[SKU],0)) -> 2.5 gal | F48: =INDEX(PRICING[Indication],MATCH(Rebate_Lookup[[#This Row],[SKU CODE]],PRICING[SKU],0)) -> H | G48: =COUNTIFS(PRICING[SKU],B48) -> 1 | K48: =SUMIFS(PRICING[Rebate $],PRICING[SKU],Rebate_Lookup[[#This Row],[SKU CODE]],PRICING[Set],1) -> 37.5 | L48: =SUMIFS(PRICING[Rebate $],PRICING[SKU],Rebate_Lookup[[#This Row],[SKU CODE]],PRICING[Set],2) -> 0 | M48: =SUMIFS(PRICING[Rebate $],PRICING[SKU],Rebate_Lookup[[#This Row],[SKU CODE]],PRICING[Set],3) -> 0 | N48: =INDEX('2025 GOLF Only Fall Solutions'!J:J,MATCH(Rebate_Lookup[[#This Row],[SKU CODE]],'2025 GOLF Only Fall Solutions'!A:A,0)) ->  | O48: =IF(Rebate_Lookup[[#This Row],[Instances]]=1,1, IF(AND(Rebate_Lookup[[#This Row],[Instances]]=2,Rebate_Lookup[[#This Row],[Order Form Quantity]]<Rebate_Lookup[[#This Row],[MOQ_2]]),1,IF(AND(Rebate_Lookup[[#This Row],[Instances]]=2,Rebate_Lookup[[#This Row],[Order Form Quantity]]>=Rebate_Lookup[[#This Row],[MOQ_2]]),2, IF(AND(Rebate_Lookup[[#This Row],[Instances]]=3,Rebate_Lookup[[#This Row],[Order Form Quantity]]<Rebate_Lookup[[#This Row],[MOQ_2]]),1,IF(AND(Rebate_Lookup[[#This Row],[Instances]]=3,Rebate_Lookup[[#This Row],[MOQ_2]]<=Rebate_Lookup[[#This Row],[Order Form Quantity]],Rebate_Lookup[[#This Row],[Order Form Quantity]]<Rebate_Lookup[[#This Row],[MOQ_3]]),2,IF(AND(Rebate_Lookup[[#This Row],[Instances]]=3,Rebate_Lookup[[#This Row],[Order Form Quantity]]>=Rebate_Lookup[[#This Row],[MOQ_3]]),3)))))) -> 1 | P48: =COUNTIF('2025 GOLF Only Fall Solutions'!A:A,Rebate_Lookup[[#This Row],[SKU CODE]]) -> 0 | Q48: =IFERROR(Rebate_Lookup[[#This Row],[Order Form Quantity]]>=Rebate_Lookup[[#This Row],[MOQ_2]],0) -> 0 | S48: =COUNTIF('2025 GOLF Only Fall Solutions'!A:A,Rebate_Lookup[[#This Row],[SKU CODE]]) -> 0
B49: 87300722 | C49: =INDEX(PRICING[Agency/TT],MATCH(Rebate_Lookup[[#This Row],[SKU CODE]],PRICING[SKU],0)) -> TT | D49: =INDEX(PRICING[Product],MATCH(B49,PRICING[SKU],0)) -> Acclaim Extra | E49: =INDEX(PRICING[Size],MATCH(Rebate_Lookup[[#This Row],[SKU CODE]],PRICING[SKU],0)) -> 1 gal | F49: =INDEX(PRICING[Indication],MATCH(Rebate_Lookup[[#This Row],[SKU CODE]],PRICING[SKU],0)) -> H | G49: =COUNTIFS(PRICING[SKU],B49) -> 1 | K49: =SUMIFS(PRICING[Rebate $],PRICING[SKU],Rebate_Lookup[[#This Row],[SKU CODE]],PRICING[Set],1) -> 90 | L49: =SUMIFS(PRICING[Rebate $],PRICING[SKU],Rebate_Lookup[[#This Row],[SKU CODE]],PRICING[Set],2) -> 0 | M49: =SUMIFS(PRICING[Rebate $],PRICING[SKU],Rebate_Lookup[[#This Row],[SKU CODE]],PRICING[Set],3) -> 0 | N49: =INDEX('2025 GOLF Only Fall Solutions'!J:J,MATCH(Rebate_Lookup[[#This Row],[SKU CODE]],'2025 GOLF Only Fall Solutions'!A:A,0)) -> 0 | O49: =IF(Rebate_Lookup[[#This Row],[Instances]]=1,1, IF(AND(Rebate_Lookup[[#This Row],[Instances]]=2,Rebate_Lookup[[#This Row],[Order Form Quantity]]<Rebate_Lookup[[#This Row],[MOQ_2]]),1,IF(AND(Rebate_Lookup[[#This Row],[Instances]]=2,Rebate_Lookup[[#This Row],[Order Form Quantity]]>=Rebate_Lookup[[#This Row],[MOQ_2]]),2, IF(AND(Rebate_Lookup[[#This Row],[Instances]]=3,Rebate_Lookup[[#This Row],[Order Form Quantity]]<Rebate_Lookup[[#This Row],[MOQ_2]]),1,IF(AND(Rebate_Lookup[[#This Row],[Instances]]=3,Rebate_Lookup[[#This Row],[MOQ_2]]<=Rebate_Lookup[[#This Row],[Order Form Quantity]],Rebate_Lookup[[#This Row],[Order Form Quantity]]<Rebate_Lookup[[#This Row],[MOQ_3]]),2,IF(AND(Rebate_Lookup[[#This Row],[Instances]]=3,Rebate_Lookup[[#This Row],[Order Form Quantity]]>=Rebate_Lookup[[#This Row],[MOQ_3]]),3)))))) -> 1 | P49: =COUNTIF('2025 GOLF Only Fall Solutions'!A:A,Rebate_Lookup[[#This Row],[SKU CODE]]) -> 1 | Q49: =IFERROR(Rebate_Lookup[[#This Row],[Order Form Quantity]]>=Rebate_Lookup[[#This Row],[MOQ_2]],0) -> TRUE | S49: =COUNTIF('2025 GOLF Only Fall Solutions'!A:A,Rebate_Lookup[[#This Row],[SKU CODE]]) -> 1
B50: D00000898 | C50: =INDEX(PRICING[Agency/TT],MATCH(Rebate_Lookup[[#This Row],[SKU CODE]],PRICING[SKU],0)) -> TT | D50: =INDEX(PRICING[Product],MATCH(B50,PRICING[SKU],0)) -> Armada 50 WDG | E50: =INDEX(PRICING[Size],MATCH(Rebate_Lookup[[#This Row],[SKU CODE]],PRICING[SKU],0)) -> 2 lb | F50: =INDEX(PRICING[Indication],MATCH(Rebate_Lookup[[#This Row],[SKU CODE]],PRICING[SKU],0)) -> F | G50: =COUNTIFS(PRICING[SKU],B50) -> 1 | K50: =SUMIFS(PRICING[Rebate $],PRICING[SKU],Rebate_Lookup[[#This Row],[SKU CODE]],PRICING[Set],1) -> 10 | L50: =SUMIFS(PRICING[Rebate $],PRICING[SKU],Rebate_Lookup[[#This Row],[SKU CODE]],PRICING[Set],2) -> 0 | M50: =SUMIFS(PRICING[Rebate $],PRICING[SKU],Rebate_Lookup[[#This Row],[SKU CODE]],PRICING[Set],3) -> 0 | N50: =INDEX('2025 GOLF Only Fall Solutions'!J:J,MATCH(Rebate_Lookup[[#This Row],[SKU CODE]],'2025 GOLF Only Fall Solutions'!A:A,0)) ->  | O50: =IF(Rebate_Lookup[[#This Row],[Instances]]=1,1, IF(AND(Rebate_Lookup[[#This Row],[Instances]]=2,Rebate_Lookup[[#This Row],[Order Form Quantity]]<Rebate_Lookup[[#This Row],[MOQ_2]]),1,IF(AND(Rebate_Lookup[[#This Row],[Instances]]=2,Rebate_Lookup[[#This Row],[Order Form Quantity]]>=Rebate_Lookup[[#This Row],[MOQ_2]]),2, IF(AND(Rebate_Lookup[[#This Row],[Instances]]=3,Rebate_Lookup[[#This Row],[Order Form Quantity]]<Rebate_Lookup[[#This Row],[MOQ_2]]),1,IF(AND(Rebate_Lookup[[#This Row],[Instances]]=3,Rebate_Lookup[[#This Row],[MOQ_2]]<=Rebate_Lookup[[#This Row],[Order Form Quantity]],Rebate_Lookup[[#This Row],[Order Form Quantity]]<Rebate_Lookup[[#This Row],[MOQ_3]]),2,IF(AND(Rebate_Lookup[[#This Row],[Instances]]=3,Rebate_Lookup[[#This Row],[Order Form Quantity]]>=Rebate_Lookup[[#This Row],[MOQ_3]]),3)))))) -> 1 | P50: =COUNTIF('2025 GOLF Only Fall Solutions'!A:A,Rebate_Lookup[[#This Row],[SKU CODE]]) -> 0 | Q50: =IFERROR(Rebate_Lookup[[#This Row],[Order Form Quantity]]>=Rebate_Lookup[[#This Row],[MOQ_2]],0) -> 0 | S50: =COUNTIF('2025 GOLF Only Fall Solutions'!A:A,Rebate_Lookup[[#This Row],[SKU CODE]]) -> 0
B51: 11008351 | C51: =INDEX(PRICING[Agency/TT],MATCH(Rebate_Lookup[[#This Row],[SKU CODE]],PRICING[SKU],0)) -> TT | D51: =INDEX(PRICING[Product],MATCH(B51,PRICING[SKU],0)) -> Blindside® Herbicide | E51: =INDEX(PRICING[Size],MATCH(Rebate_Lookup[[#This Row],[SKU CODE]],PRICING[SKU],0)) -> 0.5 lb | F51: =INDEX(PRICING[Indication],MATCH(Rebate_Lookup[[#This Row],[SKU CODE]],PRICING[SKU],0)) -> H | G51: =COUNTIFS(PRICING[SKU],B51) -> 1 | K51: =SUMIFS(PRICING[Rebate $],PRICING[SKU],Rebate_Lookup[[#This Row],[SKU CODE]],PRICING[Set],1) -> 22 | L51: =SUMIFS(PRICING[Rebate $],PRICING[SKU],Rebate_Lookup[[#This Row],[SKU CODE]],PRICING[Set],2) -> 0 | M51: =SUMIFS(PRICING[Rebate $],PRICING[SKU],Rebate_Lookup[[#This Row],[SKU CODE]],PRICING[Set],3) -> 0 | N51: =INDEX('2025 GOLF Only Fall Solutions'!J:J,MATCH(Rebate_Lookup[[#This Row],[SKU CODE]],'2025 GOLF Only Fall Solutions'!A:A,0)) -> 0 | O51: =IF(Rebate_Lookup[[#This Row],[Instances]]=1,1, IF(AND(Rebate_Lookup[[#This Row],[Instances]]=2,Rebate_Lookup[[#This Row],[Order Form Quantity]]<Rebate_Lookup[[#This Row],[MOQ_2]]),1,IF(AND(Rebate_Lookup[[#This Row],[Instances]]=2,Rebate_Lookup[[#This Row],[Order Form Quantity]]>=Rebate_Lookup[[#This Row],[MOQ_2]]),2, IF(AND(Rebate_Lookup[[#This Row],[Instances]]=3,Rebate_Lookup[[#This Row],[Order Form Quantity]]<Rebate_Lookup[[#This Row],[MOQ_2]]),1,IF(AND(Rebate_Lookup[[#This Row],[Instances]]=3,Rebate_Lookup[[#This Row],[MOQ_2]]<=Rebate_Lookup[[#This Row],[Order Form Quantity]],Rebate_Lookup[[#This Row],[Order Form Quantity]]<Rebate_Lookup[[#This Row],[MOQ_3]]),2,IF(AND(Rebate_Lookup[[#This Row],[Instances]]=3,Rebate_Lookup[[#This Row],[Order Form Quantity]]>=Rebate_Lookup[[#This Row],[MOQ_3]]),3)))))) -> 1 | P51: =COUNTIF('2025 GOLF Only Fall Solutions'!A:A,Rebate_Lookup[[#This Row],[SKU CODE]]) -> 1 | Q51: =IFERROR(Rebate_Lookup[[#This Row],[Order Form Quantity]]>=Rebate_Lookup[[#This Row],[MOQ_2]],0) -> TRUE | S51: =COUNTIF('2025 GOLF Only Fall Solutions'!A:A,Rebate_Lookup[[#This Row],[SKU CODE]]) -> 1
B52: 11008357 | C52: =INDEX(PRICING[Agency/TT],MATCH(Rebate_Lookup[[#This Row],[SKU CODE]],PRICING[SKU],0)) -> TT | D52: =INDEX(PRICING[Product],MATCH(B52,PRICING[SKU],0)) -> Dismiss® CA Herbicide | E52: =INDEX(PRICING[Size],MATCH(Rebate_Lookup[[#This Row],[SKU CODE]],PRICING[SKU],0)) -> 6 oz | F52: =INDEX(PRICING[Indication],MATCH(Rebate_Lookup[[#This Row],[SKU CODE]],PRICING[SKU],0)) -> H | G52: =COUNTIFS(PRICING[SKU],B52) -> 1 | K52: =SUMIFS(PRICING[Rebate $],PRICING[SKU],Rebate_Lookup[[#This Row],[SKU CODE]],PRICING[Set],1) -> 14 | L52: =SUMIFS(PRICING[Rebate $],PRICING[SKU],Rebate_Lookup[[#This Row],[SKU CODE]],PRICING[Set],2) -> 0 | M52: =SUMIFS(PRICING[Rebate $],PRICING[SKU],Rebate_Lookup[[#This Row],[SKU CODE]],PRICING[Set],3) -> 0 | N52: =INDEX('2025 GOLF Only Fall Solutions'!J:J,MATCH(Rebate_Lookup[[#This Row],[SKU CODE]],'2025 GOLF Only Fall Solutions'!A:A,0)) -> 0 | O52: =IF(Rebate_Lookup[[#This Row],[Instances]]=1,1, IF(AND(Rebate_Lookup[[#This Row],[Instances]]=2,Rebate_Lookup[[#This Row],[Order Form Quantity]]<Rebate_Lookup[[#This Row],[MOQ_2]]),1,IF(AND(Rebate_Lookup[[#This Row],[Instances]]=2,Rebate_Lookup[[#This Row],[Order Form Quantity]]>=Rebate_Lookup[[#This Row],[MOQ_2]]),2, IF(AND(Rebate_Lookup[[#This Row],[Instances]]=3,Rebate_Lookup[[#This Row],[Order Form Quantity]]<Rebate_Lookup[[#This Row],[MOQ_2]]),1,IF(AND(Rebate_Lookup[[#This Row],[Instances]]=3,Rebate_Lookup[[#This Row],[MOQ_2]]<=Rebate_Lookup[[#This Row],[Order Form Quantity]],Rebate_Lookup[[#This Row],[Order Form Quantity]]<Rebate_Lookup[[#This Row],[MOQ_3]]),2,IF(AND(Rebate_Lookup[[#This Row],[Instances]]=3,Rebate_Lookup[[#This Row],[Order Form Quantity]]>=Rebate_Lookup[[#This Row],[MOQ_3]]),3)))))) -> 1 | P52: =COUNTIF('2025 GOLF Only Fall Solutions'!A:A,Rebate_Lookup[[#This Row],[SKU CODE]]) -> 1 | Q52: =IFERROR(Rebate_Lookup[[#This Row],[Order Form Quantity]]>=Rebate_Lookup[[#This Row],[MOQ_2]],0) -> TRUE | S52: =COUNTIF('2025 GOLF Only Fall Solutions'!A:A,Rebate_Lookup[[#This Row],[SKU CODE]]) -> 1
B53: 11008474 | C53: =INDEX(PRICING[Agency/TT],MATCH(Rebate_Lookup[[#This Row],[SKU CODE]],PRICING[SKU],0)) -> TT | D53: =INDEX(PRICING[Product],MATCH(B53,PRICING[SKU],0)) -> Dismiss® South Herbicide | E53: =INDEX(PRICING[Size],MATCH(Rebate_Lookup[[#This Row],[SKU CODE]],PRICING[SKU],0)) -> 1 pint | F53: =INDEX(PRICING[Indication],MATCH(Rebate_Lookup[[#This Row],[SKU CODE]],PRICING[SKU],0)) -> H | G53: =COUNTIFS(PRICING[SKU],B53) -> 1 | K53: =SUMIFS(PRICING[Rebate $],PRICING[SKU],Rebate_Lookup[[#This Row],[SKU CODE]],PRICING[Set],1) -> 24 | L53: =SUMIFS(PRICING[Rebate $],PRICING[SKU],Rebate_Lookup[[#This Row],[SKU CODE]],PRICING[Set],2) -> 0 | M53: =SUMIFS(PRICING[Rebate $],PRICING[SKU],Rebate_Lookup[[#This Row],[SKU CODE]],PRICING[Set],3) -> 0 | N53: =INDEX('2025 GOLF Only Fall Solutions'!J:J,MATCH(Rebate_Lookup[[#This Row],[SKU CODE]],'2025 GOLF Only Fall Solutions'!A:A,0)) -> 0 | O53: =IF(Rebate_Lookup[[#This Row],[Instances]]=1,1, IF(AND(Rebate_Lookup[[#This Row],[Instances]]=2,Rebate_Lookup[[#This Row],[Order Form Quantity]]<Rebate_Lookup[[#This Row],[MOQ_2]]),1,IF(AND(Rebate_Lookup[[#This Row],[Instances]]=2,Rebate_Lookup[[#This Row],[Order Form Quantity]]>=Rebate_Lookup[[#This Row],[MOQ_2]]),2, IF(AND(Rebate_Lookup[[#This Row],[Instances]]=3,Rebate_Lookup[[#This Row],[Order Form Quantity]]<Rebate_Lookup[[#This Row],[MOQ_2]]),1,IF(AND(Rebate_Lookup[[#This Row],[Instances]]=3,Rebate_Lookup[[#This Row],[MOQ_2]]<=Rebate_Lookup[[#This Row],[Order Form Quantity]],Rebate_Lookup[[#This Row],[Order Form Quantity]]<Rebate_Lookup[[#This Row],[MOQ_3]]),2,IF(AND(Rebate_Lookup[[#This Row],[Instances]]=3,Rebate_Lookup[[#This Row],[Order Form Quantity]]>=Rebate_Lookup[[#This Row],[MOQ_3]]),3)))))) -> 1 | P53: =COUNTIF('2025 GOLF Only Fall Solutions'!A:A,Rebate_Lookup[[#This Row],[SKU CODE]]) -> 1 | Q53: =IFERROR(Rebate_Lookup[[#This Row],[Order Form Quantity]]>=Rebate_Lookup[[#This Row],[MOQ_2]],0) -> TRUE
B54: 11008475 | C54: =INDEX(PRICING[Agency/TT],MATCH(Rebate_Lookup[[#This Row],[SKU CODE]],PRICING[SKU],0)) -> TT | D54: =INDEX(PRICING[Product],MATCH(B54,PRICING[SKU],0)) -> Dismiss® Turf Herbicide | E54: =INDEX(PRICING[Size],MATCH(Rebate_Lookup[[#This Row],[SKU CODE]],PRICING[SKU],0)) -> 6 oz | F54: =INDEX(PRICING[Indication],MATCH(Rebate_Lookup[[#This Row],[SKU CODE]],PRICING[SKU],0)) -> H | G54: =COUNTIFS(PRICING[SKU],B54) -> 1 | K54: =SUMIFS(PRICING[Rebate $],PRICING[SKU],Rebate_Lookup[[#This Row],[SKU CODE]],PRICING[Set],1) -> 14 | L54: =SUMIFS(PRICING[Rebate $],PRICING[SKU],Rebate_Lookup[[#This Row],[SKU CODE]],PRICING[Set],2) -> 0 | M54: =SUMIFS(PRICING[Rebate $],PRICING[SKU],Rebate_Lookup[[#This Row],[SKU CODE]],PRICING[Set],3) -> 0 | N54: =INDEX('2025 GOLF Only Fall Solutions'!J:J,MATCH(Rebate_Lookup[[#This Row],[SKU CODE]],'2025 GOLF Only Fall Solutions'!A:A,0)) -> 0 | O54: =IF(Rebate_Lookup[[#This Row],[Instances]]=1,1, IF(AND(Rebate_Lookup[[#This Row],[Instances]]=2,Rebate_Lookup[[#This Row],[Order Form Quantity]]<Rebate_Lookup[[#This Row],[MOQ_2]]),1,IF(AND(Rebate_Lookup[[#This Row],[Instances]]=2,Rebate_Lookup[[#This Row],[Order Form Quantity]]>=Rebate_Lookup[[#This Row],[MOQ_2]]),2, IF(AND(Rebate_Lookup[[#This Row],[Instances]]=3,Rebate_Lookup[[#This Row],[Order Form Quantity]]<Rebate_Lookup[[#This Row],[MOQ_2]]),1,IF(AND(Rebate_Lookup[[#This Row],[Instances]]=3,Rebate_Lookup[[#This Row],[MOQ_2]]<=Rebate_Lookup[[#This Row],[Order Form Quantity]],Rebate_Lookup[[#This Row],[Order Form Quantity]]<Rebate_Lookup[[#This Row],[MOQ_3]]),2,IF(AND(Rebate_Lookup[[#This Row],[Instances]]=3,Rebate_Lookup[[#This Row],[Order Form Quantity]]>=Rebate_Lookup[[#This Row],[MOQ_3]]),3)))))) -> 1 | P54: =COUNTIF('2025 GOLF Only Fall Solutions'!A:A,Rebate_Lookup[[#This Row],[SKU CODE]]) -> 1 | Q54: =IFERROR(Rebate_Lookup[[#This Row],[Order Form Quantity]]>=Rebate_Lookup[[#This Row],[MOQ_2]],0) -> TRUE
B55: 11008336 | C55: =INDEX(PRICING[Agency/TT],MATCH(Rebate_Lookup[[#This Row],[SKU CODE]],PRICING[SKU],0)) -> TT | D55: =INDEX(PRICING[Product],MATCH(B55,PRICING[SKU],0)) -> Dismiss® Turf Herbicide | E55: =INDEX(PRICING[Size],MATCH(Rebate_Lookup[[#This Row],[SKU CODE]],PRICING[SKU],0)) -> 64 oz | F55: =INDEX(PRICING[Indication],MATCH(Rebate_Lookup[[#This Row],[SKU CODE]],PRICING[SKU],0)) -> H | G55: =COUNTIFS(PRICING[SKU],B55) -> 1 | K55: =SUMIFS(PRICING[Rebate $],PRICING[SKU],Rebate_Lookup[[#This Row],[SKU CODE]],PRICING[Set],1) -> 40 | L55: =SUMIFS(PRICING[Rebate $],PRICING[SKU],Rebate_Lookup[[#This Row],[SKU CODE]],PRICING[Set],2) -> 0 | M55: =SUMIFS(PRICING[Rebate $],PRICING[SKU],Rebate_Lookup[[#This Row],[SKU CODE]],PRICING[Set],3) -> 0 | N55: =INDEX('2025 GOLF Only Fall Solutions'!J:J,MATCH(Rebate_Lookup[[#This Row],[SKU CODE]],'2025 GOLF Only Fall Solutions'!A:A,0)) -> 0 | O55: =IF(Rebate_Lookup[[#This Row],[Instances]]=1,1, IF(AND(Rebate_Lookup[[#This Row],[Instances]]=2,Rebate_Lookup[[#This Row],[Order Form Quantity]]<Rebate_Lookup[[#This Row],[MOQ_2]]),1,IF(AND(Rebate_Lookup[[#This Row],[Instances]]=2,Rebate_Lookup[[#This Row],[Order Form Quantity]]>=Rebate_Lookup[[#This Row],[MOQ_2]]),2, IF(AND(Rebate_Lookup[[#This Row],[Instances]]=3,Rebate_Lookup[[#This Row],[Order Form Quantity]]<Rebate_Lookup[[#This Row],[MOQ_2]]),1,IF(AND(Rebate_Lookup[[#This Row],[Instances]]=3,Rebate_Lookup[[#This Row],[MOQ_2]]<=Rebate_Lookup[[#This Row],[Order Form Quantity]],Rebate_Lookup[[#This Row],[Order Form Quantity]]<Rebate_Lookup[[#This Row],[MOQ_3]]),2,IF(AND(Rebate_Lookup[[#This Row],[Instances]]=3,Rebate_Lookup[[#This Row],[Order Form Quantity]]>=Rebate_Lookup[[#This Row],[MOQ_3]]),3)))))) -> 1 | P55: =COUNTIF('2025 GOLF Only Fall Solutions'!A:A,Rebate_Lookup[[#This Row],[SKU CODE]]) -> 1 | Q55: =IFERROR(Rebate_Lookup[[#This Row],[Order Form Quantity]]>=Rebate_Lookup[[#This Row],[MOQ_2]],0) -> TRUE
B56: 86215578 | C56: =INDEX(PRICING[Agency/TT],MATCH(Rebate_Lookup[[#This Row],[SKU CODE]],PRICING[SKU],0)) -> TT | D56: =INDEX(PRICING[Product],MATCH(B56,PRICING[SKU],0)) -> Prograss EC | E56: =INDEX(PRICING[Size],MATCH(Rebate_Lookup[[#This Row],[SKU CODE]],PRICING[SKU],0)) -> 2.5 gal | F56: =INDEX(PRICING[Indication],MATCH(Rebate_Lookup[[#This Row],[SKU CODE]],PRICING[SKU],0)) -> H | G56: =COUNTIFS(PRICING[SKU],B56) -> 1 | K56: =SUMIFS(PRICING[Rebate $],PRICING[SKU],Rebate_Lookup[[#This Row],[SKU CODE]],PRICING[Set],1) -> 22 | L56: =SUMIFS(PRICING[Rebate $],PRICING[SKU],Rebate_Lookup[[#This Row],[SKU CODE]],PRICING[Set],2) -> 0 | M56: =SUMIFS(PRICING[Rebate $],PRICING[SKU],Rebate_Lookup[[#This Row],[SKU CODE]],PRICING[Set],3) -> 0 | N56: =INDEX('2025 GOLF Only Fall Solutions'!J:J,MATCH(Rebate_Lookup[[#This Row],[SKU CODE]],'2025 GOLF Only Fall Solutions'!A:A,0)) -> 0 | O56: =IF(Rebate_Lookup[[#This Row],[Instances]]=1,1, IF(AND(Rebate_Lookup[[#This Row],[Instances]]=2,Rebate_Lookup[[#This Row],[Order Form Quantity]]<Rebate_Lookup[[#This Row],[MOQ_2]]),1,IF(AND(Rebate_Lookup[[#This Row],[Instances]]=2,Rebate_Lookup[[#This Row],[Order Form Quantity]]>=Rebate_Lookup[[#This Row],[MOQ_2]]),2, IF(AND(Rebate_Lookup[[#This Row],[Instances]]=3,Rebate_Lookup[[#This Row],[Order Form Quantity]]<Rebate_Lookup[[#This Row],[MOQ_2]]),1,IF(AND(Rebate_Lookup[[#This Row],[Instances]]=3,Rebate_Lookup[[#This Row],[MOQ_2]]<=Rebate_Lookup[[#This Row],[Order Form Quantity]],Rebate_Lookup[[#This Row],[Order Form Quantity]]<Rebate_Lookup[[#This Row],[MOQ_3]]),2,IF(AND(Rebate_Lookup[[#This Row],[Instances]]=3,Rebate_Lookup[[#This Row],[Order Form Quantity]]>=Rebate_Lookup[[#This Row],[MOQ_3]]),3)))))) -> 1 | P56: =COUNTIF('2025 GOLF Only Fall Solutions'!A:A,Rebate_Lookup[[#This Row],[SKU CODE]]) -> 1 | Q56: =IFERROR(Rebate_Lookup[[#This Row],[Order Form Quantity]]>=Rebate_Lookup[[#This Row],[MOQ_2]],0) -> TRUE
B57: D00000913 | C57: =INDEX(PRICING[Agency/TT],MATCH(Rebate_Lookup[[#This Row],[SKU CODE]],PRICING[SKU],0)) -> TT | D57: =INDEX(PRICING[Product],MATCH(B57,PRICING[SKU],0)) -> Proxy | E57: =INDEX(PRICING[Size],MATCH(Rebate_Lookup[[#This Row],[SKU CODE]],PRICING[SKU],0)) -> 2.5 gal | F57: =INDEX(PRICING[Indication],MATCH(Rebate_Lookup[[#This Row],[SKU CODE]],PRICING[SKU],0)) -> H | G57: =COUNTIFS(PRICING[SKU],B57) -> 1 | K57: =SUMIFS(PRICING[Rebate $],PRICING[SKU],Rebate_Lookup[[#This Row],[SKU CODE]],PRICING[Set],1) -> 0 | L57: =SUMIFS(PRICING[Rebate $],PRICING[SKU],Rebate_Lookup[[#This Row],[SKU CODE]],PRICING[Set],2) -> 0 | M57: =SUMIFS(PRICING[Rebate $],PRICING[SKU],Rebate_Lookup[[#This Row],[SKU CODE]],PRICING[Set],3) -> 0 | N57: =INDEX('2025 GOLF Only Fall Solutions'!J:J,MATCH(Rebate_Lookup[[#This Row],[SKU CODE]],'2025 GOLF Only Fall Solutions'!A:A,0)) -> 0 | O57: =IF(Rebate_Lookup[[#This Row],[Instances]]=1,1, IF(AND(Rebate_Lookup[[#This Row],[Instances]]=2,Rebate_Lookup[[#This Row],[Order Form Quantity]]<Rebate_Lookup[[#This Row],[MOQ_2]]),1,IF(AND(Rebate_Lookup[[#This Row],[Instances]]=2,Rebate_Lookup[[#This Row],[Order Form Quantity]]>=Rebate_Lookup[[#This Row],[MOQ_2]]),2, IF(AND(Rebate_Lookup[[#This Row],[Instances]]=3,Rebate_Lookup[[#This Row],[Order Form Quantity]]<Rebate_Lookup[[#This Row],[MOQ_2]]),1,IF(AND(Rebate_Lookup[[#This Row],[Instances]]=3,Rebate_Lookup[[#This Row],[MOQ_2]]<=Rebate_Lookup[[#This Row],[Order Form Quantity]],Rebate_Lookup[[#This Row],[Order Form Quantity]]<Rebate_Lookup[[#This Row],[MOQ_3]]),2,IF(AND(Rebate_Lookup[[#This Row],[Instances]]=3,Rebate_Lookup[[#This Row],[Order Form Quantity]]>=Rebate_Lookup[[#This Row],[MOQ_3]]),3)))))) -> 1 | P57: =COUNTIF('2025 GOLF Only Fall Solutions'!A:A,Rebate_Lookup[[#This Row],[SKU CODE]]) -> 1 | Q57: =IFERROR(Rebate_Lookup[[#This Row],[Order Form Quantity]]>=Rebate_Lookup[[#This Row],[MOQ_2]],0) -> TRUE
B58: 11008447 | C58: =INDEX(PRICING[Agency/TT],MATCH(Rebate_Lookup[[#This Row],[SKU CODE]],PRICING[SKU],0)) -> TT | D58: =INDEX(PRICING[Product],MATCH(B58,PRICING[SKU],0)) -> QuickSilver® Herbicide | E58: =INDEX(PRICING[Size],MATCH(Rebate_Lookup[[#This Row],[SKU CODE]],PRICING[SKU],0)) -> 8 oz | F58: =INDEX(PRICING[Indication],MATCH(Rebate_Lookup[[#This Row],[SKU CODE]],PRICING[SKU],0)) -> H | G58: =COUNTIFS(PRICING[SKU],B58) -> 1 | K58: =SUMIFS(PRICING[Rebate $],PRICING[SKU],Rebate_Lookup[[#This Row],[SKU CODE]],PRICING[Set],1) -> 20 | L58: =SUMIFS(PRICING[Rebate $],PRICING[SKU],Rebate_Lookup[[#This Row],[SKU CODE]],PRICING[Set],2) -> 0 | M58: =SUMIFS(PRICING[Rebate $],PRICING[SKU],Rebate_Lookup[[#This Row],[SKU CODE]],PRICING[Set],3) -> 0 | N58: =INDEX('2025 GOLF Only Fall Solutions'!J:J,MATCH(Rebate_Lookup[[#This Row],[SKU CODE]],'2025 GOLF Only Fall Solutions'!A:A,0)) -> 0 | O58: =IF(Rebate_Lookup[[#This Row],[Instances]]=1,1, IF(AND(Rebate_Lookup[[#This Row],[Instances]]=2,Rebate_Lookup[[#This Row],[Order Form Quantity]]<Rebate_Lookup[[#This Row],[MOQ_2]]),1,IF(AND(Rebate_Lookup[[#This Row],[Instances]]=2,Rebate_Lookup[[#This Row],[Order Form Quantity]]>=Rebate_Lookup[[#This Row],[MOQ_2]]),2, IF(AND(Rebate_Lookup[[#This Row],[Instances]]=3,Rebate_Lookup[[#This Row],[Order Form Quantity]]<Rebate_Lookup[[#This Row],[MOQ_2]]),1,IF(AND(Rebate_Lookup[[#This Row],[Instances]]=3,Rebate_Lookup[[#This Row],[MOQ_2]]<=Rebate_Lookup[[#This Row],[Order Form Quantity]],Rebate_Lookup[[#This Row],[Order Form Quantity]]<Rebate_Lookup[[#This Row],[MOQ_3]]),2,IF(AND(Rebate_Lookup[[#This Row],[Instances]]=3,Rebate_Lookup[[#This Row],[Order Form Quantity]]>=Rebate_Lookup[[#This Row],[MOQ_3]]),3)))))) -> 1 | P58: =COUNTIF('2025 GOLF Only Fall Solutions'!A:A,Rebate_Lookup[[#This Row],[SKU CODE]]) -> 1 | Q58: =IFERROR(Rebate_Lookup[[#This Row],[Order Form Quantity]]>=Rebate_Lookup[[#This Row],[MOQ_2]],0) -> TRUE
B59: 79850980 | C59: =INDEX(PRICING[Agency/TT],MATCH(Rebate_Lookup[[#This Row],[SKU CODE]],PRICING[SKU],0)) -> TT | D59: =INDEX(PRICING[Product],MATCH(B59,PRICING[SKU],0)) -> Revolver® | E59: =INDEX(PRICING[Size],MATCH(Rebate_Lookup[[#This Row],[SKU CODE]],PRICING[SKU],0)) -> 32 fl oz | F59: =INDEX(PRICING[Indication],MATCH(Rebate_Lookup[[#This Row],[SKU CODE]],PRICING[SKU],0)) -> H | G59: =COUNTIFS(PRICING[SKU],B59) -> 1 | K59: =SUMIFS(PRICING[Rebate $],PRICING[SKU],Rebate_Lookup[[#This Row],[SKU CODE]],PRICING[Set],1) -> 21 | L59: =SUMIFS(PRICING[Rebate $],PRICING[SKU],Rebate_Lookup[[#This Row],[SKU CODE]],PRICING[Set],2) -> 0 | M59: =SUMIFS(PRICING[Rebate $],PRICING[SKU],Rebate_Lookup[[#This Row],[SKU CODE]],PRICING[Set],3) -> 0 | N59: =INDEX('2025 GOLF Only Fall Solutions'!J:J,MATCH(Rebate_Lookup[[#This Row],[SKU CODE]],'2025 GOLF Only Fall Solutions'!A:A,0)) -> 0 | O59: =IF(Rebate_Lookup[[#This Row],[Instances]]=1,1, IF(AND(Rebate_Lookup[[#This Row],[Instances]]=2,Rebate_Lookup[[#This Row],[Order Form Quantity]]<Rebate_Lookup[[#This Row],[MOQ_2]]),1,IF(AND(Rebate_Lookup[[#This Row],[Instances]]=2,Rebate_Lookup[[#This Row],[Order Form Quantity]]>=Rebate_Lookup[[#This Row],[MOQ_2]]),2, IF(AND(Rebate_Lookup[[#This Row],[Instances]]=3,Rebate_Lookup[[#This Row],[Order Form Quantity]]<Rebate_Lookup[[#This Row],[MOQ_2]]),1,IF(AND(Rebate_Lookup[[#This Row],[Instances]]=3,Rebate_Lookup[[#This Row],[MOQ_2]]<=Rebate_Lookup[[#This Row],[Order Form Quantity]],Rebate_Lookup[[#This Row],[Order Form Quantity]]<Rebate_Lookup[[#This Row],[MOQ_3]]),2,IF(AND(Rebate_Lookup[[#This Row],[Instances]]=3,Rebate_Lookup[[#This Row],[Order Form Quantity]]>=Rebate_Lookup[[#This Row],[MOQ_3]]),3)))))) -> 1 | P59: =COUNTIF('2025 GOLF Only Fall Solutions'!A:A,Rebate_Lookup[[#This Row],[SKU CODE]]) -> 1 | Q59: =IFERROR(Rebate_Lookup[[#This Row],[Order Form Quantity]]>=Rebate_Lookup[[#This Row],[MOQ_2]],0) -> TRUE
B60: 427709 | C60: =INDEX(PRICING[Agency/TT],MATCH(Rebate_Lookup[[#This Row],[SKU CODE]],PRICING[SKU],0)) -> TT | D60: =INDEX(PRICING[Product],MATCH(B60,PRICING[SKU],0)) -> Sencor 75 | E60: =INDEX(PRICING[Size],MATCH(Rebate_Lookup[[#This Row],[SKU CODE]],PRICING[SKU],0)) -> 5 lb | F60: =INDEX(PRICING[Indication],MATCH(Rebate_Lookup[[#This Row],[SKU CODE]],PRICING[SKU],0)) -> H | G60: =COUNTIFS(PRICING[SKU],B60) -> 1 | K60: =SUMIFS(PRICING[Rebate $],PRICING[SKU],Rebate_Lookup[[#This Row],[SKU CODE]],PRICING[Set],1) -> 0 | L60: =SUMIFS(PRICING[Rebate $],PRICING[SKU],Rebate_Lookup[[#This Row],[SKU CODE]],PRICING[Set],2) -> 0 | M60: =SUMIFS(PRICING[Rebate $],PRICING[SKU],Rebate_Lookup[[#This Row],[SKU CODE]],PRICING[Set],3) -> 0 | N60: =INDEX('2025 GOLF Only Fall Solutions'!J:J,MATCH(Rebate_Lookup[[#This Row],[SKU CODE]],'2025 GOLF Only Fall Solutions'!A:A,0)) -> 0 | O60: =IF(Rebate_Lookup[[#This Row],[Instances]]=1,1, IF(AND(Rebate_Lookup[[#This Row],[Instances]]=2,Rebate_Lookup[[#This Row],[Order Form Quantity]]<Rebate_Lookup[[#This Row],[MOQ_2]]),1,IF(AND(Rebate_Lookup[[#This Row],[Instances]]=2,Rebate_Lookup[[#This Row],[Order Form Quantity]]>=Rebate_Lookup[[#This Row],[MOQ_2]]),2, IF(AND(Rebate_Lookup[[#This Row],[Instances]]=3,Rebate_Lookup[[#This Row],[Order Form Quantity]]<Rebate_Lookup[[#This Row],[MOQ_2]]),1,IF(AND(Rebate_Lookup[[#This Row],[Instances]]=3,Rebate_Lookup[[#This Row],[MOQ_2]]<=Rebate_Lookup[[#This Row],[Order Form Quantity]],Rebate_Lookup[[#This Row],[Order Form Quantity]]<Rebate_Lookup[[#This Row],[MOQ_3]]),2,IF(AND(Rebate_Lookup[[#This Row],[Instances]]=3,Rebate_Lookup[[#This Row],[Order Form Quantity]]>=Rebate_Lookup[[#This Row],[MOQ_3]]),3)))))) -> 1 | P60: =COUNTIF('2025 GOLF Only Fall Solutions'!A:A,Rebate_Lookup[[#This Row],[SKU CODE]]) -> 1 | Q60: =IFERROR(Rebate_Lookup[[#This Row],[Order Form Quantity]]>=Rebate_Lookup[[#This Row],[MOQ_2]],0) -> TRUE
B61: 11008482 | C61: =INDEX(PRICING[Agency/TT],MATCH(Rebate_Lookup[[#This Row],[SKU CODE]],PRICING[SKU],0)) -> TT | D61: =INDEX(PRICING[Product],MATCH(B61,PRICING[SKU],0)) -> Solitare® Herbicide | E61: =INDEX(PRICING[Size],MATCH(Rebate_Lookup[[#This Row],[SKU CODE]],PRICING[SKU],0)) -> 1 lb | F61: =INDEX(PRICING[Indication],MATCH(Rebate_Lookup[[#This Row],[SKU CODE]],PRICING[SKU],0)) -> H | G61: =COUNTIFS(PRICING[SKU],B61) -> 1 | K61: =SUMIFS(PRICING[Rebate $],PRICING[SKU],Rebate_Lookup[[#This Row],[SKU CODE]],PRICING[Set],1) -> 15 | L61: =SUMIFS(PRICING[Rebate $],PRICING[SKU],Rebate_Lookup[[#This Row],[SKU CODE]],PRICING[Set],2) -> 0 | M61: =SUMIFS(PRICING[Rebate $],PRICING[SKU],Rebate_Lookup[[#This Row],[SKU CODE]],PRICING[Set],3) -> 0 | N61: =INDEX('2025 GOLF Only Fall Solutions'!J:J,MATCH(Rebate_Lookup[[#This Row],[SKU CODE]],'2025 GOLF Only Fall Solutions'!A:A,0)) -> 0 | O61: =IF(Rebate_Lookup[[#This Row],[Instances]]=1,1, IF(AND(Rebate_Lookup[[#This Row],[Instances]]=2,Rebate_Lookup[[#This Row],[Order Form Quantity]]<Rebate_Lookup[[#This Row],[MOQ_2]]),1,IF(AND(Rebate_Lookup[[#This Row],[Instances]]=2,Rebate_Lookup[[#This Row],[Order Form Quantity]]>=Rebate_Lookup[[#This Row],[MOQ_2]]),2, IF(AND(Rebate_Lookup[[#This Row],[Instances]]=3,Rebate_Lookup[[#This Row],[Order Form Quantity]]<Rebate_Lookup[[#This Row],[MOQ_2]]),1,IF(AND(Rebate_Lookup[[#This Row],[Instances]]=3,Rebate_Lookup[[#This Row],[MOQ_2]]<=Rebate_Lookup[[#This Row],[Order Form Quantity]],Rebate_Lookup[[#This Row],[Order Form Quantity]]<Rebate_Lookup[[#This Row],[MOQ_3]]),2,IF(AND(Rebate_Lookup[[#This Row],[Instances]]=3,Rebate_Lookup[[#This Row],[Order Form Quantity]]>=Rebate_Lookup[[#This Row],[MOQ_3]]),3)))))) -> 1 | P61: =COUNTIF('2025 GOLF Only Fall Solutions'!A:A,Rebate_Lookup[[#This Row],[SKU CODE]]) -> 1 | Q61: =IFERROR(Rebate_Lookup[[#This Row],[Order Form Quantity]]>=Rebate_Lookup[[#This Row],[MOQ_2]],0) -> TRUE
B62: 11008369 | C62: =INDEX(PRICING[Agency/TT],MATCH(Rebate_Lookup[[#This Row],[SKU CODE]],PRICING[SKU],0)) -> TT | D62: =INDEX(PRICING[Product],MATCH(B62,PRICING[SKU],0)) -> Solitare® WSL Herbicide | E62: =INDEX(PRICING[Size],MATCH(Rebate_Lookup[[#This Row],[SKU CODE]],PRICING[SKU],0)) -> 0.75 gal | F62: =INDEX(PRICING[Indication],MATCH(Rebate_Lookup[[#This Row],[SKU CODE]],PRICING[SKU],0)) -> H | G62: =COUNTIFS(PRICING[SKU],B62) -> 1 | K62: =SUMIFS(PRICING[Rebate $],PRICING[SKU],Rebate_Lookup[[#This Row],[SKU CODE]],PRICING[Set],1) -> 12 | L62: =SUMIFS(PRICING[Rebate $],PRICING[SKU],Rebate_Lookup[[#This Row],[SKU CODE]],PRICING[Set],2) -> 0 | M62: =SUMIFS(PRICING[Rebate $],PRICING[SKU],Rebate_Lookup[[#This Row],[SKU CODE]],PRICING[Set],3) -> 0 | N62: =INDEX('2025 GOLF Only Fall Solutions'!J:J,MATCH(Rebate_Lookup[[#This Row],[SKU CODE]],'2025 GOLF Only Fall Solutions'!A:A,0)) -> 0 | O62: =IF(Rebate_Lookup[[#This Row],[Instances]]=1,1, IF(AND(Rebate_Lookup[[#This Row],[Instances]]=2,Rebate_Lookup[[#This Row],[Order Form Quantity]]<Rebate_Lookup[[#This Row],[MOQ_2]]),1,IF(AND(Rebate_Lookup[[#This Row],[Instances]]=2,Rebate_Lookup[[#This Row],[Order Form Quantity]]>=Rebate_Lookup[[#This Row],[MOQ_2]]),2, IF(AND(Rebate_Lookup[[#This Row],[Instances]]=3,Rebate_Lookup[[#This Row],[Order Form Quantity]]<Rebate_Lookup[[#This Row],[MOQ_2]]),1,IF(AND(Rebate_Lookup[[#This Row],[Instances]]=3,Rebate_Lookup[[#This Row],[MOQ_2]]<=Rebate_Lookup[[#This Row],[Order Form Quantity]],Rebate_Lookup[[#This Row],[Order Form Quantity]]<Rebate_Lookup[[#This Row],[MOQ_3]]),2,IF(AND(Rebate_Lookup[[#This Row],[Instances]]=3,Rebate_Lookup[[#This Row],[Order Form Quantity]]>=Rebate_Lookup[[#This Row],[MOQ_3]]),3)))))) -> 1 | P62: =COUNTIF('2025 GOLF Only Fall Solutions'!A:A,Rebate_Lookup[[#This Row],[SKU CODE]]) -> 1 | Q62: =IFERROR(Rebate_Lookup[[#This Row],[Order Form Quantity]]>=Rebate_Lookup[[#This Row],[MOQ_2]],0) -> TRUE
B63: D00000675 | C63: =INDEX(PRICING[Agency/TT],MATCH(Rebate_Lookup[[#This Row],[SKU CODE]],PRICING[SKU],0)) -> TT | D63: =INDEX(PRICING[Product],MATCH(B63,PRICING[SKU],0)) -> Terradex C&B | E63: =INDEX(PRICING[Size],MATCH(Rebate_Lookup[[#This Row],[SKU CODE]],PRICING[SKU],0)) -> 1 gal | F63: =INDEX(PRICING[Indication],MATCH(Rebate_Lookup[[#This Row],[SKU CODE]],PRICING[SKU],0)) -> H | G63: =COUNTIFS(PRICING[SKU],B63) -> 1 | K63: =SUMIFS(PRICING[Rebate $],PRICING[SKU],Rebate_Lookup[[#This Row],[SKU CODE]],PRICING[Set],1) -> 15 | L63: =SUMIFS(PRICING[Rebate $],PRICING[SKU],Rebate_Lookup[[#This Row],[SKU CODE]],PRICING[Set],2) -> 0 | M63: =SUMIFS(PRICING[Rebate $],PRICING[SKU],Rebate_Lookup[[#This Row],[SKU CODE]],PRICING[Set],3) -> 0 | N63: =INDEX('2025 GOLF Only Fall Solutions'!J:J,MATCH(Rebate_Lookup[[#This Row],[SKU CODE]],'2025 GOLF Only Fall Solutions'!A:A,0)) ->  | O63: =IF(Rebate_Lookup[[#This Row],[Instances]]=1,1, IF(AND(Rebate_Lookup[[#This Row],[Instances]]=2,Rebate_Lookup[[#This Row],[Order Form Quantity]]<Rebate_Lookup[[#This Row],[MOQ_2]]),1,IF(AND(Rebate_Lookup[[#This Row],[Instances]]=2,Rebate_Lookup[[#This Row],[Order Form Quantity]]>=Rebate_Lookup[[#This Row],[MOQ_2]]),2, IF(AND(Rebate_Lookup[[#This Row],[Instances]]=3,Rebate_Lookup[[#This Row],[Order Form Quantity]]<Rebate_Lookup[[#This Row],[MOQ_2]]),1,IF(AND(Rebate_Lookup[[#This Row],[Instances]]=3,Rebate_Lookup[[#This Row],[MOQ_2]]<=Rebate_Lookup[[#This Row],[Order Form Quantity]],Rebate_Lookup[[#This Row],[Order Form Quantity]]<Rebate_Lookup[[#This Row],[MOQ_3]]),2,IF(AND(Rebate_Lookup[[#This Row],[Instances]]=3,Rebate_Lookup[[#This Row],[Order Form Quantity]]>=Rebate_Lookup[[#This Row],[MOQ_3]]),3)))))) -> 1 | P63: =COUNTIF('2025 GOLF Only Fall Solutions'!A:A,Rebate_Lookup[[#This Row],[SKU CODE]]) -> 0 | Q63: =IFERROR(Rebate_Lookup[[#This Row],[Order Form Quantity]]>=Rebate_Lookup[[#This Row],[MOQ_2]],0) -> 0
B64: D00000674 | C64: =INDEX(PRICING[Agency/TT],MATCH(Rebate_Lookup[[#This Row],[SKU CODE]],PRICING[SKU],0)) -> TT | D64: =INDEX(PRICING[Product],MATCH(B64,PRICING[SKU],0)) -> Terradex C&B | E64: =INDEX(PRICING[Size],MATCH(Rebate_Lookup[[#This Row],[SKU CODE]],PRICING[SKU],0)) -> 2.5 gal | F64: =INDEX(PRICING[Indication],MATCH(Rebate_Lookup[[#This Row],[SKU CODE]],PRICING[SKU],0)) -> H | G64: =COUNTIFS(PRICING[SKU],B64) -> 1 | K64: =SUMIFS(PRICING[Rebate $],PRICING[SKU],Rebate_Lookup[[#This Row],[SKU CODE]],PRICING[Set],1) -> 37.5 | L64: =SUMIFS(PRICING[Rebate $],PRICING[SKU],Rebate_Lookup[[#This Row],[SKU CODE]],PRICING[Set],2) -> 0 | M64: =SUMIFS(PRICING[Rebate $],PRICING[SKU],Rebate_Lookup[[#This Row],[SKU CODE]],PRICING[Set],3) -> 0 | N64: =INDEX('2025 GOLF Only Fall Solutions'!J:J,MATCH(Rebate_Lookup[[#This Row],[SKU CODE]],'2025 GOLF Only Fall Solutions'!A:A,0)) ->  | O64: =IF(Rebate_Lookup[[#This Row],[Instances]]=1,1, IF(AND(Rebate_Lookup[[#This Row],[Instances]]=2,Rebate_Lookup[[#This Row],[Order Form Quantity]]<Rebate_Lookup[[#This Row],[MOQ_2]]),1,IF(AND(Rebate_Lookup[[#This Row],[Instances]]=2,Rebate_Lookup[[#This Row],[Order Form Quantity]]>=Rebate_Lookup[[#This Row],[MOQ_2]]),2, IF(AND(Rebate_Lookup[[#This Row],[Instances]]=3,Rebate_Lookup[[#This Row],[Order Form Quantity]]<Rebate_Lookup[[#This Row],[MOQ_2]]),1,IF(AND(Rebate_Lookup[[#This Row],[Instances]]=3,Rebate_Lookup[[#This Row],[MOQ_2]]<=Rebate_Lookup[[#This Row],[Order Form Quantity]],Rebate_Lookup[[#This Row],[Order Form Quantity]]<Rebate_Lookup[[#This Row],[MOQ_3]]),2,IF(AND(Rebate_Lookup[[#This Row],[Instances]]=3,Rebate_Lookup[[#This Row],[Order Form Quantity]]>=Rebate_Lookup[[#This Row],[MOQ_3]]),3)))))) -> 1 | P64: =COUNTIF('2025 GOLF Only Fall Solutions'!A:A,Rebate_Lookup[[#This Row],[SKU CODE]]) -> 0 | Q64: =IFERROR(Rebate_Lookup[[#This Row],[Order Form Quantity]]>=Rebate_Lookup[[#This Row],[MOQ_2]],0) -> 0
B65: D00000669 | C65: =INDEX(PRICING[Agency/TT],MATCH(Rebate_Lookup[[#This Row],[SKU CODE]],PRICING[SKU],0)) -> TT | D65: =INDEX(PRICING[Product],MATCH(B65,PRICING[SKU],0)) -> Terradex Power Premix | E65: =INDEX(PRICING[Size],MATCH(Rebate_Lookup[[#This Row],[SKU CODE]],PRICING[SKU],0)) -> 2.5 gal | F65: =INDEX(PRICING[Indication],MATCH(Rebate_Lookup[[#This Row],[SKU CODE]],PRICING[SKU],0)) -> H | G65: =COUNTIFS(PRICING[SKU],B65) -> 1 | K65: =SUMIFS(PRICING[Rebate $],PRICING[SKU],Rebate_Lookup[[#This Row],[SKU CODE]],PRICING[Set],1) -> 37.5 | L65: =SUMIFS(PRICING[Rebate $],PRICING[SKU],Rebate_Lookup[[#This Row],[SKU CODE]],PRICING[Set],2) -> 0 | M65: =SUMIFS(PRICING[Rebate $],PRICING[SKU],Rebate_Lookup[[#This Row],[SKU CODE]],PRICING[Set],3) -> 0 | N65: =INDEX('2025 GOLF Only Fall Solutions'!J:J,MATCH(Rebate_Lookup[[#This Row],[SKU CODE]],'2025 GOLF Only Fall Solutions'!A:A,0)) ->  | O65: =IF(Rebate_Lookup[[#This Row],[Instances]]=1,1, IF(AND(Rebate_Lookup[[#This Row],[Instances]]=2,Rebate_Lookup[[#This Row],[Order Form Quantity]]<Rebate_Lookup[[#This Row],[MOQ_2]]),1,IF(AND(Rebate_Lookup[[#This Row],[Instances]]=2,Rebate_Lookup[[#This Row],[Order Form Quantity]]>=Rebate_Lookup[[#This Row],[MOQ_2]]),2, IF(AND(Rebate_Lookup[[#This Row],[Instances]]=3,Rebate_Lookup[[#This Row],[Order Form Quantity]]<Rebate_Lookup[[#This Row],[MOQ_2]]),1,IF(AND(Rebate_Lookup[[#This Row],[Instances]]=3,Rebate_Lookup[[#This Row],[MOQ_2]]<=Rebate_Lookup[[#This Row],[Order Form Quantity]],Rebate_Lookup[[#This Row],[Order Form Quantity]]<Rebate_Lookup[[#This Row],[MOQ_3]]),2,IF(AND(Rebate_Lookup[[#This Row],[Instances]]=3,Rebate_Lookup[[#This Row],[Order Form Quantity]]>=Rebate_Lookup[[#This Row],[MOQ_3]]),3)))))) -> 1 | P65: =COUNTIF('2025 GOLF Only Fall Solutions'!A:A,Rebate_Lookup[[#This Row],[SKU CODE]]) -> 0 | Q65: =IFERROR(Rebate_Lookup[[#This Row],[Order Form Quantity]]>=Rebate_Lookup[[#This Row],[MOQ_2]],0) -> 0
B66: D00000670 | C66: =INDEX(PRICING[Agency/TT],MATCH(Rebate_Lookup[[#This Row],[SKU CODE]],PRICING[SKU],0)) -> TT | D66: =INDEX(PRICING[Product],MATCH(B66,PRICING[SKU],0)) -> Terradex Power Premix | E66: =INDEX(PRICING[Size],MATCH(Rebate_Lookup[[#This Row],[SKU CODE]],PRICING[SKU],0)) -> 30 gal | F66: =INDEX(PRICING[Indication],MATCH(Rebate_Lookup[[#This Row],[SKU CODE]],PRICING[SKU],0)) -> H | G66: =COUNTIFS(PRICING[SKU],B66) -> 1 | K66: =SUMIFS(PRICING[Rebate $],PRICING[SKU],Rebate_Lookup[[#This Row],[SKU CODE]],PRICING[Set],1) -> 450 | L66: =SUMIFS(PRICING[Rebate $],PRICING[SKU],Rebate_Lookup[[#This Row],[SKU CODE]],PRICING[Set],2) -> 0 | M66: =SUMIFS(PRICING[Rebate $],PRICING[SKU],Rebate_Lookup[[#This Row],[SKU CODE]],PRICING[Set],3) -> 0 | N66: =INDEX('2025 GOLF Only Fall Solutions'!J:J,MATCH(Rebate_Lookup[[#This Row],[SKU CODE]],'2025 GOLF Only Fall Solutions'!A:A,0)) ->  | O66: =IF(Rebate_Lookup[[#This Row],[Instances]]=1,1, IF(AND(Rebate_Lookup[[#This Row],[Instances]]=2,Rebate_Lookup[[#This Row],[Order Form Quantity]]<Rebate_Lookup[[#This Row],[MOQ_2]]),1,IF(AND(Rebate_Lookup[[#This Row],[Instances]]=2,Rebate_Lookup[[#This Row],[Order Form Quantity]]>=Rebate_Lookup[[#This Row],[MOQ_2]]),2, IF(AND(Rebate_Lookup[[#This Row],[Instances]]=3,Rebate_Lookup[[#This Row],[Order Form Quantity]]<Rebate_Lookup[[#This Row],[MOQ_2]]),1,IF(AND(Rebate_Lookup[[#This Row],[Instances]]=3,Rebate_Lookup[[#This Row],[MOQ_2]]<=Rebate_Lookup[[#This Row],[Order Form Quantity]],Rebate_Lookup[[#This Row],[Order Form Quantity]]<Rebate_Lookup[[#This Row],[MOQ_3]]),2,IF(AND(Rebate_Lookup[[#This Row],[Instances]]=3,Rebate_Lookup[[#This Row],[Order Form Quantity]]>=Rebate_Lookup[[#This Row],[MOQ_3]]),3)))))) -> 1 | P66: =COUNTIF('2025 GOLF Only Fall Solutions'!A:A,Rebate_Lookup[[#This Row],[SKU CODE]]) -> 0 | Q66: =IFERROR(Rebate_Lookup[[#This Row],[Order Form Quantity]]>=Rebate_Lookup[[#This Row],[MOQ_2]],0) -> 0
B67: D00000673 | C67: =INDEX(PRICING[Agency/TT],MATCH(Rebate_Lookup[[#This Row],[SKU CODE]],PRICING[SKU],0)) -> TT | D67: =INDEX(PRICING[Product],MATCH(B67,PRICING[SKU],0)) -> Terradex Quick Strike | E67: =INDEX(PRICING[Size],MATCH(Rebate_Lookup[[#This Row],[SKU CODE]],PRICING[SKU],0)) -> 1 gal | F67: =INDEX(PRICING[Indication],MATCH(Rebate_Lookup[[#This Row],[SKU CODE]],PRICING[SKU],0)) -> H | G67: =COUNTIFS(PRICING[SKU],B67) -> 1 | K67: =SUMIFS(PRICING[Rebate $],PRICING[SKU],Rebate_Lookup[[#This Row],[SKU CODE]],PRICING[Set],1) -> 15 | L67: =SUMIFS(PRICING[Rebate $],PRICING[SKU],Rebate_Lookup[[#This Row],[SKU CODE]],PRICING[Set],2) -> 0 | M67: =SUMIFS(PRICING[Rebate $],PRICING[SKU],Rebate_Lookup[[#This Row],[SKU CODE]],PRICING[Set],3) -> 0 | N67: =INDEX('2025 GOLF Only Fall Solutions'!J:J,MATCH(Rebate_Lookup[[#This Row],[SKU CODE]],'2025 GOLF Only Fall Solutions'!A:A,0)) ->  | O67: =IF(Rebate_Lookup[[#This Row],[Instances]]=1,1, IF(AND(Rebate_Lookup[[#This Row],[Instances]]=2,Rebate_Lookup[[#This Row],[Order Form Quantity]]<Rebate_Lookup[[#This Row],[MOQ_2]]),1,IF(AND(Rebate_Lookup[[#This Row],[Instances]]=2,Rebate_Lookup[[#This Row],[Order Form Quantity]]>=Rebate_Lookup[[#This Row],[MOQ_2]]),2, IF(AND(Rebate_Lookup[[#This Row],[Instances]]=3,Rebate_Lookup[[#This Row],[Order Form Quantity]]<Rebate_Lookup[[#This Row],[MOQ_2]]),1,IF(AND(Rebate_Lookup[[#This Row],[Instances]]=3,Rebate_Lookup[[#This Row],[MOQ_2]]<=Rebate_Lookup[[#This Row],[Order Form Quantity]],Rebate_Lookup[[#This Row],[Order Form Quantity]]<Rebate_Lookup[[#This Row],[MOQ_3]]),2,IF(AND(Rebate_Lookup[[#This Row],[Instances]]=3,Rebate_Lookup[[#This Row],[Order Form Quantity]]>=Rebate_Lookup[[#This Row],[MOQ_3]]),3)))))) -> 1 | P67: =COUNTIF('2025 GOLF Only Fall Solutions'!A:A,Rebate_Lookup[[#This Row],[SKU CODE]]) -> 0 | Q67: =IFERROR(Rebate_Lookup[[#This Row],[Order Form Quantity]]>=Rebate_Lookup[[#This Row],[MOQ_2]],0) -> 0
B68: D00000672 | C68: =INDEX(PRICING[Agency/TT],MATCH(Rebate_Lookup[[#This Row],[SKU CODE]],PRICING[SKU],0)) -> TT | D68: =INDEX(PRICING[Product],MATCH(B68,PRICING[SKU],0)) -> Terradex Quick Strike | E68: =INDEX(PRICING[Size],MATCH(Rebate_Lookup[[#This Row],[SKU CODE]],PRICING[SKU],0)) -> 2.5 gal | F68: =INDEX(PRICING[Indication],MATCH(Rebate_Lookup[[#This Row],[SKU CODE]],PRICING[SKU],0)) -> H | G68: =COUNTIFS(PRICING[SKU],B68) -> 1 | K68: =SUMIFS(PRICING[Rebate $],PRICING[SKU],Rebate_Lookup[[#This Row],[SKU CODE]],PRICING[Set],1) -> 37.5 | L68: =SUMIFS(PRICING[Rebate $],PRICING[SKU],Rebate_Lookup[[#This Row],[SKU CODE]],PRICING[Set],2) -> 0 | M68: =SUMIFS(PRICING[Rebate $],PRICING[SKU],Rebate_Lookup[[#This Row],[SKU CODE]],PRICING[Set],3) -> 0 | N68: =INDEX('2025 GOLF Only Fall Solutions'!J:J,MATCH(Rebate_Lookup[[#This Row],[SKU CODE]],'2025 GOLF Only Fall Solutions'!A:A,0)) ->  | O68: =IF(Rebate_Lookup[[#This Row],[Instances]]=1,1, IF(AND(Rebate_Lookup[[#This Row],[Instances]]=2,Rebate_Lookup[[#This Row],[Order Form Quantity]]<Rebate_Lookup[[#This Row],[MOQ_2]]),1,IF(AND(Rebate_Lookup[[#This Row],[Instances]]=2,Rebate_Lookup[[#This Row],[Order Form Quantity]]>=Rebate_Lookup[[#This Row],[MOQ_2]]),2, IF(AND(Rebate_Lookup[[#This Row],[Instances]]=3,Rebate_Lookup[[#This Row],[Order Form Quantity]]<Rebate_Lookup[[#This Row],[MOQ_2]]),1,IF(AND(Rebate_Lookup[[#This Row],[Instances]]=3,Rebate_Lookup[[#This Row],[MOQ_2]]<=Rebate_Lookup[[#This Row],[Order Form Quantity]],Rebate_Lookup[[#This Row],[Order Form Quantity]]<Rebate_Lookup[[#This Row],[MOQ_3]]),2,IF(AND(Rebate_Lookup[[#This Row],[Instances]]=3,Rebate_Lookup[[#This Row],[Order Form Quantity]]>=Rebate_Lookup[[#This Row],[MOQ_3]]),3)))))) -> 1 | P68: =COUNTIF('2025 GOLF Only Fall Solutions'!A:A,Rebate_Lookup[[#This Row],[SKU CODE]]) -> 0 | Q68: =IFERROR(Rebate_Lookup[[#This Row],[Order Form Quantity]]>=Rebate_Lookup[[#This Row],[MOQ_2]],0) -> 0
B69: D00000671 | C69: =INDEX(PRICING[Agency/TT],MATCH(Rebate_Lookup[[#This Row],[SKU CODE]],PRICING[SKU],0)) -> TT | D69: =INDEX(PRICING[Product],MATCH(B69,PRICING[SKU],0)) -> Terradex Quick Strike | E69: =INDEX(PRICING[Size],MATCH(Rebate_Lookup[[#This Row],[SKU CODE]],PRICING[SKU],0)) -> 30 gal | F69: =INDEX(PRICING[Indication],MATCH(Rebate_Lookup[[#This Row],[SKU CODE]],PRICING[SKU],0)) -> H | G69: =COUNTIFS(PRICING[SKU],B69) -> 1 | K69: =SUMIFS(PRICING[Rebate $],PRICING[SKU],Rebate_Lookup[[#This Row],[SKU CODE]],PRICING[Set],1) -> 450 | L69: =SUMIFS(PRICING[Rebate $],PRICING[SKU],Rebate_Lookup[[#This Row],[SKU CODE]],PRICING[Set],2) -> 0 | M69: =SUMIFS(PRICING[Rebate $],PRICING[SKU],Rebate_Lookup[[#This Row],[SKU CODE]],PRICING[Set],3) -> 0 | N69: =INDEX('2025 GOLF Only Fall Solutions'!J:J,MATCH(Rebate_Lookup[[#This Row],[SKU CODE]],'2025 GOLF Only Fall Solutions'!A:A,0)) ->  | O69: =IF(Rebate_Lookup[[#This Row],[Instances]]=1,1, IF(AND(Rebate_Lookup[[#This Row],[Instances]]=2,Rebate_Lookup[[#This Row],[Order Form Quantity]]<Rebate_Lookup[[#This Row],[MOQ_2]]),1,IF(AND(Rebate_Lookup[[#This Row],[Instances]]=2,Rebate_Lookup[[#This Row],[Order Form Quantity]]>=Rebate_Lookup[[#This Row],[MOQ_2]]),2, IF(AND(Rebate_Lookup[[#This Row],[Instances]]=3,Rebate_Lookup[[#This Row],[Order Form Quantity]]<Rebate_Lookup[[#This Row],[MOQ_2]]),1,IF(AND(Rebate_Lookup[[#This Row],[Instances]]=3,Rebate_Lookup[[#This Row],[MOQ_2]]<=Rebate_Lookup[[#This Row],[Order Form Quantity]],Rebate_Lookup[[#This Row],[Order Form Quantity]]<Rebate_Lookup[[#This Row],[MOQ_3]]),2,IF(AND(Rebate_Lookup[[#This Row],[Instances]]=3,Rebate_Lookup[[#This Row],[Order Form Quantity]]>=Rebate_Lookup[[#This Row],[MOQ_3]]),3)))))) -> 1 | P69: =COUNTIF('2025 GOLF Only Fall Solutions'!A:A,Rebate_Lookup[[#This Row],[SKU CODE]]) -> 0 | Q69: =IFERROR(Rebate_Lookup[[#This Row],[Order Form Quantity]]>=Rebate_Lookup[[#This Row],[MOQ_2]],0) -> 0
B70: D00001012 | C70: =INDEX(PRICING[Agency/TT],MATCH(Rebate_Lookup[[#This Row],[SKU CODE]],PRICING[SKU],0)) -> TT | D70: =INDEX(PRICING[Product],MATCH(B70,PRICING[SKU],0)) -> TopChoice | E70: =INDEX(PRICING[Size],MATCH(Rebate_Lookup[[#This Row],[SKU CODE]],PRICING[SKU],0)) -> 50 lb | F70: =INDEX(PRICING[Indication],MATCH(Rebate_Lookup[[#This Row],[SKU CODE]],PRICING[SKU],0)) -> I | G70: =COUNTIFS(PRICING[SKU],B70) -> 1 | K70: =SUMIFS(PRICING[Rebate $],PRICING[SKU],Rebate_Lookup[[#This Row],[SKU CODE]],PRICING[Set],1) -> 2 | L70: =SUMIFS(PRICING[Rebate $],PRICING[SKU],Rebate_Lookup[[#This Row],[SKU CODE]],PRICING[Set],2) -> 0 | M70: =SUMIFS(PRICING[Rebate $],PRICING[SKU],Rebate_Lookup[[#This Row],[SKU CODE]],PRICING[Set],3) -> 0 | N70: =INDEX('2025 GOLF Only Fall Solutions'!J:J,MATCH(Rebate_Lookup[[#This Row],[SKU CODE]],'2025 GOLF Only Fall Solutions'!A:A,0)) -> 0 | O70: =IF(Rebate_Lookup[[#This Row],[Instances]]=1,1, IF(AND(Rebate_Lookup[[#This Row],[Instances]]=2,Rebate_Lookup[[#This Row],[Order Form Quantity]]<Rebate_Lookup[[#This Row],[MOQ_2]]),1,IF(AND(Rebate_Lookup[[#This Row],[Instances]]=2,Rebate_Lookup[[#This Row],[Order Form Quantity]]>=Rebate_Lookup[[#This Row],[MOQ_2]]),2, IF(AND(Rebate_Lookup[[#This Row],[Instances]]=3,Rebate_Lookup[[#This Row],[Order Form Quantity]]<Rebate_Lookup[[#This Row],[MOQ_2]]),1,IF(AND(Rebate_Lookup[[#This Row],[Instances]]=3,Rebate_Lookup[[#This Row],[MOQ_2]]<=Rebate_Lookup[[#This Row],[Order Form Quantity]],Rebate_Lookup[[#This Row],[Order Form Quantity]]<Rebate_Lookup[[#This Row],[MOQ_3]]),2,IF(AND(Rebate_Lookup[[#This Row],[Instances]]=3,Rebate_Lookup[[#This Row],[Order Form Quantity]]>=Rebate_Lookup[[#This Row],[MOQ_3]]),3)))))) -> 1 | P70: =COUNTIF('2025 GOLF Only Fall Solutions'!A:A,Rebate_Lookup[[#This Row],[SKU CODE]]) -> 1 | Q70: =IFERROR(Rebate_Lookup[[#This Row],[Order Form Quantity]]>=Rebate_Lookup[[#This Row],[MOQ_2]],0) -> TRUE

Sheet 2025 NOW_EOP_LL (hidden)
A1: Manufacturer | B1: Agency/TT | C1: Segment | D1: Region | E1: Indication | F1: Vol Buys | G1: Program | H1: Old Bayer SKU | I1: Old Envu SKU | J1: SKU | K1: Product | L1: Size | M1: 2025 In-Season Price | N1: NOW Price | O1: In SZN-NOW delta | P1: Min Qty | Q1: Rebate $ | R1: Final Price | S1: Extra Rebates- 14% | T1: Lowest Price with 14% Tier Rebate | U1: Total Savings with 14% Tier Rebate - GOLF | V1: Extra Rebates- 12% | W1: Lowest Price with 12% Tier Rebate | X1: Total Savings with 12% Tier Rebate - LAWN/GSS | Y1: CA In-season Price | Z1: CA NOW Price | AA1: CA Final Price | AB1: WA In-season Price | AC1: WA NOW Price | AD1: WA Final Price | AE1: Package Ounces | AF1: Standard Use Rate (oz/M) | AG1: Standard Use Rate (oz/Acre) | AH1: Price/1000 sq ft | AI1: Price/Acre | AJ1: Total % | AK1: *cumlative | AL1: Set
A2: Envu | B2: A | C2: G | D2: NST | E2: F | F2: X | G2: NOW | H2: 79895402 | J2: D00000907 | K2: Banol® | L2: 2.5 gal | M2: 1267 | N2: 1267 | O2: 0 | R2: 1267 | U2: 0.14 | X2: 0.12 | Y2: 1302.16 | Z2: 1302.16 | AA2: 1302.16 | AB2: 1275.85 | AC2: 1275.85 | AD2: 1275.85 | AE2: 320 | AF2: 2 | AG2: 87.12 | AH2: 7.91875 | AI2: 344.94075 | AJ2: 0 | AL2: 1
A3: Envu | B3: A | C3: G | D3: NST | E3: F | F3: X | G3: NOW | H3: 79895402 | J3: D00000907 | K3: Banol® | L3: 2.5 gal | M3: 1267 | N3: 1267 | O3: 0 | P3: 2+ | Q3: 90 | R3: 1177 | U3: 0.2110339384 | X3: 0.1910339384 | Y3: 1302.16 | Z3: 1302.16 | AA3: 1212.16 | AB3: 1275.85 | AC3: 1275.85 | AD3: 1185.85 | AE3: 320 | AF3: 2 | AG3: 87.12 | AH3: 7.35625 | AI3: 320.43825 | AJ3: 0.07103393844 | AL3: =IF(PRICING[[#This Row],[SKU]]=J2,AL2+1,1) -> 2
A4: Envu | B4: A | C4: G | D4: NST | E4: F | F4: X | G4: NOW | J4: D00000623 | K4: Castlon™ | L4: 1 gal | M4: 2748.2 | N4: 2610.79 | O4: 137.41 | R4: 2610.79 | U4: 0.19 | X4: 0.17 | Y4: NA | Z4: NA | AA4: NA | AB4: 2767.44 | AC4: 2629.07 | AD4: 2629.07 | AE4: 128 | AF4: 0.36 | AG4: 15.6816 | AH4: 7.342846875 | AI4: 319.8544099 | AJ4: 0.05 | AL4: =IF(PRICING[[#This Row],[SKU]]=J3,AL3+1,1) -> 1
A5: Envu | B5: A | C5: G | D5: NST | E5: F | F5: X | G5: NOW | J5: D00000623 | K5: Castlon™ | L5: 1 gal | M5: 2748.2 | N5: 2610.79 | O5: 137.41 | P5: 5-9 | Q5: 525 | R5: 2085.79 | U5: 0.3810341314 | X5: 0.3610341314 | Y5: NA | Z5: NA | AA5: NA | AB5: 2767.44 | AC5: 2629.07 | AD5: 2104.07 | AE5: 128 | AF5: 0.36 | AG5: 15.6816 | AH5: 5.866284375 | AI5: 255.5353474 | AJ5: 0.2410341314 | AL5: =IF(PRICING[[#This Row],[SKU]]=J4,AL4+1,1) -> 2
A6: Envu | B6: A | C6: G | D6: NST | E6: F | F6: X | G6: NOW | J6: D00000623 | K6: Castlon™ | L6: 1 gal | M6: 2748.2 | N6: 2610.79 | O6: 137.41 | P6: 10+ | Q6: 585 | R6: 2025.79 | U6: 0.4028666036 | X6: 0.3828666036 | Y6: NA | Z6: NA | AA6: NA | AB6: 2767.44 | AC6: 2629.07 | AD6: 2044.07 | AE6: 128 | AF6: 0.36 | AG6: 15.6816 | AH6: 5.697534375 | AI6: 248.1845974 | AJ6: 0.2628666036 | AL6: =IF(PRICING[[#This Row],[SKU]]=J5,AL5+1,1) -> 3
A7: Envu | B7: A | C7: G | D7: NST | E7: F | F7: X | G7: EOP | J7: D00000624 | K7: Castlon™ | L7: 16 oz | M7: 428 | N7: 406.6 | O7: 21.4 | R7: 406.6 | U7: 0.19 | X7: 0.17 | Y7: NA | Z7: NA | AA7: NA | AB7: 431 | AC7: 409.45 | AD7: 409.45 | AE7: 16 | AF7: 0.36 | AG7: 15.6816 | AH7: 9.1485 | AI7: 398.50866 | AJ7: 0.05 | AL7: =IF(PRICING[[#This Row],[SKU]]=J6,AL6+1,1) -> 1
A8: Envu | B8: A | C8: G | D8: NST | E8: F | F8: X | G8: EOP | J8: D00000624 | K8: Castlon™ | L8: 16 oz | M8: 428 | N8: 406.6 | O8: 21.4 | P8: 4+ | Q8: 50 | R8: 356.6 | U8: 0.3068224299 | X8: 0.2868224299 | Y8: NA | Z8: NA | AA8: NA | AB8: 431 | AC8: 409.45 | AD8: 359.45 | AE8: 16 | AF8: 0.36 | AG8: 15.6816 | AH8: 8.0235 | AI8: 349.50366 | AJ8: 0.1668224299 | AL8: =IF(PRICING[[#This Row],[SKU]]=J7,AL7+1,1) -> 2
A9: Envu | B9: A | C9: GL | D9: ST | E9: H | F9: X | G9: NOW | J9: 79714858 | K9: Celsius® WG | L9: 10 oz | M9: 131.2 | N9: 124.64 | O9: 6.56 | R9: 124.64 | U9: 0.19 | X9: 0.17 | Y9: 134.84 | Z9: 128.1 | AA9: 128.1 | AB9: 132.12 | AC9: 125.51 | AD9: 125.51 | AE9: 10 | AF9: 0.08494031221 | AG9: 3.7 | AH9: 1.058696051 | AI9: 46.1168 | AJ9: 0.05 | AL9: =IF(PRICING[[#This Row],[SKU]]=J8,AL8+1,1) -> 1
A10: Envu | B10: A | C10: GL | D10: ST | E10: H | F10: X | G10: NOW | J10: 79714858 | K10: Celsius® WG | L10: 10 oz | M10: 131.2 | N10: 124.64 | O10: 6.56 | P10: 48+ | Q10: 12 | R10: 112.64 | U10: 0.2814634146 | X10: 0.2614634146 | Y10: 134.84 | Z10: 128.1 | AA10: 116.1 | AB10: 132.12 | AC10: 125.51 | AD10: 113.51 | AE10: 10 | AF10: 0.08494031221 | AG10: 3.7 | AH10: 0.9567676768 | AI10: 41.6768 | AJ10: 0.1414634146 | AL10: =IF(PRICING[[#This Row],[SKU]]=J9,AL9+1,1) -> 2
A11: Envu | B11: A | C11: GL | D11: ST | E11: H | F11: X | G11: NOW | H11: 86773201 | J11: D00000911 | K11: Celsius® XTRA | L11: 10 oz | M11: 166.4 | N11: 158.08 | O11: 8.32 | R11: 158.08 | U11: 0.19 | X11: 0.17 | Y11: NA | Z11: NA | AA11: NA | AB11: 167.56 | AC11: 159.19 | AD11: 159.19 | AE11: 10 | AF11: 0.1721763085 | AG11: 7.5 | AH11: 2.721763085 | AI11: 118.56 | AJ11: 0.05 | AL11: =IF(PRICING[[#This Row],[SKU]]=J10,AL10+1,1) -> 1
A12: Envu | B12: A | C12: GL | D12: ST | E12: H | F12: X | G12: NOW | H12: 86773201 | J12: D00000911 | K12: Celsius® XTRA | L12: 10 oz | M12: 166.4 | N12: 158.08 | O12: 8.32 | P12: 16+ | Q12: 12 | R12: 146.08 | U12: 0.2621153846 | X12: 0.2421153846 | Y12: NA | Z12: NA | AA12: NA | AB12: 167.56 | AC12: 159.19 | AD12: 147.19 | AE12: 10 | AF12: 0.1721763085 | AG12: 7.5 | AH12: 2.515151515 | AI12: 109.56 | AJ12: 0.1221153846 | AL12: =IF(PRICING[[#This Row],[SKU]]=J11,AL11+1,1) -> 2
A13: Envu | B13: A | C13: G | D13: NST | E13: F | F13: X | G13: NOW | H13: 87276341 | J13: D00000914 | K13: Chipco® Signature™ | L13: 11 lb | M13: 404.8 | N13: 384.56 | O13: 20.24 | Q13: 0 | R13: 384.56 | S13: 53.8384 | T13: 330.7216 | U13: 0.19 | V13: 46.1472 | W13: 338.4128 | X13: 0.17 | Y13: 416.03 | Z13: 395.23 | AA13: 395.23 | AB13: 407.64 | AC13: 387.25 | AD13: 387.25 | AE13: 10 | AF13: 4 | AG13: 174.24 | AH13: 153.824 | AI13: 6700.57344 | AJ13: 0.05 | AL13: =IF(PRICING[[#This Row],[SKU]]=J12,AL12+1,1) -> 1
A14: Envu | B14: A | C14: G | D14: NST | E14: F | F14: X | G14: NOW | H14: 87276341 | J14: D00000914 | K14: Chipco® Signature™ | L14: 11 lb | M14: 404.8 | N14: 384.56 | O14: 20.24 | P14: 9+ | Q14: 5 | R14: 379.56 | S14: 53.8384 | T14: 325.7216 | U14: 0.2023517787 | V14: 46.1472 | W14: 333.4128 | X14: 0.1823517787 | Y14: 416.03 | Z14: 395.23 | AA14: 390.23 | AB14: 407.64 | AC14: 387.25 | AD14: 382.25 | AE14: 10 | AF14: 4 | AG14: 174.24 | AH14: 151.824 | AI14: 6613.45344 | AJ14: 0.06235177866 | AL14: =IF(PRICING[[#This Row],[SKU]]=J13,AL13+1,1) -> 2
A15: Envu | B15: A | C15: G | D15: NST | E15: F | F15: X | G15: NOW | H15: 87348709 | I15: D00000926 | J15: D00001373 | K15: Densicor® | L15: 51 oz | M15: 702.8 | N15: 667.66 | O15: 35.14 | R15: 667.66 | U15: 0.19 | X15: 0.17 | Y15: NA | Z15: NA | AA15: NA | AB15: 707.72 | AC15: 672.33 | AD15: 672.33 | AE15: 51 | AF15: 0.196 | AG15: 8.53776 | AH15: 2.56590902 | AI15: 111.7709969 | AJ15: 0.05 | AL15: =IF(PRICING[[#This Row],[SKU]]=J14,AL14+1,1) -> 1
A16: Envu | B16: A | C16: G | D16: NST | E16: F | F16: X | G16: NOW | H16: 87348709 | I16: D00000926 | J16: D00001373 | K16: Densicor® | L16: 51 oz | M16: 702.8 | N16: 667.66 | O16: 35.14 | P16: 3+ | Q16: 100 | R16: 567.66 | U16: 0.3322879909 | X16: 0.3122879909 | Y16: NA | Z16: NA | AA16: NA | AB16: 707.72 | AC16: 672.33 | AD16: 572.33 | AE16: 51 | AF16: 0.196 | AG16: 8.53776 | AH16: 2.181595294 | AI16: 95.03029101 | AJ16: 0.1922879909 | AL16: =IF(PRICING[[#This Row],[SKU]]=J15,AL15+1,1) -> 2
A17: FMC | B17: A | C17: GL | D17: NST | E17: I | F17: X | G17: EOP | J17: 11015390 | K17: Durentis™ Insecticide | L17: 16 oz | M17: 630 | N17: 567 | O17: 63 | P17: 1-3 | R17: 567 | U17: 0.24 | X17: 0.22 | Y17: 647.48 | Z17: 582.73 | AA17: 582.73 | AB17: 634.12 | AC17: 570.97 | AD17: 570.97 | AE17: 16 | AF17: 0.06198347107 | AG17: 2.7 | AH17: 2.196539256 | AI17: 95.68125 | AJ17: 0.1 | AL17: =IF(PRICING[[#This Row],[SKU]]=J16,AL16+1,1) -> 1
A18: FMC | B18: A | C18: GL | D18: NST | E18: I | F18: X | G18: EOP | J18: 11015390 | K18: Durentis™ Insecticide | L18: 16 oz | M18: 630 | N18: 567 | O18: 63 | P18: 4+ | Q18: 90 | R18: 477 | U18: 0.3828571429 | X18: 0.3628571429 | Y18: 647.48 | Z18: 582.73 | AA18: 492.73 | AB18: 634.12 | AC18: 570.97 | AD18: 480.97 | AE18: 16 | AF18: 0.06 | AG18: 2.7 | AH18: 1.78875 | AI18: 80.49375 | AJ18: 0.2428571429 | AL18: =IF(PRICING[[#This Row],[SKU]]=J17,AL17+1,1) -> 2
A19: FMC | B19: A | C19: GL | D19: NST | E19: I | F19: X | G19: EOP | J19: 11015391 | K19: Durentis™ Insecticide | L19: 64 oz | M19: 2362.6 | N19: 2126.34 | O19: 236.26 | R19: 2126.34 | U19: 0.24 | X19: 0.22 | Y19: 2428.16 | Z19: 2185.35 | AA19: 2185.35 | AB19: 2379.14 | AC19: 2141.22 | AD19: 2141.22 | AE19: 64 | AF19: 0.06 | AG19: 2.7 | AH19: 1.99344375 | AI19: 89.70496875 | AJ19: 0.1 | AL19: =IF(PRICING[[#This Row],[SKU]]=J18,AL18+1,1) -> 1
A20: FMC | B20: A | C20: GL | D20: NST | E20: I | F20: X | G20: EOP | J20: 11015391 | K20: Durentis™ Insecticide | L20: 64 oz | M20: 2362.6 | N20: 2126.34 | O20: 236.26 | P20: 2-3 | Q20: 550 | R20: 1576.34 | U20: 0.4727943791 | X20: 0.4527943791 | Y20: 2428.16 | Z20: 2185.35 | AA20: 1635.35 | AB20: 2379.14 | AC20: 2141.22 | AD20: 1591.22 | AE20: 65 | AF20: 0.06 | AG20: 2.7 | AH20: 1.455083077 | AI20: 65.47873846 | AJ20: 0.3327943791 | AL20: =IF(PRICING[[#This Row],[SKU]]=J19,AL19+1,1) -> 2
A21: FMC | B21: A | C21: GL | D21: NST | E21: I | F21: X | G21: EOP | J21: 11015391 | K21: Durentis™ Insecticide | L21: 64 oz | M21: 2362.6 | N21: 2126.34 | O21: 236.26 | P21: 4+ | Q21: 650 | R21: 1476.34 | U21: 0.5151206298 | X21: 0.4951206298 | Y21: 2428.16 | Z21: 2185.35 | AA21: 1535.35 | AB21: 2379.14 | AC21: 2141.22 | AD21: 1491.22 | AE21: 64 | AF21: 0.06 | AG21: 2.7 | AH21: 1.38406875 | AI21: 62.28309375 | AJ21: 0.3751206298 | AL21: =IF(PRICING[[#This Row],[SKU]]=J20,AL20+1,1) -> 3
A22: FMC | B22: A | C22: GL | D22: NST | E22: H | F22: X | G22: EOP | J22: 11008464 | K22: Echelon® 4SC Herbicide | L22: 1 gal | M22: 454 | N22: 431.3 | O22: 22.7 | R22: 431.3 | U22: 0.19 | X22: 0.17 | Y22: NA | Z22: NA | AA22: NA | AB22: 457.18 | AC22: 434.32 | AD22: 434.32 | AE22: 128 | AF22: 0.5509641873 | AG22: 24 | AH22: 1.856491047 | AI22: 80.86875 | AJ22: 0.05 | AL22: =IF(PRICING[[#This Row],[SKU]]=J21,AL21+1,1) -> 1
A23: FMC | B23: A | C23: GL | D23: NST | E23: H | F23: X | G23: EOP | J23: 11008464 | K23: Echelon® 4SC Herbicide | L23: 1 gal | M23: 454 | N23: 431.3 | O23: 22.7 | P23: 16+ | Q23: 145 | R23: 286.3 | U23: 0.5093832599 | X23: 0.4893832599 | Y23: NA | Z23: NA | AA23: NA | AB23: 457.18 | AC23: 434.32 | AD23: 289.32 | AE23: 128 | AF23: 0.5509641873 | AG23: 24 | AH23: 1.232351928 | AI23: 53.68125 | AJ23: 0.3693832599 | AL23: =IF(PRICING[[#This Row],[SKU]]=J22,AL22+1,1) -> 2
A24: Envu | B24: A | C24: G | D24: NST | E24: F | F24: X | G24: EOP | H24: 85771248 | I24: D00000934 | J24: D00000934 | K24: Exteris® Stressgard® | L24: 2.5 gal | M24: 370 | N24: 370 | O24: 0 | R24: 370 | U24: 0.14 | X24: 0.12 | Y24: NA | Z24: NA | AA24: NA | AB24: 372.6 | AC24: 372.6 | AD24: 372.6 | AE24: 320 | AF24: 4 | AG24: 174.24 | AH24: 4.625 | AI24: 201.465 | AJ24: 0 | AL24: =IF(PRICING[[#This Row],[SKU]]=J23,AL23+1,1) -> 1
A25: Envu | B25: A | C25: G | D25: NST | E25: F | F25: X | G25: EOP | H25: 85771248 | I25: D00000934 | J25: D00000934 | K25: Exteris® Stressgard® | L25: 2.5 gal | M25: 370 | N25: 370 | O25: 0 | P25: 6+ | Q25: 45 | R25: 325 | U25: 0.2616216216 | X25: 0.2416216216 | Y25: NA | Z25: NA | AA25: NA | AB25: 372.6 | AC25: 372.6 | AD25: 327.6 | AE25: 320 | AF25: 4 | AG25: 174.24 | AH25: 4.0625 | AI25: 176.9625 | AJ25: 0.1216216216 | AL25: =IF(PRICING[[#This Row],[SKU]]=J24,AL24+1,1) -> 2
A26: FMC | B26: A | C26: G | D26: NST | E26: F | G26: EOP | J26: 11008377 | K26: Fame® +C Fungicide | L26: 2.5 gal | M26: 575.4 | N26: 575.4 | O26: 0 | R26: 575.4 | U26: 0.14 | X26: 0.12 | Y26: NA | Z26: NA | AA26: NA | AB26: 579.42 | AC26: 579.42 | AD26: 579.42 | AE26: 320 | AF26: 4 | AG26: 174.24 | AH26: 7.1925 | AI26: 313.3053 | AJ26: 0 | AL26: =IF(PRICING[[#This Row],[SKU]]=J25,AL25+1,1) -> 1
A27: FMC | B27: A | C27: G | D27: NST | E27: F | F27: X | G27: EOP | J27: 11008393 | K27: Fame® SC Fungicide | L27: 16 oz | M27: 428 | N27: 406.6 | O27: 21.4 | R27: 406.6 | U27: 0.19 | X27: 0.17 | Y27: 439.88 | Z27: 417.88 | AA27: 417.88 | AB27: 431 | AC27: 409.45 | AD27: 409.45 | AE27: 16 | AF27: 0.36 | AG27: 15.6816 | AH27: 9.1485 | AI27: 398.50866 | AJ27: 0.05 | AL27: =IF(PRICING[[#This Row],[SKU]]=J26,AL26+1,1) -> 1
A28: FMC | B28: A | C28: G | D28: NST | E28: F | F28: X | G28: EOP | J28: 11008393 | K28: Fame® SC Fungicide | L28: 16 oz | M28: 428 | N28: 406.6 | O28: 21.4 | P28: 4+ | Q28: 50 | R28: 356.6 | U28: 0.3068224299 | X28: 0.2868224299 | Y28: 439.88 | Z28: 417.88 | AA28: 367.88 | AB28: 431 | AC28: 409.45 | AD28: 359.45 | AE28: 16 | AF28: 0.36 | AG28: 15.6816 | AH28: 8.0235 | AI28: 349.50366 | AJ28: 0.1668224299 | AL28: =IF(PRICING[[#This Row],[SKU]]=J27,AL27+1,1) -> 2
A29: FMC | B29: A | C29: GL | D29: NST | E29: F | F29: X | G29: NOW | J29: 11008557 | K29: Fame® SC Fungicide | L29: 64 oz | M29: 1549.45 | N29: 1471.98 | O29: 77.47 | R29: 1471.98 | U29: 0.1899983865 | X29: 0.1699983865 | Y29: 1592.45 | Z29: 1512.83 | AA29: 1512.83 | AB29: 1560.3 | AC29: 1482.28 | AD29: 1482.28 | AE29: 64 | AF29: 0.36 | AG29: 15.6816 | AH29: 8.2798875 | AI29: 360.6718995 | AJ29: 0.04999838652 | AL29: =IF(PRICING[[#This Row],[SKU]]=J28,AL28+1,1) -> 1
A30: FMC | B30: A | C30: GL | D30: NST | E30: F | F30: X | G30: NOW | J30: 11008557 | K30: Fame® SC Fungicide | L30: 64 oz | M30: 1549.45 | N30: 1471.98 | O30: 77.47 | P30: 4+ | Q30: 410 | R30: 1061.98 | U30: 0.4546084094 | X30: 0.4346084094 | Y30: 1592.45 | Z30: 1512.83 | AA30: 1102.83 | AB30: 1560.3 | AC30: 1482.28 | AD30: 1072.28 | AE30: 64 | AF30: 0.36 | AG30: 15.6816 | AH30: 5.9736375 | AI30: 260.2116495 | AJ30: 0.3146084094 | AL30: =IF(PRICING[[#This Row],[SKU]]=J29,AL29+1,1) -> 2
A31: FMC | B31: A | C31: GL | D31: NST | E31: F | F31: X | G31: NOW | J31: 11009500 | K31: Fame® SC Fungicide | L31: 2.5 gal | M31: 6863.6 | N31: 6520.42 | O31: 343.18 | R31: 6520.42 | U31: 0.19 | X31: 0.17 | Y31: 7054.06 | Z31: 6701.36 | AA31: 6701.36 | AB31: 6911.64 | AC31: 6566.06 | AD31: 6566.06 | AE31: 320 | AF31: 0.36 | AG31: 15.6816 | AH31: 7.3354725 | AI31: 319.5331821 | AJ31: 0.05 | AL31: =IF(PRICING[[#This Row],[SKU]]=J30,AL30+1,1) -> 1
A32: FMC | B32: A | C32: GL | D32: NST | E32: F | F32: X | G32: NOW | J32: 11009500 | K32: Fame® SC Fungicide | L32: 2.5 gal | M32: 6863.6 | N32: 6520.42 | O32: 343.18 | P32: 2-3 | Q32: 1450 | R32: 5070.42 | U32: 0.4012593974 | X32: 0.3812593974 | Y32: 7054.06 | Z32: 6701.36 | AA32: 5251.36 | AB32: 6911.64 | AC32: 6566.06 | AD32: 5116.06 | AE32: 320 | AF32: 0.36 | AG32: 15.6816 | AH32: 5.7042225 | AI32: 248.4759321 | AJ32: 0.2612593974 | AL32: =IF(PRICING[[#This Row],[SKU]]=J31,AL31+1,1) -> 2
A33: FMC | B33: A | C33: GL | D33: NST | E33: F | F33: X | G33: NOW | J33: 11009500 | K33: Fame® SC Fungicide | L33: 2.5 gal | M33: 6863.6 | N33: 6520.42 | O33: 343.18 | P33: 4+ | Q33: 1600 | R33: 4920.42 | U33: 0.4231138178 | X33: 0.4031138178 | Y33: 7054.06 | Z33: 6701.36 | AA33: 5101.36 | AB33: 6911.64 | AC33: 6566.06 | AD33: 4966.06 | AE33: 320 | AF33: 0.36 | AG33: 15.6816 | AH33: 5.5354725 | AI33: 241.1251821 | AJ33: 0.2831138178 | AL33: =IF(PRICING[[#This Row],[SKU]]=J32,AL32+1,1) -> 3
A34: Envu | B34: A | C34: G | D34: NST | E34: F | F34: X | G34: EOP | H34: 80910932 | J34: D00000935 | K34: Fiata® Stressgard® | L34: 2.5 gal | M34: 192 | N34: 192 | O34: 0 | R34: 192 | U34: 0.14 | X34: 0.12 | Y34: 197.33 | Z34: 197.33 | AA34: 197.33 | AB34: 193.35 | AC34: 193.35 | AD34: 193.35 | AE34: 320 | AF34: 3 | AG34: 130.68 | AH34: 1.8 | AI34: 78.408 | AJ34: 0 | AL34: =IF(PRICING[[#This Row],[SKU]]=J33,AL33+1,1) -> 1
A35: Envu | B35: A | C35: G | D35: NST | E35: F | F35: X | G35: EOP | H35: 80910932 | J35: D00000935 | K35: Fiata® Stressgard® | L35: 2.5 gal | M35: 192 | N35: 192 | O35: 0 | P35: 16+ | Q35: 10 | R35: 182 | U35: 0.1920833333 | X35: 0.1720833333 | Y35: 197.33 | Z35: 197.33 | AA35: 187.33 | AB35: 193.35 | AC35: 193.35 | AD35: 183.35 | AE35: 320 | AF35: 3 | AG35: 130.68 | AH35: 1.70625 | AI35: 74.32425 | AJ35: 0.05208333333 | AL35: =IF(PRICING[[#This Row],[SKU]]=J34,AL34+1,1) -> 2
A36: Envu | B36: A | C36: G | D36: NST | E36: F | F36: X | G36: NOW | H36: 84411426 | I36: D00000940 | J36: D00001379 | K36: Indemnify® | L36: 17.1 fl oz | M36: 1963.6 | N36: 1865.42 | O36: 98.18 | R36: 1865.42 | U36: 0.19 | X36: 0.17 | Y36: 2018.09 | Z36: 1917.19 | AA36: 1917.19 | AB36: 1977.34 | AC36: 1878.48 | AD36: 1878.48 | AE36: 17.1 | AF36: 0.39 | AG36: 16.9884 | AH36: 42.54466667 | AI36: 1853.24568 | AJ36: 0.05 | AL36: =IF(PRICING[[#This Row],[SKU]]=J35,AL35+1,1) -> 1
A37: Envu | B37: A | C37: G | D37: NST | E37: F | F37: X | G37: NOW | H37: 84411426 | I37: D00000940 | J37: D00001379 | K37: Indemnify® | L37: 17.1 fl oz | M37: 1963.6 | N37: 1865.42 | O37: 98.18 | P37: 3-5 | Q37: 185 | R37: 1680.42 | U37: 0.2842147077 | X37: 0.2642147077 | Y37: 2018.09 | Z37: 1917.19 | AA37: 1732.19 | AB37: 1977.34 | AC37: 1878.48 | AD37: 1693.48 | AE37: 17.1 | AF37: 0.39 | AG37: 16.9884 | AH37: 38.32536842 | AI37: 1669.453048 | AJ37: 0.1442147077 | AL37: =IF(PRICING[[#This Row],[SKU]]=J36,AL36+1,1) -> 2
A38: Envu | B38: A | C38: G | D38: NST | E38: F | F38: X | G38: NOW | H38: 84411426 | I38: D00000940 | J38: D00001379 | K38: Indemnify® | L38: 17.1 fl oz | M38: 1963.6 | N38: 1865.42 | O38: 98.18 | P38: 6+ | Q38: 410 | R38: 1455.42 | U38: 0.398800163 | X38: 0.378800163 | Y38: 2018.09 | Z38: 1917.19 | AA38: 1507.19 | AB38: 1977.34 | AC38: 1878.48 | AD38: 1468.48 | AE38: 17.1 | AF38: 0.39 | AG38: 16.9884 | AH38: 33.19378947 | AI38: 1445.921469 | AJ38: 0.258800163 | AL38: =IF(PRICING[[#This Row],[SKU]]=J37,AL37+1,1) -> 3
A39: Envu | B39: A | C39: G | D39: NST | E39: F | F39: X | G39: NOW | J39: 81701245 | K39: Interface® Stressgard® | L39: 2.5 gal | M39: 573 | N39: 544.35 | O39: 28.65 | R39: 544.35 | U39: 0.19 | X39: 0.17 | Y39: 588.9 | Z39: 559.46 | AA39: 559.46 | AB39: 577 | AC39: 548.16 | AD39: 548.16 | AE39: 320 | AF39: 4 | AG39: 174.24 | AH39: 6.804375 | AI39: 296.398575 | AJ39: 0.05 | AL39: =IF(PRICING[[#This Row],[SKU]]=J38,AL38+1,1) -> 1
A40: Envu | B40: A | C40: G | D40: NST | E40: F | F40: X | G40: NOW | J40: 81701245 | K40: Interface® Stressgard® | L40: 2.5 gal | M40: 573 | N40: 544.35 | O40: 28.65 | P40: 6+ | Q40: 90 | R40: 454.35 | U40: 0.3470680628 | X40: 0.3270680628 | Y40: 588.9 | Z40: 559.46 | AA40: 469.46 | AB40: 577 | AC40: 548.16 | AD40: 458.16 | AE40: 320 | AF40: 4 | AG40: 174.24 | AH40: 5.679375 | AI40: 247.393575 | AJ40: 0.2070680628 | AL40: =IF(PRICING[[#This Row],[SKU]]=J39,AL39+1,1) -> 2
A41: FMC | B41: A | C41: G | D41: NST | E41: F | F41: X | G41: EOP | J41: 11013671 | K41: Kalida® Fungicide | L41: 64 oz | M41: 866.4 | N41: 866.4 | O41: 0 | R41: 866.4 | U41: 0.14 | X41: 0.12 | Y41: NA | Z41: NA | AA41: NA | AB41: 872.46 | AC41: 872.46 | AD41: 872.46 | AE41: 64 | AF41: 0.4 | AG41: 17.424 | AH41: 5.415 | AI41: 235.8774 | AJ41: 0 | AL41: =IF(PRICING[[#This Row],[SKU]]=J40,AL40+1,1) -> 1
A42: FMC | B42: A | C42: G | D42: NST | E42: F | F42: X | G42: EOP | J42: 11013671 | K42: Kalida® Fungicide | L42: 64 oz | M42: 866.4 | N42: 866.4 | O42: 0 | P42: 4+ | Q42: 295 | R42: 571.4 | U42: 0.4804893813 | X42: 0.4604893813 | Y42: NA | Z42: NA | AA42: NA | AB42: 872.46 | AC42: 872.46 | AD42: 577.46 | AE42: 64 | AF42: 0.4 | AG42: 17.424 | AH42: 3.57125 | AI42: 155.56365 | AJ42: 0.3404893813 | AL42: =IF(PRICING[[#This Row],[SKU]]=J41,AL41+1,1) -> 2
A43: Envu | B43: A | C43: G | D43: NST | E43: F | F43: X | G43: NOW | H43: 80973942 | J43: D00000965 | K43: Mirage® Stressgard® | L43: 2.5 gal | M43: 493 | N43: 493 | O43: 0 | R43: 493 | U43: 0.14 | X43: 0.12 | Y43: 506.68 | Z43: 506.68 | AA43: 506.68 | AB43: 496.45 | AC43: 496.45 | AD43: 496.45 | AE43: 320 | AF43: 1 | AG43: 43.56 | AH43: 1.540625 | AI43: 67.109625 | AJ43: 0 | AL43: =IF(PRICING[[#This Row],[SKU]]=J42,AL42+1,1) -> 1
A44: Envu | B44: A | C44: G | D44: NST | E44: F | F44: X | G44: NOW | H44: 80973942 | J44: D00000965 | K44: Mirage® Stressgard® | L44: 2.5 gal | M44: 493 | N44: 493 | O44: 0 | P44: 4+ | Q44: 90 | R44: 403 | U44: 0.3225557809 | X44: 0.3025557809 | Y44: 506.68 | Z44: 506.68 | AA44: 416.68 | AB44: 496.45 | AC44: 496.45 | AD44: 406.45 | AE44: 320 | AF44: 1 | AG44: 43.56 | AH44: 1.259375 | AI44: 54.858375 | AJ44: 0.1825557809 | AL44: =IF(PRICING[[#This Row],[SKU]]=J43,AL43+1,1) -> 2
A45: FMC | B45: A | C45: G | D45: NST | E45: F | F45: X | G45: NOW | J45: 11003880 | K45: Rayora® Fungicide | L45: 2.5 gal | M45: 631.4 | N45: 631.4 | O45: 0 | R45: 631.4 | U45: 0.14 | X45: 0.12 | Y45: NA | Z45: NA | AA45: NA | AB45: 635.82 | AC45: 635.82 | AD45: 635.82 | AE45: 320 | AF45: 1.22 | AG45: 53.1432 | AH45: 2.4072125 | AI45: 104.8581765 | AJ45: 0 | AL45: =IF(PRICING[[#This Row],[SKU]]=J44,AL44+1,1) -> 1
A46: FMC | B46: A | C46: G | D46: NST | E46: F | F46: X | G46: NOW | J46: 11003880 | K46: Rayora® Fungicide | L46: 2.5 gal | M46: 631.4 | N46: 631.4 | O46: 0 | P46: 6+ | Q46: 160 | R46: 471.4 | U46: 0.3934051315 | X46: 0.3734051315 | Y46: NA | Z46: NA | AA46: NA | AB46: 635.82 | AC46: 635.82 | AD46: 475.82 | AE46: 320 | AF46: 1.22 | AG46: 53.1432 | AH46: 1.7972125 | AI46: 78.2865765 | AJ46: 0.2534051315 | AL46: =IF(PRICING[[#This Row],[SKU]]=J45,AL45+1,1) -> 2
A47: Envu | B47: A | C47: G | D47: NST | E47: F | F47: X | G47: NOW | J47: D00000125 | K47: Resilia™ | L47: 2.72 gal | M47: 946.56 | N47: 946.56 | O47: 0 | R47: 946.56 | U47: 0.14 | X47: 0.12 | Y47: NA | Z47: NA | AA47: NA | AB47: 953.2 | AC47: 953.2 | AD47: 953.2 | AE47: 348.16 | AF47: 4 | AG47: 174.24 | AH47: 10.875 | AI47: 473.715 | AJ47: 0 | AL47: =IF(PRICING[[#This Row],[SKU]]=J46,AL46+1,1) -> 1
A48: Envu | B48: A | C48: G | D48: NST | E48: F | F48: X | G48: NOW | J48: D00000125 | K48: Resilia™ | L48: 2.72 gal | M48: 946.56 | N48: 946.56 | O48: 0 | P48: 4-14 | Q48: 65 | R48: 881.56 | U48: 0.2086697093 | X48: 0.1886697093 | Y48: NA | Z48: NA | AA48: NA | AB48: 953.2 | AC48: 953.2 | AD48: 888.2 | AE48: 348.16 | AF48: 4 | AG48: 174.24 | AH48: 10.12821691 | AI48: 441.1851287 | AJ48: 0.06866970926 | AL48: =IF(PRICING[[#This Row],[SKU]]=J47,AL47+1,1) -> 2
A49: Envu | B49: A | C49: G | D49: NST | E49: F | F49: X | G49: NOW | J49: D00000125 | K49: Resilia™ | L49: 2.72 gal | M49: 946.56 | N49: 946.56 | O49: 0 | P49: 15+ | Q49: 180 | R49: 766.56 | U49: 0.3301622718 | X49: 0.3101622718 | Y49: NA | Z49: NA | AA49: NA | AB49: 953.2 | AC49: 953.2 | AD49: 773.2 | AE49: 348.16 | AF49: 4 | AG49: 174.24 | AH49: 8.806985294 | AI49: 383.6322794 | AJ49: 0.1901622718 | AL49: =IF(PRICING[[#This Row],[SKU]]=J48,AL48+1,1) -> 3
A50: Envu | B50: A | C50: GL | D50: ST | E50: H | F50: X | G50: NOW | J50: 79545312 | K50: Revolver® | L50: 87 fl oz | M50: 765.6 | N50: 727.32 | O50: 38.28 | R50: 727.32 | U50: 0.19 | X50: 0.17 | Y50: 786.85 | Z50: 747.5 | AA50: 747.5 | AB50: 770.96 | AC50: 732.41 | AD50: 732.41 | AE50: 87 | AF50: 0.3994490358 | AG50: 17.4 | AH50: 3.339393939 | AI50: 145.464 | AJ50: 0.05 | AL50: =IF(PRICING[[#This Row],[SKU]]=J49,AL49+1,1) -> 1
A51: Envu | B51: A | C51: GL | D51: ST | E51: H | F51: X | G51: NOW | J51: 79545312 | K51: Revolver® | L51: 87 fl oz | M51: 765.6 | N51: 727.32 | O51: 38.28 | P51: 16+ | Q51: 50 | R51: 677.32 | U51: 0.255308255 | X51: 0.235308255 | Y51: 786.85 | Z51: 747.5 | AA51: 697.5 | AB51: 770.96 | AC51: 732.41 | AD51: 682.41 | AE51: 87 | AF51: 0.3994490358 | AG51: 17.4 | AH51: 3.109825528 | AI51: 135.464 | AJ51: 0.115308255 | AL51: =IF(PRICING[[#This Row],[SKU]]=J50,AL50+1,1) -> 2
A52: Envu | B52: A | C52: G | D52: ST | E52: H | G52: EOP | H52: 80847505 | J52: D00000986 | K52: Ronstar® FLO | L52: 2.5 gal | M52: 552 | N52: 552 | O52: 0 | P52: 1-11 | R52: 552 | U52: 0 | X52: 0 | Y52: 567.32 | Z52: 567.32 | AA52: 567.32 | AB52: 555.86 | AC52: 555.86 | AD52: 555.86 | AE52: 320 | AF52: 1.997245179 | AG52: 87 | AH52: 3.445247934 | AI52: 150.075 | AJ52: 0 | AL52: =IF(PRICING[[#This Row],[SKU]]=J51,AL51+1,1) -> 1
A53: Envu | B53: A | C53: G | D53: ST | E53: H | F53: X | G53: EOP | H53: 80847505 | J53: D00000986 | K53: Ronstar® FLO | L53: 2.5 gal | M53: 453 | N53: 423 | O53: 30 | P53: 12+ | R53: 423 | U53: 0.06622516556 | X53: 0.06622516556 | Y53: 465.57 | Z53: 434.74 | AA53: 434.74 | AB53: 456.17 | AC53: 425.96 | AD53: 425.96 | AE53: 320 | AF53: 1.997245179 | AG53: 87 | AH53: 2.640108471 | AI53: 115.003125 | AJ53: 0.06622516556 | AL53: =IF(PRICING[[#This Row],[SKU]]=J52,AL52+1,1) -> 2
A54: Envu | B54: A | C54: L | D54: NST | E54: I | G54: EOP | J54: 11009495 | K54: Scion | L54: 32 oz | M54: 156.6 | N54: 156.6 | O54: 0 | Q54: 38 | R54: 118.6 | U54: 0.3826564496 | X54: 0.3626564496 | Y54: 160.95 | Z54: 160.95 | AA54: 122.95 | AB54: 157.7 | AC54: 157.7 | AD54: 119.7 | AE54: 32 | AJ54: 0.2426564496 | AL54: =IF(PRICING[[#This Row],[SKU]]=J53,AL53+1,1) -> 1
A55: FMC | B55: A | C55: G | D55: NST | E55: F | F55: X | G55: NOW | J55: 11014245 | K55: Serata® Fungicide | L55: 35 oz | M55: 499.8 | N55: 474.81 | O55: 24.99 | R55: 474.81 | U55: 0.19 | X55: 0.17 | Y55: 513.67 | Z55: 487.99 | AA55: 487.99 | AB55: 503.3 | AC55: 478.13 | AD55: 478.13 | AE55: 35 | AF55: 0.6 | AG55: 26.136 | AH55: 8.1396 | AI55: 354.560976 | AJ55: 0.05 | AL55: =IF(PRICING[[#This Row],[SKU]]=J54,AL54+1,1) -> 1
A56: FMC | B56: A | C56: G | D56: NST | E56: F | F56: X | G56: NOW | J56: 11014245 | K56: Serata® Fungicide | L56: 35 oz | M56: 499.8 | N56: 474.81 | O56: 24.99 | P56: 8+ | Q56: 15 | R56: 459.81 | U56: 0.2200120048 | X56: 0.2000120048 | Y56: 513.67 | Z56: 487.99 | AA56: 472.99 | AB56: 503.3 | AC56: 478.13 | AD56: 463.13 | AE56: 35 | AF56: 0.6 | AG56: 26.136 | AH56: 7.882457143 | AI56: 343.3598331 | AJ56: 0.0800120048 | AL56: =IF(PRICING[[#This Row],[SKU]]=J55,AL55+1,1) -> 2
A57: Envu | B57: A | C57: G | D57: NST | E57: F | F57: X | G57: NOW | H57: 85355422 | J57: D00000989 | K57: Signature™ XTRA Stressgard® | L57: 5.5 lb | M57: 210.4 | N57: 199.88 | O57: 10.52 | R57: 199.88 | U57: 0.19 | X57: 0.17 | Y57: 216.24 | Z57: 205.43 | AA57: 205.43 | AB57: 211.88 | AC57: 201.28 | AD57: 201.28 | AE57: 88 | AF57: 4 | AG57: 174.24 | AH57: 9.085454545 | AI57: 395.7624 | AJ57: 0.05 | AL57: =IF(PRICING[[#This Row],[SKU]]=J56,AL56+1,1) -> 1
A58: Envu | B58: A | C58: G | D58: NST | E58: F | F58: X | G58: NOW | H58: 85355422 | J58: D00000989 | K58: Signature™ XTRA Stressgard® | L58: 5.5 lb | M58: 210.4 | N58: 199.88 | O58: 10.52 | P58: 24+ | Q58: 15 | R58: 184.88 | U58: 0.2612927757 | X58: 0.2412927757 | Y58: 216.24 | Z58: 205.43 | AA58: 190.43 | AB58: 211.88 | AC58: 201.28 | AD58: 186.28 | AE58: 88 | AF58: 4 | AG58: 174.24 | AH58: 8.403636364 | AI58: 366.0624 | AJ58: 0.1212927757 | AL58: =IF(PRICING[[#This Row],[SKU]]=J57,AL57+1,1) -> 2
A59: FMC | B59: A | C59: GL | D59: NST | E59: H | F59: X | G59: EOP | J59: 11008522 | K59: Solitare® Herbicide | L59: 4 lb | M59: 596.4 | N59: 566.58 | O59: 29.82 | R59: 566.58 | U59: 0.19 | X59: 0.17 | Y59: NA | Z59: NA | AA59: NA | AB59: 600.58 | AC59: 570.55 | AD59: 570.55 | AE59: 64 | AF59: 0.3673094582 | AG59: 16 | AH59: 3.251721763 | AI59: 141.645 | AJ59: 0.05 | AL59: =IF(PRICING[[#This Row],[SKU]]=J58,AL58+1,1) -> 1
A60: FMC | B60: A | C60: GL | D60: NST | E60: H | F60: X | G60: EOP | J60: 11008522 | K60: Solitare® Herbicide | L60: 4 lb | M60: 596.4 | N60: 566.58 | O60: 29.82 | P60: 16+ | Q60: 40 | R60: 526.58 | U60: 0.2570690812 | X60: 0.2370690812 | Y60: NA | Z60: NA | AA60: NA | AB60: 600.58 | AC60: 570.55 | AD60: 530.55 | AE60: 64 | AF60: 0.3673094582 | AG60: 16 | AH60: 3.022153352 | AI60: 131.645 | AJ60: 0.1170690812 | AL60: =IF(PRICING[[#This Row],[SKU]]=J59,AL59+1,1) -> 2
A61: FMC | B61: A | C61: GL | D61: NST | E61: H | F61: X | G61: NOW | J61: 11013862 | K61: Solitare® WSL Herbicide | L61: 2.5 gal | M61: 262.4 | N61: 249.28 | O61: 13.12 | R61: 249.28 | U61: 0.19 | X61: 0.17 | Y61: NA | Z61: NA | AA61: NA | AB61: 264.24 | AC61: 251.02 | AD61: 251.02 | AE61: 320 | AF61: 3.9 | AG61: 169.884 | AH61: 3.0381 | AI61: 132.339636 | AJ61: 0.05 | AL61: =IF(PRICING[[#This Row],[SKU]]=J60,AL60+1,1) -> 1
A62: FMC | B62: A | C62: GL | D62: NST | E62: H | F62: X | G62: NOW | J62: 11013862 | K62: Solitare® WSL Herbicide | L62: 2.5 gal | M62: 262.4 | N62: 249.28 | O62: 13.12 | P62: 24+ | Q62: 40 | R62: 209.28 | U62: 0.3424390244 | X62: 0.3224390244 | Y62: NA | Z62: NA | AA62: NA | AB62: 264.24 | AC62: 251.02 | AD62: 211.02 | AE62: 320 | AF62: 3.9 | AG62: 169.884 | AH62: 2.5506 | AI62: 111.104136 | AJ62: 0.2024390244 | AL62: =IF(PRICING[[#This Row],[SKU]]=J61,AL61+1,1) -> 2
A63: Envu | B63: A | C63: GL | D63: ST | E63: H | F63: X | G63: NOW | H63: 86775387 | J63: D00000990 | K63: Specticle® FLO | L63: 1 gal | M63: 2092.8 | N63: 1946.3 | O63: 146.5 | P63: 1-6 | R63: 1946.3 | U63: 0.07000191131 | X63: 0.07000191131 | Y63: 2150.88 | Z63: 2000.31 | AA63: 2000.31 | AB63: 2107.44 | AC63: 1959.92 | AD63: 1959.92 | AE63: 128 | AF63: 0.1377410468 | AG63: 6 | AH63: 2.094417183 | AI63: 91.2328125 | AJ63: 0.07000191131 | AL63: =IF(PRICING[[#This Row],[SKU]]=J62,AL62+1,1) -> 1
A64: Envu | B64: A | C64: GL | D64: ST | E64: H | F64: X | G64: NOW | H64: 86775387 | J64: D00000990 | K64: Specticle® FLO | L64: 1 gal | M64: 2092.8 | N64: 1862.59 | O64: 230.21 | P64: 7-13 | Q64: 38 | R64: 1824.59 | U64: 0.128158448 | X64: 0.128158448 | Y64: 2150.88 | Z64: 1914.28 | AA64: 1876.28 | AB64: 2107.44 | AC64: 1875.63 | AD64: 1837.63 | AE64: 128 | AF64: 0.1377410468 | AG64: 6 | AH64: 1.963444817 | AI64: 85.52765625 | AJ64: 0.128158448 | AL64: =IF(PRICING[[#This Row],[SKU]]=J63,AL63+1,1) -> 2
A65: Envu | B65: A | C65: GL | D65: ST | E65: H | F65: X | G65: NOW | H65: 86775387 | J65: D00000990 | K65: Specticle® FLO | L65: 1 gal | M65: 1796.4 | N65: 1625.74 | O65: 170.66 | P65: 14-25 | Q65: 32 | R65: 1593.74 | U65: 0.1128145179 | X65: 0.1128145179 | Y65: 1846.25 | Z65: 1670.85 | AA65: 1638.85 | AB65: 1808.98 | AC65: 1637.12 | AD65: 1605.12 | AE65: 128 | AF65: 0.1377410468 | AG65: 6 | AH65: 1.715026687 | AI65: 74.7065625 | AJ65: 0.1128145179 | AL65: =IF(PRICING[[#This Row],[SKU]]=J64,AL64+1,1) -> 3
A66: Envu | B66: A | C66: GL | D66: ST | E66: H | F66: X | G66: EOP | H66: 86775387 | J66: D00000990 | K66: Specticle® FLO | L66: 1 gal | M66: 1796.4 | N66: 1455.08 | O66: 341.32 | P66: 26+ | Q66: 131 | R66: 1324.08 | U66: 0.2629258517 | X66: 0.2629258517 | Y66: 1846.25 | Z66: 1495.46 | AA66: 1364.46 | AB66: 1808.98 | AC66: 1465.27 | AD66: 1334.27 | AE66: 128 | AF66: 0.1377410468 | AG66: 6 | AH66: 1.424845041 | AI66: 62.06625 | AJ66: 0.2629258517 | AL66: =IF(PRICING[[#This Row],[SKU]]=J65,AL65+1,1) -> 4
A67: Envu | B67: A | C67: GL | D67: ST | E67: H | F67: X | G67: NOW | H67: 84056146 | J67: D00000992 | K67: Specticle® G | L67: 50 lb | M67: 130.5 | N67: 123.98 | O67: 6.52 | R67: 123.98 | U67: 0.1899616858 | X67: 0.1699616858 | Y67: 134.12 | Z67: 127.42 | AA67: 127.42 | AB67: 131.5 | AC67: 124.85 | AD67: 124.85 | AE67: 800 | AF67: 3.443526171 | AG67: 150 | AH67: 0.5336604683 | AI67: 23.24625 | AJ67: 0.04996168582 | AL67: =IF(PRICING[[#This Row],[SKU]]=J66,AL66+1,1) -> 1
A68: Envu | B68: A | C68: GL | D68: ST | E68: H | F68: X | G68: NOW | H68: 84056146 | J68: D00000992 | K68: Specticle® G | L68: 50 lb | M68: 130.5 | N68: 123.98 | O68: 6.52 | P68: 20+ | Q68: 8 | R68: 115.98 | U68: 0.2512643678 | X68: 0.2312643678 | Y68: 134.12 | Z68: 127.42 | AA68: 119.42 | AB68: 131.5 | AC68: 124.85 | AD68: 116.85 | AE68: 800 | AF68: 3.443526171 | AG68: 150 | AH68: 0.4992252066 | AI68: 21.74625 | AJ68: 0.1112643678 | AL68: =IF(PRICING[[#This Row],[SKU]]=J67,AL67+1,1) -> 2
A69: Envu | B69: A | C69: G | D69: NST | E69: F | F69: X | G69: EOP | H69: 81760942 | J69: D00000998 | K69: Tartan® Stressgard® | L69: 2.5 gal | M69: 1033 | N69: 981.35 | O69: 51.65 | Q69: 0 | R69: 981.35 | U69: 0.19 | X69: 0.17 | Y69: 1033 | Z69: 1008.58 | AA69: 1008.58 | AB69: 1040.25 | AC69: 988.22 | AD69: 988.22 | AE69: 320 | AF69: 1.5 | AG69: 65.34 | AH69: 4.600078125 | AI69: 200.3794031 | AJ69: 0.05 | AL69: =IF(PRICING[[#This Row],[SKU]]=J68,AL68+1,1) -> 1
A70: Envu | B70: A | C70: G | D70: NST | E70: F | F70: X | G70: EOP | H70: 81760942 | J70: D00000998 | K70: Tartan® Stressgard® | L70: 2.5 gal | M70: 1033 | N70: 981.35 | O70: 51.65 | P70: 6+ | Q70: 93 | R70: 888.35 | U70: 0.2800290416 | X70: 0.2600290416 | Y70: 1033 | Z70: 1008.58 | AA70: 915.58 | AB70: 1040.25 | AC70: 988.22 | AD70: 895.22 | AE70: 320 | AF70: 1.5 | AG70: 65.34 | AH70: 4.164140625 | AI70: 181.3899656 | AJ70: 0.1400290416 | AL70: =IF(PRICING[[#This Row],[SKU]]=J69,AL69+1,1) -> 2
A71: FMC | B71: A | C71: G | D71: NST | E71: F | F71: X | G71: EOP | J71: 11015981 | K71: Tarvecta™ | L71: 2.5 gal | M71: 3360 | N71: 3360 | O71: 0 | R71: 3360 | U71: 0.14 | X71: 0.12 | Y71: NA | Z71: NA | AA71: NA | AB71: 3383.52 | AC71: 3383.52 | AD71: 3383.52 | AE71: 320 | AJ71: 0 | AL71: =IF(PRICING[[#This Row],[SKU]]=J70,AL70+1,1) -> 1
A72: FMC | B72: A | C72: G | D72: NST | E72: F | F72: X | G72: EOP | J72: 11015981 | K72: Tarvecta™ | L72: 2.5 gal | M72: 3360 | N72: 3360 | O72: 0 | P72: 3+ | Q72: 400 | R72: 2960 | U72: 0.259047619 | X72: 0.239047619 | Y72: NA | Z72: NA | AA72: NA | AB72: 3383.52 | AC72: 3383.52 | AD72: 2983.52 | AE72: 320 | AJ72: 0.119047619 | AL72: =IF(PRICING[[#This Row],[SKU]]=J71,AL71+1,1) -> 2
A73: FMC | B73: A | C73: G | D73: NST | E73: F | F73: X | G73: EOP | J73: 11015990 | K73: Tarvecta™ | L73: 64 oz | M73: 772.8 | N73: 772.8 | O73: 0 | R73: 772.8 | U73: 0.14 | X73: 0.12 | Y73: NA | Z73: NA | AA73: NA | AB73: 778.2 | AC73: 778.2 | AD73: 778.2 | AE73: 64 | AJ73: 0 | AL73: =IF(PRICING[[#This Row],[SKU]]=J72,AL72+1,1) -> 1
A74: FMC | B74: A | C74: G | D74: NST | E74: F | F74: X | G74: EOP | J74: 11015990 | K74: Tarvecta™ | L74: 64 oz | M74: 772.8 | N74: 772.8 | O74: 0 | P74: 4+ | Q74: 145 | R74: 627.8 | U74: 0.3276293996 | X74: 0.3076293996 | Y74: NA | Z74: NA | AA74: NA | AB74: 778.2 | AC74: 778.2 | AD74: 633.2 | AE74: 64 | AJ74: 0.1876293996 | AL74: =IF(PRICING[[#This Row],[SKU]]=J73,AL73+1,1) -> 2
A75: Envu | B75: A | C75: GL | D75: NST | E75: I | F75: X | G75: EOP | J75: 86797658 | K75: Tetrino® | L75: 1 gal | M75: 528 | N75: 528 | O75: 0 | R75: 528 | U75: 0.14 | X75: 0.12 | Y75: 542.65 | Z75: 542.65 | AA75: 542.65 | AB75: 531.7 | AC75: 531.7 | AD75: 531.7 | AE75: 128 | AF75: 0.73 | AG75: 31.7988 | AH75: 3.01125 | AI75: 131.17005 | AJ75: 0 | AL75: =IF(PRICING[[#This Row],[SKU]]=J74,AL74+1,1) -> 1
A76: Envu | B76: A | C76: GL | D76: NST | E76: I | F76: X | G76: EOP | J76: 86797658 | K76: Tetrino® | L76: 1 gal | M76: 528 | N76: 528 | O76: 0 | P76: 4+ | Q76: 40 | R76: 488 | U76: 0.2157575758 | X76: 0.1957575758 | Y76: 542.65 | Z76: 542.65 | AA76: 502.65 | AB76: 531.7 | AC76: 531.7 | AD76: 491.7 | AE76: 128 | AF76: 0.73 | AG76: 31.7988 | AH76: 2.783125 | AI76: 121.232925 | AJ76: 0.07575757576 | AL76: =IF(PRICING[[#This Row],[SKU]]=J75,AL75+1,1) -> 2
A77: Envu | B77: A | C77: GL | D77: ST | E77: H | F77: X | G77: NOW | J77: 81746257 | K77: Tribute® Total | L77: 6 oz | M77: 426.4 | N77: 405.08 | O77: 21.32 | R77: 405.08 | U77: 0.19 | X77: 0.17 | Y77: 438.23 | Z77: 416.32 | AA77: 416.32 | AB77: 429.38 | AC77: 407.92 | AD77: 407.92 | AE77: 6 | AF77: 0.02295684114 | AG77: 1 | AH77: 1.549892868 | AI77: 67.51333333 | AJ77: 0.05 | AL77: =IF(PRICING[[#This Row],[SKU]]=J76,AL76+1,1) -> 1
A78: Envu | B78: A | C78: GL | D78: ST | E78: H | F78: X | G78: NOW | J78: 81746257 | K78: Tribute® Total | L78: 6 oz | M78: 426.4 | N78: 405.08 | O78: 21.32 | P78: 24+ | Q78: 30 | R78: 375.08 | U78: 0.2603564728 | X78: 0.2403564728 | Y78: 438.23 | Z78: 416.32 | AA78: 386.32 | AB78: 429.38 | AC78: 407.92 | AD78: 377.92 | AE78: 6 | AF78: 0.02295684114 | AG78: 1 | AH78: 1.435108662 | AI78: 62.51333333 | AJ78: 0.1203564728 | AL78: =IF(PRICING[[#This Row],[SKU]]=J77,AL77+1,1) -> 2
A79: FMC | B79: A | C79: G | D79: NST | E79: I | F79: X | G79: EOP | J79: 11008521 | K79: Triple Crown® Golf Insecticide (RUP) | L79: 1 gal | M79: 348.2 | N79: 330.79 | O79: 17.41 | R79: 330.79 | U79: 0.19 | X79: 0.17 | Y79: 357.86 | Z79: 339.97 | AA79: 339.97 | AB79: 350.64 | AC79: 333.11 | AD79: 333.11 | AE79: 128 | AF79: 0.46 | AG79: 20.0376 | AH79: 1.188776563 | AI79: 51.78310706 | AJ79: 0.05 | AL79: =IF(PRICING[[#This Row],[SKU]]=J78,AL78+1,1) -> 1
A80: FMC | B80: A | C80: G | D80: NST | E80: I | F80: X | G80: EOP | J80: 11008521 | K80: Triple Crown® Golf Insecticide (RUP) | L80: 1 gal | M80: 348.2 | N80: 330.79 | O80: 17.41 | P80: 20-39 | Q80: 12 | R80: 318.79 | U80: 0.2244629523 | X80: 0.2044629523 | Y80: 357.86 | Z80: 339.97 | AA80: 327.97 | AB80: 350.64 | AC80: 333.11 | AD80: 321.11 | AE80: 128 | AF80: 0.46 | AG80: 20.0376 | AH80: 1.145651563 | AI80: 49.90458206 | AJ80: 0.08446295233 | AL80: =IF(PRICING[[#This Row],[SKU]]=J79,AL79+1,1) -> 2
A81: FMC | B81: A | C81: G | D81: NST | E81: I | F81: X | G81: EOP | J81: 11008521 | K81: Triple Crown® Golf Insecticide (RUP) | L81: 1 gal | M81: 348.2 | N81: 330.79 | O81: 17.41 | P81: 40+ | Q81: 25 | R81: 305.79 | U81: 0.2617978173 | X81: 0.2417978173 | Y81: 357.86 | Z81: 339.97 | AA81: 314.97 | AB81: 350.64 | AC81: 333.11 | AD81: 308.11 | AE81: 128 | AF81: 0.46 | AG81: 20.0376 | AH81: 1.098932813 | AI81: 47.86951331 | AJ81: 0.1217978173 | AL81: =IF(PRICING[[#This Row],[SKU]]=J80,AL80+1,1) -> 3
A82: FMC | B82: A | C82: L | D82: NST | E82: I | F82: X | G82: EOP | J82: 11008520 | K82: Triple Crown® T&O Insecticide | L82: 1 gal | M82: 348.2 | N82: 330.79 | O82: 17.41 | R82: 330.79 | U82: 0.19 | X82: 0.17 | Y82: 357.86 | Z82: 339.97 | AA82: 339.97 | AB82: 350.64 | AC82: 333.11 | AD82: 333.11 | AE82: 128 | AF82: 0.46 | AG82: 20.0376 | AH82: 1.188776563 | AI82: 51.78310706 | AJ82: 0.05 | AL82: =IF(PRICING[[#This Row],[SKU]]=J81,AL81+1,1) -> 1
A83: FMC | B83: A | C83: L | D83: NST | E83: I | F83: X | G83: EOP | J83: 11008520 | K83: Triple Crown® T&O Insecticide | L83: 1 gal | M83: 348.2 | N83: 330.79 | O83: 17.41 | P83: 20-39 | Q83: 12 | R83: 318.79 | U83: 0.2244629523 | X83: 0.2044629523 | Y83: 357.86 | Z83: 339.97 | AA83: 327.97 | AB83: 350.64 | AC83: 333.11 | AD83: 321.11 | AE83: 128 | AF83: 0.46 | AG83: 20.0376 | AH83: 1.145651563 | AI83: 49.90458206 | AJ83: 0.08446295233 | AL83: =IF(PRICING[[#This Row],[SKU]]=J82,AL82+1,1) -> 2
A84: FMC | B84: A | C84: L | D84: NST | E84: I | F84: X | G84: EOP | J84: 11008520 | K84: Triple Crown® T&O Insecticide | L84: 1 gal | M84: 348.2 | N84: 330.79 | O84: 17.41 | P84: 40+ | Q84: 25 | R84: 305.79 | U84: 0.2617978173 | X84: 0.2417978173 | Y84: 357.86 | Z84: 339.97 | AA84: 314.97 | AB84: 350.64 | AC84: 333.11 | AD84: 308.11 | AE84: 128 | AF84: 0.46 | AG84: 20.0376 | AH84: 1.098932813 | AI84: 47.86951331 | AJ84: 0.1217978173 | AL84: =IF(PRICING[[#This Row],[SKU]]=J83,AL83+1,1) -> 3
A85: FMC | B85: A | C85: GL | D85: NST | E85: H | F85: X | G85: EOP | J85: 11008590 | K85: Xonerate® 2SC Herbicide | L85: 12 oz | M85: 489.4 | N85: 464.93 | O85: 24.47 | R85: 464.93 | U85: 0.19 | X85: 0.17 | Y85: NA | Z85: NA | AA85: NA | AB85: NA | AC85: NA | AD85: NA | AE85: 12 | AF85: 0.3213957759 | AG85: 14 | AH85: 12.45221151 | AI85: 542.4183333 | AJ85: 0.05 | AL85: =IF(PRICING[[#This Row],[SKU]]=J84,AL84+1,1) -> 1
A86: FMC | B86: A | C86: GL | D86: NST | E86: H | F86: X | G86: EOP | J86: 11008590 | K86: Xonerate® 2SC Herbicide | L86: 12 oz | M86: 489.4 | N86: 464.93 | O86: 24.47 | P86: 24+ | Q86: 50 | R86: 414.93 | U86: 0.2921659174 | X86: 0.2721659174 | Y86: NA | Z86: NA | AA86: NA | AB86: NA | AC86: NA | AD86: NA | AE86: 12 | AF86: 0.3213957759 | AG86: 14 | AH86: 11.11306244 | AI86: 484.085 | AJ86: 0.1521659174 | AL86: =IF(PRICING[[#This Row],[SKU]]=J85,AL85+1,1) -> 2
A87: Envu | B87: A | C87: GLO | D87: NST | E87: I | G87: EOP/ORN | H87: 84989509 | J87: D00000903 | K87: Altus® | L87: 64 oz | M87: 437.2 | N87: 437.2 | O87: 0 | P87: 1-15 | R87: 437.2 | Y87: 449.33 | Z87: 449.33 | AA87: 449.33 | AB87: 440.26 | AC87: 440.26 | AD87: 440.26 | AE87: 64 | AF87: 0.32 | AG87: 13.9392 | AH87: 2.186 | AI87: 95.22216 | AJ87: 0 | AL87: =IF(PRICING[[#This Row],[SKU]]=J86,AL86+1,1) -> 1
A88: Envu | B88: A | C88: GLO | D88: NST | E88: I | G88: EOP/ORN | H88: 84989509 | J88: D00000903 | K88: Altus® | L88: 64 oz | M88: 437.2 | N88: 415.36 | O88: 21.84 | P88: 16-31 | R88: 415.36 | Y88: 449.33 | Z88: 426.89 | AA88: 426.89 | AB88: 440.26 | AC88: 418.27 | AD88: 418.27 | AE88: 64 | AF88: 0.32 | AG88: 13.9392 | AH88: 2.0768 | AI88: 90.465408 | AJ88: 0.04995425435 | AL88: =IF(PRICING[[#This Row],[SKU]]=J87,AL87+1,1) -> 2
A89: Envu | B89: A | C89: GLO | D89: NST | E89: I | G89: EOP/ORN | H89: 84989509 | J89: D00000903 | K89: Altus® | L89: 64 oz | M89: 437.2 | N89: 393.6 | O89: 43.6 | P89: 32+ | R89: 393.6 | Y89: 449.33 | Z89: 404.52 | AA89: 404.52 | AB89: 440.26 | AC89: 396.36 | AD89: 396.36 | AE89: 64 | AF89: 0.32 | AG89: 13.9392 | AH89: 1.968 | AI89: 85.72608 | AJ89: 0.09972552608 | AL89: =IF(PRICING[[#This Row],[SKU]]=J88,AL88+1,1) -> 3
A90: Envu | B90: A | C90: GO | E90: I | G90: EOP/ORN | J90: D00001272 | K90: Kontos | L90: 1 qt | M90: 744 | N90: 744 | O90: 0 | P90: 1-3 | Y90: 764.65 | Z90: 764.65 | AA90: 764.65 | AB90: 749.21 | AC90: 749.21 | AD90: 749.21 | AE90: 32 | AF90: 0.07805325987 | AG90: 3.4 | AH90: 1.814738292 | AI90: 79.05 | AJ90: 0.1 | AK90: 0.1 | AL90: =IF(PRICING[[#This Row],[SKU]]=J89,AL89+1,1) -> 1
A91: Envu | B91: A | C91: GO | E91: I | G91: EOP/ORN | J91: D00001272 | K91: Kontos | L91: 1 qt | M91: 744 | N91: 706.88 | O91: 37.12 | P91: 4-15 | Y91: 764.65 | Z91: 726.41 | AA91: 726.41 | AB91: 749.21 | AC91: 711.75 | AD91: 711.75 | AE91: 32 | AF91: 0.07805325987 | AG91: 3.4 | AH91: 1.724196511 | AI91: 75.106 | AJ91: 0.1498924731 | AK91: 0.1 | AL91: =IF(PRICING[[#This Row],[SKU]]=J90,AL90+1,1) -> 2
A92: Envu | B92: A | C92: GO | E92: I | G92: EOP/ORN | J92: D00001272 | K92: Kontos | L92: 1 qt | M92: 744 | N92: 669.6 | O92: 74.4 | P92: 16+ | Y92: 764.65 | Z92: 688.18 | AA92: 688.18 | AB92: 749.21 | AC92: 674.29 | AD92: 674.29 | AE92: 32 | AF92: 0.07805325987 | AG92: 3.4 | AH92: 1.633264463 | AI92: 71.145 | AJ92: 0.2 | AK92: 0.1 | AL92: =IF(PRICING[[#This Row],[SKU]]=J91,AL91+1,1) -> 3
A93: Envu | B93: TT | C93: G | D93: NST | E93: F | G93: EOP | J93: 4250930 | K93: 26GT™ | L93: 2.5 gal | M93: 509 | N93: 509 | O93: 0 | R93: 509 | U93: 0.14 | X93: 0.12 | AE93: 320 | AJ93: 0 | AL93: =IF(PRICING[[#This Row],[SKU]]=J92,AL92+1,1) -> 1
A94: Envu | B94: TT | C94: L | D94: NST | E94: H | G94: EOP | J94: D00000665 | K94: Acclaim Accelerate | L94: 0.5 gal | M94: 43.8 | N94: 43.8 | O94: 0 | P94: 150 gal* | Q94: 7.5 | R94: 36.3 | U94: 0.3112328767 | X94: 0.2912328767 | Y94: NA | Z94: NA | AA94: NA | AE94: 64 | AF94: 1.469237833 | AG94: 64 | AH94: 0.8333333333 | AI94: 36.3 | AJ94: 0.1712328767 | AL94: =IF(PRICING[[#This Row],[SKU]]=J93,AL93+1,1) -> 1
A95: Envu | B95: TT | C95: L | D95: NST | E95: H | G95: EOP | J95: D00000666 | K95: Acclaim Accelerate | L95: 2.5 gal | M95: 211.04 | N95: 211.04 | O95: 0 | P95: 150 gal* | Q95: 37.5 | R95: 173.54 | U95: 0.3176914329 | X95: 0.2976914329 | Y95: NA | Z95: NA | AA95: NA | AE95: 320 | AF95: 1.469237833 | AG95: 64 | AH95: 0.7967860422 | AI95: 34.708 | AJ95: 0.1776914329 | AL95: =IF(PRICING[[#This Row],[SKU]]=J94,AL94+1,1) -> 1
A96: Envu | B96: TT | C96: GL | D96: N | E96: H | G96: EOP | J96: 87300722 | K96: Acclaim Extra | L96: 1 gal | M96: 665.2 | N96: 665.2 | O96: 0 | Q96: 90 | R96: 575.2 | U96: 0.2752976548 | X96: 0.2552976548 | AE96: 128 | AF96: 0.4591368228 | AG96: 20 | AH96: 2.063246097 | AI96: 89.875 | AJ96: 0.1352976548 | AL96: =IF(PRICING[[#This Row],[SKU]]=J95,AL95+1,1) -> 1
A97: Envu | B97: TT | C97: L | D97: NST | E97: F | G97: EOP | H97: 80224672 | J97: D00000898 | K97: Armada 50 WDG | L97: 2 lb | M97: 114 | N97: 114 | O97: 0 | Q97: 10 | R97: 104 | U97: 0.2277192982 | X97: 0.2077192982 | AE97: 32 | AF97: 1.2 | AG97: 52.272 | AH97: 3.9 | AI97: 169.884 | AJ97: 0.08771929825 | AL97: =IF(PRICING[[#This Row],[SKU]]=J96,AL96+1,1) -> 1
A98: Envu | B98: TT | C98: GL | D98: ST | E98: H | G98: EOP | J98: 11008351 | K98: Blindside® Herbicide | L98: 0.5 lb | M98: 139.05 | N98: 139.05 | O98: 0 | Q98: 22 | R98: 117.05 | U98: 0.2982164689 | X98: 0.2782164689 | Y98: NA | Z98: NA | AA98: NA | AB98: NA | AC98: NA | AD98: NA | AE98: 8 | AF98: 0.1492194674 | AG98: 6.5 | AH98: 2.183267332 | AI98: 95.103125 | AJ98: 0.1582164689 | AL98: =IF(PRICING[[#This Row],[SKU]]=J97,AL97+1,1) -> 1
A99: Envu | B99: TT | C99: G | D99: NST | E99: I | G99: EOP | J99: NoSKU1 | K99: Chipco Choice | L99: 50 lb | M99: 221 | N99: 221 | O99: 0 | AB99: NA | AC99: NA | AD99: NA | AE99: 800 | AH99: 0 | AI99: 0 | AJ99: 1 | AL99: =IF(PRICING[[#This Row],[SKU]]=J98,AL98+1,1) -> 1
A100: FMC | B100: TT | C100: GL | D100: ST | E100: H | G100: EOP | J100: 11008357 | K100: Dismiss® CA Herbicide | L100: 6 oz | M100: 68.15 | N100: 68.15 | O100: 0 | Q100: 14 | R100: 54.15 | U100: 0.3454292003 | X100: 0.3254292003 | AB100: NA | AC100: NA | AD100: NA | AE100: 6 | AF100: 0 | AG100: 0 | AH100: 0 | AI100: 0 | AJ100: 0.2054292003 | AL100: =IF(PRICING[[#This Row],[SKU]]=J99,AL99+1,1) -> 1
A101: FMC | B101: TT | C101: GL | D101: ST | E101: H | G101: EOP | J101: 11008474 | K101: Dismiss® South Herbicide | L101: 1 pint | M101: 155.55 | N101: 155.55 | O101: 0 | Q101: 24 | R101: 131.55 | U101: 0.2942912247 | X101: 0.2742912247 | Y101: NA | Z101: NA | AA101: NA | AB101: NA | AC101: NA | AD101: NA | AE101: 16 | AF101: 0.2180899908 | AG101: 9.5 | AH101: 1.793108643 | AI101: 78.1078125 | AJ101: 0.1542912247 | AL101: =IF(PRICING[[#This Row],[SKU]]=J100,AL100+1,1) -> 1
A102: FMC | B102: TT | C102: GL | D102: NST | E102: H | G102: EOP | J102: 11008475 | K102: Dismiss® Turf Herbicide | L102: 6 oz | M102: 81.78 | N102: 81.78 | O102: 0 | Q102: 14 | R102: 67.78 | U102: 0.3111910002 | X102: 0.2911910002 | Y102: NA | Z102: NA | AA102: NA | AE102: 6 | AF102: 0.1836547291 | AG102: 8 | AH102: 2.074686257 | AI102: 90.37333333 | AJ102: 0.1711910002 | AL102: =IF(PRICING[[#This Row],[SKU]]=J101,AL101+1,1) -> 1
A103: FMC | B103: TT | C103: GL | D103: NST | E103: H | G103: EOP | J103: 11008336 | K103: Dismiss® Turf Herbicide | L103: 64 oz | M103: 303 | N103: 303 | O103: 0 | Q103: 40 | R103: 263 | U103: 0.2720132013 | X103: 0.2520132013 | Y103: NA | Z103: NA | AA103: NA | AE103: 64 | AF103: 0.1836547291 | AG103: 8 | AH103: 0.7547061524 | AI103: 32.875 | AJ103: 0.1320132013 | AL103: =IF(PRICING[[#This Row],[SKU]]=J102,AL102+1,1) -> 1
A104: FMC | B104: TT | C104: GL | D104: NST | E104: I | G104: EOP | J104: NoSKU2 | K104: Durentis 0.058% On-Fertilizer | L104: 50 lb | M104: 20 | N104: 20 | Q104: 2 | U104: 0.14 | X104: 0.12 | Y104: NA | Z104: NA | AA104: NA | AB104: NA | AC104: NA | AD104: NA | AL104: =IF(PRICING[[#This Row],[SKU]]=J103,AL103+1,1) -> 1
A105: FMC | B105: TT | C105: GL | D105: NST | E105: I | G105: EOP | J105: NoSKU3 | K105: Durentis 0.067% On-Fertilizer | L105: 50 lb | M105: 25 | N105: 25 | Q105: 5 | U105: 0.14 | X105: 0.12 | Y105: NA | Z105: NA | AA105: NA | AB105: NA | AC105: NA | AD105: NA | AL105: =IF(PRICING[[#This Row],[SKU]]=J104,AL104+1,1) -> 1
A106: Envu | B106: TT | C106: GL | D106: NST | E106: I | G106: EOP | H106: 86248913 | J106: D00001040 | K106: Dylox SL420 | L106: 2.5 gal | M106: 225.38 | N106: 225.38 | O106: 0 | R106: 225.38 | U106: 0.14 | X106: 0.12 | Y106: NA | Z106: NA | AA106: NA | AE106: 320 | AF106: 6.9 | AG106: 300.564 | AH106: 4.85975625 | AI106: 211.6909823 | AJ106: 0 | AL106: =IF(PRICING[[#This Row],[SKU]]=J105,AL105+1,1) -> 1
A107: Envu | B107: TT | C107: GL | D107: NST | E107: I | G107: EOP | J107: 3944704 | K107: Forbid | L107: 8 oz | M107: 253.95 | N107: 253.95 | O107: 0 | Q107: 22 | R107: 231.95 | U107: 0.2266312266 | X107: 0.2066312266 | AE107: 8 | AF107: 0 | AG107: 0 | AH107: 0 | AI107: 0 | AJ107: 0.08663122662 | AL107: =IF(PRICING[[#This Row],[SKU]]=J106,AL106+1,1) -> 1
A108: Envu | B108: TT | C108: GL | D108: NST | E108: I | G108: EOP | H108: 02406377 | J108: D00000961 | K108: Merit® 2F | L108: 1 gal | M108: 52.5 | N108: 52.5 | O108: 0 | R108: 52.5 | U108: 0.14 | X108: 0.12 | AE108: 128 | AJ108: 0 | AL108: =IF(PRICING[[#This Row],[SKU]]=J107,AL107+1,1) -> 1
A109: Envu | B109: TT | C109: G | D109: NST | E109: H | G109: EOP | J109: 86215578 | K109: Prograss EC | L109: 2.5 gal | M109: 368.25 | N109: 368.25 | O109: 0 | Q109: 22 | R109: 346.25 | U109: 0.1997420231 | X109: 0.1797420231 | AE109: 320 | AF109: 1.951331497 | AG109: 85 | AH109: 2.111401659 | AI109: 91.97265625 | AJ109: 0.05974202308 | AL109: =IF(PRICING[[#This Row],[SKU]]=J108,AL108+1,1) -> 1
A110: Envu | B110: TT | C110: G | D110: NST | E110: H | G110: EOP | H110: 04249932 | J110: D00000913 | K110: Proxy | L110: 2.5 gal | M110: 102.25 | N110: 102.25 | O110: 0 | R110: 102.25 | U110: 0.14 | X110: 0.12 | AE110: 320 | AF110: 5 | AG110: 217.8 | AH110: 1.59765625 | AI110: 69.59390625 | AJ110: 0 | AL110: =IF(PRICING[[#This Row],[SKU]]=J109,AL109+1,1) -> 1
A111: FMC | B111: TT | C111: GL | D111: NST | E111: H | G111: EOP | J111: 11008447 | K111: QuickSilver® Herbicide | L111: 8 oz | M111: 166.6 | N111: 166.6 | O111: 0 | Q111: 20 | R111: 146.6 | U111: 0.2600480192 | X111: 0.2400480192 | AE111: 8 | AF111: 0.02754820937 | AG111: 1.2 | AH111: 0.5048209366 | AI111: 21.99 | AJ111: 0.1200480192 | AL111: =IF(PRICING[[#This Row],[SKU]]=J110,AL110+1,1) -> 1
A112: Envu | B112: TT | C112: GL | D112: ST | E112: H | G112: EOP | J112: 79850980 | K112: Revolver® | L112: 32 fl oz | M112: 291.45 | N112: 291.45 | O112: 0 | Q112: 21 | R112: 270.45 | U112: 0.2120535255 | X112: 0.1920535255 | AE112: 32 | AF112: 0.3994490358 | AG112: 17.4 | AH112: 3.375968492 | AI112: 147.0571875 | AJ112: 0.07205352548 | AL112: =IF(PRICING[[#This Row],[SKU]]=J111,AL111+1,1) -> 1
A113: Envu | B113: TT | C113: G | D113: ST | E113: H | G113: EOP | J113: 427709 | K113: Sencor 75 | L113: 5 lb | M113: 591.75 | N113: 591.75 | O113: 0 | R113: 591.75 | U113: 0.14 | X113: 0.12 | AB113: NA | AC113: NA | AD113: NA | AE113: 10.6 | AF113: 0.2433425161 | AG113: 10.6 | AH113: 13.58471074 | AI113: 591.75 | AJ113: 0 | AL113: =IF(PRICING[[#This Row],[SKU]]=J112,AL112+1,1) -> 1
A114: FMC | B114: TT | C114: GL | D114: NST | E114: H | G114: EOP | J114: 11008482 | K114: Solitare® Herbicide | L114: 1 lb | M114: 164.8 | N114: 164.8 | O114: 0 | Q114: 15 | R114: 149.8 | U114: 0.2310194175 | X114: 0.2110194175 | Y114: NA | Z114: NA | AA114: NA | AE114: 16 | AF114: 0.3673094582 | AG114: 16 | AH114: 3.438934803 | AI114: 149.8 | AJ114: 0.09101941748 | AL114: =IF(PRICING[[#This Row],[SKU]]=J113,AL113+1,1) -> 1
A115: FMC | B115: TT | C115: GL | D115: NST | E115: H | G115: EOP | J115: 11008369 | K115: Solitare® WSL Herbicide | L115: 0.75 gal | M115: 98 | N115: 98 | O115: 0 | Q115: 12 | R115: 86 | U115: 0.2624489796 | X115: 0.2424489796 | Y115: NA | Z115: NA | AA115: NA | AE115: 96 | AF115: 3.9 | AG115: 169.884 | AH115: 3.49375 | AI115: 152.18775 | AJ115: 0.1224489796 | AL115: =IF(PRICING[[#This Row],[SKU]]=J114,AL114+1,1) -> 1
A116: FMC | B116: TT | C116: G | D116: NST | E116: I | G116: EOP/ORN | J116: 11008457 | K116: Talstar® Select Insecticide (RUP) | L116: 1 gal | M116: 50.6 | N116: 50.6 | O116: 0 | P116: 4+ | Q116: 6 | R116: 44.6 | U116: 0.2585770751 | X116: 0.2385770751 | AE116: 128 | AF116: 1.836547291 | AG116: 80 | AH116: 0.6399219467 | AI116: 27.875 | AJ116: 0.1185770751 | AL116: =IF(PRICING[[#This Row],[SKU]]=J115,AL115+1,1) -> 1
A117: Envu | B117: TT | C117: L | D117: NT | E117: H | G117: EOP | J117: D00000675 | K117: Terradex C&B | L117: 1 gal | M117: 90.77 | N117: 90.77 | O117: 0 | P117: 150 gal* | Q117: 15 | R117: 75.77 | U117: 0.3052528368 | X117: 0.2852528368 | AE117: 128 | AF117: 2.571166208 | AG117: 112 | AH117: 1.522009871 | AI117: 66.29875 | AJ117: 0.1652528368 | AL117: =IF(PRICING[[#This Row],[SKU]]=J116,AL116+1,1) -> 1
A118: Envu | B118: TT | C118: L | D118: NT | E118: H | G118: EOP | J118: D00000674 | K118: Terradex C&B | L118: 2.5 gal | M118: 217.03 | N118: 217.03 | O118: 0 | P118: 150 gal* | Q118: 37.5 | R118: 179.53 | U118: 0.3127871723 | X118: 0.2927871723 | AE118: 320 | AF118: 2.571166208 | AG118: 112 | AH118: 1.442504591 | AI118: 62.8355 | AJ118: 0.1727871723 | AL118: =IF(PRICING[[#This Row],[SKU]]=J117,AL117+1,1) -> 1
A119: Envu | B119: TT | C119: L | D119: NT | E119: H | G119: EOP | J119: D00000669 | K119: Terradex Power Premix | L119: 2.5 gal | M119: 179.17 | N119: 179.17 | O119: 0 | P119: 150 gal* | Q119: 37.5 | R119: 141.67 | U119: 0.3492984317 | X119: 0.3292984317 | Y119: NA | Z119: NA | AA119: NA | AE119: 320 | AF119: 1.101928375 | AG119: 48 | AH119: 0.4878443526 | AI119: 21.2505 | AJ119: 0.2092984317 | AL119: =IF(PRICING[[#This Row],[SKU]]=J118,AL118+1,1) -> 1
A120: Envu | B120: TT | C120: L | D120: NT | E120: H | G120: EOP | J120: D00000670 | K120: Terradex Power Premix | L120: 30 gal | M120: 1959.09 | N120: 1959.09 | O120: 0 | P120: 150 gal* | Q120: 450 | R120: 1509.09 | U120: 0.3696984825 | X120: 0.3496984825 | Y120: NA | Z120: NA | AA120: NA | AE120: 3840 | AF120: 1.101928375 | AG120: 48 | AH120: 0.4330492424 | AI120: 18.863625 | AJ120: 0.2296984825 | AL120: =IF(PRICING[[#This Row],[SKU]]=J119,AL119+1,1) -> 1
A121: Envu | B121: TT | C121: L | D121: NST | E121: H | G121: EOP | J121: D00000673 | K121: Terradex Quick Strike | L121: 1 gal | M121: 63.7 | N121: 63.7 | O121: 0 | P121: 150 gal* | Q121: 15 | R121: 48.7 | U121: 0.3754788069 | X121: 0.3554788069 | Y121: NA | Z121: NA | AA121: NA | AE121: 128 | AF121: 1.101928375 | AG121: 48 | AH121: 0.4192493113 | AI121: 18.2625 | AJ121: 0.2354788069 | AL121: =IF(PRICING[[#This Row],[SKU]]=J120,AL120+1,1) -> 1
A122: Envu | B122: TT | C122: L | D122: NST | E122: H | G122: EOP | J122: D00000672 | K122: Terradex Quick Strike | L122: 2.5 gal | M122: 151.34 | N122: 151.34 | O122: 0 | P122: 150 gal* | Q122: 37.5 | R122: 113.84 | U122: 0.3877864411 | X122: 0.3677864411 | Y122: NA | Z122: NA | AA122: NA | AE122: 320 | AF122: 1.101928375 | AG122: 48 | AH122: 0.3920110193 | AI122: 17.076 | AJ122: 0.2477864411 | AL122: =IF(PRICING[[#This Row],[SKU]]=J121,AL121+1,1) -> 1
A123: Envu | B123: TT | C123: L | D123: NST | E123: H | G123: EOP | J123: D00000671 | K123: Terradex Quick Strike | L123: 30 gal | M123: 1720.21 | N123: 1720.21 | O123: 0 | P123: 150 gal* | Q123: 450 | R123: 1270.21 | U123: 0.4015959679 | X123: 0.3815959679 | Y123: NA | Z123: NA | AA123: NA | AE123: 3840 | AF123: 1.101928375 | AG123: 48 | AH123: 0.3645001148 | AI123: 15.877625 | AJ123: 0.2615959679 | AL123: =IF(PRICING[[#This Row],[SKU]]=J122,AL122+1,1) -> 1
A124: Envu | B124: TT | C124: GL | D124: ST | E124: I | G124: EOP | H124: 79982844 | J124: D00001012 | K124: TopChoice | L124: 50 lb | M124: 63.5 | N124: 63.5 | O124: 0 | Q124: 2 | R124: 61.5 | U124: 0.171496063 | X124: 0.151496063 | AB124: NA | AC124: NA | AD124: NA | AE124: 800 | AF124: 31.96 | AG124: 1392.1776 | AH124: 2.456925 | AI124: 107.023653 | AJ124: 0.03149606299 | AL124: =IF(PRICING[[#This Row],[SKU]]=J123,AL123+1,1) -> 1
A125: FMC | B125: A | C125: GLO | D125: NST | E125: H | G125: EOP | J125: 11008409 | K125: Dismiss® NXT Herbicide | L125: 10 oz | M125: 94.8 | N125: 94.8 | Q125: 11 | R125: 83.8 | Y125: NA | Z125: NA | AA125: NA | AB125: 95.46 | AC125: 95.46 | AD125: 84.46 | AE125: 10 | AF125: 0.2341597796 | AG125: 10.2 | AH125: 1.962258953 | AI125: 85.476 | AJ125: 0.1160337553 | AL125: =IF(PRICING[[#This Row],[SKU]]=J124,AL124+1,1) -> 1
A126: FMC | B126: A | C126: GLO | D126: NST | E126: H | F126: X | G126: EOP | J126: 11008589 | K126: Dismiss® NXT Herbicide | L126: 60 oz | M126: 504.8 | N126: 479.56 | R126: 479.56 | Y126: NA | Z126: NA | AA126: NA | AB126: 508.34 | AC126: 482.92 | AD126: 482.92 | AE126: 60 | AF126: 0.2341597796 | AG126: 10.2 | AH126: 1.871561065 | AI126: 81.5252 | AJ126: 0.05 | AL126: =IF(PRICING[[#This Row],[SKU]]=J125,AL125+1,1) -> 1
A127: FMC | B127: A | C127: GLO | D127: NST | E127: H | F127: X | G127: EOP | J127: 11008589 | K127: Dismiss® NXT Herbicide | L127: 60 oz | M127: 504.8 | N127: 479.56 | P127: 16+ | Q127: 60 | R127: 419.56 | Y127: NA | Z127: NA | AA127: NA | AB127: 508.34 | AC127: 482.92 | AD127: 422.92 | AE127: 60 | AF127: 0.2341597796 | AG127: 10.2 | AH127: 1.637401286 | AI127: 71.3252 | AJ127: 0.168858954 | AL127: =IF(PRICING[[#This Row],[SKU]]=J126,AL126+1,1) -> 2
AL128: =IF(PRICING[[#This Row],[SKU]]=J127,AL127+1,1) -> 1
AL129: =IF(PRICING[[#This Row],[SKU]]=J128,AL128+1,1) -> 2

Sheet Sheet4 (hidden)
A3: SKU | B3: Product | C3: Program | D3: Agency/TT | E3: NOW Price
A4: 427709 | B4: Sencor 75 | C4: NOW | D4: TT | E4: 710.1
A5: 3944704 | B5: Forbid | C5: NOW | D5: TT | E5: 304.74 | J5: D00000665 | K5: Acclaim Accelerate | L5: 0.5 gal
A6: 11003880 | B6: Rayora | C6: NOW | D6: A | E6: 631.4 | J6: D00000666 | K6: Acclaim Accelerate | L6: 2.5 gal
A7: 11008336 | B7: Dismiss® Turf Herbicide | C7: NOW | D7: TT | E7: 363.6 | J7: D00000907 | K7: Banol® | L7: 2.5 gal
A8: 11008351 | B8: Blindside® Herbicide | C8: NOW | D8: TT | E8: 166.86 | J8: D00000898 | K8: Armada 50 WDG | L8: 2 lb
A9: 11008357 | B9: Dismiss® CA Herbicide | C9: NOW | D9: TT | E9: 81.78 | J9: D00000623 | K9: Castlon™ | L9: 1 gal
A10: 11008447 | B10: QuickSilver® | C10: NOW | D10: TT | E10: 199.92 | J10: D00000624 | K10: Castlon™ | L10: 16 oz
A11: 11008457 | B11: Talstar® Select Insecticide (RUP) | C11: NOW | D11: TT | E11: 60.72 | J11: 79714858 | K11: Celsius® WG | L11: 10 oz
A12: 11008474 | B12: Dismiss® South Herbicide | C12: NOW | D12: TT | E12: 186.66 | J12: D00000911 | K12: Celsius® XTRA | L12: 10 oz
A13: 11008520 | B13: Triple Crown T&O | C13: NOW | D13: A | E13: 330.79 | J13: D00000914 | K13: Chipco® Signature™ | L13: 11 lb
A14: 11008521 | B14: Triple Crown Golf (RUP) | C14: NOW | D14: A | E14: 330.79 | J14: D00001373 | K14: Densicor® | L14: 51 oz
A15: 11008522 | B15: Solitare | C15: NOW | D15: A | E15: 566.58 | J15: 11015390 | K15: Durentis™ Insecticide | L15: 16 oz
A16: 11008557 | B16: Fame SC | C16: NOW | D16: A | E16: 1471.98 | J16: 11015391 | K16: Durentis™ Insecticide | L16: 64 oz
A17: 11008589 | B17: Dismiss NXT | C17: NOW | D17: A | E17: 479.56 | J17: 11008464 | K17: Echelon® 4SC Herbicide | L17: 1 gal
A18: 11009495 | B18: Scion | C18: NOW | D18: A | E18: 156.6 | J18: D00000934 | K18: Exteris® Stressgard® | L18: 2.5 gal
A19: 11009500 | B19: Fame SC | C19: NOW | D19: A | E19: 6520.42 | J19: 11008377 | K19: Fame® +C Fungicide | L19: 2.5 gal
A20: 11013862 | B20: Solitare WSL | C20: NOW | D20: A | E20: 249.28 | J20: 11008557 | K20: Fame® SC Fungicide | L20: 64 oz
A21: 11014245 | B21: Serata | C21: NOW | D21: A | E21: 474.81 | J21: 11009500 | K21: Fame® SC Fungicide | L21: 2.5 gal
A22: 11015990 | B22: Tarvecta | C22: NOW | D22: A | E22: 772.8 | J22: 11008393 | K22: Fame® SC Fungicide | L22: 16 oz
A23: 79545312 | B23: Revolver | C23: NOW | D23: A | E23: 720.1 | J23: D00000935 | K23: Fiata® Stressgard® | L23: 2.5 gal
A24: 79714858 | B24: Celsius | C24: NOW | D24: A | E24: 124.64 | J24: D00001379 | K24: Indemnify® | L24: 17.1 fl oz
A25: 79850980 | B25: Revolver | C25: NOW | D25: TT | E25: 349.74 | J25: 81701245 | K25: Interface® Stressgard® | L25: 2.5 gal
A26: 81701245 | B26: Interface Stressgard | C26: NOW | D26: A | E26: 544.35 | J26: 11013671 | K26: Kalida® Fungicide | L26: 64 oz
A27: 81746257 | B27: Tribute Total | C27: NOW | D27: A | E27: 405.08 | J27: D00000965 | K27: Mirage® Stressgard® | L27: 2.5 gal
A28: 87300722 | B28: Acclaim Extra | C28: NOW | D28: TT | E28: 798.24 | J28: 11003880 | K28: Rayora® Fungicide | L28: 2.5 gal
A29: D00000125 | B29: Resilia | C29: NOW | D29: A | E29: 946.56 | J29: D00000125 | K29: Resilia™ | L29: 2.72 gal
A30: D00000623 | B30: Castlon | C30: NOW | D30: A | E30: 2610.79 | J30: 79545312 | K30: Revolver® | L30: 87 fl oz
A31: D00000665 | B31: Acclaim Accelerate | C31: NOW | D31: TT | E31: 55.32 | J31: D00000986 | K31: Ronstar® FLO | L31: 2.5 gal
A32: D00000666 | B32: Acclaim Accelerate | C32: NOW | D32: TT | E32: 266.58 | J32: 11009495 | K32: Scion | L32: 32 oz
A33: D00000669 | B33: Terradex Power Premix | C33: NOW | D33: TT | E33: 226.32 | J33: 11014245 | K33: Serata® Fungicide | L33: 35 oz
A34: D00000670 | B34: Terradex Power Premix | C34: NOW | D34: TT | E34: 2474.64 | J34: D00000989 | K34: Signature™ XTRA Stressgard® | L34: 5.5 lb
A35: D00000671 | B35: Terradex Quick Strike | C35: NOW | D35: TT | E35: 2172.9 | J35: 11008522 | K35: Solitare® Herbicide | L35: 4 lb
A36: D00000672 | B36: Terradex Quick Strike | C36: NOW | D36: TT | E36: 191.16 | J36: 11013862 | K36: Solitare® WSL Herbicide | L36: 2.5 gal
A37: D00000673 | B37: Terradex Quick Strike | C37: NOW | D37: TT | E37: 80.46 | J37: D00000990 | K37: Specticle® FLO | L37: 1 gal
A38: D00000674 | B38: Terradex C&B | C38: NOW | D38: TT | E38: 274.14 | J38: D00000992 | K38: Specticle® G | L38: 50 lb
A39: D00000675 | B39: Terradex C&B | C39: NOW | D39: TT | E39: 114.66 | J39: D00000998 | K39: Tartan® Stressgard® | L39: 2.5 gal
A40: D00000898 | B40: Armada 50 WDG | C40: NOW | D40: TT | E40: 136.8 | J40: 11015981 | K40: Tarvecta™ | L40: 2.5 gal
A41: D00000907 | B41: Banol® | C41: NOW | D41: A | E41: 1267 | J41: 11015990 | K41: Tarvecta™ | L41: 64 oz
A42: D00000911 | B42: Celsius XTRA | C42: NOW | D42: A | E42: 158.08 | J42: 86797658 | K42: Tetrino® | L42: 1 gal
A43: D00000913 | B43: Proxy | C43: NOW | D43: TT | E43: 122.7 | J43: 81746257 | K43: Tribute® Total | L43: 6 oz
A44: D00000914 | B44: Chipco Signature | C44: NOW | D44: A | E44: 383.8 | J44: 4250930 | K44: 26GT™ | L44: 2.5 gal
A45: D00000961 | B45: Merit 2F | C45: NOW | D45: TT | E45: 63 | J45: 87300722 | K45: Acclaim Extra | L45: 1 gal
A46: D00000965 | B46: Mirage Stressgard | C46: NOW | D46: A | E46: 493 | J46: 11008351 | K46: Blindside® Herbicide | L46: 0.5 lb
A47: D00000989 | B47: Signature XTRA Stressgard | C47: NOW | D47: A | E47: 199.88 | J47: 11008521 | K47: Triple Crown® Golf Insecticide (RUP) | L47: 1 gal
A48: D00000990 | B48: Specticle FLO | C48: NOW | D48: A | E48: 1643.71 | J48: 11008357 | K48: Dismiss® CA Herbicide | L48: 6 oz
E49: 1883.52 | J49: 11008474 | K49: Dismiss® South Herbicide | L49: 1 pint
E50: 1967.23 | J50: 11008520 | K50: Triple Crown® T&O Insecticide | L50: 1 gal
A51: D00000992 | B51: Specticle G | C51: NOW | D51: A | E51: 123.98 | J51: 11008475 | K51: Dismiss® Turf Herbicide | L51: 6 oz
A52: D00000998 | B52: Tartan Stressgard | C52: NOW | D52: A | E52: 893 | J52: 11008336 | K52: Dismiss® Turf Herbicide | L52: 64 oz
E53: 981.35 | J53: 86215578 | K53: Prograss EC | L53: 2.5 gal
A54: D00001012 | B54: TopChoice | C54: NOW | D54: TT | E54: 76.2 | J54: D00000913 | K54: Proxy | L54: 2.5 gal
A55: D00001040 | B55: Dylox 420 SL | C55: NOW | D55: TT | E55: 270.456 | J55: 11008447 | K55: QuickSilver® Herbicide | L55: 8 oz
A56: D00001373 | B56: Densicor | C56: NOW | D56: A | E56: 667.66 | J56: 79850980 | K56: Revolver® | L56: 32 fl oz
A57: D00001379 | B57: Indemnify | C57: NOW | D57: A | E57: 1865.42 | J57: 427709 | K57: Sencor 75 | L57: 5 lb
J58: D00000675 | K58: Terradex C&B | L58: 1 gal
J59: D00000674 | K59: Terradex C&B | L59: 2.5 gal
J60: D00000669 | K60: Terradex Power Premix | L60: 2.5 gal
J61: D00000670 | K61: Terradex Power Premix | L61: 30 gal
J62: D00000673 | K62: Terradex Quick Strike | L62: 1 gal
J63: D00000672 | K63: Terradex Quick Strike | L63: 2.5 gal
J64: D00000671 | K64: Terradex Quick Strike | L64: 30 gal
J65: 11008482 | K65: Solitare® Herbicide | L65: 1 lb
J66: 11008369 | K66: Solitare® WSL Herbicide | L66: 0.75 gal
